Workbook

Sheet Original
C1: Pirkanmaan ELY-keskuksen maantieverkon seudullinen merkitys
C3: Linea Konsultit Oy, helmikuu 2018 | BF3: Työmatkojen tuonti (kaikki) | BK3: Työmatkojen tuonti (> 20 km) | BP3: Aluerakenteen tuonti (tiivis) | BU3: Aluerakenteen tuonti (harva) | BZ3: Asemakaavan tuonti | CD3: Käynnissä olevien | CH3: Taajamatiedon tuonti | CL3: Merkitsevyysluokan tuonti | CS3: Gmaps tuonti
CD4: asemakaavojen tuonti
C5: Uudenmaan ja Kanta-Hämeen maakuntien -maantieverkon laajuustyö (2015)
C6: Päijät-Hämeen maakunnan -maantieverkon laajuustyö (2014)
C7: Yhteiset saraketiedot (2014–2015)
A9: Tienumero järjestys | B9: ID2 | C9: Tie | D9: Tieosa | E9: Pituus | L9: KVL (pit. pain.) | M9: KVLRAS (pit. pain.) | N9: KAVL (pit. pain.) | O9: Google Maps apufile | P9: Google Maps | Q9: Kunta | R9: Liikenteen koostumus | T9: Työmatkat, kpl (YKR), kaikki (vanha verkko) | U9: Työmatkat, kpl (YKR), > 20 km | V9: Aluerakenne, VE1 (tiivis) apufile | W9: Aluerakenne, VE1 (tiivis) | X9: Aluerakenne, VE2 (harva) apufile | Y9: Aluerakenne, VE2 (harva) | Z9: Asemakaava apufile | AA9: Asemakaava-alueella tieosan pituudesta (%) | AB9: Käynnissä oleva asemakaava apufile | AC9: Asemakaava valmisteilla tieosan pituudesta (%) | AD9: Taajama apufile | AE9: Taajama-alueella tieosan pituudesta (%) | AF9: Valtakunnallinen kohde | AG9: Merkitsevyys-luokka | AH9: Merkitsevyys-luokka | AI9: Luokka 2001 | AJ9: Luokka 1/2018 (lahtotilanne paaperiaatteiden jalkeen, kalvoliite) | AK9: Luokka 1/2018 (konsultin esitys, varmat muokattu) | AL9: Luokka 2/2018 | AN9: BRUTUS (VE1) Laskennallinen ehdotus 11/2017 | AO9: BRUTUS (VE2) Laskennallinen ehdotus 11/2017 | AP9: BRUTUS (VE3) Laskennallinen ehdotus 11/2017 | AQ9: summa | AR9: osuus | AS9: KVL | AT9: työmatkat | AU9: Aluerak. | AW9: BRUTUS (VE1_2) Laskennallinen ehdotus 11/2017 | AX9: BRUTUS (VE2_2) Laskennallinen ehdotus 11/2017 | AY9: BRUTUS (VE3_2) Laskennallinen ehdotus 11/2017 | AZ9: summa | BA9: osuus | BB9: KVL | BC9: työmatkat | BD9: Aluerak.
F10: STRAFICAN AINEISTO, LIITOS TIEOSILLE | J10: ERO (KVL ABS) | K10: ERO (KVL ABS) | R10: > 20 km abs. | S10: > 20 km suht.
B11: ID2 | F11: Pit | G11: 20 km abs | H11: 20 km suht | R11: Valta-kunnallinen (BRUTUS) | S11: Valta-kunnallinen (BRUTUS) | BF11: ID2 | BG11: TIE | BH11: TIEOSA | BI11: SUM_yht | BK11: ID2 | BL11: TIE | BM11: TIEOSA | BN11: SUM_yht | BP11: ID2 | BQ11: TIE | BR11: TIEOSA | BS11: Tiivis_ver | BU11: ID2 | BV11: TIE | BW11: TIEOSA | BX11: Harva_verk | BZ11: ID2 | CA11: Askaava | CB11: Askaav_pro | CD11: ID2 | CE11: Askaava | CF11: Askaav_pro | CH11: ID2 | CI11: ykr15taaja | CJ11: ykr15tapro | CL11: ID_2 | CM11: LUOKKA | CN11: TIE | CO11: AOSA | CP11: Luokka | CQ11: Ketjutettu | CS11: ID | CT11: y_start | CU11: x_start | CV11: Streetview
C12: Tie
A13: 1 | B13: =CONCATENATE(C13,"_",D13) -> 2_31 | C13: 2 | D13: 31 | E13: 4666 | F13: 1916.770192 | G13: 3663 | H13: 99 | I13: =+H13/100 -> 0.99 | J13: =+I13*G13 -> 3626.37 | K13: =+(J13-L13)/L13 -> 0.1161495845 | L13: 3249 | M13: 744 | N13: 3097 | O13: =IFERROR(VLOOKUP(B13,$CS$13:$CV$1804,4,FALSE),"--") -> https://www.google.com/maps/@61.0266459282,23.0356780961,3a,75y,90t/data=!3m3!1e1!3m1!2e0 | P13: =HYPERLINK(O13,"Gmaps") -> Gmaps | Q13: Punkalaidun | R13: 3663 | S13: 99 | T13: =IFERROR(VLOOKUP(B13,$BF$13:$BI$1000,4,FALSE),"TIEOSA PUUTTUU") -> 66 | U13: =IFERROR(VLOOKUP(B13,$BK$13:$BN$985,4,FALSE),"TIEOSA PUUTTUU") -> 63 | V13: =IFERROR(VLOOKUP(B13,$BP$13:$BS$1804,4,FALSE),"--") -> 9 | W13: =IF(V13>0,"Osa seud. yht."," --") -> Osa seud. yht. | X13: =IFERROR(VLOOKUP(B13,$BU$13:$BX$1804,4,FALSE),"--") -> 5 | Y13: =IF(X13>0,"Osa seud. yht."," --") -> Osa seud. yht. | Z13: 0 | AA13: =+Z13/100 -> 0 | AC13: =IFERROR(VLOOKUP(B13,$CD$13:$CF$49,3,FALSE),0) -> 0 | AD13: 0 | AE13: =+AD13/100 -> 0 | AG13: =IFERROR(VLOOKUP(B13,$CL$13:$CQ$835,6,FALSE),"Ei määritetty") -> Ei määritetty | AH13: Ei määritetty | AJ13: punainen | AK13: punainen | AL13: punainen | AN13: =IF(S13="ei mallia","ei mallia",IF(S13>59,IF(R13>999,"punainen",IF(U13>99,"punainen",IF(W13="Osa seud. yht.","punainen","musta"))),"musta")) -> punainen | AO13: =IF(S13="ei mallia","ei mallia",IF(S13>39,IF(R13>1999,"punainen",IF(U13>499,"punainen",IF(Y13="Osa seud. yht.","punainen","musta"))),"musta")) -> punainen | AP13: =IF(I13="ei mallia","ei mallia",IF(AQ13>20,"punainen","musta")) -> punainen | AQ13: =SUM(AR13:AU13) -> 30 | AR13: =IF(S13>59,10,IF(S13>39,1,0)) -> 10 | AS13: =IF(R13>1999,10,IF(R13>999,1,0)) -> 10 | AT13: =IF(U13>499,10,IF(U13>99,1,0)) -> 0 | AU13: =IF(Y13="Osa seud. yht.",10,IF(W13="Osa seud. yht.",1,0)) -> 10 | AW13: =IF(S13="ei mallia","ei mallia",IF(S13>49,IF(R13>999,"punainen",IF(U13>99,"punainen",IF(W13="Osa seud. yht.","punainen","musta"))),"musta")) -> punainen | AX13: =IF(S13="ei mallia","ei mallia",IF(S13>39,IF(R13>1999,"punainen",IF(U13>499,"punainen",IF(Y13="Osa seud. yht.","punainen","musta"))),"musta")) -> punainen | AY13: =IF(S13="ei mallia","ei mallia",IF(AZ13>20,"punainen","musta")) -> punainen | AZ13: =SUM(BA13:BD13) -> 30 | BA13: =IF(S13>49,10,IF(S13<50,1,0)) -> 10 | BB13: =IF(R13>1999,10,IF(R13>999,1,0)) -> 10 | BC13: =IF(U13>499,10,IF(U13>99,1,0)) -> 0 | BD13: =IF(Y13="Osa seud. yht.",10,IF(W13="Osa seud. yht.",1,0)) -> 10 | BF13: 2_31 | BG13: 2 | BH13: 31 | BI13: 66 | BK13: 2_31 | BL13: 2 | BM13: 31 | BN13: 63 | BP13: =CONCATENATE(BQ13,"_",BR13) -> 2_31 | BQ13: 2 | BR13: 31 | BS13: 9 | BU13: =CONCATENATE(BV13,"_",BW13) -> 2_31 | BV13: 2 | BW13: 31 | BX13: 5 | BZ13: 339_7 | CA13: 0 | CB13: 0 | CD13: 3_134 | CE13: 38 | CF13: 0.005974842767 | CH13: 3_126 | CI13: 2525 | CJ13: 61.96319018 | CL13: 3200_5 | CM13: Vähä | CN13: 3200 | CO13: 5 | CP13: 1 | CQ13: =CONCATENATE(CM13," ",CP13) -> Vähä 1 | CS13: 2_31 | CT13: 61.0266459282 | CU13: 23.0356780961 | CV13: https://www.google.com/maps/@61.0266459282,23.0356780961,3a,75y,90t/data=!3m3!1e1!3m1!2e0
A14: 2 | B14: =CONCATENATE(C14,"_",D14) -> 3_121 | C14: 3 | D14: 121 | E14: 8822 | F14: 6074.773413 | G14: 14806 | H14: 98 | I14: =+H14/100 -> 0.98 | J14: =+I14*G14 -> 14509.88 | K14: =+(J14-L14)/L14 -> -0.1230051375 | L14: 16545 | M14: 1531 | N14: 15542 | O14: https://www.google.com/maps/@61.1282247429,24.1104028105,3a,75y,90t/data=!3m3!1e1!3m1!2e0 | P14: Gmaps | Q14: Valkeakoski | R14: 14806 | S14: 98 | T14: 2083 | U14: 2077 | V14: 51 | W14: =IF(V14>0,"Osa seud. yht."," --") -> Osa seud. yht. | X14: 33 | Y14: =IF(X14>0,"Osa seud. yht."," --") -> Osa seud. yht. | Z14: 0 | AA14: 0 | AC14: =IFERROR(VLOOKUP(B14,$CD$13:$CF$49,3,FALSE),0) -> 0 | AD14: 0 | AE14: 0 | AG14: Ei määritetty | AH14: Ei määritetty | AJ14: punainen | AK14: punainen | AL14: punainen | AN14: =IF(S14="ei mallia","ei mallia",IF(S14>59,IF(R14>999,"punainen",IF(U14>99,"punainen",IF(W14="Osa seud. yht.","punainen","musta"))),"musta")) -> punainen | AO14: =IF(S14="ei mallia","ei mallia",IF(S14>39,IF(R14>1999,"punainen",IF(U14>499,"punainen",IF(Y14="Osa seud. yht.","punainen","musta"))),"musta")) -> punainen | AP14: punainen | AQ14: =SUM(AR14:AU14) -> 40 | AR14: =IF(S14>59,10,IF(S14>39,1,0)) -> 10 | AS14: =IF(R14>1999,10,IF(R14>999,1,0)) -> 10 | AT14: =IF(U14>499,10,IF(U14>99,1,0)) -> 10 | AU14: =IF(Y14="Osa seud. yht.",10,IF(W14="Osa seud. yht.",1,0)) -> 10 | AW14: =IF(S14="ei mallia","ei mallia",IF(S14>49,IF(R14>999,"punainen",IF(U14>99,"punainen",IF(W14="Osa seud. yht.","punainen","musta"))),"musta")) -> punainen | AX14: =IF(S14="ei mallia","ei mallia",IF(S14>39,IF(R14>1999,"punainen",IF(U14>499,"punainen",IF(Y14="Osa seud. yht.","punainen","musta"))),"musta")) -> punainen | AY14: punainen | AZ14: =SUM(BA14:BD14) -> 40 | BA14: =IF(S14>49,10,IF(S14<50,1,0)) -> 10 | BB14: =IF(R14>1999,10,IF(R14>999,1,0)) -> 10 | BC14: =IF(U14>499,10,IF(U14>99,1,0)) -> 10 | BD14: =IF(Y14="Osa seud. yht.",10,IF(W14="Osa seud. yht.",1,0)) -> 10 | BF14: 3_120 | BG14: 3 | BH14: 120 | BI14: 0 | BK14: 3_121 | BL14: 3 | BM14: 121 | BN14: 2077 | BP14: =CONCATENATE(BQ14,"_",BR14) -> 3_121 | BQ14: 3 | BR14: 121 | BS14: 51 | BU14: =CONCATENATE(BV14,"_",BW14) -> 3_121 | BV14: 3 | BW14: 121 | BX14: 33 | BZ14: 3_126 | CA14: 1130 | CB14: 28 | CD14: 3_136 | CE14: 48 | CF14: 0.006201550388 | CH14: 3_134 | CI14: 5960 | CJ14: 93.71069182 | CL14: 14011_1 | CM14: Vähä | CN14: 14011 | CO14: 1 | CP14: 1 | CQ14: =CONCATENATE(CM14," ",CP14) -> Vähä 1 | CS14: 3_121 | CT14: 61.1282247429 | CU14: 24.1104028105 | CV14: https://www.google.com/maps/@61.1282247429,24.1104028105,3a,75y,90t/data=!3m3!1e1!3m1!2e0
A15: 3 | B15: =CONCATENATE(C15,"_",D15) -> 3_122 | C15: 3 | D15: 122 | E15: 4795 | F15: 4741.932522 | G15: 13739 | H15: 98 | I15: =+H15/100 -> 0.98 | J15: =+I15*G15 -> 13464.22 | K15: =+(J15-L15)/L15 -> -0.2860207869 | L15: 18858 | M15: 1552 | N15: 18292 | O15: https://www.google.com/maps/@61.1603983572,23.9649213463,3a,75y,90t/data=!3m3!1e1!3m1!2e0 | P15: Gmaps | Q15: Akaa, Valkeakoski | R15: 13739 | S15: 98 | T15: 1999 | U15: 1971 | V15: 44 | W15: =IF(V15>0,"Osa seud. yht."," --") -> Osa seud. yht. | X15: 26 | Y15: =IF(X15>0,"Osa seud. yht."," --") -> Osa seud. yht. | Z15: 0 | AA15: 0 | AC15: 0 | AD15: 0 | AE15: 0 | AG15: Ei määritetty | AH15: Ei määritetty | AJ15: punainen | AK15: punainen | AL15: punainen | AN15: punainen | AO15: punainen | AP15: punainen | AQ15: 40 | AR15: 10 | AS15: 10 | AT15: 10 | AU15: 10 | AW15: =IF(S15="ei mallia","ei mallia",IF(S15>49,IF(R15>999,"punainen",IF(U15>99,"punainen",IF(W15="Osa seud. yht.","punainen","musta"))),"musta")) -> punainen | AX15: =IF(S15="ei mallia","ei mallia",IF(S15>39,IF(R15>1999,"punainen",IF(U15>499,"punainen",IF(Y15="Osa seud. yht.","punainen","musta"))),"musta")) -> punainen | AY15: punainen | AZ15: 40 | BA15: 10 | BB15: 10 | BC15: 10 | BD15: 10 | BF15: 3_121 | BG15: 3 | BH15: 121 | BI15: 2083 | BK15: 3_122 | BL15: 3 | BM15: 122 | BN15: 1971 | BP15: 3_122 | BQ15: 3 | BR15: 122 | BS15: 44 | BU15: 3_122 | BV15: 3 | BW15: 122 | BX15: 26 | BZ15: 3_134 | CA15: 1795 | CB15: 28 | CD15: 3_207 | CE15: 398 | CF15: 0.1933916424 | CH15: 3_135 | CI15: 3436 | CJ15: 68.20166733 | CL15: 322_7 | CM15: Vähä | CN15: 322 | CO15: 7 | CP15: 1 | CQ15: Vähä 1 | CS15: 3_122 | CT15: 61.1603983572 | CU15: 23.9649213463 | CV15: https://www.google.com/maps/@61.1603983572,23.9649213463,3a,75y,90t/data=!3m3!1e1!3m1!2e0
A16: 4 | B16: =CONCATENATE(C16,"_",D16) -> 3_123 | C16: 3 | D16: 123 | E16: 5673 | F16: 5653.223358 | G16: 15043 | H16: 98 | I16: 0.98 | J16: 14742.14 | K16: -0.2182553823 | L16: 18858 | M16: 1552 | N16: 18292 | O16: https://www.google.com/maps/@61.1823829053,23.889640003,3a,75y,90t/data=!3m3!1e1!3m1!2e0 | P16: Gmaps | Q16: Akaa, Valkeakoski | R16: 15043 | S16: 98 | T16: 5387 | U16: 5212 | V16: 154 | W16: Osa seud. yht. | X16: 104 | Y16: Osa seud. yht. | Z16: 0 | AA16: 0 | AC16: 0 | AD16: 0 | AE16: 0 | AG16: Ei määritetty | AH16: Ei määritetty | AJ16: punainen | AK16: punainen | AL16: punainen | AN16: punainen | AO16: punainen | AP16: punainen | AQ16: 40 | AR16: 10 | AS16: 10 | AT16: 10 | AU16: 10 | AW16: punainen | AX16: punainen | AY16: punainen | AZ16: 40 | BA16: 10 | BB16: 10 | BC16: 10 | BD16: 10 | BF16: 3_122 | BG16: 3 | BH16: 122 | BI16: 1999 | BK16: 3_123 | BL16: 3 | BM16: 123 | BN16: 5212 | BP16: 3_123 | BQ16: 3 | BR16: 123 | BS16: 154 | BU16: 3_123 | BV16: 3 | BW16: 123 | BX16: 104 | BZ16: 3_135 | CA16: 1576 | CB16: 31 | CD16: 9_208 | CE16: 625 | CF16: 0.06316321374 | CH16: 3_136 | CI16: 4960 | CJ16: 64.08268734 | CL16: 322_8 | CM16: Vähä | CN16: 322 | CO16: 8 | CP16: 1 | CQ16: Vähä 1 | CS16: 3_123 | CT16: 61.1823829053 | CU16: 23.889640003 | CV16: https://www.google.com/maps/@61.1823829053,23.889640003,3a,75y,90t/data=!3m3!1e1!3m1!2e0
A17: 5 | B17: =CONCATENATE(C17,"_",D17) -> 3_124 | C17: 3 | D17: 124 | E17: 8350 | F17: 8288.067583 | G17: 16556 | H17: 98 | I17: 0.98 | J17: 16224.88 | K17: -0.2902191697 | L17: 22859 | M17: 1943 | N17: 22363 | O17: https://www.google.com/maps/@61.2223691821,23.83911818,3a,75y,90t/data=!3m3!1e1!3m1!2e0 | P17: Gmaps | Q17: Lempäälä, Valkeakoski | R17: 16556 | S17: 98 | T17: 4801 | U17: 4765 | V17: 134 | W17: Osa seud. yht. | X17: 97 | Y17: Osa seud. yht. | Z17: 0 | AA17: 0 | AC17: 0 | AD17: 0 | AE17: 0 | AG17: Ei määritetty | AH17: Ei määritetty | AJ17: punainen | AK17: punainen | AL17: punainen | AN17: punainen | AO17: punainen | AP17: punainen | AQ17: 40 | AR17: 10 | AS17: 10 | AT17: 10 | AU17: 10 | AW17: punainen | AX17: punainen | AY17: punainen | AZ17: 40 | BA17: 10 | BB17: 10 | BC17: 10 | BD17: 10 | BF17: 3_123 | BG17: 3 | BH17: 123 | BI17: 5387 | BK17: 3_124 | BL17: 3 | BM17: 124 | BN17: 4765 | BP17: 3_124 | BQ17: 3 | BR17: 124 | BS17: 134 | BU17: 3_124 | BV17: 3 | BW17: 124 | BX17: 97 | BZ17: 3_135 | CA17: 3434 | CB17: 68 | CD17: 9_210 | CE17: 292 | CF17: 0.03431257344 | CH17: 3_137 | CI17: 2440 | CJ17: 100.370218 | CL17: 3222_5 | CM17: Vähä | CN17: 3222 | CO17: 5 | CP17: 1 | CQ17: Vähä 1 | CS17: 3_124 | CT17: 61.2223691821 | CU17: 23.83911818 | CV17: https://www.google.com/maps/@61.2223691821,23.83911818,3a,75y,90t/data=!3m3!1e1!3m1!2e0
A18: 6 | B18: 3_125 | C18: 3 | D18: 125 | E18: 4612 | F18: 4533.716415 | G18: 16560 | H18: 97 | I18: 0.97 | J18: 16063.2 | K18: -0.3051948614 | L18: 23119 | M18: 2112 | N18: 22725 | O18: https://www.google.com/maps/@61.2930420913,23.815737372,3a,75y,90t/data=!3m3!1e1!3m1!2e0 | P18: Gmaps | Q18: Lempäälä | R18: 16560 | S18: 97 | T18: 5001 | U18: 4965 | V18: 125 | W18: Osa seud. yht. | X18: 91 | Y18: Osa seud. yht. | Z18: 0 | AA18: =+Z18/100 -> 0 | AC18: 0 | AD18: 0 | AE18: 0 | AG18: Ei määritetty | AH18: Ei määritetty | AJ18: punainen | AK18: punainen | AL18: punainen | AN18: punainen | AO18: punainen | AP18: punainen | AQ18: 40 | AR18: 10 | AS18: 10 | AT18: 10 | AU18: 10 | AW18: punainen | AX18: punainen | AY18: punainen | AZ18: 40 | BA18: 10 | BB18: 10 | BC18: 10 | BD18: 10 | BF18: 3_124 | BG18: 3 | BH18: 124 | BI18: 4801 | BK18: 3_125 | BL18: 3 | BM18: 125 | BN18: 4965 | BP18: 3_125 | BQ18: 3 | BR18: 125 | BS18: 125 | BU18: 3_125 | BV18: 3 | BW18: 125 | BX18: 91 | BZ18: 3_136 | CA18: 2128 | CB18: 27 | CD18: 9_211 | CE18: 770 | CF18: 0.1318493151 | CH18: 3_138 | CI18: 1714 | CJ18: 34.95818886 | CL18: 3222_4 | CM18: Vähä | CN18: 3222 | CO18: 4 | CP18: 1 | CQ18: Vähä 1 | CS18: 3_125 | CT18: 61.2930420913 | CU18: 23.815737372 | CV18: https://www.google.com/maps/@61.2930420913,23.815737372,3a,75y,90t/data=!3m3!1e1!3m1!2e0
A19: 7 | B19: 3_126 | C19: 3 | D19: 126 | E19: 4075 | F19: 4048.572741 | G19: 20619 | H19: 93 | I19: 0.93 | J19: 19175.67 | K19: -0.3362753107 | L19: 28891 | M19: 2154 | N19: 29161 | O19: https://www.google.com/maps/@61.3305527813,23.8002234548,3a,75y,90t/data=!3m3!1e1!3m1!2e0 | P19: Gmaps | Q19: Lempäälä | R19: 20619 | S19: 93 | T19: 8364 | U19: 7932 | V19: 161 | W19: Osa seud. yht. | X19: 124 | Y19: Osa seud. yht. | Z19: 28 | AA19: =+Z19/100 -> 0.28 | AC19: 0 | AD19: 61.96319018 | AE19: 0.6196319018 | AG19: Ei määritetty | AH19: Ei määritetty | AJ19: punainen | AK19: punainen | AL19: punainen | AN19: punainen | AO19: punainen | AP19: punainen | AQ19: 40 | AR19: 10 | AS19: 10 | AT19: 10 | AU19: 10 | AW19: punainen | AX19: punainen | AY19: punainen | AZ19: 40 | BA19: 10 | BB19: 10 | BC19: 10 | BD19: 10 | BF19: 3_125 | BG19: 3 | BH19: 125 | BI19: 5001 | BK19: 3_126 | BL19: 3 | BM19: 126 | BN19: 7932 | BP19: 3_126 | BQ19: 3 | BR19: 126 | BS19: 161 | BU19: 3_126 | BV19: 3 | BW19: 126 | BX19: 124 | BZ19: 3_136 | CA19: 2381 | CB19: 31 | CD19: 11_3 | CE19: 1973 | CF19: 0.2888303323 | CH19: 3_139 | CI19: 1101 | CJ19: 18.78198567 | CL19: 2986_3 | CM19: Vähä | CN19: 2986 | CO19: 3 | CP19: 1 | CQ19: Vähä 1 | CS19: 3_126 | CT19: 61.3305527813 | CU19: 23.8002234548 | CV19: https://www.google.com/maps/@61.3305527813,23.8002234548,3a,75y,90t/data=!3m3!1e1!3m1!2e0
A20: 8 | B20: 3_134 | C20: 3 | D20: 134 | E20: 6360 | F20: 6293.87459 | G20: 28068 | H20: 85 | I20: 0.85 | J20: 23857.8 | K20: -0.4249746927 | L20: 41490 | M20: 3078 | N20: 43150 | O20: https://www.google.com/maps/@61.3658521245,23.7909989254,3a,75y,90t/data=!3m3!1e1!3m1!2e0 | P20: Gmaps | Q20: Lempäälä | R20: 28068 | S20: 85 | T20: 13630 | U20: 11110 | V20: 175 | W20: Osa seud. yht. | X20: 156 | Y20: Osa seud. yht. | Z20: 28 | AA20: =+Z20/100 -> 0.28 | AC20: 0.005974842767 | AD20: 93.71069182 | AE20: 0.9371069182 | AG20: Ei määritetty | AH20: Ei määritetty | AJ20: punainen | AK20: punainen | AL20: punainen | AN20: punainen | AO20: punainen | AP20: punainen | AQ20: 40 | AR20: 10 | AS20: 10 | AT20: 10 | AU20: 10 | AW20: punainen | AX20: punainen | AY20: punainen | AZ20: 40 | BA20: 10 | BB20: 10 | BC20: 10 | BD20: 10 | BF20: 3_126 | BG20: 3 | BH20: 126 | BI20: 8364 | BK20: 3_134 | BL20: 3 | BM20: 134 | BN20: 11110 | BP20: 3_134 | BQ20: 3 | BR20: 134 | BS20: 175 | BU20: 3_134 | BV20: 3 | BW20: 134 | BX20: 156 | BZ20: 3_137 | CA20: 1469 | CB20: 60 | CD20: 12_127 | CE20: 75 | CF20: 0.01102616877 | CH20: 3_203 | CI20: 4537 | CJ20: 73.14202805 | CL20: 2621_2 | CM20: Vähä | CN20: 2621 | CO20: 2 | CP20: 1 | CQ20: Vähä 1 | CS20: 3_134 | CT20: 61.3658521245 | CU20: 23.7909989254 | CV20: https://www.google.com/maps/@61.3658521245,23.7909989254,3a,75y,90t/data=!3m3!1e1!3m1!2e0
A21: 9 | B21: 3_135 | C21: 3 | D21: 135 | E21: 5038 | F21: 4996.325291 | G21: 24356 | H21: 75 | I21: 0.75 | J21: 18267 | K21: -0.5479696122 | L21: 40411 | M21: 2942 | N21: 40906 | O21: https://www.google.com/maps/@61.4188652907,23.760434223,3a,75y,90t/data=!3m3!1e1!3m1!2e0 | P21: Gmaps | Q21: Lempäälä, Tampere | R21: 24356 | S21: 75 | T21: 12912 | U21: 9918 | V21: 175 | W21: Osa seud. yht. | X21: 156 | Y21: Osa seud. yht. | Z21: 31 | AA21: 0.31 | AC21: 0 | AD21: 68.20166733 | AE21: 0.6820166733 | AG21: Ei määritetty | AH21: Ei määritetty | AJ21: punainen | AK21: punainen | AL21: punainen | AN21: punainen | AO21: punainen | AP21: punainen | AQ21: 40 | AR21: 10 | AS21: 10 | AT21: 10 | AU21: 10 | AW21: punainen | AX21: punainen | AY21: punainen | AZ21: 40 | BA21: 10 | BB21: 10 | BC21: 10 | BD21: 10 | BF21: 3_134 | BG21: 3 | BH21: 134 | BI21: 13630 | BK21: 3_135 | BL21: 3 | BM21: 135 | BN21: 9918 | BP21: 3_135 | BQ21: 3 | BR21: 135 | BS21: 175 | BU21: 3_135 | BV21: 3 | BW21: 135 | BX21: 156 | BZ21: 3_138 | CA21: 508 | CB21: 10 | CD21: 56_8 | CE21: 176 | CF21: 0.1272595806 | CH21: 3_206 | CI21: 2238 | CJ21: 74.84949833 | CL21: 14375_1 | CM21: Vähä | CN21: 14375 | CO21: 1 | CP21: 1 | CQ21: Vähä 1 | CS21: 3_135 | CT21: 61.4188652907 | CU21: 23.760434223 | CV21: https://www.google.com/maps/@61.4188652907,23.760434223,3a,75y,90t/data=!3m3!1e1!3m1!2e0
A22: 10 | B22: 3_136 | C22: 3 | D22: 136 | E22: 7740 | F22: 7369.284821 | G22: 14040 | H22: 69 | I22: 0.69 | J22: 9687.6 | K22: -0.7838409532 | L22: 44817 | M22: 3350 | N22: 49800 | O22: https://www.google.com/maps/@61.4627312175,23.7695159737,3a,75y,90t/data=!3m3!1e1!3m1!2e0 | P22: Gmaps | Q22: Pirkkala, Tampere | R22: 14040 | S22: 69 | T22: 17223 | U22: 9445 | V22: 118 | W22: Osa seud. yht. | X22: 131 | Y22: Osa seud. yht. | Z22: 27 | AA22: 0.27 | AC22: 0.006201550388 | AD22: 64.08268734 | AE22: 0.6408268734 | AG22: Ei määritetty | AH22: Ei määritetty | AJ22: punainen | AK22: punainen | AL22: punainen | AN22: punainen | AO22: punainen | AP22: punainen | AQ22: 40 | AR22: 10 | AS22: 10 | AT22: 10 | AU22: 10 | AW22: punainen | AX22: punainen | AY22: punainen | AZ22: 40 | BA22: 10 | BB22: 10 | BC22: 10 | BD22: 10 | BF22: 3_135 | BG22: 3 | BH22: 135 | BI22: 12912 | BK22: 3_136 | BL22: 3 | BM22: 136 | BN22: 9445 | BP22: 3_136 | BQ22: 3 | BR22: 136 | BS22: 118 | BU22: 3_136 | BV22: 3 | BW22: 136 | BX22: 131 | BZ22: 3_138 | CA22: 832 | CB22: 17 | CD22: 58_5 | CE22: 163 | CF22: 0.06569931479 | CH22: 3_207 | CI22: 2032 | CJ22: 98.73663751 | CL22: 13113_1 | CM22: Vähä | CN22: 13113 | CO22: 1 | CP22: 1 | CQ22: Vähä 1 | CS22: 3_136 | CT22: 61.4627312175 | CU22: 23.7695159737 | CV22: https://www.google.com/maps/@61.4627312175,23.7695159737,3a,75y,90t/data=!3m3!1e1!3m1!2e0
A23: 11 | B23: 3_137 | C23: 3 | D23: 137 | E23: 2431 | F23: 2426.47312 | G23: 14229 | H23: 77 | I23: 0.77 | J23: 10956.33 | K23: -0.7156784741 | L23: 38535 | M23: 2912 | N23: 42726 | O23: https://www.google.com/maps/@61.4515716875,23.6399851427,3a,75y,90t/data=!3m3!1e1!3m1!2e0 | P23: Gmaps | Q23: Pirkkala | R23: 14229 | S23: 77 | T23: 10249 | U23: 8112 | V23: 104 | W23: Osa seud. yht. | X23: 127 | Y23: Osa seud. yht. | Z23: 60 | AA23: 0.6 | AC23: 0 | AD23: 100.370218 | AE23: 1.00370218 | AG23: Ei määritetty | AH23: Ei määritetty | AJ23: punainen | AK23: punainen | AL23: punainen | AN23: punainen | AO23: punainen | AP23: punainen | AQ23: 40 | AR23: 10 | AS23: 10 | AT23: 10 | AU23: 10 | AW23: punainen | AX23: punainen | AY23: punainen | AZ23: 40 | BA23: 10 | BB23: 10 | BC23: 10 | BD23: 10 | BF23: 3_136 | BG23: 3 | BH23: 136 | BI23: 17223 | BK23: 3_137 | BL23: 3 | BM23: 137 | BN23: 8112 | BP23: 3_137 | BQ23: 3 | BR23: 137 | BS23: 104 | BU23: 3_137 | BV23: 3 | BW23: 137 | BX23: 127 | BZ23: 3_139 | CA23: 609 | CB23: 10 | CD23: 58_6 | CE23: 576 | CF23: 0.2257938063 | CH23: 3_208 | CI23: 2967 | CJ23: 33.84281966 | CL23: 232_2 | CM23: Vähä | CN23: 232 | CO23: 2 | CP23: 1 | CQ23: Vähä 1 | CS23: 3_137 | CT23: 61.4515716875 | CU23: 23.6399851427 | CV23: https://www.google.com/maps/@61.4515716875,23.6399851427,3a,75y,90t/data=!3m3!1e1!3m1!2e0
A24: 12 | B24: 3_138 | C24: 3 | D24: 138 | E24: 4903 | F24: 4842.408456 | G24: 14195 | H24: 76 | I24: 0.76 | J24: 10788.2 | K24: -0.7153283901 | L24: 37897 | M24: 3000 | N24: 41638 | O24: https://www.google.com/maps/@61.465060164,23.6042631877,3a,75y,90t/data=!3m3!1e1!3m1!2e0 | P24: Gmaps | Q24: Nokia, Pirkkala, Tampere | R24: 14195 | S24: 76 | T24: 12825 | U24: 9054 | V24: 137 | W24: Osa seud. yht. | X24: 152 | Y24: Osa seud. yht. | Z24: 10 | AA24: 0.1 | AC24: 0 | AD24: 34.95818886 | AE24: 0.3495818886 | AG24: Ei määritetty | AH24: Ei määritetty | AJ24: punainen | AK24: punainen | AL24: punainen | AN24: punainen | AO24: punainen | AP24: punainen | AQ24: 40 | AR24: 10 | AS24: 10 | AT24: 10 | AU24: 10 | AW24: punainen | AX24: punainen | AY24: punainen | AZ24: 40 | BA24: 10 | BB24: 10 | BC24: 10 | BD24: 10 | BF24: 3_137 | BG24: 3 | BH24: 137 | BI24: 10249 | BK24: 3_138 | BL24: 3 | BM24: 138 | BN24: 9054 | BP24: 3_138 | BQ24: 3 | BR24: 138 | BS24: 137 | BU24: 3_138 | BV24: 3 | BW24: 138 | BX24: 152 | BZ24: 3_139 | CA24: 2006 | CB24: 34 | CD24: 58_7 | CE24: 582 | CF24: 0.6583710407 | CH24: 3_209 | CI24: 614 | CJ24: 13.40611354 | CL24: 13286_1 | CM24: Vähä | CN24: 13286 | CO24: 1 | CP24: 1 | CQ24: Vähä 1 | CS24: 3_138 | CT24: 61.465060164 | CU24: 23.6042631877 | CV24: https://www.google.com/maps/@61.465060164,23.6042631877,3a,75y,90t/data=!3m3!1e1!3m1!2e0
A25: 13 | B25: 3_139 | C25: 3 | D25: 139 | E25: 5862 | F25: 5884.028954 | G25: 7464 | H25: 63 | I25: 0.63 | J25: 4702.32 | K25: -0.7365794633 | L25: 17851 | M25: 1307 | N25: 19148 | O25: https://www.google.com/maps/@61.5027078263,23.5644847233,3a,75y,90t/data=!3m3!1e1!3m1!2e0 | P25: Gmaps | Q25: Nokia, Tampere, Ylöjärvi | R25: 7464 | S25: 63 | T25: 5328 | U25: 3644 | V25: 88 | W25: Osa seud. yht. | X25: 85 | Y25: Osa seud. yht. | Z25: 10 | AA25: 0.1 | AC25: 0 | AD25: 18.78198567 | AE25: 0.1878198567 | AG25: Ei määritetty | AH25: Ei määritetty | AJ25: punainen | AK25: punainen | AL25: punainen | AN25: punainen | AO25: punainen | AP25: punainen | AQ25: 40 | AR25: 10 | AS25: 10 | AT25: 10 | AU25: 10 | AW25: punainen | AX25: punainen | AY25: punainen | AZ25: 40 | BA25: 10 | BB25: 10 | BC25: 10 | BD25: 10 | BF25: 3_138 | BG25: 3 | BH25: 138 | BI25: 12825 | BK25: 3_139 | BL25: 3 | BM25: 139 | BN25: 3644 | BP25: 3_139 | BQ25: 3 | BR25: 139 | BS25: 88 | BU25: 3_139 | BV25: 3 | BW25: 139 | BX25: 85 | BZ25: 3_139 | CA25: 1624 | CB25: 28 | CD25: 58_8 | CE25: 465 | CF25: 0.07530364372 | CH25: 3_210 | CI25: 571 | CJ25: 11.62222675 | CL25: 2591_1 | CM25: Vähä | CN25: 2591 | CO25: 1 | CP25: 1 | CQ25: Vähä 1 | CS25: 3_139 | CT25: 61.5027078263 | CU25: 23.5644847233 | CV25: https://www.google.com/maps/@61.5027078263,23.5644847233,3a,75y,90t/data=!3m3!1e1!3m1!2e0
A26: 14 | B26: 3_203 | C26: 3 | D26: 203 | E26: 6203 | F26: 6611.804248 | G26: 7892 | H26: 78 | I26: 0.78 | J26: 6155.76 | K26: -0.5469375138 | L26: 13587 | M26: 1237 | N26: 13930 | O26: https://www.google.com/maps/@61.5545203332,23.5744425616,3a,75y,90t/data=!3m3!1e1!3m1!2e0 | P26: Gmaps | Q26: Ylöjärvi | R26: 7892 | S26: 78 | T26: 6468 | U26: 4061 | V26: 81 | W26: Osa seud. yht. | X26: 107 | Y26: Osa seud. yht. | Z26: 30 | AA26: 0.3 | AC26: 0 | AD26: 73.14202805 | AE26: 0.7314202805 | AG26: Ei määritetty | AH26: Ei määritetty | AJ26: punainen | AK26: punainen | AL26: punainen | AN26: punainen | AO26: punainen | AP26: punainen | AQ26: 40 | AR26: 10 | AS26: 10 | AT26: 10 | AU26: 10 | AW26: punainen | AX26: punainen | AY26: punainen | AZ26: 40 | BA26: 10 | BB26: 10 | BC26: 10 | BD26: 10 | BF26: 3_139 | BG26: 3 | BH26: 139 | BI26: 5328 | BK26: 3_203 | BL26: 3 | BM26: 203 | BN26: 4061 | BP26: 3_203 | BQ26: 3 | BR26: 203 | BS26: 81 | BU26: 3_203 | BV26: 3 | BW26: 203 | BX26: 107 | BZ26: 3_203 | CA26: 1831 | CB26: 30 | CD26: 58_8 | CE26: 254 | CF26: 0.04113360324 | CH26: 3_210 | CI26: 3 | CJ26: 0.06106248728 | CL26: 3231_1 | CM26: Vähä | CN26: 3231 | CO26: 1 | CP26: 1 | CQ26: Vähä 1 | CS26: 3_203 | CT26: 61.5545203332 | CU26: 23.5744425616 | CV26: https://www.google.com/maps/@61.5545203332,23.5744425616,3a,75y,90t/data=!3m3!1e1!3m1!2e0
A27: 15 | B27: 3_204 | C27: 3 | D27: 204 | E27: 7037 | F27: 6611.670872 | G27: 7786 | H27: 95 | I27: 0.95 | J27: 7396.7 | K27: -0.3465235445 | L27: 11319 | M27: 1001 | N27: 11444 | O27: https://www.google.com/maps/@61.5783463263,23.4698963377,3a,75y,90t/data=!3m3!1e1!3m1!2e0 | P27: Gmaps | Q27: Hämeenkyrö, Ylöjärvi | R27: 7786 | S27: 95 | T27: 3105 | U27: 2958 | V27: 80 | W27: Osa seud. yht. | X27: 95 | Y27: Osa seud. yht. | Z27: 0 | AA27: 0 | AC27: 0 | AD27: 0 | AE27: 0 | AG27: Ei määritetty | AH27: Ei määritetty | AJ27: punainen | AK27: punainen | AL27: punainen | AN27: punainen | AO27: punainen | AP27: punainen | AQ27: 40 | AR27: 10 | AS27: 10 | AT27: 10 | AU27: 10 | AW27: punainen | AX27: punainen | AY27: punainen | AZ27: 40 | BA27: 10 | BB27: 10 | BC27: 10 | BD27: 10 | BF27: 3_203 | BG27: 3 | BH27: 203 | BI27: 6468 | BK27: 3_204 | BL27: 3 | BM27: 204 | BN27: 2958 | BP27: 3_204 | BQ27: 3 | BR27: 204 | BS27: 80 | BU27: 3_204 | BV27: 3 | BW27: 204 | BX27: 95 | BZ27: 3_206 | CA27: 2299 | CB27: 77 | CD27: 130_24 | CE27: 937 | CF27: 0.1536821388 | CH27: 3_215 | CI27: 4954 | CJ27: 37.98788436 | CL27: 14308_1 | CM27: Vähä | CN27: 14308 | CO27: 1 | CP27: 1 | CQ27: Vähä 1 | CS27: 3_204 | CT27: 61.5783463263 | CU27: 23.4698963377 | CV27: https://www.google.com/maps/@61.5783463263,23.4698963377,3a,75y,90t/data=!3m3!1e1!3m1!2e0
A28: 16 | B28: 3_205 | C28: 3 | D28: 205 | E28: 6638 | F28: 6815.016373 | G28: 6474 | H28: 97 | I28: 0.97 | J28: 6279.78 | K28: -0.4263469444 | L28: 10947 | M28: 1044 | N28: 11051 | O28: https://www.google.com/maps/@61.6074046017,23.3534522543,3a,75y,90t/data=!3m3!1e1!3m1!2e0 | P28: Gmaps | Q28: Hämeenkyrö | R28: 6474 | S28: 97 | T28: 2832 | U28: 2758 | V28: 81 | W28: Osa seud. yht. | X28: 95 | Y28: Osa seud. yht. | Z28: 0 | AA28: 0 | AC28: 0 | AD28: 0 | AE28: 0 | AG28: Ei määritetty | AH28: Ei määritetty | AJ28: punainen | AK28: punainen | AL28: punainen | AN28: punainen | AO28: punainen | AP28: punainen | AQ28: 40 | AR28: 10 | AS28: 10 | AT28: 10 | AU28: 10 | AW28: punainen | AX28: punainen | AY28: punainen | AZ28: 40 | BA28: 10 | BB28: 10 | BC28: 10 | BD28: 10 | BF28: 3_204 | BG28: 3 | BH28: 204 | BI28: 3105 | BK28: 3_205 | BL28: 3 | BM28: 205 | BN28: 2758 | BP28: 3_205 | BQ28: 3 | BR28: 205 | BS28: 81 | BU28: 3_205 | BV28: 3 | BW28: 205 | BX28: 95 | BZ28: 3_207 | CA28: 2073 | CB28: 101 | CD28: 130_25 | CE28: 219 | CF28: 0.1131782946 | CH28: 9_121 | CI28: 3185 | CJ28: 20.63625761 | CL28: 3231_2 | CM28: Vähä | CN28: 3231 | CO28: 2 | CP28: 1 | CQ28: Vähä 1 | CS28: 3_205 | CT28: 61.6074046017 | CU28: 23.3534522543 | CV28: https://www.google.com/maps/@61.6074046017,23.3534522543,3a,75y,90t/data=!3m3!1e1!3m1!2e0
A29: 17 | B29: 3_206 | C29: 3 | D29: 206 | E29: 2990 | F29: 2425.719383 | G29: 6152 | H29: 91 | I29: 0.91 | J29: 5598.32 | K29: -0.4859210285 | L29: 10890 | M29: 1058 | N29: 10997 | O29: https://www.google.com/maps/@61.6173887047,23.2315377777,3a,75y,90t/data=!3m3!1e1!3m1!2e0 | P29: Gmaps | Q29: Hämeenkyrö | R29: 6152 | S29: 91 | T29: 2919 | U29: 2535 | V29: 91 | W29: Osa seud. yht. | X29: 116 | Y29: Osa seud. yht. | Z29: 77 | AA29: 0.77 | AC29: 0 | AD29: 74.84949833 | AE29: 0.7484949833 | AG29: Ei määritetty | AH29: Ei määritetty | AJ29: punainen | AK29: punainen | AL29: punainen | AN29: punainen | AO29: punainen | AP29: punainen | AQ29: 40 | AR29: 10 | AS29: 10 | AT29: 10 | AU29: 10 | AW29: punainen | AX29: punainen | AY29: punainen | AZ29: 40 | BA29: 10 | BB29: 10 | BC29: 10 | BD29: 10 | BF29: 3_205 | BG29: 3 | BH29: 205 | BI29: 2832 | BK29: 3_206 | BL29: 3 | BM29: 206 | BN29: 2535 | BP29: 3_206 | BQ29: 3 | BR29: 206 | BS29: 91 | BU29: 3_206 | BV29: 3 | BW29: 206 | BX29: 116 | BZ29: 3_208 | CA29: 1446 | CB29: 16 | CD29: 130_25 | CE29: 624 | CF29: 0.3224806202 | CH29: 9_124 | CI29: 1064 | CJ29: 9.209729075 | CL29: 276_6 | CM29: Vähä | CN29: 276 | CO29: 6 | CP29: 1 | CQ29: Vähä 1 | CS29: 3_206 | CT29: 61.6173887047 | CU29: 23.2315377777 | CV29: https://www.google.com/maps/@61.6173887047,23.2315377777,3a,75y,90t/data=!3m3!1e1!3m1!2e0
A30: 18 | B30: 3_207 | C30: 3 | D30: 207 | E30: 2058 | F30: 2073.905371 | G30: 5047 | H30: 82 | I30: 0.82 | J30: 4138.54 | K30: -0.6150195349 | L30: 10750 | M30: 1091 | N30: 10863 | O30: https://www.google.com/maps/@61.6384079282,23.1960904017,3a,75y,90t/data=!3m3!1e1!3m1!2e0 | P30: Gmaps | Q30: Hämeenkyrö | R30: 5047 | S30: 82 | T30: 2641 | U30: 1994 | V30: 71 | W30: Osa seud. yht. | X30: 87 | Y30: Osa seud. yht. | Z30: 100 | AA30: 1 | AC30: 0.1933916424 | AD30: 98.73663751 | AE30: 0.9873663751 | AG30: Ei määritetty | AH30: Ei määritetty | AJ30: punainen | AK30: punainen | AL30: punainen | AN30: punainen | AO30: punainen | AP30: punainen | AQ30: 40 | AR30: 10 | AS30: 10 | AT30: 10 | AU30: 10 | AW30: punainen | AX30: punainen | AY30: punainen | AZ30: 40 | BA30: 10 | BB30: 10 | BC30: 10 | BD30: 10 | BF30: 3_206 | BG30: 3 | BH30: 206 | BI30: 2919 | BK30: 3_207 | BL30: 3 | BM30: 207 | BN30: 1994 | BP30: 3_207 | BQ30: 3 | BR30: 207 | BS30: 71 | BU30: 3_207 | BV30: 3 | BW30: 207 | BX30: 87 | BZ30: 3_209 | CA30: 731 | CB30: 16 | CD30: 130_26 | CE30: 246 | CF30: 0.1366666667 | CH30: 9_124 | CI30: 769 | CJ30: 6.656279754 | CL30: 13341_2 | CM30: Vähä | CN30: 13341 | CO30: 2 | CP30: 1 | CQ30: Vähä 1 | CS30: 3_207 | CT30: 61.6384079282 | CU30: 23.1960904017 | CV30: https://www.google.com/maps/@61.6384079282,23.1960904017,3a,75y,90t/data=!3m3!1e1!3m1!2e0
A31: 19 | B31: 3_208 | C31: 3 | D31: 208 | E31: 8767 | F31: 8753.58597 | G31: 6295 | H31: 81 | I31: 0.81 | J31: 5098.95 | K31: -0.4940011908 | L31: 10077 | M31: 1131 | N31: 9748 | O31: https://www.google.com/maps/@61.6544346532,23.1746310745,3a,75y,90t/data=!3m3!1e1!3m1!2e0 | P31: Gmaps | Q31: Hämeenkyrö, Ikaalinen | R31: 6295 | S31: 81 | T31: 2211 | U31: 1634 | V31: 80 | W31: Osa seud. yht. | X31: 90 | Y31: Osa seud. yht. | Z31: 16 | AA31: 0.16 | AC31: 0 | AD31: 33.84281966 | AE31: 0.3384281966 | AG31: Ei määritetty | AH31: Ei määritetty | AJ31: punainen | AK31: punainen | AL31: punainen | AN31: punainen | AO31: punainen | AP31: punainen | AQ31: 40 | AR31: 10 | AS31: 10 | AT31: 10 | AU31: 10 | AW31: punainen | AX31: punainen | AY31: punainen | AZ31: 40 | BA31: 10 | BB31: 10 | BC31: 10 | BD31: 10 | BF31: 3_207 | BG31: 3 | BH31: 207 | BI31: 2641 | BK31: 3_208 | BL31: 3 | BM31: 208 | BN31: 1634 | BP31: 3_208 | BQ31: 3 | BR31: 208 | BS31: 80 | BU31: 3_208 | BV31: 3 | BW31: 208 | BX31: 90 | BZ31: 3_215 | CA31: 3742 | CB31: 29 | CD31: 190_4 | CE31: 118 | CF31: 0.01924331376 | CH31: 9_204 | CI31: 2849 | CJ31: 69.40316687 | CL31: 2981_2 | CM31: Vähä | CN31: 2981 | CO31: 2 | CP31: 1 | CQ31: Vähä 1 | CS31: 3_208 | CT31: 61.6544346532 | CU31: 23.1746310745 | CV31: https://www.google.com/maps/@61.6544346532,23.1746310745,3a,75y,90t/data=!3m3!1e1!3m1!2e0
A32: 20 | B32: 3_209 | C32: 3 | D32: 209 | E32: 4580 | F32: 4583.904795 | G32: 5768 | H32: 83 | I32: 0.83 | J32: 4787.44 | K32: -0.5297672134 | L32: 10181 | M32: 1137 | N32: 9803 | O32: https://www.google.com/maps/@61.7289105107,23.1324070936,3a,75y,90t/data=!3m3!1e1!3m1!2e0 | P32: Gmaps | Q32: Ikaalinen | R32: 5768 | S32: 83 | T32: 1640 | U32: 1303 | V32: 80 | W32: Osa seud. yht. | X32: 90 | Y32: Osa seud. yht. | Z32: 16 | AA32: 0.16 | AC32: 0 | AD32: 13.40611354 | AE32: 0.1340611354 | AG32: Ei määritetty | AH32: Ei määritetty | AJ32: punainen | AK32: punainen | AL32: punainen | AN32: punainen | AO32: punainen | AP32: punainen | AQ32: 40 | AR32: 10 | AS32: 10 | AT32: 10 | AU32: 10 | AW32: punainen | AX32: punainen | AY32: punainen | AZ32: 40 | BA32: 10 | BB32: 10 | BC32: 10 | BD32: 10 | BF32: 3_208 | BG32: 3 | BH32: 208 | BI32: 2211 | BK32: 3_209 | BL32: 3 | BM32: 209 | BN32: 1303 | BP32: 3_209 | BQ32: 3 | BR32: 209 | BS32: 80 | BU32: 3_209 | BV32: 3 | BW32: 209 | BX32: 90 | BZ32: 9_121 | CA32: 1994 | CB32: 13 | CD32: 259_1 | CE32: 154 | CF32: 0.02436323367 | CH32: 9_205 | CI32: 4534 | CJ32: 98.77995643 | CL32: 2594_6 | CM32: Vähä | CN32: 2594 | CO32: 6 | CP32: 1 | CQ32: Vähä 1 | CS32: 3_209 | CT32: 61.7289105107 | CU32: 23.1324070936 | CV32: https://www.google.com/maps/@61.7289105107,23.1324070936,3a,75y,90t/data=!3m3!1e1!3m1!2e0
A33: 21 | B33: 3_210 | C33: 3 | D33: 210 | E33: 4913 | F33: 4875.001735 | G33: 5213 | H33: 92 | I33: 0.92 | J33: 4795.96 | K33: -0.4619140581 | L33: 8913 | M33: 1026 | N33: 8524 | O33: https://www.google.com/maps/@61.7538080728,23.0663758757,3a,75y,90t/data=!3m3!1e1!3m1!2e0 | P33: Gmaps | Q33: Ikaalinen | R33: 5213 | S33: 92 | T33: 1573 | U33: 1135 | V33: 68 | W33: Osa seud. yht. | X33: 65 | Y33: Osa seud. yht. | Z33: 0 | AA33: 0 | AC33: 0 | AD33: 11.62222675 | AE33: 0.1162222675 | AG33: Ei määritetty | AH33: Ei määritetty | AJ33: punainen | AK33: punainen | AL33: punainen | AN33: punainen | AO33: punainen | AP33: punainen | AQ33: 40 | AR33: 10 | AS33: 10 | AT33: 10 | AU33: 10 | AW33: punainen | AX33: punainen | AY33: punainen | AZ33: 40 | BA33: 10 | BB33: 10 | BC33: 10 | BD33: 10 | BF33: 3_209 | BG33: 3 | BH33: 209 | BI33: 1640 | BK33: 3_210 | BL33: 3 | BM33: 210 | BN33: 1135 | BP33: 3_210 | BQ33: 3 | BR33: 210 | BS33: 68 | BU33: 3_210 | BV33: 3 | BW33: 210 | BX33: 65 | BZ33: 9_204 | CA33: 2923 | CB33: 71 | CD33: 304_3 | CE33: 72 | CF33: 0.01098901099 | CH33: 9_206 | CI33: 4022 | CJ33: 37.91120747 | CL33: 301_4 | CM33: Vähä | CN33: 301 | CO33: 4 | CP33: 1 | CQ33: Vähä 1 | CS33: 3_210 | CT33: 61.7538080728 | CU33: 23.0663758757 | CV33: https://www.google.com/maps/@61.7538080728,23.0663758757,3a,75y,90t/data=!3m3!1e1!3m1!2e0
A34: 22 | B34: 3_211 | C34: 3 | D34: 211 | E34: 3924 | F34: 3915.941754 | G34: 5254 | H34: 92 | I34: 0.92 | J34: 4833.68 | K34: -0.2468557183 | L34: 6418 | M34: 914 | N34: 6014 | O34: https://www.google.com/maps/@61.780528869,23.0015440957,3a,75y,90t/data=!3m3!1e1!3m1!2e0 | P34: Gmaps | Q34: Ikaalinen | R34: 5254 | S34: 92 | T34: 1002 | U34: 886 | V34: 68 | W34: Osa seud. yht. | X34: 62 | Y34: Osa seud. yht. | Z34: 0 | AA34: 0 | AC34: 0 | AD34: 0 | AE34: 0 | AG34: Ei määritetty | AH34: Ei määritetty | AJ34: punainen | AK34: punainen | AL34: punainen | AN34: punainen | AO34: punainen | AP34: punainen | AQ34: 40 | AR34: 10 | AS34: 10 | AT34: 10 | AU34: 10 | AW34: punainen | AX34: punainen | AY34: punainen | AZ34: 40 | BA34: 10 | BB34: 10 | BC34: 10 | BD34: 10 | BF34: 3_210 | BG34: 3 | BH34: 210 | BI34: 1573 | BK34: 3_211 | BL34: 3 | BM34: 211 | BN34: 886 | BP34: 3_211 | BQ34: 3 | BR34: 211 | BS34: 68 | BU34: 3_211 | BV34: 3 | BW34: 211 | BX34: 62 | BZ34: 9_205 | CA34: 3142 | CB34: 68 | CD34: 309_1 | CE34: 258 | CF34: 0.03237951807 | CH34: 9_208 | CI34: 915 | CJ34: 9.247094492 | CL34: 2611_1 | CM34: Vähä | CN34: 2611 | CO34: 1 | CP34: 1 | CQ34: Vähä 1 | CS34: 3_211 | CT34: 61.780528869 | CU34: 23.0015440957 | CV34: https://www.google.com/maps/@61.780528869,23.0015440957,3a,75y,90t/data=!3m3!1e1!3m1!2e0
A35: 23 | B35: 3_212 | C35: 3 | D35: 212 | E35: 4277 | F35: 4265.279661 | G35: 5204 | H35: 94 | I35: 0.94 | J35: 4891.76 | K35: -0.2378061701 | L35: 6418 | M35: 914 | N35: 6014 | O35: https://www.google.com/maps/@61.8100477482,22.9610546388,3a,75y,90t/data=!3m3!1e1!3m1!2e0 | P35: Gmaps | Q35: Ikaalinen | R35: 5204 | S35: 94 | T35: 927 | U35: 867 | V35: 65 | W35: Osa seud. yht. | X35: 62 | Y35: Osa seud. yht. | Z35: 0 | AA35: 0 | AC35: 0 | AD35: 0 | AE35: 0 | AG35: Ei määritetty | AH35: Ei määritetty | AJ35: punainen | AK35: punainen | AL35: punainen | AN35: punainen | AO35: punainen | AP35: punainen | AQ35: 40 | AR35: 10 | AS35: 10 | AT35: 10 | AU35: 10 | AW35: punainen | AX35: punainen | AY35: punainen | AZ35: 40 | BA35: 10 | BB35: 10 | BC35: 10 | BD35: 10 | BF35: 3_211 | BG35: 3 | BH35: 211 | BI35: 1002 | BK35: 3_212 | BL35: 3 | BM35: 212 | BN35: 867 | BP35: 3_212 | BQ35: 3 | BR35: 212 | BS35: 65 | BU35: 3_212 | BV35: 3 | BW35: 212 | BX35: 62 | BZ35: 9_210 | CA35: 711 | CB35: 8 | CD35: 310_2 | CE35: 62 | CF35: 0.01768397034 | CH35: 9_210 | CI35: 733 | CJ35: 8.613396005 | CL35: 2611_2 | CM35: Vähä | CN35: 2611 | CO35: 2 | CP35: 1 | CQ35: Vähä 1 | CS35: 3_212 | CT35: 61.8100477482 | CU35: 22.9610546388 | CV35: https://www.google.com/maps/@61.8100477482,22.9610546388,3a,75y,90t/data=!3m3!1e1!3m1!2e0
A36: 24 | B36: 3_213 | C36: 3 | D36: 213 | E36: 6711 | F36: 6663.808161 | G36: 4305 | H36: 97 | I36: 0.97 | J36: 4175.85 | K36: -0.3493533811 | L36: 6418 | M36: 914 | N36: 6014 | O36: https://www.google.com/maps/@61.8455161112,22.9310864587,3a,75y,90t/data=!3m3!1e1!3m1!2e0 | P36: Gmaps | Q36: Ikaalinen | R36: 4305 | S36: 97 | T36: 860 | U36: 814 | V36: 65 | W36: Osa seud. yht. | X36: 62 | Y36: Osa seud. yht. | Z36: 0 | AA36: 0 | AC36: 0 | AD36: 0 | AE36: 0 | AG36: Ei määritetty | AH36: Ei määritetty | AJ36: punainen | AK36: punainen | AL36: punainen | AN36: punainen | AO36: punainen | AP36: punainen | AQ36: 40 | AR36: 10 | AS36: 10 | AT36: 10 | AU36: 10 | AW36: punainen | AX36: punainen | AY36: punainen | AZ36: 40 | BA36: 10 | BB36: 10 | BC36: 10 | BD36: 10 | BF36: 3_212 | BG36: 3 | BH36: 212 | BI36: 927 | BK36: 3_213 | BL36: 3 | BM36: 213 | BN36: 814 | BP36: 3_213 | BQ36: 3 | BR36: 213 | BS36: 65 | BU36: 3_213 | BV36: 3 | BW36: 213 | BX36: 62 | BZ36: 9_211 | CA36: 1076 | CB36: 18 | CD36: 325_4 | CE36: 251 | CF36: 0.02827850383 | CH36: 9_211 | CI36: 799 | CJ36: 13.68150685 | CL36: 2771_2 | CM36: Vähä | CN36: 2771 | CO36: 2 | CP36: 1 | CQ36: Vähä 1 | CS36: 3_213 | CT36: 61.8455161112 | CU36: 22.9310864587 | CV36: https://www.google.com/maps/@61.8455161112,22.9310864587,3a,75y,90t/data=!3m3!1e1!3m1!2e0
A37: 25 | B37: 3_214 | C37: 3 | D37: 214 | E37: 2988 | F37: 2987.004785 | G37: 4465 | H37: 96 | I37: 0.96 | J37: 4286.4 | K37: -0.2533704929 | L37: 5741 | M37: 817 | N37: 5342 | O37: https://www.google.com/maps/@61.8987747481,22.9798627909,3a,75y,90t/data=!3m3!1e1!3m1!2e0 | P37: Gmaps | Q37: Ikaalinen, Parkano | R37: 4465 | S37: 96 | T37: 727 | U37: 707 | V37: 65 | W37: Osa seud. yht. | X37: 62 | Y37: Osa seud. yht. | Z37: 0 | AA37: 0 | AC37: 0 | AD37: 0 | AE37: 0 | AG37: Ei määritetty | AH37: Ei määritetty | AJ37: punainen | AK37: punainen | AL37: punainen | AN37: punainen | AO37: punainen | AP37: punainen | AQ37: 40 | AR37: 10 | AS37: 10 | AT37: 10 | AU37: 10 | AW37: punainen | AX37: punainen | AY37: punainen | AZ37: 40 | BA37: 10 | BB37: 10 | BC37: 10 | BD37: 10 | BF37: 3_213 | BG37: 3 | BH37: 213 | BI37: 860 | BK37: 3_214 | BL37: 3 | BM37: 214 | BN37: 707 | BP37: 3_214 | BQ37: 3 | BR37: 214 | BS37: 65 | BU37: 3_214 | BV37: 3 | BW37: 214 | BX37: 62 | BZ37: 11_3 | CA37: 961 | CB37: 14 | CD37: 339_1 | CE37: 258 | CF37: 0.09314079422 | CH37: 11_3 | CI37: 1337 | CJ37: 19.57253696 | CL37: 3481_1 | CM37: Vähä | CN37: 3481 | CO37: 1 | CP37: 1 | CQ37: Vähä 1 | CS37: 3_214 | CT37: 61.8987747481 | CU37: 22.9798627909 | CV37: https://www.google.com/maps/@61.8987747481,22.9798627909,3a,75y,90t/data=!3m3!1e1!3m1!2e0
A38: 26 | B38: 3_215 | C38: 3 | D38: 215 | E38: 13041 | F38: 8044.073192 | G38: 4327 | H38: 91 | I38: 0.91 | J38: 3937.57 | K38: -0.3461358353 | L38: 6022 | M38: 888 | N38: 5563 | O38: https://www.google.com/maps/@61.9254089639,22.9778131934,3a,75y,90t/data=!3m3!1e1!3m1!2e0 | P38: Gmaps | Q38: Parkano | R38: 4327 | S38: 91 | T38: 904 | U38: 1141 | V38: 92 | W38: Osa seud. yht. | X38: 83 | Y38: Osa seud. yht. | Z38: 29 | AA38: 0.29 | AC38: 0 | AD38: 37.98788436 | AE38: 0.3798788436 | AG38: Ei määritetty | AH38: Ei määritetty | AJ38: punainen | AK38: punainen | AL38: punainen | AN38: punainen | AO38: punainen | AP38: punainen | AQ38: 40 | AR38: 10 | AS38: 10 | AT38: 10 | AU38: 10 | AW38: punainen | AX38: punainen | AY38: punainen | AZ38: 40 | BA38: 10 | BB38: 10 | BC38: 10 | BD38: 10 | BF38: 3_214 | BG38: 3 | BH38: 214 | BI38: 727 | BK38: 3_215 | BL38: 3 | BM38: 215 | BN38: 1141 | BP38: 3_215 | BQ38: 3 | BR38: 215 | BS38: 92 | BU38: 3_215 | BV38: 3 | BW38: 215 | BX38: 83 | BZ38: 12_118 | CA38: 234 | CB38: 4 | CD38: 2761_1 | CE38: 388 | CF38: 0.3458110517 | CH38: 11_7 | CI38: 996 | CJ38: 19.95592066 | CL38: 13695_1 | CM38: Vähä | CN38: 13695 | CO38: 1 | CP38: 1 | CQ38: Vähä 1 | CS38: 3_215 | CT38: 61.9254089639 | CU38: 22.9778131934 | CV38: https://www.google.com/maps/@61.9254089639,22.9778131934,3a,75y,90t/data=!3m3!1e1!3m1!2e0
A39: 27 | B39: 3_217 | C39: 3 | D39: 217 | E39: 6290 | F39: 6289.16612 | G39: 5122 | H39: 91 | I39: 0.91 | J39: 4661.02 | K39: -0.271146208 | L39: 6395 | M39: 974 | N39: 5794 | O39: https://www.google.com/maps/@62.0358565165,23.0294164651,3a,75y,90t/data=!3m3!1e1!3m1!2e0 | P39: Gmaps | Q39: Parkano | R39: 5122 | S39: 91 | T39: 664 | U39: 586 | V39: 75 | W39: Osa seud. yht. | X39: 48 | Y39: Osa seud. yht. | Z39: 0 | AA39: 0 | AC39: 0 | AD39: 0 | AE39: 0 | AG39: Ei määritetty | AH39: Ei määritetty | AJ39: punainen | AK39: punainen | AL39: punainen | AN39: punainen | AO39: punainen | AP39: punainen | AQ39: 40 | AR39: 10 | AS39: 10 | AT39: 10 | AU39: 10 | AW39: punainen | AX39: punainen | AY39: punainen | AZ39: 40 | BA39: 10 | BB39: 10 | BC39: 10 | BD39: 10 | BF39: 3_215 | BG39: 3 | BH39: 215 | BI39: 904 | BK39: 3_217 | BL39: 3 | BM39: 217 | BN39: 586 | BP39: 3_217 | BQ39: 3 | BR39: 217 | BS39: 75 | BU39: 3_217 | BV39: 3 | BW39: 217 | BX39: 48 | BZ39: 12_119 | CA39: 944 | CB39: 17 | CD39: 2984_1 | CE39: 168 | CF39: 0.03989551175 | CH39: 11_8 | CI39: 663 | CJ39: 24.92481203 | CL39: 3382_1 | CM39: Vähä | CN39: 3382 | CO39: 1 | CP39: 2 | CQ39: Vähä 2 | CS39: 3_217 | CT39: 62.0358565165 | CU39: 23.0294164651 | CV39: https://www.google.com/maps/@62.0358565165,23.0294164651,3a,75y,90t/data=!3m3!1e1!3m1!2e0
A40: 28 | B40: 3_218 | C40: 3 | D40: 218 | E40: 6829 | F40: 6765.856407 | G40: 3809 | H40: 95 | I40: 0.95 | J40: 3618.55 | K40: -0.2453493222 | L40: 4795 | M40: 820 | N40: 4370 | O40: https://www.google.com/maps/@62.0908517257,23.0448119679,3a,75y,90t/data=!3m3!1e1!3m1!2e0 | P40: Gmaps | Q40: Parkano | R40: 3809 | S40: 95 | T40: 393 | U40: 339 | V40: 30 | W40: Osa seud. yht. | X40: 23 | Y40: Osa seud. yht. | Z40: 0 | AA40: 0 | AC40: 0 | AD40: 0 | AE40: 0 | AG40: Ei määritetty | AH40: Ei määritetty | AJ40: punainen | AK40: punainen | AL40: punainen | AN40: punainen | AO40: punainen | AP40: punainen | AQ40: 31 | AR40: 10 | AS40: 10 | AT40: 1 | AU40: 10 | AW40: punainen | AX40: punainen | AY40: punainen | AZ40: 31 | BA40: 10 | BB40: 10 | BC40: 1 | BD40: 10 | BF40: 3_216 | BG40: 3 | BH40: 216 | BI40: 1535 | BK40: 3_218 | BL40: 3 | BM40: 218 | BN40: 339 | BP40: 3_218 | BQ40: 3 | BR40: 218 | BS40: 30 | BU40: 3_218 | BV40: 3 | BW40: 218 | BX40: 23 | BZ40: 12_124 | CA40: 1601 | CB40: 16 | CD40: 3022_1 | CE40: 430 | CF40: 0.7014681892 | CH40: 11_9 | CI40: 1096 | CJ40: 12.91386827 | CL40: 2622_1 | CM40: Vähä | CN40: 2622 | CO40: 1 | CP40: 2 | CQ40: Vähä 2 | CS40: 3_218 | CT40: 62.0908517257 | CU40: 23.0448119679 | CV40: https://www.google.com/maps/@62.0908517257,23.0448119679,3a,75y,90t/data=!3m3!1e1!3m1!2e0
A41: 29 | B41: 3_219 | C41: 3 | D41: 219 | E41: 7298 | F41: 7284.581108 | G41: 3601 | H41: 98 | I41: 0.98 | J41: 3528.98 | K41: -0.2173475272 | L41: 4509 | M41: 811 | N41: 4068 | O41: https://www.google.com/maps/@62.1414056233,22.9800858622,3a,75y,90t/data=!3m3!1e1!3m1!2e0 | P41: Gmaps | Q41: Parkano | R41: 3601 | S41: 98 | T41: 298 | U41: 289 | V41: 29 | W41: Osa seud. yht. | X41: 22 | Y41: Osa seud. yht. | Z41: 0 | AA41: 0 | AC41: 0 | AD41: 0 | AE41: 0 | AG41: Ei määritetty | AH41: Ei määritetty | AJ41: punainen | AK41: punainen | AL41: punainen | AN41: punainen | AO41: punainen | AP41: punainen | AQ41: 31 | AR41: 10 | AS41: 10 | AT41: 1 | AU41: 10 | AW41: punainen | AX41: punainen | AY41: punainen | AZ41: 31 | BA41: 10 | BB41: 10 | BC41: 1 | BD41: 10 | BF41: 3_217 | BG41: 3 | BH41: 217 | BI41: 664 | BK41: 3_219 | BL41: 3 | BM41: 219 | BN41: 289 | BP41: 3_219 | BQ41: 3 | BR41: 219 | BS41: 29 | BU41: 3_219 | BV41: 3 | BW41: 219 | BX41: 22 | BZ41: 12_125 | CA41: 3456 | CB41: 67 | CD41: 3022_2 | CE41: 119 | CF41: 0.01757235676 | CH41: 11_13 | CI41: 505 | CJ41: 6.612544193 | CL41: 276_5 | CM41: Vähä | CN41: 276 | CO41: 5 | CP41: 2 | CQ41: Vähä 2 | CS41: 3_219 | CT41: 62.1414056233 | CU41: 22.9800858622 | CV41: https://www.google.com/maps/@62.1414056233,22.9800858622,3a,75y,90t/data=!3m3!1e1!3m1!2e0
A42: 30 | B42: 3_220 | C42: 3 | D42: 220 | E42: 8098 | F42: 8039.954493 | G42: 3730 | H42: 99 | I42: 0.99 | J42: 3692.7 | K42: -0.1580711354 | L42: 4386 | M42: 801 | N42: 3926 | O42: https://www.google.com/maps/@62.2046518289,22.957475253,3a,75y,90t/data=!3m3!1e1!3m1!2e0 | P42: Gmaps | Q42: Parkano | R42: 3730 | S42: 99 | T42: 258 | U42: 258 | V42: 32 | W42: Osa seud. yht. | X42: 23 | Y42: Osa seud. yht. | Z42: 0 | AA42: 0 | AC42: 0 | AD42: 0 | AE42: 0 | AG42: Ei määritetty | AH42: Ei määritetty | AJ42: punainen | AK42: punainen | AL42: punainen | AN42: punainen | AO42: punainen | AP42: punainen | AQ42: 31 | AR42: 10 | AS42: 10 | AT42: 1 | AU42: 10 | AW42: punainen | AX42: punainen | AY42: punainen | AZ42: 31 | BA42: 10 | BB42: 10 | BC42: 1 | BD42: 10 | BF42: 3_218 | BG42: 3 | BH42: 218 | BI42: 393 | BK42: 3_220 | BL42: 3 | BM42: 220 | BN42: 258 | BP42: 3_220 | BQ42: 3 | BR42: 220 | BS42: 32 | BU42: 3_220 | BV42: 3 | BW42: 220 | BX42: 23 | BZ42: 12_126 | CA42: 5792 | CB42: 91 | CD42: 3024_1 | CE42: 376 | CF42: 0.2472057857 | CH42: 12_117 | CI42: 1158 | CJ42: 16.25491297 | CL42: 2983_1 | CM42: Vähä | CN42: 2983 | CO42: 1 | CP42: 2 | CQ42: Vähä 2 | CS42: 3_220 | CT42: 62.2046518289 | CU42: 22.957475253 | CV42: https://www.google.com/maps/@62.2046518289,22.957475253,3a,75y,90t/data=!3m3!1e1!3m1!2e0
A43: 31 | B43: 9_120 | C43: 9 | D43: 120 | E43: 7179 | F43: 3985.721102 | G43: 3615 | H43: 96 | I43: 0.96 | J43: 3470.4 | K43: -0.3427272727 | L43: 5280 | M43: 664 | N43: 4971 | O43: https://www.google.com/maps/@60.9718216254,23.4056843456,3a,75y,90t/data=!3m3!1e1!3m1!2e0 | P43: Gmaps | Q43: Urjala | R43: 3615 | S43: 96 | T43: 817 | U43: 802 | V43: 88 | W43: Osa seud. yht. | X43: 55 | Y43: Osa seud. yht. | Z43: 0 | AA43: 0 | AC43: 0 | AD43: 0 | AE43: 0 | AG43: Ei määritetty | AH43: Ei määritetty | AJ43: punainen | AK43: punainen | AL43: punainen | AN43: punainen | AO43: punainen | AP43: punainen | AQ43: 40 | AR43: 10 | AS43: 10 | AT43: 10 | AU43: 10 | AW43: punainen | AX43: punainen | AY43: punainen | AZ43: 40 | BA43: 10 | BB43: 10 | BC43: 10 | BD43: 10 | BF43: 3_219 | BG43: 3 | BH43: 219 | BI43: 298 | BK43: 9_120 | BL43: 9 | BM43: 120 | BN43: 802 | BP43: 9_120 | BQ43: 9 | BR43: 120 | BS43: 88 | BU43: 9_120 | BV43: 9 | BW43: 120 | BX43: 55 | BZ43: 12_127 | CA43: 6816 | CB43: 100 | CD43: 3110_1 | CE43: 1 | CF43: 9.956192752e-05 | CH43: 12_117 | CI43: 58 | CJ43: 0.8141493543 | CL43: 2986_2 | CM43: Vähä | CN43: 2986 | CO43: 2 | CP43: 2 | CQ43: Vähä 2 | CS43: 9_120 | CT43: 60.9718216254 | CU43: 23.4056843456 | CV43: https://www.google.com/maps/@60.9718216254,23.4056843456,3a,75y,90t/data=!3m3!1e1!3m1!2e0
A44: 32 | B44: 9_121 | C44: 9 | D44: 121 | E44: 15434 | F44: 7571.484561 | G44: 3474 | H44: 92 | I44: 0.92 | J44: 3196.08 | K44: -0.4857473854 | L44: 6215 | M44: 680 | N44: 5938 | O44: https://www.google.com/maps/@61.0194572148,23.4856946049,3a,75y,90t/data=!3m3!1e1!3m1!2e0 | P44: Gmaps | Q44: Akaa, Urjala | R44: 3474 | S44: 92 | T44: 977 | U44: 1365 | V44: 132 | W44: Osa seud. yht. | X44: 55 | Y44: Osa seud. yht. | Z44: 13 | AA44: 0.13 | AC44: 0 | AD44: 20.63625761 | AE44: 0.2063625761 | AG44: Ei määritetty | AH44: Ei määritetty | AJ44: punainen | AK44: punainen | AL44: punainen | AN44: punainen | AO44: punainen | AP44: punainen | AQ44: 40 | AR44: 10 | AS44: 10 | AT44: 10 | AU44: 10 | AW44: punainen | AX44: punainen | AY44: punainen | AZ44: 40 | BA44: 10 | BB44: 10 | BC44: 10 | BD44: 10 | BF44: 3_220 | BG44: 3 | BH44: 220 | BI44: 258 | BK44: 9_121 | BL44: 9 | BM44: 121 | BN44: 1365 | BP44: 9_121 | BQ44: 9 | BR44: 121 | BS44: 132 | BU44: 9_121 | BV44: 9 | BW44: 121 | BX44: 55 | BZ44: 12_201 | CA44: 3980 | CB44: 99 | CD44: 3260_1 | CE44: 22 | CF44: 0.003247711839 | CH44: 12_118 | CI44: 1699 | CJ44: 27.9532741 | CL44: 13137_1 | CM44: Vähä | CN44: 13137 | CO44: 1 | CP44: 2 | CQ44: Vähä 2 | CS44: 9_121 | CT44: 61.0194572148 | CU44: 23.4856946049 | CV44: https://www.google.com/maps/@61.0194572148,23.4856946049,3a,75y,90t/data=!3m3!1e1!3m1!2e0
A45: 33 | B45: 9_123 | C45: 9 | D45: 123 | E45: 4031 | F45: 4040.322818 | G45: 4605 | H45: 88 | I45: 0.88 | J45: 4052.4 | K45: -0.4700666928 | L45: 7647 | M45: 755 | N45: 7423 | O45: https://www.google.com/maps/@61.1195082675,23.6549462793,3a,75y,90t/data=!3m3!1e1!3m1!2e0 | P45: Gmaps | Q45: Akaa | R45: 4605 | S45: 88 | T45: 1628 | U45: 1460 | V45: 123 | W45: Osa seud. yht. | X45: 55 | Y45: Osa seud. yht. | Z45: 0 | AA45: 0 | AC45: 0 | AD45: 0 | AE45: 0 | AG45: Ei määritetty | AH45: Ei määritetty | AJ45: punainen | AK45: punainen | AL45: punainen | AN45: punainen | AO45: punainen | AP45: punainen | AQ45: 40 | AR45: 10 | AS45: 10 | AT45: 10 | AU45: 10 | AW45: punainen | AX45: punainen | AY45: punainen | AZ45: 40 | BA45: 10 | BB45: 10 | BC45: 10 | BD45: 10 | BF45: 9_120 | BG45: 9 | BH45: 120 | BI45: 817 | BK45: 9_123 | BL45: 9 | BM45: 123 | BN45: 1460 | BP45: 9_123 | BQ45: 9 | BR45: 123 | BS45: 123 | BU45: 9_123 | BV45: 9 | BW45: 123 | BX45: 55 | BZ45: 12_202 | CA45: 1562 | CB45: 23 | CD45: 13095_1 | CE45: 204 | CF45: 0.09812409812 | CH45: 12_119 | CI45: 1849 | CJ45: 33.21954725 | CL45: 3230_3 | CM45: Vähä | CN45: 3230 | CO45: 3 | CP45: 2 | CQ45: Vähä 2 | CS45: 9_123 | CT45: 61.1195082675 | CU45: 23.6549462793 | CV45: https://www.google.com/maps/@61.1195082675,23.6549462793,3a,75y,90t/data=!3m3!1e1!3m1!2e0
A46: 34 | B46: 9_124 | C46: 9 | D46: 124 | E46: 11553 | F46: 4087.048352 | G46: 4566 | H46: 90 | I46: 0.9 | J46: 4109.4 | K46: -0.3826021635 | L46: 6656 | M46: 646 | N46: 6409 | O46: https://www.google.com/maps/@61.1499025927,23.6937593975,3a,75y,90t/data=!3m3!1e1!3m1!2e0 | P46: Gmaps | Q46: Akaa | R46: 4566 | S46: 90 | T46: 2025 | U46: 2570 | V46: 116 | W46: Osa seud. yht. | X46: 55 | Y46: Osa seud. yht. | Z46: 0 | AA46: 0 | AC46: 0 | AD46: 9.209729075 | AE46: 0.09209729075 | AG46: Ei määritetty | AH46: Ei määritetty | AJ46: punainen | AK46: punainen | AL46: punainen | AN46: punainen | AO46: punainen | AP46: punainen | AQ46: 40 | AR46: 10 | AS46: 10 | AT46: 10 | AU46: 10 | AW46: punainen | AX46: punainen | AY46: punainen | AZ46: 40 | BA46: 10 | BB46: 10 | BC46: 10 | BD46: 10 | BF46: 9_121 | BG46: 9 | BH46: 121 | BI46: 977 | BK46: 9_124 | BL46: 9 | BM46: 124 | BN46: 2570 | BP46: 9_124 | BQ46: 9 | BR46: 124 | BS46: 116 | BU46: 9_124 | BV46: 9 | BW46: 124 | BX46: 55 | BZ46: 12_202 | CA46: 2132 | CB46: 31 | CD46: 13761_1 | CE46: 1497 | CF46: 0.2731751825 | CH46: 12_119 | CI46: 138 | CJ46: 2.479338843 | CL46: 3482_1 | CM46: Vähä | CN46: 3482 | CO46: 1 | CP46: 2 | CQ46: Vähä 2 | CS46: 9_124 | CT46: 61.1499025927 | CU46: 23.6937593975 | CV46: https://www.google.com/maps/@61.1499025927,23.6937593975,3a,75y,90t/data=!3m3!1e1!3m1!2e0
A47: 35 | B47: 9_204 | C47: 9 | D47: 204 | E47: 4105 | F47: 4058.572446 | G47: 9995 | H47: 54 | I47: 0.54 | J47: 5397.3 | K47: -0.8790493905 | L47: 44624 | M47: 2806 | N47: 49462 | O47: https://www.google.com/maps/@61.4626190403,23.7690695453,3a,75y,90t/data=!3m3!1e1!3m1!2e0 | P47: Gmaps | Q47: Tampere | R47: 9995 | S47: 54 | T47: 14224 | U47: 7347 | V47: 145 | W47: Osa seud. yht. | X47: 121 | Y47: Osa seud. yht. | Z47: 71 | AA47: 0.71 | AC47: 0 | AD47: 69.40316687 | AE47: 0.6940316687 | AG47: Ei määritetty | AH47: Ei määritetty | AJ47: punainen | AK47: punainen | AL47: punainen | AN47: musta | AO47: punainen | AP47: punainen | AQ47: 31 | AR47: 1 | AS47: 10 | AT47: 10 | AU47: 10 | AW47: punainen | AX47: punainen | AY47: punainen | AZ47: 40 | BA47: 10 | BB47: 10 | BC47: 10 | BD47: 10 | BF47: 9_122 | BG47: 9 | BH47: 122 | BI47: 1429 | BK47: 9_204 | BL47: 9 | BM47: 204 | BN47: 7347 | BP47: 9_204 | BQ47: 9 | BR47: 204 | BS47: 145 | BU47: 9_204 | BV47: 9 | BW47: 204 | BX47: 121 | BZ47: 12_203 | CA47: 3037 | CB47: 42 | CD47: 13787_1 | CE47: 253 | CF47: 0.1766759777 | CH47: 12_120 | CI47: 1011 | CJ47: 14.45938215 | CL47: 2611_3 | CM47: Vähä | CN47: 2611 | CO47: 3 | CP47: 2 | CQ47: Vähä 2 | CS47: 9_204 | CT47: 61.4626190403 | CU47: 23.7690695453 | CV47: https://www.google.com/maps/@61.4626190403,23.7690695453,3a,75y,90t/data=!3m3!1e1!3m1!2e0
A48: 36 | B48: 9_205 | C48: 9 | D48: 205 | E48: 4590 | F48: 4487.233184 | G48: 8593 | H48: 53 | I48: 0.53 | J48: 4554.29 | K48: -0.8523922344 | L48: 30854 | M48: 2358 | N48: 33473 | O48: https://www.google.com/maps/@61.4703093355,23.8404085144,3a,75y,90t/data=!3m3!1e1!3m1!2e0 | P48: Gmaps | Q48: Tampere | R48: 8593 | S48: 53 | T48: 13941 | U48: 6481 | V48: 145 | W48: Osa seud. yht. | X48: 121 | Y48: Osa seud. yht. | Z48: 68 | AA48: 0.68 | AC48: 0 | AD48: 98.77995643 | AE48: 0.9877995643 | AG48: Ei määritetty | AH48: Ei määritetty | AJ48: punainen | AK48: punainen | AL48: punainen | AN48: musta | AO48: punainen | AP48: punainen | AQ48: 31 | AR48: 1 | AS48: 10 | AT48: 10 | AU48: 10 | AW48: punainen | AX48: punainen | AY48: punainen | AZ48: 40 | BA48: 10 | BB48: 10 | BC48: 10 | BD48: 10 | BF48: 9_123 | BG48: 9 | BH48: 123 | BI48: 1628 | BK48: 9_205 | BL48: 9 | BM48: 205 | BN48: 6481 | BP48: 9_205 | BQ48: 9 | BR48: 205 | BS48: 145 | BU48: 9_205 | BV48: 9 | BW48: 205 | BX48: 121 | BZ48: 12_206 | CA48: 1188 | CB48: 21 | CD48: 14017_1 | CE48: 299 | CF48: 0.02651649521 | CH48: 12_124 | CI48: 2225 | CJ48: 22.14371019 | CL48: 3230_1 | CM48: Vähä | CN48: 3230 | CO48: 1 | CP48: 2 | CQ48: Vähä 2 | CS48: 9_205 | CT48: 61.4703093355 | CU48: 23.8404085144 | CV48: https://www.google.com/maps/@61.4703093355,23.8404085144,3a,75y,90t/data=!3m3!1e1!3m1!2e0
A49: 37 | B49: 9_206 | C49: 9 | D49: 206 | E49: 10609 | F49: 5238.721954 | G49: 11181 | H49: 65 | I49: 0.65 | J49: 7267.65 | K49: -0.5799774606 | L49: 17303 | M49: 1486 | N49: 17456 | O49: https://www.google.com/maps/@61.4984374669,23.8849793908,3a,75y,90t/data=!3m3!1e1!3m1!2e0 | P49: Gmaps | Q49: Kangasala, Tampere | R49: 11181 | S49: 65 | T49: 6858 | U49: 4769 | V49: 152 | W49: Osa seud. yht. | X49: 123 | Y49: Osa seud. yht. | Z49: 0 | AA49: 0 | AC49: 0 | AD49: 37.91120747 | AE49: 0.3791120747 | AG49: Ei määritetty | AH49: Ei määritetty | AJ49: punainen | AK49: punainen | AL49: punainen | AN49: punainen | AO49: punainen | AP49: punainen | AQ49: 40 | AR49: 10 | AS49: 10 | AT49: 10 | AU49: 10 | AW49: punainen | AX49: punainen | AY49: punainen | AZ49: 40 | BA49: 10 | BB49: 10 | BC49: 10 | BD49: 10 | BF49: 9_124 | BG49: 9 | BH49: 124 | BI49: 2025 | BK49: 9_206 | BL49: 9 | BM49: 206 | BN49: 4769 | BP49: 9_206 | BQ49: 9 | BR49: 206 | BS49: 152 | BU49: 9_206 | BV49: 9 | BW49: 206 | BX49: 123 | BZ49: 12_207 | CA49: 2227 | CB49: 47 | CD49: 14339_2 | CE49: 303 | CF49: 0.01930551131 | CH49: 12_125 | CI49: 2530 | CJ49: 48.87000193 | CL49: 13269_1 | CM49: Vähä | CN49: 13269 | CO49: 1 | CP49: 2 | CQ49: Vähä 2 | CS49: 9_206 | CT49: 61.4984374669 | CU49: 23.8849793908 | CV49: https://www.google.com/maps/@61.4984374669,23.8849793908,3a,75y,90t/data=!3m3!1e1!3m1!2e0
A50: 38 | B50: 9_208 | C50: 9 | D50: 208 | E50: 9895 | F50: 10613.62166 | G50: 9166 | H50: 99 | I50: 0.99 | J50: 9074.34 | K50: -0.2108583355 | L50: 11499 | M50: 1060 | N50: 10980 | O50: https://www.google.com/maps/@61.5440982546,24.0457511477,3a,75y,90t/data=!3m3!1e1!3m1!2e0 | P50: Gmaps | Q50: Kangasala, Orivesi | R50: 9166 | S50: 99 | T50: 2967 | U50: 2864 | V50: 164 | W50: Osa seud. yht. | X50: 136 | Y50: Osa seud. yht. | Z50: 0 | AA50: 0 | AC50: 0.06316321374 | AD50: 9.247094492 | AE50: 0.09247094492 | AG50: Ei määritetty | AH50: Ei määritetty | AJ50: punainen | AK50: punainen | AL50: punainen | AN50: punainen | AO50: punainen | AP50: punainen | AQ50: 40 | AR50: 10 | AS50: 10 | AT50: 10 | AU50: 10 | AW50: punainen | AX50: punainen | AY50: punainen | AZ50: 40 | BA50: 10 | BB50: 10 | BC50: 10 | BD50: 10 | BF50: 9_125 | BG50: 9 | BH50: 125 | BI50: 2608 | BK50: 9_208 | BL50: 9 | BM50: 208 | BN50: 2864 | BP50: 9_208 | BQ50: 9 | BR50: 208 | BS50: 164 | BU50: 9_208 | BV50: 9 | BW50: 208 | BX50: 136 | BZ50: 23_115 | CA50: 1245 | CB50: 28 | CH50: 12_126 | CI50: 5475 | CJ50: 86.01728201 | CL50: 13738_1 | CM50: Vähä | CN50: 13738 | CO50: 1 | CP50: 2 | CQ50: Vähä 2 | CS50: 9_208 | CT50: 61.5440982546 | CU50: 24.0457511477 | CV50: https://www.google.com/maps/@61.5440982546,24.0457511477,3a,75y,90t/data=!3m3!1e1!3m1!2e0
A51: 39 | B51: 9_209 | C51: 9 | D51: 209 | E51: 5514 | F51: 4733.971594 | G51: 8753 | H51: 99 | I51: 0.99 | J51: 8665.47 | K51: -0.2464153405 | L51: 11499 | M51: 1060 | N51: 10980 | O51: https://www.google.com/maps/@61.6124901277,24.1481890833,3a,75y,90t/data=!3m3!1e1!3m1!2e0 | P51: Gmaps | Q51: Orivesi | R51: 8753 | S51: 99 | T51: 2781 | U51: 2772 | V51: 164 | W51: Osa seud. yht. | X51: 136 | Y51: Osa seud. yht. | Z51: 0 | AA51: 0 | AC51: 0 | AD51: 0 | AE51: 0 | AG51: Ei määritetty | AH51: Ei määritetty | AJ51: punainen | AK51: punainen | AL51: punainen | AN51: punainen | AO51: punainen | AP51: punainen | AQ51: 40 | AR51: 10 | AS51: 10 | AT51: 10 | AU51: 10 | AW51: punainen | AX51: punainen | AY51: punainen | AZ51: 40 | BA51: 10 | BB51: 10 | BC51: 10 | BD51: 10 | BF51: 9_204 | BG51: 9 | BH51: 204 | BI51: 14224 | BK51: 9_209 | BL51: 9 | BM51: 209 | BN51: 2772 | BP51: 9_209 | BQ51: 9 | BR51: 209 | BS51: 164 | BU51: 9_209 | BV51: 9 | BW51: 209 | BX51: 136 | BZ51: 23_202 | CA51: 322 | CB51: 5 | CH51: 12_127 | CI51: 6438 | CJ51: 94.64863276 | CL51: 3413_1 | CM51: Vähä | CN51: 3413 | CO51: 1 | CP51: 2 | CQ51: Vähä 2 | CS51: 9_209 | CT51: 61.6124901277 | CU51: 24.1481890833 | CV51: https://www.google.com/maps/@61.6124901277,24.1481890833,3a,75y,90t/data=!3m3!1e1!3m1!2e0
A52: 40 | B52: 9_210 | C52: 9 | D52: 210 | E52: 8510 | F52: 8477.19329 | G52: 7164 | H52: 98 | I52: 0.98 | J52: 7020.72 | K52: -0.3366666667 | L52: 10584 | M52: 1315 | N52: 9925 | O52: https://www.google.com/maps/@61.64623309,24.2228489833,3a,75y,90t/data=!3m3!1e1!3m1!2e0 | P52: Gmaps | Q52: Orivesi | R52: 7164 | S52: 98 | T52: 2419 | U52: 2375 | V52: 164 | W52: Osa seud. yht. | X52: 136 | Y52: Osa seud. yht. | Z52: 8 | AA52: 0.08 | AC52: 0.03431257344 | AD52: 8.613396005 | AE52: 0.08613396005 | AG52: Ei määritetty | AH52: Ei määritetty | AJ52: punainen | AK52: punainen | AL52: punainen | AN52: punainen | AO52: punainen | AP52: punainen | AQ52: 40 | AR52: 10 | AS52: 10 | AT52: 10 | AU52: 10 | AW52: punainen | AX52: punainen | AY52: punainen | AZ52: 40 | BA52: 10 | BB52: 10 | BC52: 10 | BD52: 10 | BF52: 9_205 | BG52: 9 | BH52: 205 | BI52: 13941 | BK52: 9_210 | BL52: 9 | BM52: 210 | BN52: 2375 | BP52: 9_210 | BQ52: 9 | BR52: 210 | BS52: 164 | BU52: 9_210 | BV52: 9 | BW52: 210 | BX52: 136 | BZ52: 23_208 | CA52: 1618 | CB52: 38 | CH52: 12_201 | CI52: 3467 | CJ52: 86.61004247 | CL52: 3413_2 | CM52: Vähä | CN52: 3413 | CO52: 2 | CP52: 2 | CQ52: Vähä 2 | CS52: 9_210 | CT52: 61.64623309 | CU52: 24.2228489833 | CV52: https://www.google.com/maps/@61.64623309,24.2228489833,3a,75y,90t/data=!3m3!1e1!3m1!2e0
A53: 41 | B53: 9_211 | C53: 9 | D53: 211 | E53: 5840 | F53: 5815.478092 | G53: 5794 | H53: 91 | I53: 0.91 | J53: 5272.54 | K53: -0.2299488827 | L53: 6847 | M53: 847 | N53: 6044 | O53: https://www.google.com/maps/@61.6848806116,24.3580366252,3a,75y,90t/data=!3m3!1e1!3m1!2e0 | P53: Gmaps | Q53: Orivesi | R53: 5794 | S53: 91 | T53: 1036 | U53: 891 | V53: 75 | W53: Osa seud. yht. | X53: 46 | Y53: Osa seud. yht. | Z53: 18 | AA53: 0.18 | AC53: 0.1318493151 | AD53: 13.68150685 | AE53: 0.1368150685 | AG53: Ei määritetty | AH53: Ei määritetty | AJ53: punainen | AK53: punainen | AL53: punainen | AN53: punainen | AO53: punainen | AP53: punainen | AQ53: 40 | AR53: 10 | AS53: 10 | AT53: 10 | AU53: 10 | AW53: punainen | AX53: punainen | AY53: punainen | AZ53: 40 | BA53: 10 | BB53: 10 | BC53: 10 | BD53: 10 | BF53: 9_206 | BG53: 9 | BH53: 206 | BI53: 6858 | BK53: 9_211 | BL53: 9 | BM53: 211 | BN53: 891 | BP53: 9_211 | BQ53: 9 | BR53: 211 | BS53: 75 | BU53: 9_211 | BV53: 9 | BW53: 211 | BX53: 46 | BZ53: 23_209 | CA53: 67 | CB53: 1 | CH53: 12_202 | CI53: 4645 | CJ53: 68.27870057 | CL53: 2852_1 | CM53: Vähä | CN53: 2852 | CO53: 1 | CP53: 2 | CQ53: Vähä 2 | CS53: 9_211 | CT53: 61.6848806116 | CU53: 24.3580366252 | CV53: https://www.google.com/maps/@61.6848806116,24.3580366252,3a,75y,90t/data=!3m3!1e1!3m1!2e0
A54: 42 | B54: 9_212 | C54: 9 | D54: 212 | E54: 6178 | F54: 6119.660657 | G54: 5828 | H54: 96 | I54: 0.96 | J54: 5594.88 | K54: -0.101512767 | L54: 6227 | M54: 646 | N54: 5571 | O54: https://www.google.com/maps/@61.7070733093,24.455695441,3a,75y,90t/data=!3m3!1e1!3m1!2e0 | P54: Gmaps | Q54: Orivesi | R54: 5828 | S54: 96 | T54: 850 | U54: 810 | V54: 69 | W54: Osa seud. yht. | X54: 46 | Y54: Osa seud. yht. | Z54: 0 | AA54: 0 | AC54: 0 | AD54: 0 | AE54: 0 | AG54: Ei määritetty | AH54: Ei määritetty | AJ54: punainen | AK54: punainen | AL54: punainen | AN54: punainen | AO54: punainen | AP54: punainen | AQ54: 40 | AR54: 10 | AS54: 10 | AT54: 10 | AU54: 10 | AW54: punainen | AX54: punainen | AY54: punainen | AZ54: 40 | BA54: 10 | BB54: 10 | BC54: 10 | BD54: 10 | BF54: 9_207 | BG54: 9 | BH54: 207 | BI54: 4127 | BK54: 9_212 | BL54: 9 | BM54: 212 | BN54: 810 | BP54: 9_212 | BQ54: 9 | BR54: 212 | BS54: 69 | BU54: 9_212 | BV54: 9 | BW54: 212 | BX54: 46 | BZ54: 44_1 | CA54: 68 | CB54: 3 | CH54: 12_203 | CI54: 6042 | CJ54: 83.04013194 | CL54: 14010_1 | CM54: Vähä | CN54: 14010 | CO54: 1 | CP54: 2 | CQ54: Vähä 2 | CS54: 9_212 | CT54: 61.7070733093 | CU54: 24.455695441 | CV54: https://www.google.com/maps/@61.7070733093,24.455695441,3a,75y,90t/data=!3m3!1e1!3m1!2e0
A55: 43 | B55: 9_213 | C55: 9 | D55: 213 | E55: 5388 | F55: 5363.653215 | G55: 5739 | H55: 97 | I55: 0.97 | J55: 5566.83 | K55: -0.1060173438 | L55: 6227 | M55: 646 | N55: 5571 | O55: https://www.google.com/maps/@61.7076043133,24.5686799752,3a,75y,90t/data=!3m3!1e1!3m1!2e0 | P55: Gmaps | Q55: Orivesi | R55: 5739 | S55: 97 | T55: 805 | U55: 794 | V55: 69 | W55: Osa seud. yht. | X55: 46 | Y55: Osa seud. yht. | Z55: 0 | AA55: 0 | AC55: 0 | AD55: 0 | AE55: 0 | AG55: Ei määritetty | AH55: Ei määritetty | AJ55: punainen | AK55: punainen | AL55: punainen | AN55: punainen | AO55: punainen | AP55: punainen | AQ55: 40 | AR55: 10 | AS55: 10 | AT55: 10 | AU55: 10 | AW55: punainen | AX55: punainen | AY55: punainen | AZ55: 40 | BA55: 10 | BB55: 10 | BC55: 10 | BD55: 10 | BF55: 9_208 | BG55: 9 | BH55: 208 | BI55: 2967 | BK55: 9_213 | BL55: 9 | BM55: 213 | BN55: 794 | BP55: 9_213 | BQ55: 9 | BR55: 213 | BS55: 69 | BU55: 9_213 | BV55: 9 | BW55: 213 | BX55: 46 | BZ55: 44_2 | CA55: 249 | CB55: 103 | CH55: 12_204 | CI55: 1841 | CJ55: 39.09534933 | CL55: 2521_3 | CM55: Vähä | CN55: 2521 | CO55: 3 | CP55: 2 | CQ55: Vähä 2 | CS55: 9_213 | CT55: 61.7076043133 | CU55: 24.5686799752 | CV55: https://www.google.com/maps/@61.7076043133,24.5686799752,3a,75y,90t/data=!3m3!1e1!3m1!2e0
A56: 44 | B56: 9_214 | C56: 9 | D56: 214 | E56: 4818 | F56: 4813.952204 | G56: 5722 | H56: 97 | I56: 0.97 | J56: 5550.34 | K56: -0.108665489 | L56: 6227 | M56: 646 | N56: 5571 | O56: https://www.google.com/maps/@61.7247683572,24.6565958368,3a,75y,90t/data=!3m3!1e1!3m1!2e0 | P56: Gmaps | Q56: Orivesi | R56: 5722 | S56: 97 | T56: 778 | U56: 777 | V56: 69 | W56: Osa seud. yht. | X56: 46 | Y56: Osa seud. yht. | Z56: 0 | AA56: 0 | AC56: 0 | AD56: 0 | AE56: 0 | AG56: Ei määritetty | AH56: Ei määritetty | AJ56: punainen | AK56: punainen | AL56: punainen | AN56: punainen | AO56: punainen | AP56: punainen | AQ56: 40 | AR56: 10 | AS56: 10 | AT56: 10 | AU56: 10 | AW56: punainen | AX56: punainen | AY56: punainen | AZ56: 40 | BA56: 10 | BB56: 10 | BC56: 10 | BD56: 10 | BF56: 9_209 | BG56: 9 | BH56: 209 | BI56: 2781 | BK56: 9_214 | BL56: 9 | BM56: 214 | BN56: 777 | BP56: 9_214 | BQ56: 9 | BR56: 214 | BS56: 69 | BU56: 9_214 | BV56: 9 | BW56: 214 | BX56: 46 | BZ56: 44_3 | CA56: 1432 | CB56: 34 | CH56: 12_206 | CI56: 3186 | CJ56: 56.6098081 | CL56: 2771_3 | CM56: Vähä | CN56: 2771 | CO56: 3 | CP56: 2 | CQ56: Vähä 2 | CS56: 9_214 | CT56: 61.7247683572 | CU56: 24.6565958368 | CV56: https://www.google.com/maps/@61.7247683572,24.6565958368,3a,75y,90t/data=!3m3!1e1!3m1!2e0
A57: 45 | B57: 11_3 | C57: 11 | D57: 3 | E57: 6831 | F57: 6883.861253 | G57: 7258 | H57: 80 | I57: 0.8 | J57: 5806.4 | K57: -0.2751061174 | L57: 8010 | M57: 629 | N57: 8298 | O57: https://www.google.com/maps/@61.503564588,23.5632768272,3a,75y,90t/data=!3m3!1e1!3m1!2e0 | P57: Gmaps | Q57: Nokia | R57: 7258 | S57: 80 | T57: 5126 | U57: 3430 | V57: 24 | W57: Osa seud. yht. | X57: 16 | Y57: Osa seud. yht. | Z57: 14 | AA57: 0.14 | AC57: 0.2888303323 | AD57: 19.57253696 | AE57: 0.1957253696 | AG57: Ei määritetty | AH57: Ei määritetty | AJ57: punainen | AK57: punainen | AL57: punainen | AN57: punainen | AO57: punainen | AP57: punainen | AQ57: 40 | AR57: 10 | AS57: 10 | AT57: 10 | AU57: 10 | AW57: punainen | AX57: punainen | AY57: punainen | AZ57: 40 | BA57: 10 | BB57: 10 | BC57: 10 | BD57: 10 | BF57: 9_210 | BG57: 9 | BH57: 210 | BI57: 2419 | BK57: 11_3 | BL57: 11 | BM57: 3 | BN57: 3430 | BP57: 11_3 | BQ57: 11 | BR57: 3 | BS57: 24 | BU57: 11_3 | BV57: 11 | BW57: 3 | BX57: 16 | BZ57: 56_8 | CA57: 605 | CB57: 44 | CH57: 12_207 | CI57: 2059 | CJ57: 43.58594412 | CL57: 2501_1 | CM57: Vähä | CN57: 2501 | CO57: 1 | CP57: 2 | CQ57: Vähä 2 | CS57: 11_3 | CT57: 61.503564588 | CU57: 23.5632768272 | CV57: https://www.google.com/maps/@61.503564588,23.5632768272,3a,75y,90t/data=!3m3!1e1!3m1!2e0
A58: 46 | B58: 11_4 | C58: 11 | D58: 4 | E58: 5684 | F58: 7279.8328 | G58: 6704 | H58: 93 | I58: 0.93 | J58: 6234.72 | K58: -0.2579481076 | L58: 8402 | M58: 502 | N58: 8695 | O58: https://www.google.com/maps/@61.5005856302,23.4360284841,3a,75y,90t/data=!3m3!1e1!3m1!2e0 | P58: Gmaps | Q58: Nokia | R58: 6704 | S58: 93 | T58: 3164 | U58: 2596 | V58: 22 | W58: Osa seud. yht. | X58: 18 | Y58: Osa seud. yht. | Z58: 0 | AA58: 0 | AC58: 0 | AD58: 0 | AE58: 0 | AG58: Ei määritetty | AH58: Ei määritetty | AJ58: punainen | AK58: punainen | AL58: punainen | AN58: punainen | AO58: punainen | AP58: punainen | AQ58: 40 | AR58: 10 | AS58: 10 | AT58: 10 | AU58: 10 | AW58: punainen | AX58: punainen | AY58: punainen | AZ58: 40 | BA58: 10 | BB58: 10 | BC58: 10 | BD58: 10 | BF58: 9_211 | BG58: 9 | BH58: 211 | BI58: 1036 | BK58: 11_4 | BL58: 11 | BM58: 4 | BN58: 2596 | BP58: 11_4 | BQ58: 11 | BR58: 4 | BS58: 22 | BU58: 11_4 | BV58: 11 | BW58: 4 | BX58: 18 | BZ58: 58_1 | CA58: 854 | CB58: 15 | CH58: 23_115 | CI58: 1187 | CJ58: 26.69815565 | CL58: 13257_1 | CM58: Vähä | CN58: 13257 | CO58: 1 | CP58: 2 | CQ58: Vähä 2 | CS58: 11_4 | CT58: 61.5005856302 | CU58: 23.4360284841 | CV58: https://www.google.com/maps/@61.5005856302,23.4360284841,3a,75y,90t/data=!3m3!1e1!3m1!2e0
A59: 47 | B59: 11_5 | C59: 11 | D59: 5 | E59: 7899 | F59: 6273.181829 | G59: 5561 | H59: 96 | I59: 0.96 | J59: 5338.56 | K59: -0.253870021 | L59: 7155 | M59: 539 | N59: 7075 | O59: https://www.google.com/maps/@61.5021721938,23.330391472,3a,75y,90t/data=!3m3!1e1!3m1!2e0 | P59: Gmaps | Q59: Nokia, Sastamala | R59: 5561 | S59: 96 | T59: 2186 | U59: 1984 | V59: 22 | W59: Osa seud. yht. | X59: 18 | Y59: Osa seud. yht. | Z59: 0 | AA59: 0 | AC59: 0 | AD59: 0 | AE59: 0 | AG59: Ei määritetty | AH59: Ei määritetty | AJ59: punainen | AK59: punainen | AL59: punainen | AN59: punainen | AO59: punainen | AP59: punainen | AQ59: 40 | AR59: 10 | AS59: 10 | AT59: 10 | AU59: 10 | AW59: punainen | AX59: punainen | AY59: punainen | AZ59: 40 | BA59: 10 | BB59: 10 | BC59: 10 | BD59: 10 | BF59: 9_212 | BG59: 9 | BH59: 212 | BI59: 850 | BK59: 11_5 | BL59: 11 | BM59: 5 | BN59: 1984 | BP59: 11_5 | BQ59: 11 | BR59: 5 | BS59: 22 | BU59: 11_5 | BV59: 11 | BW59: 5 | BX59: 18 | BZ59: 58_5 | CA59: 1920 | CB59: 77 | CH59: 23_203 | CI59: 851 | CJ59: 18.97859054 | CL59: 301_2 | CM59: Vähä | CN59: 301 | CO59: 2 | CP59: 2 | CQ59: Vähä 2 | CS59: 11_5 | CT59: 61.5021721938 | CU59: 23.330391472 | CV59: https://www.google.com/maps/@61.5021721938,23.330391472,3a,75y,90t/data=!3m3!1e1!3m1!2e0
A60: 48 | B60: 11_7 | C60: 11 | D60: 7 | E60: 4991 | F60: 5007.622339 | G60: 4736 | H60: 93 | I60: 0.93 | J60: 4404.48 | K60: -0.3844192872 | L60: 7155 | M60: 539 | N60: 7075 | O60: https://www.google.com/maps/@61.4994699409,23.1842186768,3a,75y,90t/data=!3m3!1e1!3m1!2e0 | P60: Gmaps | Q60: Sastamala | R60: 4736 | S60: 93 | T60: 1756 | U60: 1654 | V60: 22 | W60: Osa seud. yht. | X60: 18 | Y60: Osa seud. yht. | Z60: 0 | AA60: 0 | AC60: 0 | AD60: 19.95592066 | AE60: 0.1995592066 | AG60: Ei määritetty | AH60: Ei määritetty | AJ60: punainen | AK60: punainen | AL60: punainen | AN60: punainen | AO60: punainen | AP60: punainen | AQ60: 40 | AR60: 10 | AS60: 10 | AT60: 10 | AU60: 10 | AW60: punainen | AX60: punainen | AY60: punainen | AZ60: 40 | BA60: 10 | BB60: 10 | BC60: 10 | BD60: 10 | BF60: 9_213 | BG60: 9 | BH60: 213 | BI60: 805 | BK60: 11_7 | BL60: 11 | BM60: 7 | BN60: 1654 | BP60: 11_7 | BQ60: 11 | BR60: 7 | BS60: 22 | BU60: 11_7 | BV60: 11 | BW60: 7 | BX60: 18 | BZ60: 58_6 | CA60: 2553 | CB60: 100 | CH60: 23_208 | CI60: 1448 | CJ60: 34.39429929 | CL60: 3382_2 | CM60: Vähä | CN60: 3382 | CO60: 2 | CP60: 2 | CQ60: Vähä 2 | CS60: 11_7 | CT60: 61.4994699409 | CU60: 23.1842186768 | CV60: https://www.google.com/maps/@61.4994699409,23.1842186768,3a,75y,90t/data=!3m3!1e1!3m1!2e0
A61: 49 | B61: 11_8 | C61: 11 | D61: 8 | E61: 2660 | F61: 2666.667539 | G61: 4271 | H61: 86 | I61: 0.86 | J61: 3673.06 | K61: -0.4838308038 | L61: 7116 | M61: 516 | N61: 7085 | O61: https://www.google.com/maps/@61.5025481975,23.0900873951,3a,75y,90t/data=!3m3!1e1!3m1!2e0 | P61: Gmaps | Q61: Sastamala | R61: 4271 | S61: 86 | T61: 1481 | U61: 1364 | V61: 26 | W61: Osa seud. yht. | X61: 22 | Y61: Osa seud. yht. | Z61: 0 | AA61: 0 | AC61: 0 | AD61: 24.92481203 | AE61: 0.2492481203 | AG61: Ei määritetty | AH61: Ei määritetty | AJ61: punainen | AK61: punainen | AL61: punainen | AN61: punainen | AO61: punainen | AP61: punainen | AQ61: 40 | AR61: 10 | AS61: 10 | AT61: 10 | AU61: 10 | AW61: punainen | AX61: punainen | AY61: punainen | AZ61: 40 | BA61: 10 | BB61: 10 | BC61: 10 | BD61: 10 | BF61: 9_214 | BG61: 9 | BH61: 214 | BI61: 778 | BK61: 11_8 | BL61: 11 | BM61: 8 | BN61: 1364 | BP61: 11_8 | BQ61: 11 | BR61: 8 | BS61: 26 | BU61: 11_8 | BV61: 11 | BW61: 8 | BX61: 22 | BZ61: 58_7 | CA61: 898 | CB61: 102 | CH61: 23_209 | CI61: 1325 | CJ61: 16.27164436 | CL61: 2622_3 | CM61: Vähä | CN61: 2622 | CO61: 3 | CP61: 2 | CQ61: Vähä 2 | CS61: 11_8 | CT61: 61.5025481975 | CU61: 23.0900873951 | CV61: https://www.google.com/maps/@61.5025481975,23.0900873951,3a,75y,90t/data=!3m3!1e1!3m1!2e0
A62: 50 | B62: 11_9 | C62: 11 | D62: 9 | E62: 8487 | F62: 8492.104729 | G62: 2516 | H62: 96 | I62: 0.96 | J62: 2415.36 | K62: -0.2980645161 | L62: 3441 | M62: 396 | N62: 3173 | O62: https://www.google.com/maps/@61.504163721,23.0405012959,3a,75y,90t/data=!3m3!1e1!3m1!2e0 | P62: Gmaps | Q62: Sastamala | R62: 2516 | S62: 96 | T62: 892 | U62: 839 | V62: 26 | W62: Osa seud. yht. | X62: 22 | Y62: Osa seud. yht. | Z62: 0 | AA62: 0 | AC62: 0 | AD62: 12.91386827 | AE62: 0.1291386827 | AG62: Ei määritetty | AH62: Ei määritetty | AJ62: punainen | AK62: punainen | AL62: punainen | AN62: punainen | AO62: punainen | AP62: punainen | AQ62: 40 | AR62: 10 | AS62: 10 | AT62: 10 | AU62: 10 | AW62: punainen | AX62: punainen | AY62: punainen | AZ62: 40 | BA62: 10 | BB62: 10 | BC62: 10 | BD62: 10 | BF62: 11_3 | BG62: 11 | BH62: 3 | BI62: 5126 | BK62: 11_9 | BL62: 11 | BM62: 9 | BN62: 839 | BP62: 11_9 | BQ62: 11 | BR62: 9 | BS62: 26 | BU62: 11_9 | BV62: 11 | BW62: 9 | BX62: 22 | BZ62: 58_8 | CA62: 1435 | CB62: 23 | CH62: 44_1 | CI62: 562 | CJ62: 27.08433735 | CL62: 14352_1 | CM62: Vähä | CN62: 14352 | CO62: 1 | CP62: 2 | CQ62: Vähä 2 | CS62: 11_9 | CT62: 61.504163721 | CU62: 23.0405012959 | CV62: https://www.google.com/maps/@61.504163721,23.0405012959,3a,75y,90t/data=!3m3!1e1!3m1!2e0
A63: 51 | B63: 11_10 | C63: 11 | D63: 10 | E63: 3245 | F63: 3231.406701 | G63: 2490 | H63: 98 | I63: 0.98 | J63: 2440.2 | K63: -0.2908456844 | L63: 3441 | M63: 396 | N63: 3173 | O63: https://www.google.com/maps/@61.5050672239,22.8818330775,3a,75y,90t/data=!3m3!1e1!3m1!2e0 | P63: Gmaps | Q63: Sastamala | R63: 2490 | S63: 98 | T63: 668 | U63: 658 | V63: 26 | W63: Osa seud. yht. | X63: 22 | Y63: Osa seud. yht. | Z63: 0 | AA63: 0 | AC63: 0 | AD63: 0 | AE63: 0 | AG63: Ei määritetty | AH63: Ei määritetty | AJ63: punainen | AK63: punainen | AL63: punainen | AN63: punainen | AO63: punainen | AP63: punainen | AQ63: 40 | AR63: 10 | AS63: 10 | AT63: 10 | AU63: 10 | AW63: punainen | AX63: punainen | AY63: punainen | AZ63: 40 | BA63: 10 | BB63: 10 | BC63: 10 | BD63: 10 | BF63: 11_4 | BG63: 11 | BH63: 4 | BI63: 3164 | BK63: 11_10 | BL63: 11 | BM63: 10 | BN63: 658 | BP63: 11_10 | BQ63: 11 | BR63: 10 | BS63: 26 | BU63: 11_10 | BV63: 11 | BW63: 10 | BX63: 22 | BZ63: 65_1 | CA63: 3353 | CB63: 41 | CH63: 44_2 | CI63: 249 | CJ63: 102.892562 | CL63: 2986_4 | CM63: Vähä | CN63: 2986 | CO63: 4 | CP63: 2 | CQ63: Vähä 2 | CS63: 11_10 | CT63: 61.5050672239 | CU63: 22.8818330775 | CV63: https://www.google.com/maps/@61.5050672239,22.8818330775,3a,75y,90t/data=!3m3!1e1!3m1!2e0
A64: 52 | B64: 11_11 | C64: 11 | D64: 11 | E64: 6950 | F64: 13667.01494 | G64: 2497 | H64: 97 | I64: 0.97 | J64: 2422.09 | K64: -0.2961086893 | L64: 3441 | M64: 396 | N64: 3173 | O64: https://www.google.com/maps/@61.4993236747,22.8223739381,3a,75y,90t/data=!3m3!1e1!3m1!2e0 | P64: Gmaps | Q64: Sastamala | R64: 2497 | S64: 97 | T64: 667 | U64: 648 | V64: 26 | W64: Osa seud. yht. | X64: 22 | Y64: Osa seud. yht. | Z64: 0 | AA64: 0 | AC64: 0 | AD64: 0 | AE64: 0 | AG64: Ei määritetty | AH64: Ei määritetty | AJ64: punainen | AK64: punainen | AL64: punainen | AN64: punainen | AO64: punainen | AP64: punainen | AQ64: 40 | AR64: 10 | AS64: 10 | AT64: 10 | AU64: 10 | AW64: punainen | AX64: punainen | AY64: punainen | AZ64: 40 | BA64: 10 | BB64: 10 | BC64: 10 | BD64: 10 | BF64: 11_5 | BG64: 11 | BH64: 5 | BI64: 2186 | BK64: 11_11 | BL64: 11 | BM64: 11 | BN64: 648 | BP64: 11_11 | BQ64: 11 | BR64: 11 | BS64: 26 | BU64: 11_11 | BV64: 11 | BW64: 11 | BX64: 22 | BZ64: 65_1 | CA64: 2684 | CB64: 33 | CH64: 44_3 | CI64: 1416 | CJ64: 33.73838456 | CL64: 13081_2 | CM64: Vähä | CN64: 13081 | CO64: 2 | CP64: 2 | CQ64: Vähä 2 | CS64: 11_11 | CT64: 61.4993236747 | CU64: 22.8223739381 | CV64: https://www.google.com/maps/@61.4993236747,22.8223739381,3a,75y,90t/data=!3m3!1e1!3m1!2e0
A65: 53 | B65: 11_13 | C65: 11 | D65: 13 | E65: 7637 | F65: 921.5042051 | G65: 2530 | H65: 95 | I65: 0.95 | J65: 2403.5 | K65: -0.2788778878 | L65: 3333 | M65: 391 | N65: 3144 | O65: https://www.google.com/maps/@61.4884474766,22.6981061062,3a,75y,90t/data=!3m3!1e1!3m1!2e0 | P65: Gmaps | Q65: Sastamala | R65: 2530 | S65: 95 | T65: 572 | U65: 549 | V65: 17 | W65: Osa seud. yht. | X65: 14 | Y65: Osa seud. yht. | Z65: 0 | AA65: 0 | AC65: 0 | AD65: 6.612544193 | AE65: 0.06612544193 | AG65: Ei määritetty | AH65: Ei määritetty | AJ65: punainen | AK65: punainen | AL65: punainen | AN65: punainen | AO65: punainen | AP65: punainen | AQ65: 40 | AR65: 10 | AS65: 10 | AT65: 10 | AU65: 10 | AW65: punainen | AX65: punainen | AY65: punainen | AZ65: 40 | BA65: 10 | BB65: 10 | BC65: 10 | BD65: 10 | BF65: 11_6 | BG65: 11 | BH65: 6 | BI65: 1730 | BK65: 11_13 | BL65: 11 | BM65: 13 | BN65: 549 | BP65: 11_13 | BQ65: 11 | BR65: 13 | BS65: 17 | BU65: 11_13 | BV65: 11 | BW65: 13 | BX65: 14 | BZ65: 65_2 | CA65: 612 | CB65: 4 | CH65: 44_6 | CI65: 914 | CJ65: 18.78725591 | CL65: 2495_2 | CM65: Vähä | CN65: 2495 | CO65: 2 | CP65: 2 | CQ65: Vähä 2 | CS65: 11_13 | CT65: 61.4884474766 | CU65: 22.6981061062 | CV65: https://www.google.com/maps/@61.4884474766,22.6981061062,3a,75y,90t/data=!3m3!1e1!3m1!2e0
A66: 54 | B66: 11_14 | C66: 11 | D66: 14 | E66: 5727 | F66: 4817.422841 | G66: 2688 | H66: 97 | I66: 0.97 | J66: 2607.36 | K66: -0.1683062201 | L66: 3135 | M66: 403 | N66: 2977 | O66: https://www.google.com/maps/@61.4751957868,22.5576486327,3a,75y,90t/data=!3m3!1e1!3m1!2e0 | P66: Gmaps | Q66: Sastamala | R66: 2688 | S66: 97 | T66: 513 | U66: 505 | V66: 19 | W66: Osa seud. yht. | X66: 15 | Y66: Osa seud. yht. | Z66: 0 | AA66: 0 | AC66: 0 | AD66: 0 | AE66: 0 | AG66: Ei määritetty | AH66: Ei määritetty | AJ66: punainen | AK66: punainen | AL66: punainen | AN66: punainen | AO66: punainen | AP66: punainen | AQ66: 40 | AR66: 10 | AS66: 10 | AT66: 10 | AU66: 10 | AW66: punainen | AX66: punainen | AY66: punainen | AZ66: 40 | BA66: 10 | BB66: 10 | BC66: 10 | BD66: 10 | BF66: 11_7 | BG66: 11 | BH66: 7 | BI66: 1756 | BK66: 11_14 | BL66: 11 | BM66: 14 | BN66: 505 | BP66: 11_14 | BQ66: 11 | BR66: 14 | BS66: 19 | BU66: 11_14 | BV66: 11 | BW66: 14 | BX66: 15 | BZ66: 65_9 | CA66: 1057 | CB66: 16 | CH66: 56_8 | CI66: 1339 | CJ66: 96.81851048 | CL66: 13341_1 | CM66: Vähä | CN66: 13341 | CO66: 1 | CP66: 2 | CQ66: Vähä 2 | CS66: 11_14 | CT66: 61.4751957868 | CU66: 22.5576486327 | CV66: https://www.google.com/maps/@61.4751957868,22.5576486327,3a,75y,90t/data=!3m3!1e1!3m1!2e0
A67: 55 | B67: 12_116 | C67: 12 | D67: 116 | E67: 1952 | G67: 5500 | H67: 90 | I67: 0.9 | J67: 4950 | K67: -0.262295082 | L67: 6710 | M67: 821 | N67: 6535 | O67: https://www.google.com/maps/@61.245905334,22.7167188292,3a,75y,90t/data=!3m3!1e1!3m1!2e0 | P67: Gmaps | Q67: Sastamala | R67: 5500 | S67: 90 | T67: 840 | U67: 771 | V67: 52 | W67: Osa seud. yht. | X67: 44 | Y67: Osa seud. yht. | Z67: 0 | AA67: 0 | AC67: 0 | AD67: 0 | AE67: 0 | AG67: Ei määritetty | AH67: Ei määritetty | AJ67: punainen | AK67: punainen | AL67: punainen | AN67: punainen | AO67: punainen | AP67: punainen | AQ67: 40 | AR67: 10 | AS67: 10 | AT67: 10 | AU67: 10 | AW67: punainen | AX67: punainen | AY67: punainen | AZ67: 40 | BA67: 10 | BB67: 10 | BC67: 10 | BD67: 10 | BF67: 11_8 | BG67: 11 | BH67: 8 | BI67: 1481 | BK67: 12_116 | BL67: 12 | BM67: 116 | BN67: 771 | BP67: 12_116 | BQ67: 12 | BR67: 116 | BS67: 52 | BU67: 12_116 | BV67: 12 | BW67: 116 | BX67: 44 | BZ67: 65_11 | CA67: 1096 | CB67: 14 | CH67: 58_1 | CI67: 1967 | CJ67: 34.01348781 | CL67: 2505_1 | CM67: Vähä | CN67: 2505 | CO67: 1 | CP67: 2 | CQ67: Vähä 2 | CS67: 12_116 | CT67: 61.245905334 | CU67: 22.7167188292 | CV67: https://www.google.com/maps/@61.245905334,22.7167188292,3a,75y,90t/data=!3m3!1e1!3m1!2e0
A68: 56 | B68: 12_117 | C68: 12 | D68: 117 | E68: 7124 | F68: 7098.746071 | G68: 4501 | H68: 87 | I68: 0.87 | J68: 3915.87 | K68: -0.3748611111 | L68: 6264 | M68: 583 | N68: 6270 | O68: https://www.google.com/maps/@61.2625105795,22.7287749784,3a,75y,90t/data=!3m3!1e1!3m1!2e0 | P68: Gmaps | Q68: Sastamala | R68: 4501 | S68: 87 | T68: 1005 | U68: 830 | V68: 52 | W68: Osa seud. yht. | X68: 44 | Y68: Osa seud. yht. | Z68: 0 | AA68: 0 | AC68: 0 | AD68: 16.25491297 | AE68: 0.1625491297 | AG68: Ei määritetty | AH68: Ei määritetty | AJ68: punainen | AK68: punainen | AL68: punainen | AN68: punainen | AO68: punainen | AP68: punainen | AQ68: 40 | AR68: 10 | AS68: 10 | AT68: 10 | AU68: 10 | AW68: punainen | AX68: punainen | AY68: punainen | AZ68: 40 | BA68: 10 | BB68: 10 | BC68: 10 | BD68: 10 | BF68: 11_9 | BG68: 11 | BH68: 9 | BI68: 892 | BK68: 12_117 | BL68: 12 | BM68: 117 | BN68: 830 | BP68: 12_117 | BQ68: 12 | BR68: 117 | BS68: 52 | BU68: 12_117 | BV68: 12 | BW68: 117 | BX68: 44 | BZ68: 66_8 | CA68: 513 | CB68: 10 | CH68: 58_3 | CI68: 1626 | CJ68: 11.1991184 | CL68: 13771_2 | CM68: Vähä | CN68: 13771 | CO68: 2 | CP68: 2 | CQ68: Vähä 2 | CS68: 12_117 | CT68: 61.2625105795 | CU68: 22.7287749784 | CV68: https://www.google.com/maps/@61.2625105795,22.7287749784,3a,75y,90t/data=!3m3!1e1!3m1!2e0
A69: 57 | B69: 12_118 | C69: 12 | D69: 118 | E69: 6078 | F69: 6064.521609 | G69: 4211 | H69: 73 | I69: 0.73 | J69: 3074.03 | K69: -0.4587975352 | L69: 5680 | M69: 551 | N69: 5788 | O69: https://www.google.com/maps/@61.3068719176,22.8142427179,3a,75y,90t/data=!3m3!1e1!3m1!2e0 | P69: Gmaps | Q69: Sastamala | R69: 4211 | S69: 73 | T69: 1649 | U69: 1018 | V69: 46 | W69: Osa seud. yht. | X69: 32 | Y69: Osa seud. yht. | Z69: 4 | AA69: 0.04 | AC69: 0 | AD69: 27.9532741 | AE69: 0.279532741 | AG69: Ei määritetty | AH69: Ei määritetty | AJ69: punainen | AK69: punainen | AL69: punainen | AN69: punainen | AO69: punainen | AP69: punainen | AQ69: 40 | AR69: 10 | AS69: 10 | AT69: 10 | AU69: 10 | AW69: punainen | AX69: punainen | AY69: punainen | AZ69: 40 | BA69: 10 | BB69: 10 | BC69: 10 | BD69: 10 | BF69: 11_10 | BG69: 11 | BH69: 10 | BI69: 668 | BK69: 12_118 | BL69: 12 | BM69: 118 | BN69: 1018 | BP69: 12_118 | BQ69: 12 | BR69: 118 | BS69: 46 | BU69: 12_118 | BV69: 12 | BW69: 118 | BX69: 32 | BZ69: 66_9 | CA69: 414 | CB69: 5 | CH69: 58_5 | CI69: 2477 | CJ69: 99.83877469 | CL69: 3382_3 | CM69: Vähä | CN69: 3382 | CO69: 3 | CP69: 2 | CQ69: Vähä 2 | CS69: 12_118 | CT69: 61.3068719176 | CU69: 22.8142427179 | CV69: https://www.google.com/maps/@61.3068719176,22.8142427179,3a,75y,90t/data=!3m3!1e1!3m1!2e0
A70: 58 | B70: 12_119 | C70: 12 | D70: 119 | E70: 5566 | F70: 5547.492155 | G70: 4073 | H70: 90 | I70: 0.9 | J70: 3665.7 | K70: -0.3015053354 | L70: 5248 | M70: 513 | N70: 5296 | O70: https://www.google.com/maps/@61.3211413655,22.9205903857,3a,75y,90t/data=!3m3!1e1!3m1!2e0 | P70: Gmaps | Q70: Sastamala | R70: 4073 | S70: 90 | T70: 1896 | U70: 1582 | V70: 43 | W70: Osa seud. yht. | X70: 25 | Y70: Osa seud. yht. | Z70: 17 | AA70: 0.17 | AC70: 0 | AD70: 33.21954725 | AE70: 0.3321954725 | AG70: Ei määritetty | AH70: Ei määritetty | AJ70: punainen | AK70: punainen | AL70: punainen | AN70: punainen | AO70: punainen | AP70: punainen | AQ70: 40 | AR70: 10 | AS70: 10 | AT70: 10 | AU70: 10 | AW70: punainen | AX70: punainen | AY70: punainen | AZ70: 40 | BA70: 10 | BB70: 10 | BC70: 10 | BD70: 10 | BF70: 11_11 | BG70: 11 | BH70: 11 | BI70: 667 | BK70: 12_119 | BL70: 12 | BM70: 119 | BN70: 1582 | BP70: 12_119 | BQ70: 12 | BR70: 119 | BS70: 43 | BU70: 12_119 | BV70: 12 | BW70: 119 | BX70: 25 | BZ70: 66_11 | CA70: 2185 | CB70: 27 | CH70: 58_6 | CI70: 2553 | CJ70: 100.0784006 | CL70: 13773_1 | CM70: Vähä | CN70: 13773 | CO70: 1 | CP70: 2 | CQ70: Vähä 2 | CS70: 12_119 | CT70: 61.3211413655 | CU70: 22.9205903857 | CV70: https://www.google.com/maps/@61.3211413655,22.9205903857,3a,75y,90t/data=!3m3!1e1!3m1!2e0
A71: 59 | B71: 12_120 | C71: 12 | D71: 120 | E71: 6992 | F71: 6985.737615 | G71: 5107 | H71: 95 | I71: 0.95 | J71: 4851.65 | K71: -0.2326980864 | L71: 6323 | M71: 631 | N71: 6459 | O71: https://www.google.com/maps/@61.3345501377,23.0157367817,3a,75y,90t/data=!3m3!1e1!3m1!2e0 | P71: Gmaps | Q71: Sastamala | R71: 5107 | S71: 95 | T71: 2070 | U71: 1810 | V71: 60 | W71: Osa seud. yht. | X71: 57 | Y71: Osa seud. yht. | Z71: 0 | AA71: 0 | AC71: 0 | AD71: 14.45938215 | AE71: 0.1445938215 | AG71: Ei määritetty | AH71: Ei määritetty | AJ71: punainen | AK71: punainen | AL71: punainen | AN71: punainen | AO71: punainen | AP71: punainen | AQ71: 40 | AR71: 10 | AS71: 10 | AT71: 10 | AU71: 10 | AW71: punainen | AX71: punainen | AY71: punainen | AZ71: 40 | BA71: 10 | BB71: 10 | BC71: 10 | BD71: 10 | BF71: 11_13 | BG71: 11 | BH71: 13 | BI71: 572 | BK71: 12_120 | BL71: 12 | BM71: 120 | BN71: 1810 | BP71: 12_120 | BQ71: 12 | BR71: 120 | BS71: 60 | BU71: 12_120 | BV71: 12 | BW71: 120 | BX71: 57 | BZ71: 66_12 | CA71: 1095 | CB71: 23 | CH71: 58_7 | CI71: 898 | CJ71: 101.5837104 | CL71: 13988_1 | CM71: Vähä | CN71: 13988 | CO71: 1 | CP71: 2 | CQ71: Vähä 2 | CS71: 12_120 | CT71: 61.3345501377 | CU71: 23.0157367817 | CV71: https://www.google.com/maps/@61.3345501377,23.0157367817,3a,75y,90t/data=!3m3!1e1!3m1!2e0
A72: 60 | B72: 12_121 | C72: 12 | D72: 121 | E72: 5150 | F72: 5125.859402 | G72: 5111 | H72: 98 | I72: 0.98 | J72: 5008.78 | K72: -0.12754224 | L72: 5741 | M72: 551 | N72: 5848 | O72: https://www.google.com/maps/@61.3686980242,23.1248405372,3a,75y,90t/data=!3m3!1e1!3m1!2e0 | P72: Gmaps | Q72: Sastamala | R72: 5111 | S72: 98 | T72: 1711 | U72: 1704 | V72: 53 | W72: Osa seud. yht. | X72: 52 | Y72: Osa seud. yht. | Z72: 0 | AA72: 0 | AC72: 0 | AD72: 0 | AE72: 0 | AG72: Ei määritetty | AH72: Ei määritetty | AJ72: punainen | AK72: punainen | AL72: punainen | AN72: punainen | AO72: punainen | AP72: punainen | AQ72: 40 | AR72: 10 | AS72: 10 | AT72: 10 | AU72: 10 | AW72: punainen | AX72: punainen | AY72: punainen | AZ72: 40 | BA72: 10 | BB72: 10 | BC72: 10 | BD72: 10 | BF72: 11_14 | BG72: 11 | BH72: 14 | BI72: 513 | BK72: 12_121 | BL72: 12 | BM72: 121 | BN72: 1704 | BP72: 12_121 | BQ72: 12 | BR72: 121 | BS72: 53 | BU72: 12_121 | BV72: 12 | BW72: 121 | BX72: 52 | BZ72: 66_13 | CA72: 1205 | CB72: 20 | CH72: 58_8 | CI72: 1451 | CJ72: 23.49797571 | CL72: 13972_1 | CM72: Vähä | CN72: 13972 | CO72: 1 | CP72: 2 | CQ72: Vähä 2 | CS72: 12_121 | CT72: 61.3686980242 | CU72: 23.1248405372 | CV72: https://www.google.com/maps/@61.3686980242,23.1248405372,3a,75y,90t/data=!3m3!1e1!3m1!2e0
A73: 61 | B73: 12_122 | C73: 12 | D73: 122 | E73: 8061 | F73: 8043.02224 | G73: 5336 | H73: 98 | I73: 0.98 | J73: 5229.28 | K73: -0.08913429716 | L73: 5741 | M73: 551 | N73: 5848 | O73: https://www.google.com/maps/@61.3881772631,23.2105381671,3a,75y,90t/data=!3m3!1e1!3m1!2e0 | P73: Gmaps | Q73: Nokia, Sastamala | R73: 5336 | S73: 98 | T73: 1912 | U73: 1865 | V73: 53 | W73: Osa seud. yht. | X73: 52 | Y73: Osa seud. yht. | Z73: 0 | AA73: 0 | AC73: 0 | AD73: 0 | AE73: 0 | AG73: Ei määritetty | AH73: Ei määritetty | AJ73: punainen | AK73: punainen | AL73: punainen | AN73: punainen | AO73: punainen | AP73: punainen | AQ73: 40 | AR73: 10 | AS73: 10 | AT73: 10 | AU73: 10 | AW73: punainen | AX73: punainen | AY73: punainen | AZ73: 40 | BA73: 10 | BB73: 10 | BC73: 10 | BD73: 10 | BF73: 12_116 | BG73: 12 | BH73: 116 | BI73: 840 | BK73: 12_122 | BL73: 12 | BM73: 122 | BN73: 1865 | BP73: 12_122 | BQ73: 12 | BR73: 122 | BS73: 53 | BU73: 12_122 | BV73: 12 | BW73: 122 | BX73: 52 | BZ73: 66_14 | CA73: 1071 | CB73: 100 | CH73: 58_8 | CI73: 1836 | CJ73: 29.73279352 | CL73: 2470_6 | CM73: Vähä | CN73: 2470 | CO73: 6 | CP73: 2 | CQ73: Vähä 2 | CS73: 12_122 | CT73: 61.3881772631 | CU73: 23.2105381671 | CV73: https://www.google.com/maps/@61.3881772631,23.2105381671,3a,75y,90t/data=!3m3!1e1!3m1!2e0
A74: 62 | B74: 12_124 | C74: 12 | D74: 124 | E74: 10048 | F74: 10008.10089 | G74: 6170 | H74: 90 | I74: 0.9 | J74: 5553 | K74: -0.3228874527 | L74: 8201 | M74: 704 | N74: 8394 | O74: https://www.google.com/maps/@61.423962118,23.3406615649,3a,75y,90t/data=!3m3!1e1!3m1!2e0 | P74: Gmaps | Q74: Nokia | R74: 6170 | S74: 90 | T74: 4010 | U74: 2770 | V74: 54 | W74: Osa seud. yht. | X74: 52 | Y74: Osa seud. yht. | Z74: 16 | AA74: 0.16 | AC74: 0 | AD74: 22.14371019 | AE74: 0.2214371019 | AG74: Ei määritetty | AH74: Ei määritetty | AJ74: punainen | AK74: punainen | AL74: punainen | AN74: punainen | AO74: punainen | AP74: punainen | AQ74: 40 | AR74: 10 | AS74: 10 | AT74: 10 | AU74: 10 | AW74: punainen | AX74: punainen | AY74: punainen | AZ74: 40 | BA74: 10 | BB74: 10 | BC74: 10 | BD74: 10 | BF74: 12_117 | BG74: 12 | BH74: 117 | BI74: 1005 | BK74: 12_124 | BL74: 12 | BM74: 124 | BN74: 2770 | BP74: 12_124 | BQ74: 12 | BR74: 124 | BS74: 54 | BU74: 12_124 | BV74: 12 | BW74: 124 | BX74: 52 | BZ74: 68_1 | CA74: 73 | CB74: 2 | CH74: 58_9 | CI74: 919 | CJ74: 9.587897757 | CL74: 3022_5 | CM74: Vähä | CN74: 3022 | CO74: 5 | CP74: 2 | CQ74: Vähä 2 | CS74: 12_124 | CT74: 61.423962118 | CU74: 23.3406615649 | CV74: https://www.google.com/maps/@61.423962118,23.3406615649,3a,75y,90t/data=!3m3!1e1!3m1!2e0
A75: 63 | B75: 12_125 | C75: 12 | D75: 125 | E75: 5177 | F75: 5050.581244 | G75: 7682 | H75: 48 | I75: 0.48 | J75: 3687.36 | K75: -0.7590118293 | L75: 15301 | M75: 1005 | N75: 16393 | O75: https://www.google.com/maps/@61.4636178164,23.5044061816,3a,75y,90t/data=!3m3!1e1!3m1!2e0 | P75: Gmaps | Q75: Nokia | R75: 7682 | S75: 48 | T75: 7012 | U75: 3414 | V75: 66 | W75: Osa seud. yht. | X75: 86 | Y75: Osa seud. yht. | Z75: 67 | AA75: 0.67 | AC75: 0 | AD75: 48.87000193 | AE75: 0.4887000193 | AG75: Ei määritetty | AH75: Ei määritetty | AJ75: punainen | AK75: punainen | AL75: punainen | AN75: musta | AO75: punainen | AP75: punainen | AQ75: 31 | AR75: 1 | AS75: 10 | AT75: 10 | AU75: 10 | AW75: musta | AX75: punainen | AY75: punainen | AZ75: 31 | BA75: 1 | BB75: 10 | BC75: 10 | BD75: 10 | BF75: 12_118 | BG75: 12 | BH75: 118 | BI75: 1649 | BK75: 12_125 | BL75: 12 | BM75: 125 | BN75: 3414 | BP75: 12_125 | BQ75: 12 | BR75: 125 | BS75: 66 | BU75: 12_125 | BV75: 12 | BW75: 125 | BX75: 86 | BZ75: 130_22 | CA75: 194 | CB75: 7 | CH75: 58_17 | CI75: 945 | CJ75: 15.12 | CL75: 2771_1 | CM75: Vähä | CN75: 2771 | CO75: 1 | CP75: 2 | CQ75: Vähä 2 | CS75: 12_125 | CT75: 61.4636178164 | CU75: 23.5044061816 | CV75: https://www.google.com/maps/@61.4636178164,23.5044061816,3a,75y,90t/data=!3m3!1e1!3m1!2e0
A76: 64 | B76: 12_126 | C76: 12 | D76: 126 | E76: 6365 | F76: 6360.323062 | G76: 7649 | H76: 33 | I76: 0.33 | J76: 2524.17 | K76: -0.8741878084 | L76: 20063 | M76: 495 | N76: 21694 | O76: https://www.google.com/maps/@61.4874826616,23.5847896884,3a,75y,90t/data=!3m3!1e1!3m1!2e0 | P76: Gmaps | Q76: Nokia, Tampere | R76: 7649 | S76: 33 | T76: 12702 | U76: 3039 | V76: 10 | W76: Osa seud. yht. | X76: 12 | Y76: Osa seud. yht. | Z76: 91 | AA76: 0.91 | AC76: 0 | AD76: 86.01728201 | AE76: 0.8601728201 | AG76: Ei määritetty | AH76: Ei määritetty | AJ76: rajatapaus | AK76: punainen | AL76: punainen | AN76: musta | AO76: musta | AP76: punainen | AQ76: 30 | AR76: 0 | AS76: 10 | AT76: 10 | AU76: 10 | AW76: musta | AX76: musta | AY76: punainen | AZ76: 31 | BA76: 1 | BB76: 10 | BC76: 10 | BD76: 10 | BF76: 12_119 | BG76: 12 | BH76: 119 | BI76: 1896 | BK76: 12_126 | BL76: 12 | BM76: 126 | BN76: 3039 | BP76: 12_126 | BQ76: 12 | BR76: 126 | BS76: 10 | BU76: 12_126 | BV76: 12 | BW76: 126 | BX76: 12 | BZ76: 130_23 | CA76: 404 | CB76: 5 | CH76: 65_1 | CI76: 7690 | CJ76: 93.24602886 | CL76: 13311_1 | CM76: Vähä | CN76: 13311 | CO76: 1 | CP76: 2 | CQ76: Vähä 2 | CS76: 12_126 | CT76: 61.4874826616 | CU76: 23.5847896884 | CV76: https://www.google.com/maps/@61.4874826616,23.5847896884,3a,75y,90t/data=!3m3!1e1!3m1!2e0
A77: 65 | B77: =CONCATENATE(C77,"_",D77) -> 12_127 | C77: 12 | D77: 127 | E77: 6802 | F77: 6812.497682 | G77: 11677 | H77: 32 | I77: 0.32 | J77: 3736.64 | K77: -0.8990969972 | L77: 37032 | M77: 919 | N77: 40047 | O77: =IFERROR(VLOOKUP(B77,$CS$13:$CV$1804,4,FALSE),"--") -> https://www.google.com/maps/@61.5099582992,23.6890202694,3a,75y,90t/data=!3m3!1e1!3m1!2e0 | P77: =HYPERLINK(O77,"Gmaps") -> Gmaps | Q77: Tampere | R77: 11677 | S77: 32 | T77: =IFERROR(VLOOKUP(B77,$BF$13:$BI$1000,4,FALSE),"TIEOSA PUUTTUU") -> 28286 | U77: =IFERROR(VLOOKUP(B77,$BK$13:$BN$985,4,FALSE),"TIEOSA PUUTTUU") -> 5782 | V77: =IFERROR(VLOOKUP(B77,$BP$13:$BS$1804,4,FALSE),"--") -> 45 | W77: Osa seud. yht. | X77: =IFERROR(VLOOKUP(B77,$BU$13:$BX$1804,4,FALSE),"--") -> 66 | Y77: Osa seud. yht. | Z77: 100 | AA77: 1 | AC77: 0.01102616877 | AD77: 94.64863276 | AE77: =+AD77/100 -> 0.9464863276 | AG77: =IFERROR(VLOOKUP(B77,$CL$13:$CQ$835,6,FALSE),"Ei määritetty") -> Ei määritetty | AH77: Ei määritetty | AJ77: rajatapaus | AK77: punainen | AL77: punainen | AN77: musta | AO77: musta | AP77: =IF(I77="ei mallia","ei mallia",IF(AQ77>20,"punainen","musta")) -> punainen | AQ77: 30 | AR77: 0 | AS77: 10 | AT77: 10 | AU77: 10 | AW77: musta | AX77: musta | AY77: =IF(S77="ei mallia","ei mallia",IF(AZ77>20,"punainen","musta")) -> punainen | AZ77: 31 | BA77: 1 | BB77: 10 | BC77: 10 | BD77: 10 | BF77: 12_120 | BG77: 12 | BH77: 120 | BI77: 2070 | BK77: 12_127 | BL77: 12 | BM77: 127 | BN77: 5782 | BP77: 12_127 | BQ77: 12 | BR77: 127 | BS77: 45 | BU77: 12_127 | BV77: 12 | BW77: 127 | BX77: 66 | BZ77: 130_24 | CA77: 412 | CB77: 7 | CH77: 65_2 | CI77: 1762 | CJ77: 12.28388176 | CL77: 2986_5 | CM77: Vähä | CN77: 2986 | CO77: 5 | CP77: 2 | CQ77: Vähä 2 | CS77: 12_127 | CT77: 61.5099582992 | CU77: 23.6890202694 | CV77: https://www.google.com/maps/@61.5099582992,23.6890202694,3a,75y,90t/data=!3m3!1e1!3m1!2e0
A78: 66 | B78: 12_201 | C78: 12 | D78: 201 | E78: 4003 | F78: 4124.684194 | G78: 9005 | H78: 34 | I78: 0.34 | J78: 3061.7 | K78: -0.8655438935 | L78: 22771 | M78: 836 | N78: 24501 | O78: https://www.google.com/maps/@61.5022364811,23.8052671086,3a,75y,90t/data=!3m3!1e1!3m1!2e0 | P78: Gmaps | Q78: Tampere | R78: 9005 | S78: 34 | T78: 17735 | U78: 4642 | V78: 45 | W78: Osa seud. yht. | X78: 48 | Y78: Osa seud. yht. | Z78: 99 | AA78: 0.99 | AC78: =IFERROR(VLOOKUP(B78,$CD$13:$CF$49,3,FALSE),0) -> 0 | AD78: 86.61004247 | AE78: 0.8661004247 | AG78: Ei määritetty | AH78: Ei määritetty | AJ78: rajatapaus | AK78: punainen | AL78: punainen | AN78: =IF(S78="ei mallia","ei mallia",IF(S78>59,IF(R78>999,"punainen",IF(U78>99,"punainen",IF(W78="Osa seud. yht.","punainen","musta"))),"musta")) -> musta | AO78: =IF(S78="ei mallia","ei mallia",IF(S78>39,IF(R78>1999,"punainen",IF(U78>499,"punainen",IF(Y78="Osa seud. yht.","punainen","musta"))),"musta")) -> musta | AP78: punainen | AQ78: =SUM(AR78:AU78) -> 30 | AR78: =IF(S78>59,10,IF(S78>39,1,0)) -> 0 | AS78: =IF(R78>1999,10,IF(R78>999,1,0)) -> 10 | AT78: =IF(U78>499,10,IF(U78>99,1,0)) -> 10 | AU78: =IF(Y78="Osa seud. yht.",10,IF(W78="Osa seud. yht.",1,0)) -> 10 | AW78: musta | AX78: musta | AY78: punainen | AZ78: =SUM(BA78:BD78) -> 31 | BA78: =IF(S78>49,10,IF(S78<50,1,0)) -> 1 | BB78: =IF(R78>1999,10,IF(R78>999,1,0)) -> 10 | BC78: =IF(U78>499,10,IF(U78>99,1,0)) -> 10 | BD78: =IF(Y78="Osa seud. yht.",10,IF(W78="Osa seud. yht.",1,0)) -> 10 | BF78: 12_121 | BG78: 12 | BH78: 121 | BI78: 1711 | BK78: 12_201 | BL78: 12 | BM78: 201 | BN78: 4642 | BP78: =CONCATENATE(BQ78,"_",BR78) -> 12_201 | BQ78: 12 | BR78: 201 | BS78: 45 | BU78: =CONCATENATE(BV78,"_",BW78) -> 12_201 | BV78: 12 | BW78: 201 | BX78: 48 | BZ78: 130_25 | CA78: 1721 | CB78: 89 | CH78: 65_2 | CI78: 206 | CJ78: 1.436140547 | CL78: 3312_1 | CM78: Vähä | CN78: 3312 | CO78: 1 | CP78: 2 | CQ78: =CONCATENATE(CM78," ",CP78) -> Vähä 2 | CS78: 12_201 | CT78: 61.5022364811 | CU78: 23.8052671086 | CV78: https://www.google.com/maps/@61.5022364811,23.8052671086,3a,75y,90t/data=!3m3!1e1!3m1!2e0
A79: 67 | B79: 12_202 | C79: 12 | D79: 202 | E79: 6803 | F79: 6728.228568 | G79: 8115 | H79: 46 | I79: =+H79/100 -> 0.46 | J79: =+I79*G79 -> 3732.9 | K79: =+(J79-L79)/L79 -> -0.7845492324 | L79: 17326 | M79: 969 | N79: 18682 | O79: https://www.google.com/maps/@61.4999641346,23.8767395534,3a,75y,90t/data=!3m3!1e1!3m1!2e0 | P79: Gmaps | Q79: Kangasala, Tampere | R79: 8115 | S79: 46 | T79: 9001 | U79: 3661 | V79: 75 | W79: =IF(V79>0,"Osa seud. yht."," --") -> Osa seud. yht. | X79: 70 | Y79: =IF(X79>0,"Osa seud. yht."," --") -> Osa seud. yht. | Z79: 23 | AA79: 0.23 | AC79: 0 | AD79: 68.27870057 | AE79: 0.6827870057 | AG79: Ei määritetty | AH79: Ei määritetty | AJ79: punainen | AK79: punainen | AL79: punainen | AN79: musta | AO79: punainen | AP79: punainen | AQ79: 31 | AR79: 1 | AS79: 10 | AT79: 10 | AU79: 10 | AW79: =IF(S79="ei mallia","ei mallia",IF(S79>49,IF(R79>999,"punainen",IF(U79>99,"punainen",IF(W79="Osa seud. yht.","punainen","musta"))),"musta")) -> musta | AX79: =IF(S79="ei mallia","ei mallia",IF(S79>39,IF(R79>1999,"punainen",IF(U79>499,"punainen",IF(Y79="Osa seud. yht.","punainen","musta"))),"musta")) -> punainen | AY79: punainen | AZ79: 31 | BA79: 1 | BB79: 10 | BC79: 10 | BD79: 10 | BF79: 12_122 | BG79: 12 | BH79: 122 | BI79: 1912 | BK79: 12_202 | BL79: 12 | BM79: 202 | BN79: 3661 | BP79: 12_202 | BQ79: 12 | BR79: 202 | BS79: 75 | BU79: 12_202 | BV79: 12 | BW79: 202 | BX79: 70 | BZ79: 130_26 | CA79: 1092 | CB79: 61 | CH79: 65_9 | CI79: 1580 | CJ79: 23.46302346 | CL79: 3073_1 | CM79: Vähä | CN79: 3073 | CO79: 1 | CP79: 2 | CQ79: Vähä 2 | CS79: 12_202 | CT79: 61.4999641346 | CU79: 23.8767395534 | CV79: https://www.google.com/maps/@61.4999641346,23.8767395534,3a,75y,90t/data=!3m3!1e1!3m1!2e0
A80: 68 | B80: 12_203 | C80: 12 | D80: 203 | E80: 7276 | F80: 7228.299881 | G80: 8230 | H80: 67 | I80: 0.67 | J80: 5514.1 | K80: -0.6351660712 | L80: 15114 | M80: 880 | N80: 15802 | O80: https://www.google.com/maps/@61.4727808805,23.9822976199,3a,75y,90t/data=!3m3!1e1!3m1!2e0 | P80: Gmaps | Q80: Kangasala | R80: 8230 | S80: 67 | T80: 6301 | U80: 3883 | V80: 66 | W80: Osa seud. yht. | X80: 55 | Y80: Osa seud. yht. | Z80: 42 | AA80: 0.42 | AC80: 0 | AD80: 83.04013194 | AE80: 0.8304013194 | AG80: Ei määritetty | AH80: Ei määritetty | AJ80: punainen | AK80: punainen | AL80: punainen | AN80: punainen | AO80: punainen | AP80: punainen | AQ80: 40 | AR80: 10 | AS80: 10 | AT80: 10 | AU80: 10 | AW80: punainen | AX80: punainen | AY80: punainen | AZ80: 40 | BA80: 10 | BB80: 10 | BC80: 10 | BD80: 10 | BF80: 12_124 | BG80: 12 | BH80: 124 | BI80: 4010 | BK80: 12_203 | BL80: 12 | BM80: 203 | BN80: 3883 | BP80: 12_203 | BQ80: 12 | BR80: 203 | BS80: 66 | BU80: 12_203 | BV80: 12 | BW80: 203 | BX80: 55 | BZ80: 130_27 | CA80: 867 | CB80: 51 | CH80: 65_11 | CI80: 1233 | CJ80: 16.04006765 | CL80: 13127_1 | CM80: Vähä | CN80: 13127 | CO80: 1 | CP80: 2 | CQ80: Vähä 2 | CS80: 12_203 | CT80: 61.4727808805 | CU80: 23.9822976199 | CV80: https://www.google.com/maps/@61.4727808805,23.9822976199,3a,75y,90t/data=!3m3!1e1!3m1!2e0
A81: 69 | B81: 12_204 | C81: 12 | D81: 204 | E81: 4709 | F81: 4645.279131 | G81: 7481 | H81: 89 | I81: 0.89 | J81: 6658.09 | K81: -0.2907116225 | L81: 9387 | M81: 855 | N81: 9332 | O81: https://www.google.com/maps/@61.4481136128,24.1025642012,3a,75y,90t/data=!3m3!1e1!3m1!2e0 | P81: Gmaps | Q81: Kangasala | R81: 7481 | S81: 89 | T81: 1871 | U81: 1593 | V81: 52 | W81: Osa seud. yht. | X81: 22 | Y81: Osa seud. yht. | Z81: 0 | AA81: 0 | AC81: 0 | AD81: 39.09534933 | AE81: 0.3909534933 | AG81: Ei määritetty | AH81: Ei määritetty | AJ81: punainen | AK81: punainen | AL81: punainen | AN81: punainen | AO81: punainen | AP81: punainen | AQ81: 40 | AR81: 10 | AS81: 10 | AT81: 10 | AU81: 10 | AW81: punainen | AX81: punainen | AY81: punainen | AZ81: 40 | BA81: 10 | BB81: 10 | BC81: 10 | BD81: 10 | BF81: 12_125 | BG81: 12 | BH81: 125 | BI81: 7012 | BK81: 12_204 | BL81: 12 | BM81: 204 | BN81: 1593 | BP81: 12_204 | BQ81: 12 | BR81: 204 | BS81: 52 | BU81: 12_204 | BV81: 12 | BW81: 204 | BX81: 22 | BZ81: 130_28 | CA81: 2133 | CB81: 77 | CH81: 66_2 | CI81: 733 | CJ81: 7.977797127 | CL81: 3230_2 | CM81: Vähä | CN81: 3230 | CO81: 2 | CP81: 2 | CQ81: Vähä 2 | CS81: 12_204 | CT81: 61.4481136128 | CU81: 24.1025642012 | CV81: https://www.google.com/maps/@61.4481136128,24.1025642012,3a,75y,90t/data=!3m3!1e1!3m1!2e0
A82: 70 | B82: 12_205 | C82: 12 | D82: 205 | E82: 6393 | F82: 6294.066415 | G82: 6805 | H82: 93 | I82: 0.93 | J82: 6328.65 | K82: -0.1706657057 | L82: 7631 | M82: 732 | N82: 7524 | O82: https://www.google.com/maps/@61.4135723186,24.1492207633,3a,75y,90t/data=!3m3!1e1!3m1!2e0 | P82: Gmaps | Q82: Kangasala, Pälkäne | R82: 6805 | S82: 93 | T82: 1646 | U82: 1498 | V82: 52 | W82: Osa seud. yht. | X82: 22 | Y82: Osa seud. yht. | Z82: 0 | AA82: 0 | AC82: 0 | AD82: 0 | AE82: 0 | AG82: Ei määritetty | AH82: Ei määritetty | AJ82: punainen | AK82: punainen | AL82: punainen | AN82: punainen | AO82: punainen | AP82: punainen | AQ82: 40 | AR82: 10 | AS82: 10 | AT82: 10 | AU82: 10 | AW82: punainen | AX82: punainen | AY82: punainen | AZ82: 40 | BA82: 10 | BB82: 10 | BC82: 10 | BD82: 10 | BF82: 12_126 | BG82: 12 | BH82: 126 | BI82: 12702 | BK82: 12_205 | BL82: 12 | BM82: 205 | BN82: 1498 | BP82: 12_205 | BQ82: 12 | BR82: 205 | BS82: 52 | BU82: 12_205 | BV82: 12 | BW82: 205 | BX82: 22 | BZ82: 130_29 | CA82: 1913 | CB82: 86 | CH82: 66_8 | CI82: 1327 | CJ82: 26.27202534 | CL82: 13993_1 | CM82: Vähä | CN82: 13993 | CO82: 1 | CP82: 2 | CQ82: Vähä 2 | CS82: 12_205 | CT82: 61.4135723186 | CU82: 24.1492207633 | CV82: https://www.google.com/maps/@61.4135723186,24.1492207633,3a,75y,90t/data=!3m3!1e1!3m1!2e0
A83: 71 | B83: 12_206 | C83: 12 | D83: 206 | E83: 5628 | F83: 7970.720619 | G83: 6768 | H83: 91 | I83: 0.91 | J83: 6158.88 | K83: -0.1392201258 | L83: 7155 | M83: 672 | N83: 6903 | O83: https://www.google.com/maps/@61.3811613277,24.2429507593,3a,75y,90t/data=!3m3!1e1!3m1!2e0 | P83: Gmaps | Q83: Pälkäne | R83: 6768 | S83: 91 | T83: 1827 | U83: 1498 | V83: 64 | W83: Osa seud. yht. | X83: 22 | Y83: Osa seud. yht. | Z83: 21 | AA83: 0.21 | AC83: 0 | AD83: 56.6098081 | AE83: 0.566098081 | AG83: Ei määritetty | AH83: Ei määritetty | AJ83: punainen | AK83: punainen | AL83: punainen | AN83: punainen | AO83: punainen | AP83: punainen | AQ83: 40 | AR83: 10 | AS83: 10 | AT83: 10 | AU83: 10 | AW83: punainen | AX83: punainen | AY83: punainen | AZ83: 40 | BA83: 10 | BB83: 10 | BC83: 10 | BD83: 10 | BF83: 12_127 | BG83: 12 | BH83: 127 | BI83: 28286 | BK83: 12_206 | BL83: 12 | BM83: 206 | BN83: 1498 | BP83: 12_206 | BQ83: 12 | BR83: 206 | BS83: 64 | BU83: 12_206 | BV83: 12 | BW83: 206 | BX83: 22 | BZ83: 130_29 | CA83: 296 | CB83: 13 | CH83: 66_9 | CI83: 3740 | CJ83: 45.51539491 | CL83: 14349_1 | CM83: Vähä | CN83: 14349 | CO83: 1 | CP83: 2 | CQ83: Vähä 2 | CS83: 12_206 | CT83: 61.3811613277 | CU83: 24.2429507593 | CV83: https://www.google.com/maps/@61.3811613277,24.2429507593,3a,75y,90t/data=!3m3!1e1!3m1!2e0
A84: 72 | B84: 12_207 | C84: 12 | D84: 207 | E84: 4724 | F84: 2285.069469 | G84: 6618 | H84: 92 | I84: 0.92 | J84: 6088.56 | K84: -0.134533049 | L84: 7035 | M84: 649 | N84: 6595 | O84: https://www.google.com/maps/@61.3369034816,24.2796674689,3a,75y,90t/data=!3m3!1e1!3m1!2e0 | P84: Gmaps | Q84: Pälkäne | R84: 6618 | S84: 92 | T84: 1597 | U84: 1343 | V84: 38 | W84: Osa seud. yht. | X84: 22 | Y84: Osa seud. yht. | Z84: 47 | AA84: =+Z84/100 -> 0.47 | AC84: 0 | AD84: 43.58594412 | AE84: 0.4358594412 | AG84: Ei määritetty | AH84: Ei määritetty | AJ84: punainen | AK84: punainen | AL84: punainen | AN84: punainen | AO84: punainen | AP84: punainen | AQ84: 40 | AR84: 10 | AS84: 10 | AT84: 10 | AU84: 10 | AW84: punainen | AX84: punainen | AY84: punainen | AZ84: 40 | BA84: 10 | BB84: 10 | BC84: 10 | BD84: 10 | BF84: 12_201 | BG84: 12 | BH84: 201 | BI84: 17735 | BK84: 12_207 | BL84: 12 | BM84: 207 | BN84: 1343 | BP84: 12_207 | BQ84: 12 | BR84: 207 | BS84: 38 | BU84: 12_207 | BV84: 12 | BW84: 207 | BX84: 22 | BZ84: 190_3 | CA84: 1526 | CB84: 27 | CH84: 66_11 | CI84: 3287 | CJ84: 40.65553494 | CL84: 14354_1 | CM84: Vähä | CN84: 14354 | CO84: 1 | CP84: 2 | CQ84: Vähä 2 | CS84: 12_207 | CT84: 61.3369034816 | CU84: 24.2796674689 | CV84: https://www.google.com/maps/@61.3369034816,24.2796674689,3a,75y,90t/data=!3m3!1e1!3m1!2e0
A85: 73 | B85: 12_208 | C85: 12 | D85: 208 | E85: 3802 | F85: 3787.199535 | G85: 6192 | H85: 96 | I85: 0.96 | J85: 5944.32 | K85: -0.008453711426 | L85: 5995 | M85: 663 | N85: 5351 | O85: https://www.google.com/maps/@61.2989049252,24.3060354251,3a,75y,90t/data=!3m3!1e1!3m1!2e0 | P85: Gmaps | Q85: Pälkäne | R85: 6192 | S85: 96 | T85: 604 | U85: 570 | V85: 36 | W85: Osa seud. yht. | X85: 25 | Y85: Osa seud. yht. | Z85: 0 | AA85: 0 | AC85: 0 | AD85: 0 | AE85: 0 | AG85: Ei määritetty | AH85: Ei määritetty | AJ85: punainen | AK85: punainen | AL85: punainen | AN85: punainen | AO85: punainen | AP85: punainen | AQ85: 40 | AR85: 10 | AS85: 10 | AT85: 10 | AU85: 10 | AW85: punainen | AX85: punainen | AY85: punainen | AZ85: 40 | BA85: 10 | BB85: 10 | BC85: 10 | BD85: 10 | BF85: 12_202 | BG85: 12 | BH85: 202 | BI85: 9001 | BK85: 12_208 | BL85: 12 | BM85: 208 | BN85: 570 | BP85: 12_208 | BQ85: 12 | BR85: 208 | BS85: 36 | BU85: 12_208 | BV85: 12 | BW85: 208 | BX85: 25 | BZ85: 190_4 | CA85: 84 | CB85: 1 | CH85: 66_13 | CI85: 2423 | CJ85: 40.47102054 | CL85: 2790_5 | CM85: Vähä | CN85: 2790 | CO85: 5 | CP85: 2 | CQ85: Vähä 2 | CS85: 12_208 | CT85: 61.2989049252 | CU85: 24.3060354251 | CV85: https://www.google.com/maps/@61.2989049252,24.3060354251,3a,75y,90t/data=!3m3!1e1!3m1!2e0
A86: 74 | B86: 12_209 | C86: 12 | D86: 209 | E86: 3794 | F86: 3765.775048 | G86: 3071 | H86: 98 | I86: 0.98 | J86: 3009.58 | K86: -0.1621436526 | L86: 3592 | M86: 465 | N86: 3253 | O86: https://www.google.com/maps/@61.2730858937,24.3510221411,3a,75y,90t/data=!3m3!1e1!3m1!2e0 | P86: Gmaps | Q86: Pälkäne | R86: 3071 | S86: 98 | T86: 426 | U86: 412 | V86: 30 | W86: Osa seud. yht. | X86: 23 | Y86: Osa seud. yht. | Z86: 0 | AA86: 0 | AC86: 0 | AD86: 0 | AE86: 0 | AG86: Ei määritetty | AH86: Ei määritetty | AJ86: punainen | AK86: punainen | AL86: punainen | AN86: punainen | AO86: punainen | AP86: punainen | AQ86: 31 | AR86: 10 | AS86: 10 | AT86: 1 | AU86: 10 | AW86: punainen | AX86: punainen | AY86: punainen | AZ86: 31 | BA86: 10 | BB86: 10 | BC86: 1 | BD86: 10 | BF86: 12_203 | BG86: 12 | BH86: 203 | BI86: 6301 | BK86: 12_209 | BL86: 12 | BM86: 209 | BN86: 412 | BP86: 12_209 | BQ86: 12 | BR86: 209 | BS86: 30 | BU86: 12_209 | BV86: 12 | BW86: 209 | BX86: 23 | BZ86: 230_6 | CA86: 2181 | CB86: 49 | CH86: 66_14 | CI86: 1071 | CJ86: 99.90671642 | CL86: 13149_1 | CM86: Vähä | CN86: 13149 | CO86: 1 | CP86: 2 | CQ86: Vähä 2 | CS86: 12_209 | CT86: 61.2730858937 | CU86: 24.3510221411 | CV86: https://www.google.com/maps/@61.2730858937,24.3510221411,3a,75y,90t/data=!3m3!1e1!3m1!2e0
A87: 75 | B87: 23_112 | C87: 23 | D87: 112 | E87: 4721 | F87: 4601.238841 | G87: 975 | H87: 99 | I87: 0.99 | J87: 965.25 | K87: -0.4291839148 | L87: 1691 | M87: 304 | N87: 1673 | O87: https://www.google.com/maps/@61.9194664597,22.7000638238,3a,75y,90t/data=!3m3!1e1!3m1!2e0 | P87: Gmaps | Q87: Parkano | R87: 975 | S87: 99 | T87: 139 | U87: 138 | V87: 19 | W87: Osa seud. yht. | X87: 11 | Y87: Osa seud. yht. | Z87: 0 | AA87: 0 | AC87: 0 | AD87: 0 | AE87: 0 | AG87: Ei määritetty | AH87: Ei määritetty | AJ87: punainen | AK87: punainen | AL87: punainen | AN87: punainen | AO87: punainen | AP87: punainen | AQ87: 21 | AR87: 10 | AS87: 0 | AT87: 1 | AU87: 10 | AW87: punainen | AX87: punainen | AY87: punainen | AZ87: 21 | BA87: 10 | BB87: 0 | BC87: 1 | BD87: 10 | BF87: 12_204 | BG87: 12 | BH87: 204 | BI87: 1871 | BK87: 12_210 | BL87: 12 | BM87: 210 | BN87: 0 | BP87: 12_210 | BQ87: 12 | BR87: 210 | BS87: 30 | BU87: 12_210 | BV87: 12 | BW87: 210 | BX87: 23 | BZ87: 230_7 | CA87: 1685 | CB87: 13 | CH87: 68_1 | CI87: 248 | CJ87: 5.407762756 | CL87: 14195_1 | CM87: Vähä | CN87: 14195 | CO87: 1 | CP87: 2 | CQ87: Vähä 2 | CS87: 23_112 | CT87: 61.9194664597 | CU87: 22.7000638238 | CV87: https://www.google.com/maps/@61.9194664597,22.7000638238,3a,75y,90t/data=!3m3!1e1!3m1!2e0
A88: 76 | B88: 23_113 | C88: 23 | D88: 113 | E88: 9565 | F88: 9565.07541 | G88: 1008 | H88: 89 | I88: 0.89 | J88: 897.12 | K88: -0.4694736842 | L88: 1691 | M88: 304 | N88: 1673 | O88: https://www.google.com/maps/@61.9387350337,22.7795010836,3a,75y,90t/data=!3m3!1e1!3m1!2e0 | P88: Gmaps | Q88: Ikaalinen, Parkano | R88: 1008 | S88: 89 | T88: 207 | U88: 160 | V88: 19 | W88: Osa seud. yht. | X88: 11 | Y88: Osa seud. yht. | Z88: 0 | AA88: 0 | AC88: 0 | AD88: 0 | AE88: 0 | AG88: Ei määritetty | AH88: Ei määritetty | AJ88: punainen | AK88: punainen | AL88: punainen | AN88: punainen | AO88: punainen | AP88: punainen | AQ88: 22 | AR88: 10 | AS88: 1 | AT88: 1 | AU88: 10 | AW88: punainen | AX88: punainen | AY88: punainen | AZ88: 22 | BA88: 10 | BB88: 1 | BC88: 1 | BD88: 10 | BF88: 12_205 | BG88: 12 | BH88: 205 | BI88: 1646 | BK88: 23_112 | BL88: 23 | BM88: 112 | BN88: 138 | BP88: 23_112 | BQ88: 23 | BR88: 112 | BS88: 19 | BU88: 23_112 | BV88: 23 | BW88: 112 | BX88: 11 | BZ88: 230_10 | CA88: 632 | CB88: 13 | CH88: 130_20 | CI88: 211 | CJ88: 5.936972425 | CL88: 2621_1 | CM88: Vähä | CN88: 2621 | CO88: 1 | CP88: 2 | CQ88: Vähä 2 | CS88: 23_113 | CT88: 61.9387350337 | CU88: 22.7795010836 | CV88: https://www.google.com/maps/@61.9387350337,22.7795010836,3a,75y,90t/data=!3m3!1e1!3m1!2e0
A89: 77 | B89: 23_115 | C89: 23 | D89: 115 | E89: 4446 | F89: 4447.003759 | G89: 923 | H89: 79 | I89: 0.79 | J89: 729.17 | K89: -0.5687936132 | L89: 1691 | M89: 304 | N89: 1673 | O89: https://www.google.com/maps/@61.9771658443,22.9424392756,3a,75y,90t/data=!3m3!1e1!3m1!2e0 | P89: Gmaps | Q89: Parkano | R89: 923 | S89: 79 | T89: 344 | U89: 183 | V89: 19 | W89: Osa seud. yht. | X89: 11 | Y89: Osa seud. yht. | Z89: 28 | AA89: 0.28 | AC89: 0 | AD89: 26.69815565 | AE89: 0.2669815565 | AG89: Ei määritetty | AH89: Ei määritetty | AJ89: punainen | AK89: punainen | AL89: punainen | AN89: punainen | AO89: punainen | AP89: punainen | AQ89: 21 | AR89: 10 | AS89: 0 | AT89: 1 | AU89: 10 | AW89: punainen | AX89: punainen | AY89: punainen | AZ89: 21 | BA89: 10 | BB89: 0 | BC89: 1 | BD89: 10 | BF89: 12_206 | BG89: 12 | BH89: 206 | BI89: 1827 | BK89: 23_113 | BL89: 23 | BM89: 113 | BN89: 160 | BP89: 23_113 | BQ89: 23 | BR89: 113 | BS89: 19 | BU89: 23_113 | BV89: 23 | BW89: 113 | BX89: 11 | BZ89: 232_4 | CA89: 166 | CB89: 2 | CH89: 130_21 | CI89: 40 | CJ89: 0.718003949 | CL89: 14199_2 | CM89: Vähä | CN89: 14199 | CO89: 2 | CP89: 2 | CQ89: Vähä 2 | CS89: 23_115 | CT89: 61.9771658443 | CU89: 22.9424392756 | CV89: https://www.google.com/maps/@61.9771658443,22.9424392756,3a,75y,90t/data=!3m3!1e1!3m1!2e0
A90: 78 | B90: 23_201 | C90: 23 | D90: 201 | E90: 6040 | F90: 5947.508856 | G90: 1390 | H90: 88 | I90: 0.88 | J90: 1223.2 | K90: -0.3521186441 | L90: 1888 | M90: 197 | N90: 1862 | O90: https://www.google.com/maps/@62.0908517257,23.0448119679,3a,75y,90t/data=!3m3!1e1!3m1!2e0 | P90: Gmaps | Q90: Kihniö, Parkano | R90: 1390 | S90: 88 | T90: 297 | U90: 255 | V90: 45 | W90: Osa seud. yht. | X90: 25 | Y90: Osa seud. yht. | Z90: 0 | AA90: 0 | AC90: 0 | AD90: 0 | AE90: 0 | AG90: Ei määritetty | AH90: Ei määritetty | AJ90: punainen | AK90: punainen | AL90: punainen | AN90: punainen | AO90: punainen | AP90: punainen | AQ90: 22 | AR90: 10 | AS90: 1 | AT90: 1 | AU90: 10 | AW90: punainen | AX90: punainen | AY90: punainen | AZ90: 22 | BA90: 10 | BB90: 1 | BC90: 1 | BD90: 10 | BF90: 12_207 | BG90: 12 | BH90: 207 | BI90: 1597 | BK90: 23_115 | BL90: 23 | BM90: 115 | BN90: 183 | BP90: 23_115 | BQ90: 23 | BR90: 115 | BS90: 19 | BU90: 23_115 | BV90: 23 | BW90: 115 | BX90: 11 | BZ90: 249_1 | CA90: 2920 | CB90: 54 | CH90: 130_23 | CI90: 694 | CJ90: 8.895155088 | CL90: 2764_1 | CM90: Vähä | CN90: 2764 | CO90: 1 | CP90: 2 | CQ90: Vähä 2 | CS90: 23_201 | CT90: 62.0908517257 | CU90: 23.0448119679 | CV90: https://www.google.com/maps/@62.0908517257,23.0448119679,3a,75y,90t/data=!3m3!1e1!3m1!2e0
A91: 79 | B91: 23_202 | C91: 23 | D91: 202 | E91: 5949 | F91: 5882.110364 | G91: 1146 | H91: 89 | I91: 0.89 | J91: 1019.94 | K91: -0.4597775424 | L91: 1888 | M91: 197 | N91: 1862 | O91: https://www.google.com/maps/@62.1227794217,23.1095538605,3a,75y,90t/data=!3m3!1e1!3m1!2e0 | P91: Gmaps | Q91: Kihniö | R91: 1146 | S91: 89 | T91: 338 | U91: 258 | V91: 45 | W91: Osa seud. yht. | X91: 25 | Y91: Osa seud. yht. | Z91: 5 | AA91: 0.05 | AC91: 0 | AD91: 0 | AE91: 0 | AG91: Ei määritetty | AH91: Ei määritetty | AJ91: punainen | AK91: punainen | AL91: punainen | AN91: punainen | AO91: punainen | AP91: punainen | AQ91: 22 | AR91: 10 | AS91: 1 | AT91: 1 | AU91: 10 | AW91: punainen | AX91: punainen | AY91: punainen | AZ91: 22 | BA91: 10 | BB91: 1 | BC91: 1 | BD91: 10 | BF91: 12_208 | BG91: 12 | BH91: 208 | BI91: 604 | BK91: 23_201 | BL91: 23 | BM91: 201 | BN91: 255 | BP91: 23_201 | BQ91: 23 | BR91: 201 | BS91: 45 | BU91: 23_201 | BV91: 23 | BW91: 201 | BX91: 25 | BZ91: 249_2 | CA91: 2449 | CB91: 49 | CH91: 130_24 | CI91: 509 | CJ91: 8.34836805 | CL91: 3381_5 | CM91: Vähä | CN91: 3381 | CO91: 5 | CP91: 2 | CQ91: Vähä 2 | CS91: 23_202 | CT91: 62.1227794217 | CU91: 23.1095538605 | CV91: https://www.google.com/maps/@62.1227794217,23.1095538605,3a,75y,90t/data=!3m3!1e1!3m1!2e0
A92: 80 | B92: 23_203 | C92: 23 | D92: 203 | E92: 4484 | F92: 4404.827823 | G92: 1045 | H92: 82 | I92: 0.82 | J92: 856.9 | K92: -0.5080941447 | L92: 1742 | M92: 192 | N92: 1714 | O92: https://www.google.com/maps/@62.1660641662,23.1615733866,3a,75y,90t/data=!3m3!1e1!3m1!2e0 | P92: Gmaps | Q92: Kihniö | R92: 1045 | S92: 82 | T92: 377 | U92: 224 | V92: 59 | W92: Osa seud. yht. | X92: 26 | Y92: Osa seud. yht. | Z92: 0 | AA92: 0 | AC92: 0 | AD92: 18.97859054 | AE92: 0.1897859054 | AG92: Ei määritetty | AH92: Ei määritetty | AJ92: punainen | AK92: punainen | AL92: punainen | AN92: punainen | AO92: punainen | AP92: punainen | AQ92: 22 | AR92: 10 | AS92: 1 | AT92: 1 | AU92: 10 | AW92: punainen | AX92: punainen | AY92: punainen | AZ92: 22 | BA92: 10 | BB92: 1 | BC92: 1 | BD92: 10 | BF92: 12_209 | BG92: 12 | BH92: 209 | BI92: 426 | BK92: 23_202 | BL92: 23 | BM92: 202 | BN92: 258 | BP92: 23_202 | BQ92: 23 | BR92: 202 | BS92: 45 | BU92: 23_202 | BV92: 23 | BW92: 202 | BX92: 25 | BZ92: 249_3 | CA92: 1448 | CB92: 21 | CH92: 130_25 | CI92: 1338 | CJ92: 69.14728682 | CL92: 2492_4 | CM92: Vähä | CN92: 2492 | CO92: 4 | CP92: 2 | CQ92: Vähä 2 | CS92: 23_203 | CT92: 62.1660641662 | CU92: 23.1615733866 | CV92: https://www.google.com/maps/@62.1660641662,23.1615733866,3a,75y,90t/data=!3m3!1e1!3m1!2e0
A93: 81 | B93: 23_204 | C93: 23 | D93: 204 | E93: 16800 | F93: 13678.91663 | G93: 1017 | H93: 92 | I93: 0.92 | J93: 935.64 | K93: -0.1416146789 | L93: 1090 | M93: 184 | N93: 1037 | O93: https://www.google.com/maps/@62.1989885571,23.1899165963,3a,75y,90t/data=!3m3!1e1!3m1!2e0 | P93: Gmaps | Q93: Kihniö, Virrat | R93: 1017 | S93: 92 | T93: 104 | U93: 102 | V93: 32 | W93: Osa seud. yht. | X93: 28 | Y93: Osa seud. yht. | Z93: 0 | AA93: 0 | AC93: 0 | AD93: 0 | AE93: 0 | AG93: Ei määritetty | AH93: Ei määritetty | AJ93: punainen | AK93: punainen | AL93: punainen | AN93: punainen | AO93: punainen | AP93: punainen | AQ93: 22 | AR93: 10 | AS93: 1 | AT93: 1 | AU93: 10 | AW93: punainen | AX93: punainen | AY93: punainen | AZ93: 22 | BA93: 10 | BB93: 1 | BC93: 1 | BD93: 10 | BF93: 12_210 | BG93: 12 | BH93: 210 | BI93: 0 | BK93: 23_203 | BL93: 23 | BM93: 203 | BN93: 224 | BP93: 23_203 | BQ93: 23 | BR93: 203 | BS93: 59 | BU93: 23_203 | BV93: 23 | BW93: 203 | BX93: 26 | BZ93: 249_4 | CA93: 2183 | CB93: 87 | CH93: 130_26 | CI93: 1799 | CJ93: 99.94444444 | CL93: 2492_1 | CM93: Vähä | CN93: 2492 | CO93: 1 | CP93: 2 | CQ93: Vähä 2 | CS93: 23_204 | CT93: 62.1989885571 | CU93: 23.1899165963 | CV93: https://www.google.com/maps/@62.1989885571,23.1899165963,3a,75y,90t/data=!3m3!1e1!3m1!2e0
A94: 82 | B94: 23_206 | C94: 23 | D94: 206 | E94: 6899 | F94: 11265.28315 | G94: 1170 | H94: 94 | I94: 0.94 | J94: 1099.8 | K94: -0.2788196721 | L94: 1525 | M94: 250 | N94: 1413 | O94: https://www.google.com/maps/@62.2570303528,23.479026862,3a,75y,90t/data=!3m3!1e1!3m1!2e0 | P94: Gmaps | Q94: Virrat | R94: 1170 | S94: 94 | T94: 133 | U94: 127 | V94: 32 | W94: Osa seud. yht. | X94: 28 | Y94: Osa seud. yht. | Z94: 0 | AA94: 0 | AC94: 0 | AD94: 0 | AE94: 0 | AG94: Ei määritetty | AH94: Ei määritetty | AJ94: punainen | AK94: punainen | AL94: punainen | AN94: punainen | AO94: punainen | AP94: punainen | AQ94: 22 | AR94: 10 | AS94: 1 | AT94: 1 | AU94: 10 | AW94: punainen | AX94: punainen | AY94: punainen | AZ94: 22 | BA94: 10 | BB94: 1 | BC94: 1 | BD94: 10 | BF94: 23_112 | BG94: 23 | BH94: 112 | BI94: 139 | BK94: 23_204 | BL94: 23 | BM94: 204 | BN94: 102 | BP94: 23_204 | BQ94: 23 | BR94: 204 | BS94: 32 | BU94: 23_204 | BV94: 23 | BW94: 204 | BX94: 28 | BZ94: 249_5 | CA94: 1236 | CB94: 16 | CH94: 130_27 | CI94: 1696 | CJ94: 99.58896066 | CL94: 3254_1 | CM94: Vähä | CN94: 3254 | CO94: 1 | CP94: 2 | CQ94: Vähä 2 | CS94: 23_206 | CT94: 62.2570303528 | CU94: 23.479026862 | CV94: https://www.google.com/maps/@62.2570303528,23.479026862,3a,75y,90t/data=!3m3!1e1!3m1!2e0
A95: 83 | B95: 23_207 | C95: 23 | D95: 207 | E95: 5606 | F95: 1158.613878 | G95: 3762 | H95: 90 | I95: 0.9 | J95: 3385.8 | K95: 0.7309815951 | L95: 1956 | M95: 280 | N95: 1808 | O95: https://www.google.com/maps/@62.2553208256,23.6101634808,3a,75y,90t/data=!3m3!1e1!3m1!2e0 | P95: Gmaps | Q95: Virrat | R95: 3762 | S95: 90 | T95: 380 | U95: 305 | V95: 52 | W95: Osa seud. yht. | X95: 48 | Y95: Osa seud. yht. | Z95: 0 | AA95: 0 | AC95: 0 | AD95: 0 | AE95: 0 | AG95: Ei määritetty | AH95: Ei määritetty | AJ95: punainen | AK95: punainen | AL95: punainen | AN95: punainen | AO95: punainen | AP95: punainen | AQ95: 31 | AR95: 10 | AS95: 10 | AT95: 1 | AU95: 10 | AW95: punainen | AX95: punainen | AY95: punainen | AZ95: 31 | BA95: 10 | BB95: 10 | BC95: 1 | BD95: 10 | BF95: 23_113 | BG95: 23 | BH95: 113 | BI95: 207 | BK95: 23_206 | BL95: 23 | BM95: 206 | BN95: 127 | BP95: 23_206 | BQ95: 23 | BR95: 206 | BS95: 32 | BU95: 23_206 | BV95: 23 | BW95: 206 | BX95: 28 | BZ95: 249_6 | CA95: 743 | CB95: 12 | CH95: 130_28 | CI95: 2774 | CJ95: 100.216763 | CL95: 13991_1 | CM95: Vähä | CN95: 13991 | CO95: 1 | CP95: 2 | CQ95: Vähä 2 | CS95: 23_207 | CT95: 62.2553208256 | CU95: 23.6101634808 | CV95: https://www.google.com/maps/@62.2553208256,23.6101634808,3a,75y,90t/data=!3m3!1e1!3m1!2e0
A96: 84 | B96: 23_208 | C96: 23 | D96: 208 | E96: 4210 | F96: 4154.806516 | G96: 1827 | H96: 79 | I96: 0.79 | J96: 1443.33 | K96: -0.5828526012 | L96: 3460 | M96: 364 | N96: 3342 | O96: https://www.google.com/maps/@62.263185887,23.7113614954,3a,75y,90t/data=!3m3!1e1!3m1!2e0 | P96: Gmaps | Q96: Virrat | R96: 1827 | S96: 79 | T96: 691 | U96: 450 | V96: 52 | W96: Osa seud. yht. | X96: 43 | Y96: Osa seud. yht. | Z96: 38 | AA96: 0.38 | AC96: 0 | AD96: 34.39429929 | AE96: 0.3439429929 | AG96: Ei määritetty | AH96: Ei määritetty | AJ96: punainen | AK96: punainen | AL96: punainen | AN96: punainen | AO96: punainen | AP96: punainen | AQ96: 22 | AR96: 10 | AS96: 1 | AT96: 1 | AU96: 10 | AW96: punainen | AX96: punainen | AY96: punainen | AZ96: 22 | BA96: 10 | BB96: 1 | BC96: 1 | BD96: 10 | BF96: 23_115 | BG96: 23 | BH96: 115 | BI96: 344 | BK96: 23_207 | BL96: 23 | BM96: 207 | BN96: 305 | BP96: 23_207 | BQ96: 23 | BR96: 207 | BS96: 52 | BU96: 23_207 | BV96: 23 | BW96: 207 | BX96: 48 | BZ96: 249_8 | CA96: 615 | CB96: 10 | CH96: 130_29 | CI96: 2210 | CJ96: 99.90958409 | CL96: 694_4 | CM96: Vähä | CN96: 694 | CO96: 4 | CP96: 2 | CQ96: Vähä 2 | CS96: 23_208 | CT96: 62.263185887 | CU96: 23.7113614954 | CV96: https://www.google.com/maps/@62.263185887,23.7113614954,3a,75y,90t/data=!3m3!1e1!3m1!2e0
A97: 85 | B97: 23_209 | C97: 23 | D97: 209 | E97: 8143 | F97: 8064.194464 | G97: 1043 | H97: 81 | I97: 0.81 | J97: 844.83 | K97: -0.4423564356 | L97: 1515 | M97: 186 | N97: 1422 | O97: https://www.google.com/maps/@62.2506633431,23.7833951232,3a,75y,90t/data=!3m3!1e1!3m1!2e0 | P97: Gmaps | Q97: Virrat | R97: 1043 | S97: 81 | T97: 236 | U97: 153 | V97: 16 | W97: Osa seud. yht. | X97: 10 | Y97: Osa seud. yht. | Z97: 1 | AA97: 0.01 | AC97: 0 | AD97: 16.27164436 | AE97: 0.1627164436 | AG97: Ei määritetty | AH97: Ei määritetty | AJ97: punainen | AK97: punainen | AL97: punainen | AN97: punainen | AO97: punainen | AP97: punainen | AQ97: 22 | AR97: 10 | AS97: 1 | AT97: 1 | AU97: 10 | AW97: punainen | AX97: punainen | AY97: punainen | AZ97: 22 | BA97: 10 | BB97: 1 | BC97: 1 | BD97: 10 | BF97: 23_201 | BG97: 23 | BH97: 201 | BI97: 297 | BK97: 23_208 | BL97: 23 | BM97: 208 | BN97: 450 | BP97: 23_208 | BQ97: 23 | BR97: 208 | BS97: 52 | BU97: 23_208 | BV97: 23 | BW97: 208 | BX97: 43 | BZ97: 249_11 | CA97: 20 | CB97: 0 | CH97: 190_1 | CI97: 1914 | CJ97: 40.05860193 | CL97: 12819_3 | CM97: Vähä | CN97: 12819 | CO97: 3 | CP97: 2 | CQ97: Vähä 2 | CS97: 23_209 | CT97: 62.2506633431 | CU97: 23.7833951232 | CV97: https://www.google.com/maps/@62.2506633431,23.7833951232,3a,75y,90t/data=!3m3!1e1!3m1!2e0
A98: 86 | B98: 23_210 | C98: 23 | D98: 210 | E98: 6503 | F98: 6371.350699 | G98: 1194 | H98: 88 | I98: 0.88 | J98: 1050.72 | K98: -0.3181570409 | L98: 1541 | M98: 178 | N98: 1434 | O98: https://www.google.com/maps/@62.2402794639,23.9317710783,3a,75y,90t/data=!3m3!1e1!3m1!2e0 | P98: Gmaps | Q98: Virrat | R98: 1194 | S98: 88 | T98: 174 | U98: 140 | V98: 16 | W98: Osa seud. yht. | X98: 10 | Y98: Osa seud. yht. | Z98: 0 | AA98: 0 | AC98: 0 | AD98: 0 | AE98: 0 | AG98: Ei määritetty | AH98: Ei määritetty | AJ98: punainen | AK98: punainen | AL98: punainen | AN98: punainen | AO98: punainen | AP98: punainen | AQ98: 22 | AR98: 10 | AS98: 1 | AT98: 1 | AU98: 10 | AW98: punainen | AX98: punainen | AY98: punainen | AZ98: 22 | BA98: 10 | BB98: 1 | BC98: 1 | BD98: 10 | BF98: 23_202 | BG98: 23 | BH98: 202 | BI98: 338 | BK98: 23_209 | BL98: 23 | BM98: 209 | BN98: 153 | BP98: 23_209 | BQ98: 23 | BR98: 209 | BS98: 16 | BU98: 23_209 | BV98: 23 | BW98: 209 | BX98: 10 | BZ98: 252_2 | CA98: 1936 | CB98: 31 | CH98: 190_2 | CI98: 953 | CJ98: 19.49672668 | CL98: 12829_5 | CM98: Vähä | CN98: 12829 | CO98: 5 | CP98: 2 | CQ98: Vähä 2 | CS98: 23_210 | CT98: 62.2402794639 | CU98: 23.9317710783 | CV98: https://www.google.com/maps/@62.2402794639,23.9317710783,3a,75y,90t/data=!3m3!1e1!3m1!2e0
A99: 87 | B99: 23_211 | C99: 23 | D99: 211 | E99: 4232 | F99: 5006.585131 | G99: 1123 | H99: 95 | I99: 0.95 | J99: 1066.85 | K99: 0.1775386313 | L99: 906 | M99: 156 | N99: 842 | O99: https://www.google.com/maps/@62.2619423308,24.0423203565,3a,75y,90t/data=!3m3!1e1!3m1!2e0 | P99: Gmaps | Q99: Virrat | R99: 1123 | S99: 95 | T99: 62 | U99: 61 | V99: 14 | W99: Osa seud. yht. | X99: 8 | Y99: Osa seud. yht. | Z99: 0 | AA99: 0 | AC99: 0 | AD99: 0 | AE99: 0 | AG99: Ei määritetty | AH99: Ei määritetty | AJ99: punainen | AK99: punainen | AL99: punainen | AN99: punainen | AO99: punainen | AP99: punainen | AQ99: 21 | AR99: 10 | AS99: 1 | AT99: 0 | AU99: 10 | AW99: punainen | AX99: punainen | AY99: punainen | AZ99: 21 | BA99: 10 | BB99: 1 | BC99: 0 | BD99: 10 | BF99: 23_203 | BG99: 23 | BH99: 203 | BI99: 377 | BK99: 23_210 | BL99: 23 | BM99: 210 | BN99: 140 | BP99: 23_210 | BQ99: 23 | BR99: 210 | BS99: 16 | BU99: 23_210 | BV99: 23 | BW99: 210 | BX99: 10 | BZ99: 252_6 | CA99: 991 | CB99: 19 | CH99: 190_3 | CI99: 3016 | CJ99: 52.94014394 | CL99: 12973_1 | CM99: Vähä | CN99: 12973 | CO99: 1 | CP99: 2 | CQ99: Vähä 2 | CS99: 23_211 | CT99: 62.2619423308 | CU99: 24.0423203565 | CV99: https://www.google.com/maps/@62.2619423308,24.0423203565,3a,75y,90t/data=!3m3!1e1!3m1!2e0
A100: 88 | B100: 44_1 | C100: 44 | D100: 1 | E100: 2075 | F100: 2436.299263 | G100: 338 | H100: 28 | I100: 0.28 | J100: 94.64 | K100: -0.961915493 | L100: 2485 | M100: 343 | N100: 2594 | O100: https://www.google.com/maps/@61.3068719176,22.8142427179,3a,75y,90t/data=!3m3!1e1!3m1!2e0 | P100: Gmaps | Q100: Sastamala | R100: 338 | S100: 28 | T100: 604 | U100: 271 | V100: 14 | W100: Osa seud. yht. | X100: 12 | Y100: Osa seud. yht. | Z100: 3 | AA100: 0.03 | AC100: 0 | AD100: 27.08433735 | AE100: 0.2708433735 | AG100: Keskivilkas 1 | AH100: Keskivilkas 1 | AJ100: rajatapaus | AK100: punainen | AL100: punainen | AN100: musta | AO100: musta | AP100: musta | AQ100: 11 | AR100: 0 | AS100: 0 | AT100: 1 | AU100: 10 | AW100: musta | AX100: musta | AY100: musta | AZ100: 12 | BA100: 1 | BB100: 0 | BC100: 1 | BD100: 10 | BF100: 23_204 | BG100: 23 | BH100: 204 | BI100: 104 | BK100: 23_211 | BL100: 23 | BM100: 211 | BN100: 61 | BP100: 23_211 | BQ100: 23 | BR100: 211 | BS100: 14 | BU100: 23_211 | BV100: 23 | BW100: 211 | BX100: 8 | BZ100: 259_1 | CA100: 2981 | CB100: 47 | CH100: 190_4 | CI100: 2951 | CJ100: 48.1245923 | CL100: 14199_1 | CM100: Vähä | CN100: 14199 | CO100: 1 | CP100: 2 | CQ100: Vähä 2 | CS100: 44_1 | CT100: 61.3068719176 | CU100: 22.8142427179 | CV100: https://www.google.com/maps/@61.3068719176,22.8142427179,3a,75y,90t/data=!3m3!1e1!3m1!2e0
A101: 89 | B101: 44_2 | C101: 44 | D101: 2 | E101: 242 | G101: 300 | H101: 31 | I101: 0.31 | J101: 93 | K101: -0.9607594937 | L101: 2370 | M101: 194 | N101: 2502 | O101: https://www.google.com/maps/@61.3178166989,22.7826711461,3a,75y,90t/data=!3m3!1e1!3m1!2e0 | P101: Gmaps | Q101: Sastamala | R101: 300 | S101: 31 | T101: 377 | U101: 54 | V101: 9 | W101: Osa seud. yht. | X101: 2 | Y101: Osa seud. yht. | Z101: 100 | AA101: 1 | AC101: 0 | AD101: 100 | AE101: 1 | AG101: Keskivilkas 1 | AH101: Keskivilkas 1 | AJ101: rajatapaus | AK101: punainen | AL101: punainen | AN101: musta | AO101: musta | AP101: musta | AQ101: 10 | AR101: 0 | AS101: 0 | AT101: 0 | AU101: 10 | AW101: musta | AX101: musta | AY101: musta | AZ101: 11 | BA101: 1 | BB101: 0 | BC101: 0 | BD101: 10 | BF101: 23_205 | BG101: 23 | BH101: 205 | BI101: 102 | BK101: 44_1 | BL101: 44 | BM101: 1 | BN101: 271 | BP101: 44_1 | BQ101: 44 | BR101: 1 | BS101: 14 | BU101: 44_1 | BV101: 44 | BW101: 1 | BX101: 12 | BZ101: 259_3 | CA101: 1976 | CB101: 41 | CH101: 230_6 | CI101: 2173 | CJ101: 48.42879429 | CL101: 3422_1 | CM101: Vähä | CN101: 3422 | CO101: 1 | CP101: 2 | CQ101: Vähä 2 | CS101: 44_2 | CT101: 61.3178166989 | CU101: 22.7826711461 | CV101: https://www.google.com/maps/@61.3178166989,22.7826711461,3a,75y,90t/data=!3m3!1e1!3m1!2e0
A102: 90 | B102: 44_3 | C102: 44 | D102: 3 | E102: 4197 | F102: 4016.250592 | G102: 208 | H102: 45 | I102: 0.45 | J102: 93.6 | K102: -0.9605229861 | L102: 2371 | M102: 194 | N102: 2502 | O102: https://www.google.com/maps/@61.3186281209,22.777889449,3a,75y,90t/data=!3m3!1e1!3m1!2e0 | P102: Gmaps | Q102: Sastamala | R102: 208 | S102: 45 | T102: 397 | U102: 177 | V102: 9 | W102: Osa seud. yht. | X102: 2 | Y102: Osa seud. yht. | Z102: 34 | AA102: 0.34 | AC102: 0 | AD102: 33.73838456 | AE102: 0.3373838456 | AG102: Keskivilkas 1 | AH102: Keskivilkas 1 | AJ102: rajatapaus | AK102: punainen | AL102: punainen | AN102: musta | AO102: punainen | AP102: musta | AQ102: 12 | AR102: 1 | AS102: 0 | AT102: 1 | AU102: 10 | AW102: musta | AX102: punainen | AY102: musta | AZ102: 12 | BA102: 1 | BB102: 0 | BC102: 1 | BD102: 10 | BF102: 23_206 | BG102: 23 | BH102: 206 | BI102: 133 | BK102: 44_2 | BL102: 44 | BM102: 2 | BN102: 54 | BP102: 44_2 | BQ102: 44 | BR102: 2 | BS102: 9 | BU102: 44_2 | BV102: 44 | BW102: 2 | BX102: 2 | BZ102: 274_1 | CA102: 796 | CB102: 12 | CH102: 230_7 | CI102: 1796 | CJ102: 14.0873794 | CL102: 14356_1 | CM102: Vähä | CN102: 14356 | CO102: 1 | CP102: 2 | CQ102: Vähä 2 | CS102: 44_3 | CT102: 61.3186281209 | CU102: 22.777889449 | CV102: https://www.google.com/maps/@61.3186281209,22.777889449,3a,75y,90t/data=!3m3!1e1!3m1!2e0
A103: 91 | B103: 44_4 | C103: 44 | D103: 4 | E103: 13443 | F103: 13328.87452 | G103: 281 | H103: 82 | I103: 0.82 | J103: 230.42 | K103: -0.8743620502 | L103: 1834 | M103: 203 | N103: 1822 | O103: https://www.google.com/maps/@61.3521865902,22.7547491561,3a,75y,90t/data=!3m3!1e1!3m1!2e0 | P103: Gmaps | Q103: Sastamala | R103: 281 | S103: 82 | T103: 248 | U103: 196 | V103: 12 | W103: Osa seud. yht. | X103: 5 | Y103: Osa seud. yht. | Z103: 0 | AA103: 0 | AC103: 0 | AD103: 0 | AE103: 0 | AG103: Keskivilkas 1 | AH103: Keskivilkas 1 | AJ103: punainen | AK103: punainen | AL103: punainen | AN103: punainen | AO103: punainen | AP103: punainen | AQ103: 21 | AR103: 10 | AS103: 0 | AT103: 1 | AU103: 10 | AW103: punainen | AX103: punainen | AY103: punainen | AZ103: 21 | BA103: 10 | BB103: 0 | BC103: 1 | BD103: 10 | BF103: 23_207 | BG103: 23 | BH103: 207 | BI103: 380 | BK103: 44_3 | BL103: 44 | BM103: 3 | BN103: 177 | BP103: 44_3 | BQ103: 44 | BR103: 3 | BS103: 9 | BU103: 44_3 | BV103: 44 | BW103: 3 | BX103: 2 | BZ103: 276_1 | CA103: 931 | CB103: 22 | CH103: 230_10 | CI103: 543 | CJ103: 11.32665832 | CL103: 2505_3 | CM103: Vähä | CN103: 2505 | CO103: 3 | CP103: 2 | CQ103: Vähä 2 | CS103: 44_4 | CT103: 61.3521865902 | CU103: 22.7547491561 | CV103: https://www.google.com/maps/@61.3521865902,22.7547491561,3a,75y,90t/data=!3m3!1e1!3m1!2e0
A104: 92 | B104: 44_6 | C104: 44 | D104: 6 | E104: 4865 | F104: 4814.708475 | G104: 747 | H104: 80 | I104: 0.8 | J104: 597.6 | K104: -0.6790547798 | L104: 1862 | M104: 235 | N104: 1807 | O104: https://www.google.com/maps/@61.4348996401,22.5848509458,3a,75y,90t/data=!3m3!1e1!3m1!2e0 | P104: Gmaps | Q104: Sastamala | R104: 747 | S104: 80 | T104: 281 | U104: 200 | V104: 12 | W104: Osa seud. yht. | X104: 5 | Y104: Osa seud. yht. | Z104: 0 | AA104: 0 | AC104: 0 | AD104: 18.78725591 | AE104: 0.1878725591 | AG104: Keskivilkas 1 | AH104: Keskivilkas 1 | AJ104: punainen | AK104: punainen | AL104: punainen | AN104: punainen | AO104: punainen | AP104: punainen | AQ104: 21 | AR104: 10 | AS104: 0 | AT104: 1 | AU104: 10 | AW104: punainen | AX104: punainen | AY104: punainen | AZ104: 21 | BA104: 10 | BB104: 0 | BC104: 1 | BD104: 10 | BF104: 23_208 | BG104: 23 | BH104: 208 | BI104: 691 | BK104: 44_4 | BL104: 44 | BM104: 4 | BN104: 196 | BP104: 44_4 | BQ104: 44 | BR104: 4 | BS104: 12 | BU104: 44_4 | BV104: 44 | BW104: 4 | BX104: 5 | BZ104: 276_1 | CA104: 252 | CB104: 6 | CH104: 232_4 | CI104: 882 | CJ104: 13.24324324 | CL104: 3022_4 | CM104: Vähä | CN104: 3022 | CO104: 4 | CP104: 2 | CQ104: Vähä 2 | CS104: 44_6 | CT104: 61.4348996401 | CU104: 22.5848509458 | CV104: https://www.google.com/maps/@61.4348996401,22.5848509458,3a,75y,90t/data=!3m3!1e1!3m1!2e0
A105: 93 | B105: 44_7 | C105: 44 | D105: 7 | E105: 5630 | F105: 5560.571177 | G105: 741 | H105: 82 | I105: 0.82 | J105: 607.62 | K105: -0.6062086844 | L105: 1543 | M105: 228 | N105: 1505 | O105: https://www.google.com/maps/@61.4751957868,22.5576486327,3a,75y,90t/data=!3m3!1e1!3m1!2e0 | P105: Gmaps | Q105: Sastamala | R105: 741 | S105: 82 | T105: 109 | U105: 93 | V105: 10 | W105: Osa seud. yht. | X105: 4 | Y105: Osa seud. yht. | Z105: 0 | AA105: 0 | AC105: 0 | AD105: 0 | AE105: 0 | AG105: Keskivilkas 1 | AH105: Keskivilkas 1 | AJ105: punainen | AK105: punainen | AL105: punainen | AN105: punainen | AO105: punainen | AP105: musta | AQ105: 20 | AR105: 10 | AS105: 0 | AT105: 0 | AU105: 10 | AW105: punainen | AX105: punainen | AY105: musta | AZ105: 20 | BA105: 10 | BB105: 0 | BC105: 0 | BD105: 10 | BF105: 23_209 | BG105: 23 | BH105: 209 | BI105: 236 | BK105: 44_6 | BL105: 44 | BM105: 6 | BN105: 200 | BP105: 44_6 | BQ105: 44 | BR105: 6 | BS105: 12 | BU105: 44_6 | BV105: 44 | BW105: 6 | BX105: 5 | BZ105: 276_2 | CA105: 1005 | CB105: 19 | CH105: 249_1 | CI105: 4919 | CJ105: 90.17415215 | CL105: 13783_1 | CM105: Vähä | CN105: 13783 | CO105: 1 | CP105: 2 | CQ105: Vähä 2 | CS105: 44_7 | CT105: 61.4751957868 | CU105: 22.5576486327 | CV105: https://www.google.com/maps/@61.4751957868,22.5576486327,3a,75y,90t/data=!3m3!1e1!3m1!2e0
A106: 94 | B106: 44_8 | C106: 44 | D106: 8 | E106: 2035 | F106: 2076.729918 | G106: 760 | H106: 83 | I106: 0.83 | J106: 630.8 | K106: -0.5911860013 | L106: 1543 | M106: 228 | N106: 1505 | O106: https://www.google.com/maps/@61.522369931,22.5738066671,3a,75y,90t/data=!3m3!1e1!3m1!2e0 | P106: Gmaps | Q106: Sastamala | R106: 760 | S106: 83 | T106: 81 | U106: 74 | V106: 10 | W106: Osa seud. yht. | X106: 4 | Y106: Osa seud. yht. | Z106: 0 | AA106: 0 | AC106: 0 | AD106: 0 | AE106: 0 | AG106: Keskivilkas 1 | AH106: Keskivilkas 1 | AJ106: punainen | AK106: punainen | AL106: punainen | AN106: punainen | AO106: punainen | AP106: musta | AQ106: 20 | AR106: 10 | AS106: 0 | AT106: 0 | AU106: 10 | AW106: punainen | AX106: punainen | AY106: musta | AZ106: 20 | BA106: 10 | BB106: 0 | BC106: 0 | BD106: 10 | BF106: 23_210 | BG106: 23 | BH106: 210 | BI106: 174 | BK106: 44_7 | BL106: 44 | BM106: 7 | BN106: 93 | BP106: 44_7 | BQ106: 44 | BR106: 7 | BS106: 10 | BU106: 44_7 | BV106: 44 | BW106: 7 | BX106: 4 | BZ106: 276_3 | CA106: 857 | CB106: 11 | CH106: 249_2 | CI106: 1453 | CJ106: 29.20016077 | CL106: 13721_1 | CM106: Vähä | CN106: 13721 | CO106: 1 | CP106: 2 | CQ106: Vähä 2 | CS106: 44_8 | CT106: 61.522369931 | CU106: 22.5738066671 | CV106: https://www.google.com/maps/@61.522369931,22.5738066671,3a,75y,90t/data=!3m3!1e1!3m1!2e0
A107: 95 | B107: 56_8 | C107: 56 | D107: 8 | E107: 1383 | G107: 2200 | H107: 73 | I107: 0.73 | J107: 1606 | K107: -0.2505832944 | L107: 2143 | M107: 206 | N107: 2326 | O107: https://www.google.com/maps/@62.0116083774,24.7054883665,3a,75y,90t/data=!3m3!1e1!3m1!2e0 | P107: Gmaps | Q107: Mänttä-Vilppula | R107: 2200 | S107: 73 | T107: 501 | U107: 306 | V107: 6 | W107: Osa seud. yht. | X107: 5 | Y107: Osa seud. yht. | Z107: 44 | AA107: 0.44 | AC107: 0.1272595806 | AD107: 96.81851048 | AE107: 0.9681851048 | AG107: Keskivilkas 1 | AH107: Keskivilkas 1 | AJ107: punainen | AK107: punainen | AL107: punainen | AN107: punainen | AO107: punainen | AP107: punainen | AQ107: 31 | AR107: 10 | AS107: 10 | AT107: 1 | AU107: 10 | AW107: punainen | AX107: punainen | AY107: punainen | AZ107: 31 | BA107: 10 | BB107: 10 | BC107: 1 | BD107: 10 | BF107: 23_211 | BG107: 23 | BH107: 211 | BI107: 62 | BK107: 44_8 | BL107: 44 | BM107: 8 | BN107: 74 | BP107: 44_8 | BQ107: 44 | BR107: 8 | BS107: 10 | BU107: 44_8 | BV107: 44 | BW107: 8 | BX107: 4 | BZ107: 284_6 | CA107: 706 | CB107: 9 | CH107: 249_2 | CI107: 1289 | CJ107: 25.90434084 | CL107: 14223_1 | CM107: Vähä | CN107: 14223 | CO107: 1 | CP107: 2 | CQ107: Vähä 2 | CS107: 56_8 | CT107: 62.0116083774 | CU107: 24.7054883665 | CV107: https://www.google.com/maps/@62.0116083774,24.7054883665,3a,75y,90t/data=!3m3!1e1!3m1!2e0
A108: 96 | B108: 57_6 | C108: 57 | D108: 6 | E108: 3542 | F108: 1167.811896 | G108: 3214 | H108: 96 | I108: 0.96 | J108: 3085.44 | K108: 0.3380052038 | L108: 2306 | M108: 238 | N108: 2148 | O108: https://www.google.com/maps/@61.2425162277,24.359364212,3a,75y,90t/data=!3m3!1e1!3m1!2e0 | P108: Gmaps | Q108: Pälkäne | R108: 3214 | S108: 96 | T108: 174 | U108: 155 | V108: 6 | W108: Osa seud. yht. | X108: 2 | Y108: Osa seud. yht. | Z108: 0 | AA108: 0 | AC108: 0 | AD108: 0 | AE108: 0 | AG108: Keskivilkas 1 | AH108: Keskivilkas 1 | AJ108: punainen | AK108: punainen | AL108: punainen | AN108: punainen | AO108: punainen | AP108: punainen | AQ108: 31 | AR108: 10 | AS108: 10 | AT108: 1 | AU108: 10 | AW108: punainen | AX108: punainen | AY108: punainen | AZ108: 31 | BA108: 10 | BB108: 10 | BC108: 1 | BD108: 10 | BF108: 44_1 | BG108: 44 | BH108: 1 | BI108: 604 | BK108: 56_8 | BL108: 56 | BM108: 8 | BN108: 306 | BP108: 56_8 | BQ108: 56 | BR108: 8 | BS108: 6 | BU108: 56_8 | BV108: 56 | BW108: 8 | BX108: 5 | BZ108: 284_7 | CA108: 5023 | CB108: 91 | CH108: 249_3 | CI108: 776 | CJ108: 11.50652432 | CL108: 14253_1 | CM108: Vähä | CN108: 14253 | CO108: 1 | CP108: 2 | CQ108: Vähä 2 | CS108: 57_6 | CT108: 61.2425162277 | CU108: 24.359364212 | CV108: https://www.google.com/maps/@61.2425162277,24.359364212,3a,75y,90t/data=!3m3!1e1!3m1!2e0
A109: 97 | B109: 58_1 | C109: 58 | D109: 1 | E109: 5783 | F109: 10679.28895 | G109: 1543 | H109: 85 | I109: 0.85 | J109: 1311.55 | K109: -0.5924331883 | L109: 3218 | M109: 221 | N109: 3180 | O109: https://www.google.com/maps/@61.4477690682,24.1016800455,3a,75y,90t/data=!3m3!1e1!3m1!2e0 | P109: Gmaps | Q109: Kangasala | R109: 1543 | S109: 85 | T109: 2061 | U109: 1546 | V109: 2 | W109: Osa seud. yht. | X109: 1 | Y109: Osa seud. yht. | Z109: 15 | AA109: 0.15 | AC109: 0 | AD109: 34.01348781 | AE109: 0.3401348781 | AG109: Keskivilkas 1 | AH109: Keskivilkas 1 | AJ109: punainen | AK109: punainen | AL109: punainen | AN109: punainen | AO109: punainen | AP109: punainen | AQ109: 31 | AR109: 10 | AS109: 1 | AT109: 10 | AU109: 10 | AW109: punainen | AX109: punainen | AY109: punainen | AZ109: 31 | BA109: 10 | BB109: 1 | BC109: 10 | BD109: 10 | BF109: 44_2 | BG109: 44 | BH109: 2 | BI109: 377 | BK109: 57_6 | BL109: 57 | BM109: 6 | BN109: 155 | BP109: 57_6 | BQ109: 57 | BR109: 6 | BS109: 6 | BU109: 57_6 | BV109: 57 | BW109: 6 | BX109: 2 | BZ109: 301_9 | CA109: 393 | CB109: 6 | CH109: 249_3 | CI109: 1756 | CJ109: 26.03795967 | CL109: 3481_2 | CM109: Vähä | CN109: 3481 | CO109: 2 | CP109: 2 | CQ109: Vähä 2 | CS109: 58_1 | CT109: 61.4477690682 | CU109: 24.1016800455 | CV109: https://www.google.com/maps/@61.4477690682,24.1016800455,3a,75y,90t/data=!3m3!1e1!3m1!2e0
A110: 98 | B110: 58_2 | C110: 58 | D110: 2 | E110: 8240 | F110: 6595.176989 | G110: 1440 | H110: 94 | I110: 0.94 | J110: 1353.6 | K110: -0.2242979943 | L110: 1745 | M110: 166 | N110: 1646 | O110: https://www.google.com/maps/@61.4897084818,24.1584648658,3a,75y,90t/data=!3m3!1e1!3m1!2e0 | P110: Gmaps | Q110: Kangasala | R110: 1440 | S110: 94 | T110: 289 | U110: 248 | V110: 2 | W110: Osa seud. yht. | X110: 1 | Y110: Osa seud. yht. | Z110: 0 | AA110: 0 | AC110: 0 | AD110: 0 | AE110: 0 | AG110: Keskivilkas 1 | AH110: Keskivilkas 1 | AJ110: punainen | AK110: punainen | AL110: punainen | AN110: punainen | AO110: punainen | AP110: punainen | AQ110: 22 | AR110: 10 | AS110: 1 | AT110: 1 | AU110: 10 | AW110: punainen | AX110: punainen | AY110: punainen | AZ110: 22 | BA110: 10 | BB110: 1 | BC110: 1 | BD110: 10 | BF110: 44_3 | BG110: 44 | BH110: 3 | BI110: 397 | BK110: 58_1 | BL110: 58 | BM110: 1 | BN110: 1546 | BP110: 58_1 | BQ110: 58 | BR110: 1 | BS110: 2 | BU110: 58_1 | BV110: 58 | BW110: 1 | BX110: 1 | BZ110: 303_2 | CA110: 778 | CB110: 13 | CH110: 249_4 | CI110: 2518 | CJ110: 100.1192843 | CL110: 13151_1 | CM110: Vähä | CN110: 13151 | CO110: 1 | CP110: 2 | CQ110: Vähä 2 | CS110: 58_2 | CT110: 61.4897084818 | CU110: 24.1584648658 | CV110: https://www.google.com/maps/@61.4897084818,24.1584648658,3a,75y,90t/data=!3m3!1e1!3m1!2e0
A111: 99 | B111: 58_3 | C111: 58 | D111: 3 | E111: 14519 | F111: 6392.320596 | G111: 1474 | H111: 92 | I111: 0.92 | J111: 1356.08 | K111: -0.06990397805 | L111: 1458 | M111: 139 | N111: 1372 | O111: https://www.google.com/maps/@61.5363597631,24.270888627,3a,75y,90t/data=!3m3!1e1!3m1!2e0 | P111: Gmaps | Q111: Kangasala, Orivesi | R111: 1474 | S111: 92 | T111: 277 | U111: 212 | V111: 2 | W111: Osa seud. yht. | X111: 1 | Y111: Osa seud. yht. | Z111: 0 | AA111: 0 | AC111: 0 | AD111: 11.1991184 | AE111: 0.111991184 | AG111: Keskivilkas 1 | AH111: Keskivilkas 1 | AJ111: punainen | AK111: punainen | AL111: punainen | AN111: punainen | AO111: punainen | AP111: punainen | AQ111: 22 | AR111: 10 | AS111: 1 | AT111: 1 | AU111: 10 | AW111: punainen | AX111: punainen | AY111: punainen | AZ111: 22 | BA111: 10 | BB111: 1 | BC111: 1 | BD111: 10 | BF111: 44_4 | BG111: 44 | BH111: 4 | BI111: 248 | BK111: 58_2 | BL111: 58 | BM111: 2 | BN111: 248 | BP111: 58_2 | BQ111: 58 | BR111: 2 | BS111: 2 | BU111: 58_2 | BV111: 58 | BW111: 2 | BX111: 1 | BZ111: 303_3 | CA111: 656 | CB111: 29 | CH111: 249_5 | CI111: 1375 | CJ111: 17.62820513 | CL111: 14269_1 | CM111: Vähä | CN111: 14269 | CO111: 1 | CP111: 2 | CQ111: Vähä 2 | CS111: 58_3 | CT111: 61.5363597631 | CU111: 24.270888627 | CV111: https://www.google.com/maps/@61.5363597631,24.270888627,3a,75y,90t/data=!3m3!1e1!3m1!2e0
A112: 100 | B112: 58_5 | C112: 58 | D112: 5 | E112: 2481 | F112: 841.3029907 | G112: 1919 | H112: 73 | I112: 0.73 | J112: 1400.87 | K112: -0.4964521927 | L112: 2782 | M112: 199 | N112: 2784 | O112: https://www.google.com/maps/@61.637526786,24.3368131989,3a,75y,90t/data=!3m3!1e1!3m1!2e0 | P112: Gmaps | Q112: Orivesi | R112: 1919 | S112: 73 | T112: 827 | U112: 485 | V112: 2 | W112: Osa seud. yht. | X112: 1 | Y112: Osa seud. yht. | Z112: 77 | AA112: 0.77 | AC112: 0.06569931479 | AD112: 99.83877469 | AE112: 0.9983877469 | AG112: Keskivilkas 1 | AH112: Keskivilkas 1 | AJ112: punainen | AK112: punainen | AL112: punainen | AN112: punainen | AO112: punainen | AP112: punainen | AQ112: 22 | AR112: 10 | AS112: 1 | AT112: 1 | AU112: 10 | AW112: punainen | AX112: punainen | AY112: punainen | AZ112: 22 | BA112: 10 | BB112: 1 | BC112: 1 | BD112: 10 | BF112: 44_6 | BG112: 44 | BH112: 6 | BI112: 281 | BK112: 58_3 | BL112: 58 | BM112: 3 | BN112: 212 | BP112: 58_3 | BQ112: 58 | BR112: 3 | BS112: 2 | BU112: 58_3 | BV112: 58 | BW112: 3 | BX112: 1 | BZ112: 303_4 | CA112: 1785 | CB112: 40 | CH112: 249_6 | CI112: 611 | CJ112: 10.02461034 | CL112: 14361_1 | CM112: Vähä | CN112: 14361 | CO112: 1 | CP112: 2 | CQ112: Vähä 2 | CS112: 58_5 | CT112: 61.637526786 | CU112: 24.3368131989 | CV112: https://www.google.com/maps/@61.637526786,24.3368131989,3a,75y,90t/data=!3m3!1e1!3m1!2e0
A113: 101 | B113: 58_6 | C113: 58 | D113: 6 | E113: 2551 | F113: 2525.03573 | G113: 1840 | H113: 64 | I113: 0.64 | J113: 1177.6 | K113: -0.7377866845 | L113: 4491 | M113: 245 | N113: 4568 | O113: https://www.google.com/maps/@61.655311246,24.3615901444,3a,75y,90t/data=!3m3!1e1!3m1!2e0 | P113: Gmaps | Q113: Orivesi | R113: 1840 | S113: 64 | T113: 1029 | U113: 407 | V113: 3 | W113: Osa seud. yht. | X113: 2 | Y113: Osa seud. yht. | Z113: 100 | AA113: 1 | AC113: 0.2257938063 | AD113: 100.0784006 | AE113: 1.000784006 | AG113: Keskivilkas 1 | AH113: Keskivilkas 1 | AJ113: punainen | AK113: punainen | AL113: punainen | AN113: punainen | AO113: punainen | AP113: punainen | AQ113: 22 | AR113: 10 | AS113: 1 | AT113: 1 | AU113: 10 | AW113: punainen | AX113: punainen | AY113: punainen | AZ113: 22 | BA113: 10 | BB113: 1 | BC113: 1 | BD113: 10 | BF113: 44_7 | BG113: 44 | BH113: 7 | BI113: 109 | BK113: 58_5 | BL113: 58 | BM113: 5 | BN113: 485 | BP113: 58_5 | BQ113: 58 | BR113: 5 | BS113: 2 | BU113: 58_5 | BV113: 58 | BW113: 5 | BX113: 1 | BZ113: 303_5 | CA113: 800 | CB113: 101 | CH113: 249_8 | CI113: 764 | CJ113: 12.25144323 | CL113: 3381_3 | CM113: Vähä | CN113: 3381 | CO113: 3 | CP113: 2 | CQ113: Vähä 2 | CS113: 58_6 | CT113: 61.655311246 | CU113: 24.3615901444 | CV113: https://www.google.com/maps/@61.655311246,24.3615901444,3a,75y,90t/data=!3m3!1e1!3m1!2e0
A114: 102 | B114: 58_7 | C114: 58 | D114: 7 | E114: 884 | F114: 943.8736754 | G114: 1404 | H114: 85 | I114: 0.85 | J114: 1193.4 | K114: -0.7679564457 | L114: 5143 | M114: 335 | N114: 5347 | O114: https://www.google.com/maps/@61.6774290285,24.349095141,3a,75y,90t/data=!3m3!1e1!3m1!2e0 | P114: Gmaps | Q114: Orivesi | R114: 1404 | S114: 85 | T114: 1469 | U114: 769 | V114: 27 | W114: Osa seud. yht. | X114: 48 | Y114: Osa seud. yht. | Z114: 100 | AA114: 1 | AC114: 0.6583710407 | AD114: 100 | AE114: 1 | AG114: Keskivilkas 1 | AH114: Keskivilkas 1 | AJ114: punainen | AK114: punainen | AL114: punainen | AN114: punainen | AO114: punainen | AP114: punainen | AQ114: 31 | AR114: 10 | AS114: 1 | AT114: 10 | AU114: 10 | AW114: punainen | AX114: punainen | AY114: punainen | AZ114: 31 | BA114: 10 | BB114: 1 | BC114: 10 | BD114: 10 | BF114: 44_8 | BG114: 44 | BH114: 8 | BI114: 81 | BK114: 58_6 | BL114: 58 | BM114: 6 | BN114: 407 | BP114: 58_6 | BQ114: 58 | BR114: 6 | BS114: 3 | BU114: 58_6 | BV114: 58 | BW114: 6 | BX114: 2 | BZ114: 303_6 | CA114: 1078 | CB114: 88 | CH114: 249_8 | CI114: 310 | CJ114: 4.971135343 | CL114: 13359_3 | CM114: Vähä | CN114: 13359 | CO114: 3 | CP114: 2 | CQ114: Vähä 2 | CS114: 58_7 | CT114: 61.6774290285 | CU114: 24.349095141 | CV114: https://www.google.com/maps/@61.6774290285,24.349095141,3a,75y,90t/data=!3m3!1e1!3m1!2e0
A115: 103 | B115: 58_8 | C115: 58 | D115: 8 | E115: 6175 | F115: 6110.924308 | G115: 2489 | H115: 74 | I115: 0.74 | J115: 1841.86 | K115: -0.7065700175 | L115: 6277 | M115: 662 | N115: 6208 | O115: https://www.google.com/maps/@61.6844448877,24.3582184191,3a,75y,90t/data=!3m3!1e1!3m1!2e0 | P115: Gmaps | Q115: Orivesi | R115: 2489 | S115: 74 | T115: 1832 | U115: 1251 | V115: 107 | W115: Osa seud. yht. | X115: 74 | Y115: Osa seud. yht. | Z115: 23 | AA115: 0.23 | AC115: 0.07530364372 | AD115: 23.49797571 | AE115: 0.2349797571 | AG115: Keskivilkas 1 | AH115: Keskivilkas 1 | AJ115: punainen | AK115: punainen | AL115: punainen | AN115: punainen | AO115: punainen | AP115: punainen | AQ115: 40 | AR115: 10 | AS115: 10 | AT115: 10 | AU115: 10 | AW115: punainen | AX115: punainen | AY115: punainen | AZ115: 40 | BA115: 10 | BB115: 10 | BC115: 10 | BD115: 10 | BF115: 56_8 | BG115: 56 | BH115: 8 | BI115: 501 | BK115: 58_7 | BL115: 58 | BM115: 7 | BN115: 769 | BP115: 58_7 | BQ115: 58 | BR115: 7 | BS115: 27 | BU115: 58_7 | BV115: 58 | BW115: 7 | BX115: 48 | BZ115: 304_3 | CA115: 3549 | CB115: 54 | CH115: 249_9 | CI115: 255 | CJ115: 3.796902918 | CL115: 14371_2 | CM115: Vähä | CN115: 14371 | CO115: 2 | CP115: 2 | CQ115: Vähä 2 | CS115: 58_8 | CT115: 61.6844448877 | CU115: 24.3582184191 | CV115: https://www.google.com/maps/@61.6844448877,24.3582184191,3a,75y,90t/data=!3m3!1e1!3m1!2e0
A116: 104 | B116: 58_9 | C116: 58 | D116: 9 | E116: 9585 | F116: 6713.767245 | G116: 1783 | H116: 80 | I116: 0.8 | J116: 1426.4 | K116: -0.5915234822 | L116: 3492 | M116: 412 | N116: 3429 | O116: https://www.google.com/maps/@61.7355461128,24.3281355604,3a,75y,90t/data=!3m3!1e1!3m1!2e0 | P116: Gmaps | Q116: Juupajoki, Orivesi | R116: 1783 | S116: 80 | T116: 1045 | U116: 737 | V116: 69 | W116: Osa seud. yht. | X116: 51 | Y116: Osa seud. yht. | Z116: 0 | AA116: 0 | AC116: 0 | AD116: 9.587897757 | AE116: 0.09587897757 | AG116: Keskivilkas 1 | AH116: Keskivilkas 1 | AJ116: punainen | AK116: punainen | AL116: punainen | AN116: punainen | AO116: punainen | AP116: punainen | AQ116: 31 | AR116: 10 | AS116: 1 | AT116: 10 | AU116: 10 | AW116: punainen | AX116: punainen | AY116: punainen | AZ116: 31 | BA116: 10 | BB116: 1 | BC116: 10 | BD116: 10 | BF116: 57_6 | BG116: 57 | BH116: 6 | BI116: 174 | BK116: 58_8 | BL116: 58 | BM116: 8 | BN116: 1251 | BP116: 58_8 | BQ116: 58 | BR116: 8 | BS116: 107 | BU116: 58_8 | BV116: 58 | BW116: 8 | BX116: 74 | BZ116: 307_1 | CA116: 569 | CB116: 14 | CH116: 252_2 | CI116: 2601 | CJ116: 41.31850675 | CL116: 12961_1 | CM116: Vähä | CN116: 12961 | CO116: 1 | CP116: 2 | CQ116: Vähä 2 | CS116: 58_9 | CT116: 61.7355461128 | CU116: 24.3281355604 | CV116: https://www.google.com/maps/@61.7355461128,24.3281355604,3a,75y,90t/data=!3m3!1e1!3m1!2e0
A117: 105 | B117: 58_11 | C117: 58 | D117: 11 | E117: 4858 | F117: 4827.101742 | G117: 2074 | H117: 96 | I117: 0.96 | J117: 1991.04 | K117: -0.3618461538 | L117: 3120 | M117: 352 | N117: 3015 | O117: https://www.google.com/maps/@61.7977856261,24.4366993759,3a,75y,90t/data=!3m3!1e1!3m1!2e0 | P117: Gmaps | Q117: Juupajoki | R117: 2074 | S117: 96 | T117: 656 | U117: 600 | V117: 46 | W117: Osa seud. yht. | X117: 51 | Y117: Osa seud. yht. | Z117: 0 | AA117: 0 | AC117: 0 | AD117: 0 | AE117: 0 | AG117: Keskivilkas 1 | AH117: Keskivilkas 1 | AJ117: punainen | AK117: punainen | AL117: punainen | AN117: punainen | AO117: punainen | AP117: punainen | AQ117: 40 | AR117: 10 | AS117: 10 | AT117: 10 | AU117: 10 | AW117: punainen | AX117: punainen | AY117: punainen | AZ117: 40 | BA117: 10 | BB117: 10 | BC117: 10 | BD117: 10 | BF117: 58_1 | BG117: 58 | BH117: 1 | BI117: 2061 | BK117: 58_9 | BL117: 58 | BM117: 9 | BN117: 737 | BP117: 58_9 | BQ117: 58 | BR117: 9 | BS117: 69 | BU117: 58_9 | BV117: 58 | BW117: 9 | BX117: 51 | BZ117: 308_1 | CA117: 118 | CB117: 22 | CH117: 252_6 | CI117: 1237 | CJ117: 23.67917305 | CL117: 13359_2 | CM117: Vähä | CN117: 13359 | CO117: 2 | CP117: 2 | CQ117: Vähä 2 | CS117: 58_11 | CT117: 61.7977856261 | CU117: 24.4366993759 | CV117: https://www.google.com/maps/@61.7977856261,24.4366993759,3a,75y,90t/data=!3m3!1e1!3m1!2e0
A118: 106 | B118: 58_12 | C118: 58 | D118: 12 | E118: 4850 | F118: 4824.195696 | G118: 2044 | H118: 98 | I118: 0.98 | J118: 2003.12 | K118: -0.357974359 | L118: 3120 | M118: 352 | N118: 3015 | O118: https://www.google.com/maps/@61.834581656,24.4836140828,3a,75y,90t/data=!3m3!1e1!3m1!2e0 | P118: Gmaps | Q118: Juupajoki | R118: 2044 | S118: 98 | T118: 551 | U118: 540 | V118: 46 | W118: Osa seud. yht. | X118: 51 | Y118: Osa seud. yht. | Z118: 0 | AA118: 0 | AC118: 0 | AD118: 0 | AE118: 0 | AG118: Keskivilkas 1 | AH118: Keskivilkas 1 | AJ118: punainen | AK118: punainen | AL118: punainen | AN118: punainen | AO118: punainen | AP118: punainen | AQ118: 40 | AR118: 10 | AS118: 10 | AT118: 10 | AU118: 10 | AW118: punainen | AX118: punainen | AY118: punainen | AZ118: 40 | BA118: 10 | BB118: 10 | BC118: 10 | BD118: 10 | BF118: 58_2 | BG118: 58 | BH118: 2 | BI118: 289 | BK118: 58_11 | BL118: 58 | BM118: 11 | BN118: 600 | BP118: 58_11 | BQ118: 58 | BR118: 11 | BS118: 46 | BU118: 58_11 | BV118: 58 | BW118: 11 | BX118: 51 | BZ118: 308_2 | CA118: 1454 | CB118: 33 | CH118: 259_1 | CI118: 4082 | CJ118: 64.5783895 | CL118: 12848_1 | CM118: Vähä | CN118: 12848 | CO118: 1 | CP118: 2 | CQ118: Vähä 2 | CS118: 58_12 | CT118: 61.834581656 | CU118: 24.4836140828 | CV118: https://www.google.com/maps/@61.834581656,24.4836140828,3a,75y,90t/data=!3m3!1e1!3m1!2e0
A119: 107 | B119: 58_13 | C119: 58 | D119: 13 | E119: 3982 | F119: 4408.467354 | G119: 1824 | H119: 94 | I119: 0.94 | J119: 1714.56 | K119: -0.4504615385 | L119: 3120 | M119: 352 | N119: 3015 | O119: https://www.google.com/maps/@61.875896661,24.5072281788,3a,75y,90t/data=!3m3!1e1!3m1!2e0 | P119: Gmaps | Q119: Juupajoki | R119: 1824 | S119: 94 | T119: 561 | U119: 550 | V119: 46 | W119: Osa seud. yht. | X119: 51 | Y119: Osa seud. yht. | Z119: 0 | AA119: 0 | AC119: 0 | AD119: 0 | AE119: 0 | AG119: Keskivilkas 1 | AH119: Keskivilkas 1 | AJ119: punainen | AK119: punainen | AL119: punainen | AN119: punainen | AO119: punainen | AP119: punainen | AQ119: 31 | AR119: 10 | AS119: 1 | AT119: 10 | AU119: 10 | AW119: punainen | AX119: punainen | AY119: punainen | AZ119: 31 | BA119: 10 | BB119: 1 | BC119: 10 | BD119: 10 | BF119: 58_3 | BG119: 58 | BH119: 3 | BI119: 277 | BK119: 58_12 | BL119: 58 | BM119: 12 | BN119: 540 | BP119: 58_12 | BQ119: 58 | BR119: 12 | BS119: 46 | BU119: 58_12 | BV119: 58 | BW119: 12 | BX119: 51 | BZ119: 309_1 | CA119: 1067 | CB119: 13 | CH119: 259_3 | CI119: 2611 | CJ119: 54.61200586 | CL119: 13767_1 | CM119: Vähä | CN119: 13767 | CO119: 1 | CP119: 2 | CQ119: Vähä 2 | CS119: 58_13 | CT119: 61.875896661 | CU119: 24.5072281788 | CV119: https://www.google.com/maps/@61.875896661,24.5072281788,3a,75y,90t/data=!3m3!1e1!3m1!2e0
A120: 108 | B120: 58_15 | C120: 58 | D120: 15 | E120: 7114 | F120: 4995.484305 | G120: 1534 | H120: 91 | I120: 0.91 | J120: 1395.94 | K120: -0.3443212776 | L120: 2129 | M120: 256 | N120: 2066 | O120: https://www.google.com/maps/@61.9312696924,24.5405491268,3a,75y,90t/data=!3m3!1e1!3m1!2e0 | P120: Gmaps | Q120: Mänttä-Vilppula | R120: 1534 | S120: 91 | T120: 645 | U120: 596 | V120: 48 | W120: Osa seud. yht. | X120: 51 | Y120: Osa seud. yht. | Z120: 0 | AA120: 0 | AC120: 0 | AD120: 0 | AE120: 0 | AG120: Keskivilkas 1 | AH120: Keskivilkas 1 | AJ120: punainen | AK120: punainen | AL120: punainen | AN120: punainen | AO120: punainen | AP120: punainen | AQ120: 31 | AR120: 10 | AS120: 1 | AT120: 10 | AU120: 10 | AW120: punainen | AX120: punainen | AY120: punainen | AZ120: 31 | BA120: 10 | BB120: 1 | BC120: 10 | BD120: 10 | BF120: 58_5 | BG120: 58 | BH120: 5 | BI120: 827 | BK120: 58_13 | BL120: 58 | BM120: 13 | BN120: 550 | BP120: 58_13 | BQ120: 58 | BR120: 13 | BS120: 46 | BU120: 58_13 | BV120: 58 | BW120: 13 | BX120: 51 | BZ120: 309_1 | CA120: 3231 | CB120: 41 | CH120: 259_4 | CI120: 764 | CJ120: 10.61553425 | CL120: 14281_4 | CM120: Vähä | CN120: 14281 | CO120: 4 | CP120: 2 | CQ120: Vähä 2 | CS120: 58_15 | CT120: 61.9312696924 | CU120: 24.5405491268 | CV120: https://www.google.com/maps/@61.9312696924,24.5405491268,3a,75y,90t/data=!3m3!1e1!3m1!2e0
A121: 109 | B121: 58_17 | C121: 58 | D121: 17 | E121: 6250 | F121: 5533.090331 | G121: 2058 | H121: 86 | I121: 0.86 | J121: 1769.88 | K121: -0.03810869565 | L121: 1840 | M121: 223 | N121: 1802 | O121: https://www.google.com/maps/@61.9977580605,24.6390217397,3a,75y,90t/data=!3m3!1e1!3m1!2e0 | P121: Gmaps | Q121: Mänttä-Vilppula | R121: 2058 | S121: 86 | T121: 729 | U121: 558 | V121: 54 | W121: Osa seud. yht. | X121: 57 | Y121: Osa seud. yht. | Z121: 0 | AA121: 0 | AC121: 0 | AD121: 15.12 | AE121: 0.1512 | AG121: Keskivilkas 1 | AH121: Keskivilkas 1 | AJ121: punainen | AK121: punainen | AL121: punainen | AN121: punainen | AO121: punainen | AP121: punainen | AQ121: 40 | AR121: 10 | AS121: 10 | AT121: 10 | AU121: 10 | AW121: punainen | AX121: punainen | AY121: punainen | AZ121: 40 | BA121: 10 | BB121: 10 | BC121: 10 | BD121: 10 | BF121: 58_6 | BG121: 58 | BH121: 6 | BI121: 1029 | BK121: 58_15 | BL121: 58 | BM121: 15 | BN121: 596 | BP121: 58_15 | BQ121: 58 | BR121: 15 | BS121: 48 | BU121: 58_15 | BV121: 58 | BW121: 15 | BX121: 51 | BZ121: 310_1 | CA121: 925 | CB121: 36 | CH121: 261_8 | CI121: 1670 | CJ121: 33.23383085 | CL121: 12964_1 | CM121: Vähä | CN121: 12964 | CO121: 1 | CP121: 2 | CQ121: Vähä 2 | CS121: 58_17 | CT121: 61.9977580605 | CU121: 24.6390217397 | CV121: https://www.google.com/maps/@61.9977580605,24.6390217397,3a,75y,90t/data=!3m3!1e1!3m1!2e0
A122: 110 | B122: 65_1 | C122: 65 | D122: 1 | E122: 8247 | F122: 8165.049327 | G122: 7779 | H122: 43 | I122: 0.43 | J122: 3344.97 | K122: -0.8401753548 | L122: 20929 | M122: 567 | N122: 22271 | O122: https://www.google.com/maps/@61.5100150515,23.6892030268,3a,75y,90t/data=!3m3!1e1!3m1!2e0 | P122: Gmaps | Q122: Tampere, Ylöjärvi | R122: 7779 | S122: 43 | T122: 14929 | U122: 4248 | V122: 61 | W122: Osa seud. yht. | X122: 99 | Y122: Osa seud. yht. | Z122: 41 | AA122: 0.41 | AC122: 0 | AD122: 93.24602886 | AE122: 0.9324602886 | AG122: Keskivilkas 1 | AH122: Keskivilkas 1 | AJ122: punainen | AK122: punainen | AL122: punainen | AN122: musta | AO122: punainen | AP122: punainen | AQ122: 31 | AR122: 1 | AS122: 10 | AT122: 10 | AU122: 10 | AW122: musta | AX122: punainen | AY122: punainen | AZ122: 31 | BA122: 1 | BB122: 10 | BC122: 10 | BD122: 10 | BF122: 58_7 | BG122: 58 | BH122: 7 | BI122: 1469 | BK122: 58_17 | BL122: 58 | BM122: 17 | BN122: 558 | BP122: 58_17 | BQ122: 58 | BR122: 17 | BS122: 54 | BU122: 58_17 | BV122: 58 | BW122: 17 | BX122: 57 | BZ122: 310_2 | CA122: 772 | CB122: 22 | CH122: 274_1 | CI122: 1967 | CJ122: 30.16408526 | CL122: 2501_2 | CM122: Vähä | CN122: 2501 | CO122: 2 | CP122: 2 | CQ122: Vähä 2 | CS122: 65_1 | CT122: 61.5100150515 | CU122: 23.6892030268 | CV122: https://www.google.com/maps/@61.5100150515,23.6892030268,3a,75y,90t/data=!3m3!1e1!3m1!2e0
A123: 111 | B123: 65_2 | C123: 65 | D123: 2 | E123: 14344 | F123: 5115.685412 | G123: 4700 | H123: 83 | I123: 0.83 | J123: 3901 | K123: -0.4101013156 | L123: 6613 | M123: 495 | N123: 6162 | O123: https://www.google.com/maps/@61.5544611184,23.5742665885,3a,75y,90t/data=!3m3!1e1!3m1!2e0 | P123: Gmaps | Q123: Ylöjärvi | R123: 4700 | S123: 83 | T123: 4240 | U123: 2483 | V123: 39 | W123: Osa seud. yht. | X123: 20 | Y123: Osa seud. yht. | Z123: 4 | AA123: 0.04 | AC123: 0 | AD123: 12.28388176 | AE123: 0.1228388176 | AG123: Keskivilkas 1 | AH123: Keskivilkas 1 | AJ123: punainen | AK123: punainen | AL123: punainen | AN123: punainen | AO123: punainen | AP123: punainen | AQ123: 40 | AR123: 10 | AS123: 10 | AT123: 10 | AU123: 10 | AW123: punainen | AX123: punainen | AY123: punainen | AZ123: 40 | BA123: 10 | BB123: 10 | BC123: 10 | BD123: 10 | BF123: 58_8 | BG123: 58 | BH123: 8 | BI123: 1832 | BK123: 65_1 | BL123: 65 | BM123: 1 | BN123: 4248 | BP123: 65_1 | BQ123: 65 | BR123: 1 | BS123: 61 | BU123: 65_1 | BV123: 65 | BW123: 1 | BX123: 99 | BZ123: 310_5 | CA123: 1502 | CB123: 17 | CH123: 276_1 | CI123: 2828 | CJ123: 67.8177458 | CL123: 3383_1 | CM123: Vähä | CN123: 3383 | CO123: 1 | CP123: 2 | CQ123: Vähä 2 | CS123: 65_2 | CT123: 61.5544611184 | CU123: 23.5742665885 | CV123: https://www.google.com/maps/@61.5544611184,23.5742665885,3a,75y,90t/data=!3m3!1e1!3m1!2e0
A124: 112 | B124: 65_4 | C124: 65 | D124: 4 | E124: 4500 | F124: 4471.546022 | G124: 3811 | H124: 97 | I124: 0.97 | J124: 3696.67 | K124: -0.2733103991 | L124: 5087 | M124: 410 | N124: 4500 | O124: https://www.google.com/maps/@61.6775208502,23.5406426714,3a,75y,90t/data=!3m3!1e1!3m1!2e0 | P124: Gmaps | Q124: Ylöjärvi | R124: 3811 | S124: 97 | T124: 1006 | U124: 966 | V124: 29 | W124: Osa seud. yht. | X124: 20 | Y124: Osa seud. yht. | Z124: 0 | AA124: 0 | AC124: 0 | AD124: 0 | AE124: 0 | AG124: Keskivilkas 1 | AH124: Keskivilkas 1 | AJ124: punainen | AK124: punainen | AL124: punainen | AN124: punainen | AO124: punainen | AP124: punainen | AQ124: 40 | AR124: 10 | AS124: 10 | AT124: 10 | AU124: 10 | AW124: punainen | AX124: punainen | AY124: punainen | AZ124: 40 | BA124: 10 | BB124: 10 | BC124: 10 | BD124: 10 | BF124: 58_9 | BG124: 58 | BH124: 9 | BI124: 1045 | BK124: 65_2 | BL124: 65 | BM124: 2 | BN124: 2483 | BP124: 65_2 | BQ124: 65 | BR124: 2 | BS124: 39 | BU124: 65_2 | BV124: 65 | BW124: 2 | BX124: 20 | BZ124: 322_1 | CA124: 19 | CB124: 0 | CH124: 276_2 | CI124: 2134 | CJ124: 39.48196115 | CL124: 12971_1 | CM124: Vähä | CN124: 12971 | CO124: 1 | CP124: 2 | CQ124: Vähä 2 | CS124: 65_4 | CT124: 61.6775208502 | CU124: 23.5406426714 | CV124: https://www.google.com/maps/@61.6775208502,23.5406426714,3a,75y,90t/data=!3m3!1e1!3m1!2e0
A125: 113 | B125: 65_6 | C125: 65 | D125: 6 | E125: 9628 | F125: 8915.736622 | G125: 3125 | H125: 98 | I125: 0.98 | J125: 3062.5 | K125: -0.2330328074 | L125: 3993 | M125: 305 | N125: 3508 | O125: https://www.google.com/maps/@61.7171025597,23.5485809752,3a,75y,90t/data=!3m3!1e1!3m1!2e0 | P125: Gmaps | Q125: Ylöjärvi | R125: 3125 | S125: 98 | T125: 639 | U125: 614 | V125: 29 | W125: Osa seud. yht. | X125: 20 | Y125: Osa seud. yht. | Z125: 0 | AA125: 0 | AC125: 0 | AD125: 0 | AE125: 0 | AG125: Keskivilkas 1 | AH125: Keskivilkas 1 | AJ125: punainen | AK125: punainen | AL125: punainen | AN125: punainen | AO125: punainen | AP125: punainen | AQ125: 40 | AR125: 10 | AS125: 10 | AT125: 10 | AU125: 10 | AW125: punainen | AX125: punainen | AY125: punainen | AZ125: 40 | BA125: 10 | BB125: 10 | BC125: 10 | BD125: 10 | BF125: 58_11 | BG125: 58 | BH125: 11 | BI125: 656 | BK125: 65_4 | BL125: 65 | BM125: 4 | BN125: 966 | BP125: 65_4 | BQ125: 65 | BR125: 4 | BS125: 29 | BU125: 65_4 | BV125: 65 | BW125: 4 | BX125: 20 | BZ125: 322_2 | CA125: 753 | CB125: 13 | CH125: 276_2 | CI125: 1925 | CJ125: 35.61517114 | CL125: 13791_1 | CM125: Vähä | CN125: 13791 | CO125: 1 | CP125: 2 | CQ125: Vähä 2 | CS125: 65_6 | CT125: 61.7171025597 | CU125: 23.5485809752 | CV125: https://www.google.com/maps/@61.7171025597,23.5485809752,3a,75y,90t/data=!3m3!1e1!3m1!2e0
A126: 114 | B126: 65_8 | C126: 65 | D126: 8 | E126: 4923 | F126: 4843.685767 | G126: 3045 | H126: 96 | I126: 0.96 | J126: 2923.2 | K126: -0.267918858 | L126: 3993 | M126: 305 | N126: 3508 | O126: https://www.google.com/maps/@61.7916432548,23.6294682283,3a,75y,90t/data=!3m3!1e1!3m1!2e0 | P126: Gmaps | Q126: Ylöjärvi | R126: 3045 | S126: 96 | T126: 569 | U126: 544 | V126: 29 | W126: Osa seud. yht. | X126: 20 | Y126: Osa seud. yht. | Z126: 0 | AA126: 0 | AC126: 0 | AD126: 0 | AE126: 0 | AG126: Keskivilkas 1 | AH126: Keskivilkas 1 | AJ126: punainen | AK126: punainen | AL126: punainen | AN126: punainen | AO126: punainen | AP126: punainen | AQ126: 40 | AR126: 10 | AS126: 10 | AT126: 10 | AU126: 10 | AW126: punainen | AX126: punainen | AY126: punainen | AZ126: 40 | BA126: 10 | BB126: 10 | BC126: 10 | BD126: 10 | BF126: 58_12 | BG126: 58 | BH126: 12 | BI126: 551 | BK126: 65_6 | BL126: 65 | BM126: 6 | BN126: 614 | BP126: 65_6 | BQ126: 65 | BR126: 6 | BS126: 29 | BU126: 65_6 | BV126: 65 | BW126: 6 | BX126: 20 | BZ126: 322_3 | CA126: 175 | CB126: 5 | CH126: 276_3 | CI126: 777 | CJ126: 10.1171875 | CL126: 3350_4 | CM126: Vähä | CN126: 3350 | CO126: 4 | CP126: 2 | CQ126: Vähä 2 | CS126: 65_8 | CT126: 61.7916432548 | CU126: 23.6294682283 | CV126: https://www.google.com/maps/@61.7916432548,23.6294682283,3a,75y,90t/data=!3m3!1e1!3m1!2e0
A127: 115 | B127: 65_9 | C127: 65 | D127: 9 | E127: 6734 | F127: 6691.055332 | G127: 2997 | H127: 94 | I127: 0.94 | J127: 2817.18 | K127: -0.3402388759 | L127: 4270 | M127: 358 | N127: 3990 | O127: https://www.google.com/maps/@61.8268106547,23.6774191182,3a,75y,90t/data=!3m3!1e1!3m1!2e0 | P127: Gmaps | Q127: Ylöjärvi | R127: 2997 | S127: 94 | T127: 673 | U127: 532 | V127: 29 | W127: Osa seud. yht. | X127: 20 | Y127: Osa seud. yht. | Z127: 16 | AA127: 0.16 | AC127: 0 | AD127: 23.46302346 | AE127: 0.2346302346 | AG127: Keskivilkas 1 | AH127: Keskivilkas 1 | AJ127: punainen | AK127: punainen | AL127: punainen | AN127: punainen | AO127: punainen | AP127: punainen | AQ127: 40 | AR127: 10 | AS127: 10 | AT127: 10 | AU127: 10 | AW127: punainen | AX127: punainen | AY127: punainen | AZ127: 40 | BA127: 10 | BB127: 10 | BC127: 10 | BD127: 10 | BF127: 58_13 | BG127: 58 | BH127: 13 | BI127: 561 | BK127: 65_8 | BL127: 65 | BM127: 8 | BN127: 544 | BP127: 65_8 | BQ127: 65 | BR127: 8 | BS127: 29 | BU127: 65_8 | BV127: 65 | BW127: 8 | BX127: 20 | BZ127: 322_5 | CA127: 1424 | CB127: 32 | CH127: 284_6 | CI127: 2069 | CJ127: 26.32985492 | CL127: 14008_1 | CM127: Vähä | CN127: 14008 | CO127: 1 | CP127: 2 | CQ127: Vähä 2 | CS127: 65_9 | CT127: 61.8268106547 | CU127: 23.6774191182 | CV127: https://www.google.com/maps/@61.8268106547,23.6774191182,3a,75y,90t/data=!3m3!1e1!3m1!2e0
A128: 116 | B128: 65_11 | C128: 65 | D128: 11 | E128: 7687 | F128: 12108.02011 | G128: 2922 | H128: 98 | I128: 0.98 | J128: 2863.56 | K128: 0.3238834951 | L128: 2163 | M128: 192 | N128: 1903 | O128: https://www.google.com/maps/@61.8769980679,23.7255167054,3a,75y,90t/data=!3m3!1e1!3m1!2e0 | P128: Gmaps | Q128: Ylöjärvi | R128: 2922 | S128: 98 | T128: 613 | U128: 452 | V128: 34 | W128: Osa seud. yht. | X128: 24 | Y128: Osa seud. yht. | Z128: 14 | AA128: 0.14 | AC128: 0 | AD128: 16.04006765 | AE128: 0.1604006765 | AG128: Keskivilkas 1 | AH128: Keskivilkas 1 | AJ128: punainen | AK128: punainen | AL128: punainen | AN128: punainen | AO128: punainen | AP128: punainen | AQ128: 31 | AR128: 10 | AS128: 10 | AT128: 1 | AU128: 10 | AW128: punainen | AX128: punainen | AY128: punainen | AZ128: 31 | BA128: 10 | BB128: 10 | BC128: 1 | BD128: 10 | BF128: 58_15 | BG128: 58 | BH128: 15 | BI128: 645 | BK128: 65_9 | BL128: 65 | BM128: 9 | BN128: 532 | BP128: 65_9 | BQ128: 65 | BR128: 9 | BS128: 29 | BU128: 65_9 | BV128: 65 | BW128: 9 | BX128: 20 | BZ128: 322_6 | CA128: 502 | CB128: 8 | CH128: 284_7 | CI128: 5303 | CJ128: 95.89511754 | CL128: 2764_2 | CM128: Vähä | CN128: 2764 | CO128: 2 | CP128: 2 | CQ128: Vähä 2 | CS128: 65_11 | CT128: 61.8769980679 | CU128: 23.7255167054 | CV128: https://www.google.com/maps/@61.8769980679,23.7255167054,3a,75y,90t/data=!3m3!1e1!3m1!2e0
A129: 117 | B129: 65_12 | C129: 65 | D129: 12 | E129: 4530 | G129: 2900 | H129: 98 | I129: 0.98 | J129: 2842 | K129: 0.3979340876 | L129: 2033 | M129: 180 | N129: 1784 | O129: https://www.google.com/maps/@61.9384373773,23.6735123082,3a,75y,90t/data=!3m3!1e1!3m1!2e0 | P129: Gmaps | Q129: Ylöjärvi | R129: 2900 | S129: 98 | T129: 163 | U129: 155 | V129: 20 | W129: Osa seud. yht. | X129: 20 | Y129: Osa seud. yht. | Z129: 0 | AA129: 0 | AC129: 0 | AD129: 0 | AE129: 0 | AG129: Ei määritetty | AH129: Keskivilkas 1 | AJ129: punainen | AK129: punainen | AL129: punainen | AN129: punainen | AO129: punainen | AP129: punainen | AQ129: 31 | AR129: 10 | AS129: 10 | AT129: 1 | AU129: 10 | AW129: punainen | AX129: punainen | AY129: punainen | AZ129: 31 | BA129: 10 | BB129: 10 | BC129: 1 | BD129: 10 | BF129: 58_17 | BG129: 58 | BH129: 17 | BI129: 729 | BK129: 65_11 | BL129: 65 | BM129: 11 | BN129: 452 | BP129: 65_11 | BQ129: 65 | BR129: 11 | BS129: 34 | BU129: 65_11 | BV129: 65 | BW129: 11 | BX129: 24 | BZ129: 322_8 | CA129: 83 | CB129: 2 | CH129: 301_1 | CI129: 326 | CJ129: 6.868942267 | CL129: 3252_1 | CM129: Vähä | CN129: 3252 | CO129: 1 | CP129: 3 | CQ129: Vähä 3 | CS129: 65_12 | CT129: 61.9384373773 | CU129: 23.6735123082 | CV129: https://www.google.com/maps/@61.9384373773,23.6735123082,3a,75y,90t/data=!3m3!1e1!3m1!2e0
A130: 118 | B130: 65_13 | C130: 65 | D130: 13 | E130: 4429 | F130: 15182.89161 | G130: 2832 | H130: 100 | I130: 1 | J130: 2832 | K130: 0.6867182847 | L130: 1679 | M130: 177 | N130: 1426 | O130: https://www.google.com/maps/@61.976494245,23.6457947094,3a,75y,90t/data=!3m3!1e1!3m1!2e0 | P130: Gmaps | Q130: Ylöjärvi | R130: 2832 | S130: 100 | T130: 129 | U130: 124 | V130: 20 | W130: Osa seud. yht. | X130: 20 | Y130: Osa seud. yht. | Z130: 0 | AA130: 0 | AC130: 0 | AD130: 0 | AE130: 0 | AG130: Keskivilkas 1 | AH130: Keskivilkas 1 | AJ130: punainen | AK130: punainen | AL130: punainen | AN130: punainen | AO130: punainen | AP130: punainen | AQ130: 31 | AR130: 10 | AS130: 10 | AT130: 1 | AU130: 10 | AW130: punainen | AX130: punainen | AY130: punainen | AZ130: 31 | BA130: 10 | BB130: 10 | BC130: 1 | BD130: 10 | BF130: 65_1 | BG130: 65 | BH130: 1 | BI130: 14929 | BK130: 65_12 | BL130: 65 | BM130: 12 | BN130: 155 | BP130: 65_12 | BQ130: 65 | BR130: 12 | BS130: 20 | BU130: 65_12 | BV130: 65 | BW130: 12 | BX130: 20 | BZ130: 325_1 | CA130: 51 | CB130: 1 | CH130: 301_6 | CI130: 1077 | CJ130: 34.19047619 | CL130: 14333_1 | CM130: Vähä | CN130: 14333 | CO130: 1 | CP130: 3 | CQ130: Vähä 3 | CS130: 65_13 | CT130: 61.976494245 | CU130: 23.6457947094 | CV130: https://www.google.com/maps/@61.976494245,23.6457947094,3a,75y,90t/data=!3m3!1e1!3m1!2e0
A131: 119 | B131: 65_14 | C131: 65 | D131: 14 | E131: 10844 | G131: 2800 | H131: 100 | I131: 1 | J131: 2800 | K131: 0.667659321 | L131: 1679 | M131: 177 | N131: 1426 | O131: https://www.google.com/maps/@62.0154304691,23.6603637311,3a,75y,90t/data=!3m3!1e1!3m1!2e0 | P131: Gmaps | Q131: Virrat, Ylöjärvi | R131: 2800 | S131: 100 | T131: 124 | U131: 123 | V131: 20 | W131: Osa seud. yht. | X131: 20 | Y131: Osa seud. yht. | Z131: 0 | AA131: 0 | AC131: 0 | AD131: 0 | AE131: 0 | AG131: Keskivilkas 1 | AH131: Keskivilkas 1 | AJ131: punainen | AK131: punainen | AL131: punainen | AN131: punainen | AO131: punainen | AP131: punainen | AQ131: 31 | AR131: 10 | AS131: 10 | AT131: 1 | AU131: 10 | AW131: punainen | AX131: punainen | AY131: punainen | AZ131: 31 | BA131: 10 | BB131: 10 | BC131: 1 | BD131: 10 | BF131: 65_2 | BG131: 65 | BH131: 2 | BI131: 4240 | BK131: 65_13 | BL131: 65 | BM131: 13 | BN131: 124 | BP131: 65_13 | BQ131: 65 | BR131: 13 | BS131: 20 | BU131: 65_13 | BV131: 65 | BW131: 13 | BX131: 20 | BZ131: 325_2 | CA131: 139 | CB131: 2 | CH131: 301_8 | CI131: 1701 | CJ131: 50.97392868 | CL131: 3221_1 | CM131: Vähä | CN131: 3221 | CO131: 1 | CP131: 3 | CQ131: Vähä 3 | CS131: 65_14 | CT131: 62.0154304691 | CU131: 23.6603637311 | CV131: https://www.google.com/maps/@62.0154304691,23.6603637311,3a,75y,90t/data=!3m3!1e1!3m1!2e0
A132: 120 | B132: 65_15 | C132: 65 | D132: 15 | E132: 3713 | F132: 3622.271198 | G132: 2658 | H132: 99 | I132: 0.99 | J132: 2631.42 | K132: 0.567254318 | L132: 1679 | M132: 177 | N132: 1426 | O132: https://www.google.com/maps/@62.110844009,23.6738470329,3a,75y,90t/data=!3m3!1e1!3m1!2e0 | P132: Gmaps | Q132: Virrat | R132: 2658 | S132: 99 | T132: 124 | U132: 124 | V132: 20 | W132: Osa seud. yht. | X132: 20 | Y132: Osa seud. yht. | Z132: 0 | AA132: 0 | AC132: 0 | AD132: 0 | AE132: 0 | AG132: Keskivilkas 1 | AH132: Keskivilkas 1 | AJ132: punainen | AK132: punainen | AL132: punainen | AN132: punainen | AO132: punainen | AP132: punainen | AQ132: 31 | AR132: 10 | AS132: 10 | AT132: 1 | AU132: 10 | AW132: punainen | AX132: punainen | AY132: punainen | AZ132: 31 | BA132: 10 | BB132: 10 | BC132: 1 | BD132: 10 | BF132: 65_4 | BG132: 65 | BH132: 4 | BI132: 1006 | BK132: 65_14 | BL132: 65 | BM132: 14 | BN132: 123 | BP132: 65_14 | BQ132: 65 | BR132: 14 | BS132: 20 | BU132: 65_14 | BV132: 65 | BW132: 14 | BX132: 20 | BZ132: 325_3 | CA132: 108 | CB132: 2 | CH132: 301_9 | CI132: 1251 | CJ132: 20.05129027 | CL132: 2592_1 | CM132: Vähä | CN132: 2592 | CO132: 1 | CP132: 3 | CQ132: Vähä 3 | CS132: 65_15 | CT132: 62.110844009 | CU132: 23.6738470329 | CV132: https://www.google.com/maps/@62.110844009,23.6738470329,3a,75y,90t/data=!3m3!1e1!3m1!2e0
A133: 121 | B133: 65_16 | C133: 65 | D133: 16 | E133: 8357 | F133: 8282.527419 | G133: 2668 | H133: 97 | I133: 0.97 | J133: 2587.96 | K133: 0.541369863 | L133: 1679 | M133: 177 | N133: 1426 | O133: https://www.google.com/maps/@62.1419209413,23.6655231365,3a,75y,90t/data=!3m3!1e1!3m1!2e0 | P133: Gmaps | Q133: Virrat | R133: 2668 | S133: 97 | T133: 191 | U133: 168 | V133: 20 | W133: Osa seud. yht. | X133: 20 | Y133: Osa seud. yht. | Z133: 0 | AA133: 0 | AC133: 0 | AD133: 0 | AE133: 0 | AG133: Keskivilkas 1 | AH133: Keskivilkas 1 | AJ133: punainen | AK133: punainen | AL133: punainen | AN133: punainen | AO133: punainen | AP133: punainen | AQ133: 31 | AR133: 10 | AS133: 10 | AT133: 1 | AU133: 10 | AW133: punainen | AX133: punainen | AY133: punainen | AZ133: 31 | BA133: 10 | BB133: 10 | BC133: 1 | BD133: 10 | BF133: 65_6 | BG133: 65 | BH133: 6 | BI133: 639 | BK133: 65_15 | BL133: 65 | BM133: 15 | BN133: 124 | BP133: 65_15 | BQ133: 65 | BR133: 15 | BS133: 20 | BU133: 65_15 | BV133: 65 | BW133: 15 | BX133: 20 | BZ133: 332_1 | CA133: 1077 | CB133: 20 | CH133: 301_9 | CI133: 838 | CJ133: 13.43163969 | CL133: 12962_2 | CM133: Vähä | CN133: 12962 | CO133: 2 | CP133: 3 | CQ133: Vähä 3 | CS133: 65_16 | CT133: 62.1419209413 | CU133: 23.6655231365 | CV133: https://www.google.com/maps/@62.1419209413,23.6655231365,3a,75y,90t/data=!3m3!1e1!3m1!2e0
A134: 122 | B134: 65_17 | C134: 65 | D134: 17 | E134: 6408 | F134: 6318.732487 | G134: 2755 | H134: 94 | I134: 0.94 | J134: 2589.7 | K134: 0.2331904762 | L134: 2100 | M134: 199 | N134: 1883 | O134: https://www.google.com/maps/@62.2122740841,23.6454915808,3a,75y,90t/data=!3m3!1e1!3m1!2e0 | P134: Gmaps | Q134: Virrat | R134: 2755 | S134: 94 | T134: 215 | U134: 172 | V134: 20 | W134: Osa seud. yht. | X134: 20 | Y134: Osa seud. yht. | Z134: 0 | AA134: 0 | AC134: 0 | AD134: 0 | AE134: 0 | AG134: Keskivilkas 1 | AH134: Keskivilkas 1 | AJ134: punainen | AK134: punainen | AL134: punainen | AN134: punainen | AO134: punainen | AP134: punainen | AQ134: 31 | AR134: 10 | AS134: 10 | AT134: 1 | AU134: 10 | AW134: punainen | AX134: punainen | AY134: punainen | AZ134: 31 | BA134: 10 | BB134: 10 | BC134: 1 | BD134: 10 | BF134: 65_8 | BG134: 65 | BH134: 8 | BI134: 569 | BK134: 65_16 | BL134: 65 | BM134: 16 | BN134: 168 | BP134: 65_16 | BQ134: 65 | BR134: 16 | BS134: 20 | BU134: 65_16 | BV134: 65 | BW134: 16 | BX134: 20 | BZ134: 332_8 | CA134: 231 | CB134: 4 | CH134: 303_2 | CI134: 941 | CJ134: 15.31824841 | CL134: 3350_3 | CM134: Vähä | CN134: 3350 | CO134: 3 | CP134: 3 | CQ134: Vähä 3 | CS134: 65_17 | CT134: 62.2122740841 | CU134: 23.6454915808 | CV134: https://www.google.com/maps/@62.2122740841,23.6454915808,3a,75y,90t/data=!3m3!1e1!3m1!2e0
A135: 123 | B135: 66_2 | C135: 66 | D135: 2 | E135: 9188 | F135: 9144.968353 | G135: 1011 | H135: 95 | I135: 0.95 | J135: 960.45 | K135: -0.4383333333 | L135: 1710 | M135: 258 | N135: 1614 | O135: https://www.google.com/maps/@61.7355461128,24.3281355604,3a,75y,90t/data=!3m3!1e1!3m1!2e0 | P135: Gmaps | Q135: Juupajoki, Orivesi | R135: 1011 | S135: 95 | T135: 427 | U135: 401 | V135: 41 | W135: Osa seud. yht. | X135: 23 | Y135: Osa seud. yht. | Z135: 0 | AA135: 0 | AC135: 0 | AD135: 7.977797127 | AE135: 0.07977797127 | AG135: Keskivilkas 1 | AH135: Keskivilkas 1 | AJ135: punainen | AK135: punainen | AL135: punainen | AN135: punainen | AO135: punainen | AP135: punainen | AQ135: 22 | AR135: 10 | AS135: 1 | AT135: 1 | AU135: 10 | AW135: punainen | AX135: punainen | AY135: punainen | AZ135: 22 | BA135: 10 | BB135: 1 | BC135: 1 | BD135: 10 | BF135: 65_9 | BG135: 65 | BH135: 9 | BI135: 673 | BK135: 65_17 | BL135: 65 | BM135: 17 | BN135: 172 | BP135: 65_17 | BQ135: 65 | BR135: 17 | BS135: 20 | BU135: 65_17 | BV135: 65 | BW135: 17 | BX135: 20 | BZ135: 337_1 | CA135: 414 | CB135: 8 | CH135: 303_3 | CI135: 2145 | CJ135: 95.63085154 | CL135: 13947_1 | CM135: Vähä | CN135: 13947 | CO135: 1 | CP135: 3 | CQ135: Vähä 3 | CS135: 66_2 | CT135: 61.7355461128 | CU135: 24.3281355604 | CV135: https://www.google.com/maps/@61.7355461128,24.3281355604,3a,75y,90t/data=!3m3!1e1!3m1!2e0
A136: 124 | B136: 66_4 | C136: 66 | D136: 4 | E136: 8481 | F136: 14095.41158 | G136: 1026 | H136: 98 | I136: 0.98 | J136: 1005.48 | K136: -0.412 | L136: 1710 | M136: 258 | N136: 1614 | O136: https://www.google.com/maps/@61.8131371928,24.2970388597,3a,75y,90t/data=!3m3!1e1!3m1!2e0 | P136: Gmaps | Q136: Juupajoki, Ruovesi | R136: 1026 | S136: 98 | T136: 429 | U136: 412 | V136: 48 | W136: Osa seud. yht. | X136: 23 | Y136: Osa seud. yht. | Z136: 0 | AA136: 0 | AC136: 0 | AD136: 0 | AE136: 0 | AG136: Keskivilkas 1 | AH136: Keskivilkas 1 | AJ136: punainen | AK136: punainen | AL136: punainen | AN136: punainen | AO136: punainen | AP136: punainen | AQ136: 22 | AR136: 10 | AS136: 1 | AT136: 1 | AU136: 10 | AW136: punainen | AX136: punainen | AY136: punainen | AZ136: 22 | BA136: 10 | BB136: 1 | BC136: 1 | BD136: 10 | BF136: 65_11 | BG136: 65 | BH136: 11 | BI136: 613 | BK136: 66_2 | BL136: 66 | BM136: 2 | BN136: 401 | BP136: 66_2 | BQ136: 66 | BR136: 2 | BS136: 41 | BU136: 66_2 | BV136: 66 | BW136: 2 | BX136: 23 | BZ136: 337_3 | CA136: 710 | CB136: 9 | CH136: 303_4 | CI136: 2704 | CJ136: 59.9157988 | CL136: 14297_1 | CM136: Vähä | CN136: 14297 | CO136: 1 | CP136: 3 | CQ136: Vähä 3 | CS136: 66_4 | CT136: 61.8131371928 | CU136: 24.2970388597 | CV136: https://www.google.com/maps/@61.8131371928,24.2970388597,3a,75y,90t/data=!3m3!1e1!3m1!2e0
A137: 125 | B137: 66_6 | C137: 66 | D137: 6 | E137: 5732 | G137: 1026 | H137: 98 | I137: 0.98 | J137: 1005.48 | K137: -0.412 | L137: 1710 | M137: 258 | N137: 1614 | O137: https://www.google.com/maps/@61.8628854565,24.1964291019,3a,75y,90t/data=!3m3!1e1!3m1!2e0 | P137: Gmaps | Q137: Ruovesi | R137: 1026 | S137: 98 | T137: 410 | U137: 400 | V137: 48 | W137: Osa seud. yht. | X137: 23 | Y137: Osa seud. yht. | Z137: 0 | AA137: 0 | AC137: 0 | AD137: 0 | AE137: 0 | AG137: Keskivilkas 1 | AH137: Keskivilkas 1 | AJ137: punainen | AK137: punainen | AL137: punainen | AN137: punainen | AO137: punainen | AP137: punainen | AQ137: 22 | AR137: 10 | AS137: 1 | AT137: 1 | AU137: 10 | AW137: punainen | AX137: punainen | AY137: punainen | AZ137: 22 | BA137: 10 | BB137: 1 | BC137: 1 | BD137: 10 | BF137: 65_12 | BG137: 65 | BH137: 12 | BI137: 163 | BK137: 66_4 | BL137: 66 | BM137: 4 | BN137: 412 | BP137: 66_4 | BQ137: 66 | BR137: 4 | BS137: 48 | BU137: 66_4 | BV137: 66 | BW137: 4 | BX137: 23 | BZ137: 339_1 | CA137: 1946 | CB137: 70 | CH137: 303_4 | CI137: 256 | CJ137: 5.672501662 | CL137: 13681_1 | CM137: Vähä | CN137: 13681 | CO137: 1 | CP137: 3 | CQ137: Vähä 3 | CS137: 66_6 | CT137: 61.8628854565 | CU137: 24.1964291019 | CV137: https://www.google.com/maps/@61.8628854565,24.1964291019,3a,75y,90t/data=!3m3!1e1!3m1!2e0
A138: 126 | B138: 66_7 | C138: 66 | D138: 7 | E138: 5977 | F138: 5900.967253 | G138: 1232 | H138: 81 | I138: 0.81 | J138: 997.92 | K138: -0.6808698433 | L138: 3127 | M138: 332 | N138: 3041 | O138: https://www.google.com/maps/@61.8939044901,24.1123069976,3a,75y,90t/data=!3m3!1e1!3m1!2e0 | P138: Gmaps | Q138: Ruovesi | R138: 1232 | S138: 81 | T138: 532 | U138: 441 | V138: 48 | W138: Osa seud. yht. | X138: 23 | Y138: Osa seud. yht. | Z138: 0 | AA138: 0 | AC138: 0 | AD138: 0 | AE138: 0 | AG138: Keskivilkas 1 | AH138: Keskivilkas 1 | AJ138: punainen | AK138: punainen | AL138: punainen | AN138: punainen | AO138: punainen | AP138: punainen | AQ138: 22 | AR138: 10 | AS138: 1 | AT138: 1 | AU138: 10 | AW138: punainen | AX138: punainen | AY138: punainen | AZ138: 22 | BA138: 10 | BB138: 1 | BC138: 1 | BD138: 10 | BF138: 65_13 | BG138: 65 | BH138: 13 | BI138: 129 | BK138: 66_6 | BL138: 66 | BM138: 6 | BN138: 400 | BP138: 66_6 | BQ138: 66 | BR138: 6 | BS138: 48 | BU138: 66_6 | BV138: 66 | BW138: 6 | BX138: 23 | BZ138: 339_2 | CA138: 343 | CB138: 82 | CH138: 303_5 | CI138: 800 | CJ138: 100.6289308 | CL138: 13096_1 | CM138: Vähä | CN138: 13096 | CO138: 1 | CP138: 3 | CQ138: Vähä 3 | CS138: 66_7 | CT138: 61.8939044901 | CU138: 24.1123069976 | CV138: https://www.google.com/maps/@61.8939044901,24.1123069976,3a,75y,90t/data=!3m3!1e1!3m1!2e0
A139: 127 | B139: 66_8 | C139: 66 | D139: 8 | E139: 5051 | F139: 4934.717162 | G139: 1599 | H139: 72 | I139: 0.72 | J139: 1151.28 | K139: -0.6641540257 | L139: 3428 | M139: 300 | N139: 3385 | O139: https://www.google.com/maps/@61.9443435788,24.1167141857,3a,75y,90t/data=!3m3!1e1!3m1!2e0 | P139: Gmaps | Q139: Ruovesi | R139: 1599 | S139: 72 | T139: 818 | U139: 632 | V139: 53 | W139: Osa seud. yht. | X139: 25 | Y139: Osa seud. yht. | Z139: 10 | AA139: 0.1 | AC139: 0 | AD139: 26.27202534 | AE139: 0.2627202534 | AG139: Keskivilkas 1 | AH139: Keskivilkas 1 | AJ139: punainen | AK139: punainen | AL139: punainen | AN139: punainen | AO139: punainen | AP139: punainen | AQ139: 31 | AR139: 10 | AS139: 1 | AT139: 10 | AU139: 10 | AW139: punainen | AX139: punainen | AY139: punainen | AZ139: 31 | BA139: 10 | BB139: 1 | BC139: 10 | BD139: 10 | BF139: 65_14 | BG139: 65 | BH139: 14 | BI139: 124 | BK139: 66_7 | BL139: 66 | BM139: 7 | BN139: 441 | BP139: 66_7 | BQ139: 66 | BR139: 7 | BS139: 48 | BU139: 66_7 | BV139: 66 | BW139: 7 | BX139: 23 | BZ139: 339_3 | CA139: 495 | CB139: 101 | CH139: 303_6 | CI139: 1223 | CJ139: 100.1638002 | CL139: 13277_2 | CM139: Vähä | CN139: 13277 | CO139: 2 | CP139: 3 | CQ139: Vähä 3 | CS139: 66_8 | CT139: 61.9443435788 | CU139: 24.1167141857 | CV139: https://www.google.com/maps/@61.9443435788,24.1167141857,3a,75y,90t/data=!3m3!1e1!3m1!2e0
A140: 128 | B140: 66_9 | C140: 66 | D140: 9 | E140: 8217 | F140: 8135.651102 | G140: 1233 | H140: 78 | I140: 0.78 | J140: 961.74 | K140: -0.6171417197 | L140: 2512 | M140: 200 | N140: 2418 | O140: https://www.google.com/maps/@61.9778031926,24.0618669767,3a,75y,90t/data=!3m3!1e1!3m1!2e0 | P140: Gmaps | Q140: Ruovesi | R140: 1233 | S140: 78 | T140: 625 | U140: 439 | V140: 37 | W140: Osa seud. yht. | X140: 21 | Y140: Osa seud. yht. | Z140: 5 | AA140: 0.05 | AC140: 0 | AD140: 45.51539491 | AE140: 0.4551539491 | AG140: Keskivilkas 1 | AH140: Keskivilkas 1 | AJ140: punainen | AK140: punainen | AL140: punainen | AN140: punainen | AO140: punainen | AP140: punainen | AQ140: 22 | AR140: 10 | AS140: 1 | AT140: 1 | AU140: 10 | AW140: punainen | AX140: punainen | AY140: punainen | AZ140: 22 | BA140: 10 | BB140: 1 | BC140: 1 | BD140: 10 | BF140: 65_15 | BG140: 65 | BH140: 15 | BI140: 124 | BK140: 66_8 | BL140: 66 | BM140: 8 | BN140: 632 | BP140: 66_8 | BQ140: 66 | BR140: 8 | BS140: 53 | BU140: 66_8 | BV140: 66 | BW140: 8 | BX140: 25 | BZ140: 339_4 | CA140: 704 | CB140: 101 | CH140: 304_3 | CI140: 604 | CJ140: 9.218559219 | CL140: 2594_2 | CM140: Vähä | CN140: 2594 | CO140: 2 | CP140: 3 | CQ140: Vähä 3 | CS140: 66_9 | CT140: 61.9778031926 | CU140: 24.0618669767 | CV140: https://www.google.com/maps/@61.9778031926,24.0618669767,3a,75y,90t/data=!3m3!1e1!3m1!2e0
A141: 129 | B141: =CONCATENATE(C141,"_",D141) -> 66_10 | C141: 66 | D141: 10 | E141: 7064 | F141: 7013.277404 | G141: 1035 | H141: 87 | I141: 0.87 | J141: 900.45 | K141: -0.6540722244 | L141: 2603 | M141: 212 | N141: 2506 | O141: =IFERROR(VLOOKUP(B141,$CS$13:$CV$1804,4,FALSE),"--") -> https://www.google.com/maps/@62.0432799718,24.0039366624,3a,75y,90t/data=!3m3!1e1!3m1!2e0 | P141: =HYPERLINK(O141,"Gmaps") -> Gmaps | Q141: Ruovesi | R141: 1035 | S141: 87 | T141: =IFERROR(VLOOKUP(B141,$BF$13:$BI$1000,4,FALSE),"TIEOSA PUUTTUU") -> 375 | U141: =IFERROR(VLOOKUP(B141,$BK$13:$BN$985,4,FALSE),"TIEOSA PUUTTUU") -> 319 | V141: =IFERROR(VLOOKUP(B141,$BP$13:$BS$1804,4,FALSE),"--") -> 34 | W141: Osa seud. yht. | X141: =IFERROR(VLOOKUP(B141,$BU$13:$BX$1804,4,FALSE),"--") -> 21 | Y141: Osa seud. yht. | Z141: 0 | AA141: 0 | AC141: 0 | AD141: 0 | AE141: =+AD141/100 -> 0 | AG141: =IFERROR(VLOOKUP(B141,$CL$13:$CQ$835,6,FALSE),"Ei määritetty") -> Keskivilkas 1 | AH141: Keskivilkas 1 | AJ141: punainen | AK141: punainen | AL141: punainen | AN141: punainen | AO141: punainen | AP141: =IF(I141="ei mallia","ei mallia",IF(AQ141>20,"punainen","musta")) -> punainen | AQ141: 22 | AR141: 10 | AS141: 1 | AT141: 1 | AU141: 10 | AW141: punainen | AX141: punainen | AY141: =IF(S141="ei mallia","ei mallia",IF(AZ141>20,"punainen","musta")) -> punainen | AZ141: 22 | BA141: 10 | BB141: 1 | BC141: 1 | BD141: 10 | BF141: 65_16 | BG141: 65 | BH141: 16 | BI141: 191 | BK141: 66_9 | BL141: 66 | BM141: 9 | BN141: 439 | BP141: 66_9 | BQ141: 66 | BR141: 9 | BS141: 37 | BU141: 66_9 | BV141: 66 | BW141: 9 | BX141: 21 | BZ141: 339_5 | CA141: 1442 | CB141: 100 | CH141: 304_3 | CI141: 2385 | CJ141: 36.4010989 | CL141: 13273_1 | CM141: Vähä | CN141: 13273 | CO141: 1 | CP141: 3 | CQ141: Vähä 3 | CS141: 66_10 | CT141: 62.0432799718 | CU141: 24.0039366624 | CV141: https://www.google.com/maps/@62.0432799718,24.0039366624,3a,75y,90t/data=!3m3!1e1!3m1!2e0
A142: 130 | B142: 66_11 | C142: 66 | D142: 11 | E142: 8085 | F142: 7958.994454 | G142: 1052 | H142: 80 | I142: 0.8 | J142: 841.6 | K142: -0.6017037388 | L142: 2113 | M142: 264 | N142: 2083 | O142: https://www.google.com/maps/@62.100685892,23.9585155156,3a,75y,90t/data=!3m3!1e1!3m1!2e0 | P142: Gmaps | Q142: Ruovesi, Virrat | R142: 1052 | S142: 80 | T142: 424 | U142: 334 | V142: 35 | W142: Osa seud. yht. | X142: 24 | Y142: Osa seud. yht. | Z142: 27 | AA142: 0.27 | AC142: =IFERROR(VLOOKUP(B142,$CD$13:$CF$49,3,FALSE),0) -> 0 | AD142: 40.65553494 | AE142: 0.4065553494 | AG142: Keskivilkas 1 | AH142: Keskivilkas 1 | AJ142: punainen | AK142: punainen | AL142: punainen | AN142: =IF(S142="ei mallia","ei mallia",IF(S142>59,IF(R142>999,"punainen",IF(U142>99,"punainen",IF(W142="Osa seud. yht.","punainen","musta"))),"musta")) -> punainen | AO142: =IF(S142="ei mallia","ei mallia",IF(S142>39,IF(R142>1999,"punainen",IF(U142>499,"punainen",IF(Y142="Osa seud. yht.","punainen","musta"))),"musta")) -> punainen | AP142: punainen | AQ142: =SUM(AR142:AU142) -> 22 | AR142: =IF(S142>59,10,IF(S142>39,1,0)) -> 10 | AS142: =IF(R142>1999,10,IF(R142>999,1,0)) -> 1 | AT142: =IF(U142>499,10,IF(U142>99,1,0)) -> 1 | AU142: =IF(Y142="Osa seud. yht.",10,IF(W142="Osa seud. yht.",1,0)) -> 10 | AW142: punainen | AX142: punainen | AY142: punainen | AZ142: =SUM(BA142:BD142) -> 22 | BA142: =IF(S142>49,10,IF(S142<50,1,0)) -> 10 | BB142: =IF(R142>1999,10,IF(R142>999,1,0)) -> 1 | BC142: =IF(U142>499,10,IF(U142>99,1,0)) -> 1 | BD142: =IF(Y142="Osa seud. yht.",10,IF(W142="Osa seud. yht.",1,0)) -> 10 | BF142: 65_17 | BG142: 65 | BH142: 17 | BI142: 215 | BK142: 66_10 | BL142: 66 | BM142: 10 | BN142: 319 | BP142: =CONCATENATE(BQ142,"_",BR142) -> 66_10 | BQ142: 66 | BR142: 10 | BS142: 34 | BU142: =CONCATENATE(BV142,"_",BW142) -> 66_10 | BV142: 66 | BW142: 10 | BX142: 21 | BZ142: 339_6 | CA142: 1739 | CB142: 100 | CH142: 307_1 | CI142: 635 | CJ142: 15.76464747 | CL142: 7056_3 | CM142: Vähä | CN142: 7056 | CO142: 3 | CP142: 3 | CQ142: =CONCATENATE(CM142," ",CP142) -> Vähä 3 | CS142: 66_11 | CT142: 62.100685892 | CU142: 23.9585155156 | CV142: https://www.google.com/maps/@62.100685892,23.9585155156,3a,75y,90t/data=!3m3!1e1!3m1!2e0
A143: 131 | B143: 66_12 | C143: 66 | D143: 12 | E143: 4678 | F143: 4613.418226 | G143: 1000 | H143: 73 | I143: =+H143/100 -> 0.73 | J143: =+I143*G143 -> 730 | K143: =+(J143-L143)/L143 -> -0.6545196403 | L143: 2113 | M143: 264 | N143: 2083 | O143: https://www.google.com/maps/@62.1583245414,23.8733896468,3a,75y,90t/data=!3m3!1e1!3m1!2e0 | P143: Gmaps | Q143: Ruovesi, Virrat | R143: 1000 | S143: 73 | T143: 312 | U143: 280 | V143: 35 | W143: =IF(V143>0,"Osa seud. yht."," --") -> Osa seud. yht. | X143: 24 | Y143: =IF(X143>0,"Osa seud. yht."," --") -> Osa seud. yht. | Z143: 23 | AA143: 0.23 | AC143: 0 | AD143: 0 | AE143: 0 | AG143: Keskivilkas 1 | AH143: Keskivilkas 1 | AJ143: punainen | AK143: punainen | AL143: punainen | AN143: punainen | AO143: punainen | AP143: punainen | AQ143: 22 | AR143: 10 | AS143: 1 | AT143: 1 | AU143: 10 | AW143: =IF(S143="ei mallia","ei mallia",IF(S143>49,IF(R143>999,"punainen",IF(U143>99,"punainen",IF(W143="Osa seud. yht.","punainen","musta"))),"musta")) -> punainen | AX143: =IF(S143="ei mallia","ei mallia",IF(S143>39,IF(R143>1999,"punainen",IF(U143>499,"punainen",IF(Y143="Osa seud. yht.","punainen","musta"))),"musta")) -> punainen | AY143: punainen | AZ143: 22 | BA143: 10 | BB143: 1 | BC143: 1 | BD143: 10 | BF143: 66_2 | BG143: 66 | BH143: 2 | BI143: 427 | BK143: 66_11 | BL143: 66 | BM143: 11 | BN143: 334 | BP143: 66_11 | BQ143: 66 | BR143: 11 | BS143: 35 | BU143: 66_11 | BV143: 66 | BW143: 11 | BX143: 24 | BZ143: 339_7 | CA143: 1527 | CB143: 68 | CH143: 307_1 | CI143: 2097 | CJ143: 52.06057597 | CL143: 3350_1 | CM143: Vähä | CN143: 3350 | CO143: 1 | CP143: 3 | CQ143: Vähä 3 | CS143: 66_12 | CT143: 62.1583245414 | CU143: 23.8733896468 | CV143: https://www.google.com/maps/@62.1583245414,23.8733896468,3a,75y,90t/data=!3m3!1e1!3m1!2e0
A144: 132 | B144: 66_13 | C144: 66 | D144: 13 | E144: 5987 | F144: 5945.680203 | G144: 951 | H144: 62 | I144: 0.62 | J144: 589.62 | K144: -0.7609002433 | L144: 2466 | M144: 233 | N144: 2382 | O144: https://www.google.com/maps/@62.1953473046,23.8355329344,3a,75y,90t/data=!3m3!1e1!3m1!2e0 | P144: Gmaps | Q144: Virrat | R144: 951 | S144: 62 | T144: 483 | U144: 322 | V144: 35 | W144: Osa seud. yht. | X144: 24 | Y144: Osa seud. yht. | Z144: 20 | AA144: 0.2 | AC144: 0 | AD144: 40.47102054 | AE144: 0.4047102054 | AG144: Keskivilkas 1 | AH144: Keskivilkas 1 | AJ144: punainen | AK144: punainen | AL144: punainen | AN144: punainen | AO144: punainen | AP144: punainen | AQ144: 21 | AR144: 10 | AS144: 0 | AT144: 1 | AU144: 10 | AW144: punainen | AX144: punainen | AY144: punainen | AZ144: 21 | BA144: 10 | BB144: 0 | BC144: 1 | BD144: 10 | BF144: 66_4 | BG144: 66 | BH144: 4 | BI144: 429 | BK144: 66_12 | BL144: 66 | BM144: 12 | BN144: 280 | BP144: 66_12 | BQ144: 66 | BR144: 12 | BS144: 35 | BU144: 66_12 | BV144: 66 | BW144: 12 | BX144: 24 | BZ144: 347_1 | CA144: 1163 | CB144: 101 | CH144: 307_2 | CI144: 952 | CJ144: 19.45636624 | CL144: 13087_2 | CM144: Vähä | CN144: 13087 | CO144: 2 | CP144: 3 | CQ144: Vähä 3 | CS144: 66_13 | CT144: 62.1953473046 | CU144: 23.8355329344 | CV144: https://www.google.com/maps/@62.1953473046,23.8355329344,3a,75y,90t/data=!3m3!1e1!3m1!2e0
A145: 133 | B145: 66_14 | C145: 66 | D145: 14 | E145: 1072 | F145: 1064.32044 | G145: 736 | H145: 67 | I145: 0.67 | J145: 493.12 | K145: -0.8457071339 | L145: 3196 | M145: 303 | N145: 3229 | O145: https://www.google.com/maps/@62.2411444431,23.7855097199,3a,75y,90t/data=!3m3!1e1!3m1!2e0 | P145: Gmaps | Q145: Virrat | R145: 736 | S145: 67 | T145: 472 | U145: 272 | V145: 30 | W145: Osa seud. yht. | X145: 16 | Y145: Osa seud. yht. | Z145: 100 | AA145: 1 | AC145: 0 | AD145: 99.90671642 | AE145: 0.9990671642 | AG145: Keskivilkas 1 | AH145: Keskivilkas 1 | AJ145: punainen | AK145: punainen | AL145: punainen | AN145: punainen | AO145: punainen | AP145: punainen | AQ145: 21 | AR145: 10 | AS145: 0 | AT145: 1 | AU145: 10 | AW145: punainen | AX145: punainen | AY145: punainen | AZ145: 21 | BA145: 10 | BB145: 0 | BC145: 1 | BD145: 10 | BF145: 66_6 | BG145: 66 | BH145: 6 | BI145: 410 | BK145: 66_13 | BL145: 66 | BM145: 13 | BN145: 322 | BP145: 66_13 | BQ145: 66 | BR145: 13 | BS145: 35 | BU145: 66_13 | BV145: 66 | BW145: 13 | BX145: 24 | BZ145: 347_2 | CA145: 166 | CB145: 108 | CH145: 308_1 | CI145: 542 | CJ145: 100.5565863 | CL145: 13131_1 | CM145: Vähä | CN145: 13131 | CO145: 1 | CP145: 3 | CQ145: Vähä 3 | CS145: 66_14 | CT145: 62.2411444431 | CU145: 23.7855097199 | CV145: https://www.google.com/maps/@62.2411444431,23.7855097199,3a,75y,90t/data=!3m3!1e1!3m1!2e0
A146: 134 | B146: 66_15 | C146: 66 | D146: 15 | E146: 7077 | F146: 11568.2302 | G146: 3008 | H146: 95 | I146: 0.95 | J146: 2857.6 | K146: 0.06349088202 | L146: 2687 | M146: 263 | N146: 2441 | O146: https://www.google.com/maps/@62.263185887,23.7113614954,3a,75y,90t/data=!3m3!1e1!3m1!2e0 | P146: Gmaps | Q146: Virrat | R146: 3008 | S146: 95 | T146: 238 | U146: 178 | V146: 30 | W146: Osa seud. yht. | X146: 17 | Y146: Osa seud. yht. | Z146: 0 | AA146: 0 | AC146: 0 | AD146: 0 | AE146: 0 | AG146: Keskivilkas 1 | AH146: Keskivilkas 1 | AJ146: punainen | AK146: punainen | AL146: punainen | AN146: punainen | AO146: punainen | AP146: punainen | AQ146: 31 | AR146: 10 | AS146: 10 | AT146: 1 | AU146: 10 | AW146: punainen | AX146: punainen | AY146: punainen | AZ146: 31 | BA146: 10 | BB146: 10 | BC146: 1 | BD146: 10 | BF146: 66_7 | BG146: 66 | BH146: 7 | BI146: 532 | BK146: 66_14 | BL146: 66 | BM146: 14 | BN146: 272 | BP146: 66_14 | BQ146: 66 | BR146: 14 | BS146: 30 | BU146: 66_14 | BV146: 66 | BW146: 14 | BX146: 16 | BZ146: 347_3 | CA146: 3953 | CB146: 69 | CH146: 308_2 | CI146: 2458 | CJ146: 55.73696145 | CL146: 12963_1 | CM146: Vähä | CN146: 12963 | CO146: 1 | CP146: 3 | CQ146: Vähä 3 | CS146: 66_15 | CT146: 62.263185887 | CU146: 23.7113614954 | CV146: https://www.google.com/maps/@62.263185887,23.7113614954,3a,75y,90t/data=!3m3!1e1!3m1!2e0
A147: 135 | B147: 66_16 | C147: 66 | D147: 16 | E147: 4558 | G147: 3008 | H147: 95 | I147: 0.95 | J147: 2857.6 | K147: 0.06349088202 | L147: 2687 | M147: 263 | N147: 2441 | O147: https://www.google.com/maps/@62.3203209196,23.6657490194,3a,75y,90t/data=!3m3!1e1!3m1!2e0 | P147: Gmaps | Q147: Virrat | R147: 3008 | S147: 95 | T147: 209 | U147: 166 | V147: 30 | W147: Osa seud. yht. | X147: 17 | Y147: Osa seud. yht. | Z147: 0 | AA147: 0 | AC147: 0 | AD147: 0 | AE147: 0 | AG147: Ei määritetty | AH147: Keskivilkas 1 | AJ147: punainen | AK147: punainen | AL147: punainen | AN147: punainen | AO147: punainen | AP147: punainen | AQ147: 31 | AR147: 10 | AS147: 10 | AT147: 1 | AU147: 10 | AW147: punainen | AX147: punainen | AY147: punainen | AZ147: 31 | BA147: 10 | BB147: 10 | BC147: 1 | BD147: 10 | BF147: 66_8 | BG147: 66 | BH147: 8 | BI147: 818 | BK147: 66_15 | BL147: 66 | BM147: 15 | BN147: 178 | BP147: 66_15 | BQ147: 66 | BR147: 15 | BS147: 30 | BU147: 66_15 | BV147: 66 | BW147: 15 | BX147: 17 | BZ147: 347_4 | CA147: 1793 | CB147: 100 | CH147: 309_1 | CI147: 2670 | CJ147: 33.50903614 | CL147: 13765_1 | CM147: Vähä | CN147: 13765 | CO147: 1 | CP147: 3 | CQ147: Vähä 3 | CS147: 66_16 | CT147: 62.3203209196 | CU147: 23.6657490194 | CV147: https://www.google.com/maps/@62.3203209196,23.6657490194,3a,75y,90t/data=!3m3!1e1!3m1!2e0
A148: 136 | B148: 66_17 | C148: 66 | D148: 17 | E148: 2462 | F148: 2432.768236 | G148: 3002 | H148: 97 | I148: 0.97 | J148: 2911.94 | K148: 0.08371417938 | L148: 2687 | M148: 263 | N148: 2441 | O148: https://www.google.com/maps/@62.3576080026,23.6357624459,3a,75y,90t/data=!3m3!1e1!3m1!2e0 | P148: Gmaps | Q148: Virrat | R148: 3002 | S148: 97 | T148: 188 | U148: 160 | V148: 30 | W148: Osa seud. yht. | X148: 17 | Y148: Osa seud. yht. | Z148: 0 | AA148: =+Z148/100 -> 0 | AC148: 0 | AD148: 0 | AE148: 0 | AG148: Keskivilkas 1 | AH148: Keskivilkas 1 | AJ148: punainen | AK148: punainen | AL148: punainen | AN148: punainen | AO148: punainen | AP148: punainen | AQ148: 31 | AR148: 10 | AS148: 10 | AT148: 1 | AU148: 10 | AW148: punainen | AX148: punainen | AY148: punainen | AZ148: 31 | BA148: 10 | BB148: 10 | BC148: 1 | BD148: 10 | BF148: 66_9 | BG148: 66 | BH148: 9 | BI148: 625 | BK148: 66_16 | BL148: 66 | BM148: 16 | BN148: 166 | BP148: 66_16 | BQ148: 66 | BR148: 16 | BS148: 30 | BU148: 66_16 | BV148: 66 | BW148: 16 | BX148: 17 | BZ148: 347_5 | CA148: 2259 | CB148: 96 | CH148: 309_1 | CI148: 1033 | CJ148: 12.96435743 | CL148: 14223_2 | CM148: Vähä | CN148: 14223 | CO148: 2 | CP148: 3 | CQ148: Vähä 3 | CS148: 66_17 | CT148: 62.3576080026 | CU148: 23.6357624459 | CV148: https://www.google.com/maps/@62.3576080026,23.6357624459,3a,75y,90t/data=!3m3!1e1!3m1!2e0
A149: 137 | B149: 66_18 | C149: 66 | D149: 18 | E149: 3740 | F149: 5249.055404 | G149: 2864 | H149: 98 | I149: 0.98 | J149: 2806.72 | K149: 0.0445552661 | L149: 2687 | M149: 263 | N149: 2441 | O149: https://www.google.com/maps/@62.3781601333,23.6510841769,3a,75y,90t/data=!3m3!1e1!3m1!2e0 | P149: Gmaps | Q149: Virrat | R149: 2864 | S149: 98 | T149: 189 | U149: 162 | V149: 30 | W149: Osa seud. yht. | X149: 17 | Y149: Osa seud. yht. | Z149: 0 | AA149: 0 | AC149: 0 | AD149: 0 | AE149: 0 | AG149: Keskivilkas 1 | AH149: Keskivilkas 1 | AJ149: punainen | AK149: punainen | AL149: punainen | AN149: punainen | AO149: punainen | AP149: punainen | AQ149: 31 | AR149: 10 | AS149: 10 | AT149: 1 | AU149: 10 | AW149: punainen | AX149: punainen | AY149: punainen | AZ149: 31 | BA149: 10 | BB149: 10 | BC149: 1 | BD149: 10 | BF149: 66_10 | BG149: 66 | BH149: 10 | BI149: 375 | BK149: 66_17 | BL149: 66 | BM149: 17 | BN149: 160 | BP149: 66_17 | BQ149: 66 | BR149: 17 | BS149: 30 | BU149: 66_17 | BV149: 66 | BW149: 17 | BX149: 17 | BZ149: 348_3 | CA149: 1256 | CB149: 31 | CH149: 310_1 | CI149: 1004 | CJ149: 38.82443929 | CL149: 13759_1 | CM149: Vähä | CN149: 13759 | CO149: 1 | CP149: 3 | CQ149: Vähä 3 | CS149: 66_18 | CT149: 62.3781601333 | CU149: 23.6510841769 | CV149: https://www.google.com/maps/@62.3781601333,23.6510841769,3a,75y,90t/data=!3m3!1e1!3m1!2e0
A150: 138 | B150: 68_1 | C150: 68 | D150: 1 | E150: 4586 | F150: 4563.538348 | G150: 428 | H150: 74 | I150: 0.74 | J150: 316.72 | K150: -0.7447864625 | L150: 1241 | M150: 88 | N150: 1192 | O150: https://www.google.com/maps/@62.2506633431,23.7833951232,3a,75y,90t/data=!3m3!1e1!3m1!2e0 | P150: Gmaps | Q150: Virrat | R150: 428 | S150: 74 | T150: 208 | U150: 148 | V150: 31 | W150: Osa seud. yht. | X150: 21 | Y150: Osa seud. yht. | Z150: 2 | AA150: 0.02 | AC150: 0 | AD150: 5.407762756 | AE150: 0.05407762756 | AG150: Keskivilkas 1 | AH150: Keskivilkas 1 | AJ150: punainen | AK150: punainen | AL150: punainen | AN150: punainen | AO150: punainen | AP150: punainen | AQ150: 21 | AR150: 10 | AS150: 0 | AT150: 1 | AU150: 10 | AW150: punainen | AX150: punainen | AY150: punainen | AZ150: 21 | BA150: 10 | BB150: 0 | BC150: 1 | BD150: 10 | BF150: 66_11 | BG150: 66 | BH150: 11 | BI150: 424 | BK150: 66_18 | BL150: 66 | BM150: 18 | BN150: 162 | BP150: 66_18 | BQ150: 66 | BR150: 18 | BS150: 30 | BU150: 66_18 | BV150: 66 | BW150: 18 | BX150: 17 | BZ150: 348_5 | CA150: 1921 | CB150: 35 | CH150: 310_2 | CI150: 1559 | CJ150: 44.46662864 | CL150: 13321_1 | CM150: Vähä | CN150: 13321 | CO150: 1 | CP150: 3 | CQ150: Vähä 3 | CS150: 68_1 | CT150: 62.2506633431 | CU150: 23.7833951232 | CV150: https://www.google.com/maps/@62.2506633431,23.7833951232,3a,75y,90t/data=!3m3!1e1!3m1!2e0
A151: 139 | B151: 68_2 | C151: 68 | D151: 2 | E151: 7770 | F151: 7697.052343 | G151: 847 | H151: 87 | I151: 0.87 | J151: 736.89 | K151: -0.4062127317 | L151: 1241 | M151: 88 | N151: 1192 | O151: https://www.google.com/maps/@62.2912770366,23.7853515315,3a,75y,90t/data=!3m3!1e1!3m1!2e0 | P151: Gmaps | Q151: Virrat | R151: 847 | S151: 87 | T151: 189 | U151: 142 | V151: 31 | W151: Osa seud. yht. | X151: 21 | Y151: Osa seud. yht. | Z151: 0 | AA151: 0 | AC151: 0 | AD151: 0 | AE151: 0 | AG151: Keskivilkas 1 | AH151: Keskivilkas 1 | AJ151: punainen | AK151: punainen | AL151: punainen | AN151: punainen | AO151: punainen | AP151: punainen | AQ151: 21 | AR151: 10 | AS151: 0 | AT151: 1 | AU151: 10 | AW151: punainen | AX151: punainen | AY151: punainen | AZ151: 21 | BA151: 10 | BB151: 0 | BC151: 1 | BD151: 10 | BF151: 66_12 | BG151: 66 | BH151: 12 | BI151: 312 | BK151: 68_1 | BL151: 68 | BM151: 1 | BN151: 148 | BP151: 68_1 | BQ151: 68 | BR151: 1 | BS151: 31 | BU151: 68_1 | BV151: 68 | BW151: 1 | BX151: 21 | BZ151: 348_6 | CA151: 2968 | CB151: 44 | CH151: 310_5 | CI151: 3782 | CJ151: 42.85552408 | CL151: 14339_2 | CM151: Vähä | CN151: 14339 | CO151: 2 | CP151: 3 | CQ151: Vähä 3 | CS151: 68_2 | CT151: 62.2912770366 | CU151: 23.7853515315 | CV151: https://www.google.com/maps/@62.2912770366,23.7853515315,3a,75y,90t/data=!3m3!1e1!3m1!2e0
A152: 140 | B152: 68_3 | C152: 68 | D152: 3 | E152: 6600 | F152: 6506.467639 | G152: 994 | H152: 92 | I152: 0.92 | J152: 914.48 | K152: -0.2631103948 | L152: 1241 | M152: 88 | N152: 1192 | O152: https://www.google.com/maps/@62.3555698829,23.8253776334,3a,75y,90t/data=!3m3!1e1!3m1!2e0 | P152: Gmaps | Q152: Virrat | R152: 994 | S152: 92 | T152: 151 | U152: 124 | V152: 31 | W152: Osa seud. yht. | X152: 21 | Y152: Osa seud. yht. | Z152: 0 | AA152: 0 | AC152: 0 | AD152: 0 | AE152: 0 | AG152: Keskivilkas 1 | AH152: Keskivilkas 1 | AJ152: punainen | AK152: punainen | AL152: punainen | AN152: punainen | AO152: punainen | AP152: punainen | AQ152: 21 | AR152: 10 | AS152: 0 | AT152: 1 | AU152: 10 | AW152: punainen | AX152: punainen | AY152: punainen | AZ152: 21 | BA152: 10 | BB152: 0 | BC152: 1 | BD152: 10 | BF152: 66_13 | BG152: 66 | BH152: 13 | BI152: 483 | BK152: 68_2 | BL152: 68 | BM152: 2 | BN152: 142 | BP152: 68_2 | BQ152: 68 | BR152: 2 | BS152: 31 | BU152: 68_2 | BV152: 68 | BW152: 2 | BX152: 21 | BZ152: 2470_6 | CA152: 20 | CB152: 1 | CH152: 322_1 | CI152: 165 | CJ152: 2.82970331 | CL152: 14365_1 | CM152: Vähä | CN152: 14365 | CO152: 1 | CP152: 3 | CQ152: Vähä 3 | CS152: 68_3 | CT152: 62.3555698829 | CU152: 23.8253776334 | CV152: https://www.google.com/maps/@62.3555698829,23.8253776334,3a,75y,90t/data=!3m3!1e1!3m1!2e0
A153: 141 | B153: 68_4 | C153: 68 | D153: 4 | E153: 2830 | F153: 3056.619618 | G153: 872 | H153: 91 | I153: 0.91 | J153: 793.52 | K153: -0.1776994819 | L153: 965 | M153: 88 | N153: 930 | O153: https://www.google.com/maps/@62.4042290529,23.8855400716,3a,75y,90t/data=!3m3!1e1!3m1!2e0 | P153: Gmaps | Q153: Virrat | R153: 872 | S153: 91 | T153: 89 | U153: 75 | V153: 31 | W153: Osa seud. yht. | X153: 21 | Y153: Osa seud. yht. | Z153: 0 | AA153: 0 | AC153: 0 | AD153: 0 | AE153: 0 | AG153: Keskivilkas 1 | AH153: Keskivilkas 1 | AJ153: punainen | AK153: punainen | AL153: punainen | AN153: punainen | AO153: punainen | AP153: musta | AQ153: 20 | AR153: 10 | AS153: 0 | AT153: 0 | AU153: 10 | AW153: punainen | AX153: punainen | AY153: musta | AZ153: 20 | BA153: 10 | BB153: 0 | BC153: 0 | BD153: 10 | BF153: 66_14 | BG153: 66 | BH153: 14 | BI153: 472 | BK153: 68_3 | BL153: 68 | BM153: 3 | BN153: 124 | BP153: 68_3 | BQ153: 68 | BR153: 3 | BS153: 31 | BU153: 68_3 | BV153: 68 | BW153: 3 | BX153: 21 | BZ153: 2481_1 | CA153: 451 | CB153: 13 | CH153: 322_2 | CI153: 765 | CJ153: 13.124035 | CL153: 12735_3 | CM153: Vähä | CN153: 12735 | CO153: 3 | CP153: 3 | CQ153: Vähä 3 | CS153: 68_4 | CT153: 62.4042290529 | CU153: 23.8855400716 | CV153: https://www.google.com/maps/@62.4042290529,23.8855400716,3a,75y,90t/data=!3m3!1e1!3m1!2e0
A154: 142 | B154: 130_19 | C154: 130 | D154: 19 | E154: 5650 | G154: 3500 | H154: 91 | I154: 0.91 | J154: 3185 | K154: 0.9468215159 | L154: 1636 | M154: 148 | N154: 1698 | O154: https://www.google.com/maps/@61.1256891147,24.0880710136,3a,75y,90t/data=!3m3!1e1!3m1!2e0 | P154: Gmaps | Q154: Valkeakoski | R154: 3500 | S154: 91 | T154: 291 | U154: 267 | V154: 2 | W154: Osa seud. yht. | X154: 2 | Y154: Osa seud. yht. | Z154: 0 | AA154: 0 | AC154: 0 | AD154: 0 | AE154: 0 | AG154: Keskivilkas 1 | AH154: Keskivilkas 1 | AJ154: punainen | AK154: punainen | AL154: punainen | AN154: punainen | AO154: punainen | AP154: punainen | AQ154: 31 | AR154: 10 | AS154: 10 | AT154: 1 | AU154: 10 | AW154: punainen | AX154: punainen | AY154: punainen | AZ154: 31 | BA154: 10 | BB154: 10 | BC154: 1 | BD154: 10 | BF154: 66_15 | BG154: 66 | BH154: 15 | BI154: 238 | BK154: 68_4 | BL154: 68 | BM154: 4 | BN154: 75 | BP154: 68_4 | BQ154: 68 | BR154: 4 | BS154: 31 | BU154: 68_4 | BV154: 68 | BW154: 4 | BX154: 21 | BZ154: 2495_1 | CA154: 461 | CB154: 7 | CH154: 322_5 | CI154: 2333 | CJ154: 52.92649728 | CL154: 13721_2 | CM154: Vähä | CN154: 13721 | CO154: 2 | CP154: 3 | CQ154: Vähä 3 | CS154: 130_19 | CT154: 61.1256891147 | CU154: 24.0880710136 | CV154: https://www.google.com/maps/@61.1256891147,24.0880710136,3a,75y,90t/data=!3m3!1e1!3m1!2e0
A155: 143 | B155: 130_20 | C155: 130 | D155: 20 | E155: 3554 | F155: 3492.074529 | G155: 3476 | H155: 87 | I155: 0.87 | J155: 3024.12 | K155: 0.06109473684 | L155: 2850 | M155: 255 | N155: 3011 | O155: https://www.google.com/maps/@61.1693705331,24.0366719328,3a,75y,90t/data=!3m3!1e1!3m1!2e0 | P155: Gmaps | Q155: Valkeakoski | R155: 3476 | S155: 87 | T155: 498 | U155: 419 | V155: 3 | W155: Osa seud. yht. | X155: 2 | Y155: Osa seud. yht. | Z155: 0 | AA155: 0 | AC155: 0 | AD155: 5.936972425 | AE155: 0.05936972425 | AG155: Keskivilkas 1 | AH155: Keskivilkas 1 | AJ155: punainen | AK155: punainen | AL155: punainen | AN155: punainen | AO155: punainen | AP155: punainen | AQ155: 31 | AR155: 10 | AS155: 10 | AT155: 1 | AU155: 10 | AW155: punainen | AX155: punainen | AY155: punainen | AZ155: 31 | BA155: 10 | BB155: 10 | BC155: 1 | BD155: 10 | BF155: 66_16 | BG155: 66 | BH155: 16 | BI155: 209 | BK155: 130_19 | BL155: 130 | BM155: 19 | BN155: 267 | BP155: 130_19 | BQ155: 130 | BR155: 19 | BS155: 2 | BU155: 130_19 | BV155: 130 | BW155: 19 | BX155: 2 | BZ155: 2495_2 | CA155: 31 | CB155: 1 | CH155: 322_6 | CI155: 279 | CJ155: 4.696969697 | CL155: 3381_1 | CM155: Vähä | CN155: 3381 | CO155: 1 | CP155: 3 | CQ155: Vähä 3 | CS155: 130_20 | CT155: 61.1693705331 | CU155: 24.0366719328 | CV155: https://www.google.com/maps/@61.1693705331,24.0366719328,3a,75y,90t/data=!3m3!1e1!3m1!2e0
A156: 144 | B156: 130_21 | C156: 130 | D156: 21 | E156: 5571 | F156: 5547.103592 | G156: 3054 | H156: 89 | I156: 0.89 | J156: 2718.06 | K156: -0.04629473684 | L156: 2850 | M156: 255 | N156: 3011 | O156: https://www.google.com/maps/@61.1962875406,24.0573857659,3a,75y,90t/data=!3m3!1e1!3m1!2e0 | P156: Gmaps | Q156: Valkeakoski | R156: 3054 | S156: 89 | T156: 692 | U156: 482 | V156: 2 | W156: Osa seud. yht. | X156: 2 | Y156: Osa seud. yht. | Z156: 0 | AA156: 0 | AC156: 0 | AD156: 0.718003949 | AE156: 0.00718003949 | AG156: Keskivilkas 1 | AH156: Keskivilkas 1 | AJ156: punainen | AK156: punainen | AL156: punainen | AN156: punainen | AO156: punainen | AP156: punainen | AQ156: 31 | AR156: 10 | AS156: 10 | AT156: 1 | AU156: 10 | AW156: punainen | AX156: punainen | AY156: punainen | AZ156: 31 | BA156: 10 | BB156: 10 | BC156: 1 | BD156: 10 | BF156: 66_17 | BG156: 66 | BH156: 17 | BI156: 188 | BK156: 130_20 | BL156: 130 | BM156: 20 | BN156: 419 | BP156: 130_20 | BQ156: 130 | BR156: 20 | BS156: 3 | BU156: 130_20 | BV156: 130 | BW156: 20 | BX156: 2 | BZ156: 2505_1 | CA156: 935 | CB156: 15 | CH156: 325_1 | CI156: 1176 | CJ156: 19.95587986 | CL156: 13347_1 | CM156: Vähä | CN156: 13347 | CO156: 1 | CP156: 3 | CQ156: Vähä 3 | CS156: 130_21 | CT156: 61.1962875406 | CU156: 24.0573857659 | CV156: https://www.google.com/maps/@61.1962875406,24.0573857659,3a,75y,90t/data=!3m3!1e1!3m1!2e0
A157: 145 | B157: 130_22 | C157: 130 | D157: 22 | E157: 2626 | F157: 2615.290655 | G157: 930 | H157: 85 | I157: 0.85 | J157: 790.5 | K157: -0.6267705382 | L157: 2118 | M157: 170 | N157: 2301 | O157: https://www.google.com/maps/@61.2389315541,24.008796045,3a,75y,90t/data=!3m3!1e1!3m1!2e0 | P157: Gmaps | Q157: Valkeakoski | R157: 930 | S157: 85 | T157: 1239 | U157: 908 | V157: 0 | W157: -- | X157: 0 | Y157: -- | Z157: 7 | AA157: 0.07 | AC157: 0 | AD157: 0 | AE157: 0 | AG157: Keskivilkas 1 | AH157: Keskivilkas 1 | AJ157: ehkä rajatapaus | AK157: ehkä rajatapaus | AL157: punainen | AN157: punainen | AO157: punainen | AP157: musta | AQ157: 20 | AR157: 10 | AS157: 0 | AT157: 10 | AU157: 0 | AW157: punainen | AX157: punainen | AY157: musta | AZ157: 20 | BA157: 10 | BB157: 0 | BC157: 10 | BD157: 0 | BF157: 66_18 | BG157: 66 | BH157: 18 | BI157: 189 | BK157: 130_21 | BL157: 130 | BM157: 21 | BN157: 482 | BP157: 130_21 | BQ157: 130 | BR157: 21 | BS157: 2 | BU157: 130_21 | BV157: 130 | BW157: 21 | BX157: 2 | BZ157: 2505_7 | CA157: 905 | CB157: 19 | CH157: 325_2 | CI157: 583 | CJ157: 9.40929632 | CL157: 3280_4 | CM157: Vähä | CN157: 3280 | CO157: 4 | CP157: 3 | CQ157: Vähä 3 | CS157: 130_22 | CT157: 61.2389315541 | CU157: 24.008796045 | CV157: https://www.google.com/maps/@61.2389315541,24.008796045,3a,75y,90t/data=!3m3!1e1!3m1!2e0
A158: 146 | B158: 130_23 | C158: 130 | D158: 23 | E158: 7802 | F158: 7771.681155 | G158: 3788 | H158: 83 | I158: 0.83 | J158: 3144.04 | K158: -0.5283468347 | L158: 6666 | M158: 401 | N158: 7582 | O158: https://www.google.com/maps/@61.2667416139,23.9741602303,3a,75y,90t/data=!3m3!1e1!3m1!2e0 | P158: Gmaps | Q158: Lempäälä, Valkeakoski | R158: 3788 | S158: 83 | T158: 2961 | U158: 2543 | V158: 14 | W158: Osa seud. yht. | X158: 32 | Y158: Osa seud. yht. | Z158: 5 | AA158: 0.05 | AC158: 0 | AD158: 8.895155088 | AE158: 0.08895155088 | AG158: Keskivilkas 1 | AH158: Keskivilkas 1 | AJ158: punainen | AK158: punainen | AL158: punainen | AN158: punainen | AO158: punainen | AP158: punainen | AQ158: 40 | AR158: 10 | AS158: 10 | AT158: 10 | AU158: 10 | AW158: punainen | AX158: punainen | AY158: punainen | AZ158: 40 | BA158: 10 | BB158: 10 | BC158: 10 | BD158: 10 | BF158: 68_1 | BG158: 68 | BH158: 1 | BI158: 208 | BK158: 130_22 | BL158: 130 | BM158: 22 | BN158: 908 | BP158: 130_22 | BQ158: 130 | BR158: 22 | BS158: 0 | BU158: 130_22 | BV158: 130 | BW158: 22 | BX158: 0 | BZ158: 2522_1 | CA158: 27 | CB158: 1 | CH158: 325_3 | CI158: 1812 | CJ158: 33.18073613 | CL158: 13697_1 | CM158: Vähä | CN158: 13697 | CO158: 1 | CP158: 3 | CQ158: Vähä 3 | CS158: 130_23 | CT158: 61.2667416139 | CU158: 23.9741602303 | CV158: https://www.google.com/maps/@61.2667416139,23.9741602303,3a,75y,90t/data=!3m3!1e1!3m1!2e0
A159: 147 | B159: 130_24 | C159: 130 | D159: 24 | E159: 6097 | F159: 6115.187115 | G159: 4685 | H159: 82 | I159: 0.82 | J159: 3841.7 | K159: -0.4236873687 | L159: 6666 | M159: 401 | N159: 7582 | O159: https://www.google.com/maps/@61.3249611552,23.8975101743,3a,75y,90t/data=!3m3!1e1!3m1!2e0 | P159: Gmaps | Q159: Lempäälä | R159: 4685 | S159: 82 | T159: 2740 | U159: 2565 | V159: 14 | W159: Osa seud. yht. | X159: 32 | Y159: Osa seud. yht. | Z159: 7 | AA159: 0.07 | AC159: 0.1536821388 | AD159: 8.34836805 | AE159: 0.0834836805 | AG159: Keskivilkas 1 | AH159: Keskivilkas 1 | AJ159: punainen | AK159: punainen | AL159: punainen | AN159: punainen | AO159: punainen | AP159: punainen | AQ159: 40 | AR159: 10 | AS159: 10 | AT159: 10 | AU159: 10 | AW159: punainen | AX159: punainen | AY159: punainen | AZ159: 40 | BA159: 10 | BB159: 10 | BC159: 10 | BD159: 10 | BF159: 68_2 | BG159: 68 | BH159: 2 | BI159: 189 | BK159: 130_23 | BL159: 130 | BM159: 23 | BN159: 2543 | BP159: 130_23 | BQ159: 130 | BR159: 23 | BS159: 14 | BU159: 130_23 | BV159: 130 | BW159: 23 | BX159: 32 | BZ159: 2594_1 | CA159: 112 | CB159: 3 | CH159: 325_4 | CI159: 1536 | CJ159: 17.30509238 | CL159: 13247_1 | CM159: Vähä | CN159: 13247 | CO159: 1 | CP159: 3 | CQ159: Vähä 3 | CS159: 130_24 | CT159: 61.3249611552 | CU159: 23.8975101743 | CV159: https://www.google.com/maps/@61.3249611552,23.8975101743,3a,75y,90t/data=!3m3!1e1!3m1!2e0
A160: 148 | B160: 130_25 | C160: 130 | D160: 25 | E160: 1935 | F160: 1947.587945 | G160: 3439 | H160: 77 | I160: 0.77 | J160: 2648.03 | K160: -0.6027557756 | L160: 6666 | M160: 401 | N160: 7582 | O160: https://www.google.com/maps/@61.3630635317,23.8165874349,3a,75y,90t/data=!3m3!1e1!3m1!2e0 | P160: Gmaps | Q160: Lempäälä | R160: 3439 | S160: 77 | T160: 4626 | U160: 2808 | V160: 14 | W160: Osa seud. yht. | X160: 32 | Y160: Osa seud. yht. | Z160: 89 | AA160: 0.89 | AC160: 0.1131782946 | AD160: 69.14728682 | AE160: 0.6914728682 | AG160: Keskivilkas 1 | AH160: Keskivilkas 1 | AJ160: punainen | AK160: punainen | AL160: punainen/musta | AN160: punainen | AO160: punainen | AP160: punainen | AQ160: 40 | AR160: 10 | AS160: 10 | AT160: 10 | AU160: 10 | AW160: punainen | AX160: punainen | AY160: punainen | AZ160: 40 | BA160: 10 | BB160: 10 | BC160: 10 | BD160: 10 | BF160: 68_3 | BG160: 68 | BH160: 3 | BI160: 151 | BK160: 130_24 | BL160: 130 | BM160: 24 | BN160: 2565 | BP160: 130_24 | BQ160: 130 | BR160: 24 | BS160: 14 | BU160: 130_24 | BV160: 130 | BW160: 24 | BX160: 32 | BZ160: 2595_1 | CA160: 200 | CB160: 48 | CH160: 325_6 | CI160: 1453 | CJ160: 19.32951976 | CL160: 13323_1 | CM160: Vähä | CN160: 13323 | CO160: 1 | CP160: 3 | CQ160: Vähä 3 | CS160: 130_25 | CT160: 61.3630635317 | CU160: 23.8165874349 | CV160: https://www.google.com/maps/@61.3630635317,23.8165874349,3a,75y,90t/data=!3m3!1e1!3m1!2e0
A161: 149 | B161: 130_26 | C161: 130 | D161: 26 | E161: 1800 | F161: 2362.789489 | G161: 293 | H161: 38 | I161: 0.38 | J161: 111.34 | K161: -0.961460713 | L161: 2889 | M161: 115 | N161: 3027 | O161: https://www.google.com/maps/@61.3651092098,23.7829169963,3a,75y,90t/data=!3m3!1e1!3m1!2e0 | P161: Gmaps | Q161: Lempäälä | R161: 293 | S161: 38 | T161: 557 | U161: 142 | V161: 0 | W161: -- | X161: 0 | Y161: -- | Z161: 61 | AA161: 0.61 | AC161: 0.1366666667 | AD161: 99.94444444 | AE161: 0.9994444444 | AG161: Keskivilkas 1 | AH161: Keskivilkas 1 | AJ161: musta | AK161: musta | AL161: musta | AN161: musta | AO161: musta | AP161: musta | AQ161: 1 | AR161: 0 | AS161: 0 | AT161: 1 | AU161: 0 | AW161: musta | AX161: musta | AY161: musta | AZ161: 2 | BA161: 1 | BB161: 0 | BC161: 1 | BD161: 0 | BF161: 68_4 | BG161: 68 | BH161: 4 | BI161: 89 | BK161: 130_25 | BL161: 130 | BM161: 25 | BN161: 2808 | BP161: 130_25 | BQ161: 130 | BR161: 25 | BS161: 14 | BU161: 130_25 | BV161: 130 | BW161: 25 | BX161: 32 | BZ161: 2595_2 | CA161: 715 | CB161: 103 | CH161: 332_1 | CI161: 1501 | CJ161: 27.37053246 | CL161: 13259_1 | CM161: Vähä | CN161: 13259 | CO161: 1 | CP161: 3 | CQ161: Vähä 3 | CS161: 130_26 | CT161: 61.3651092098 | CU161: 23.7829169963 | CV161: https://www.google.com/maps/@61.3651092098,23.7829169963,3a,75y,90t/data=!3m3!1e1!3m1!2e0
A162: 150 | B162: 130_27 | C162: 130 | D162: 27 | E162: 1703 | F162: 1104.12727 | G162: 138 | H162: 18 | I162: 0.18 | J162: 24.84 | K162: =+(J162-L162)/L162 -> -0.9967563332 | L162: 7658 | M162: 268 | N162: 7880 | O162: https://www.google.com/maps/@61.3786380727,23.7783811962,3a,75y,90t/data=!3m3!1e1!3m1!2e0 | P162: Gmaps | Q162: Lempäälä | R162: 138 | S162: 18 | T162: 1261 | U162: 238 | V162: 0 | W162: -- | X162: 0 | Y162: -- | Z162: 51 | AA162: 0.51 | AC162: 0 | AD162: 99.58896066 | AE162: 0.9958896066 | AG162: Keskivilkas 1 | AH162: Keskivilkas 1 | AJ162: musta | AK162: musta | AL162: musta | AN162: musta | AO162: musta | AP162: musta | AQ162: 1 | AR162: 0 | AS162: 0 | AT162: 1 | AU162: 0 | AW162: musta | AX162: musta | AY162: musta | AZ162: 2 | BA162: 1 | BB162: 0 | BC162: 1 | BD162: 0 | BF162: 130_19 | BG162: 130 | BH162: 19 | BI162: 291 | BK162: 130_26 | BL162: 130 | BM162: 26 | BN162: 142 | BP162: 130_26 | BQ162: 130 | BR162: 26 | BS162: 0 | BU162: 130_26 | BV162: 130 | BW162: 26 | BX162: 0 | BZ162: 2595_3 | CA162: 690 | CB162: 101 | CH162: 332_8 | CI162: 1356 | CJ162: 21.4556962 | CL162: 13157_1 | CM162: Vähä | CN162: 13157 | CO162: 1 | CP162: 3 | CQ162: Vähä 3 | CS162: 130_27 | CT162: 61.3786380727 | CU162: 23.7783811962 | CV162: https://www.google.com/maps/@61.3786380727,23.7783811962,3a,75y,90t/data=!3m3!1e1!3m1!2e0
A163: 151 | B163: 130_28 | C163: 130 | D163: 28 | E163: 2768 | F163: 4948.089108 | G163: 103 | H163: 13 | I163: 0.13 | J163: 13.39 | K163: -0.9974269792 | L163: 5204 | M163: 247 | N163: 5676 | O163: https://www.google.com/maps/@61.3931774299,23.7763529351,3a,75y,90t/data=!3m3!1e1!3m1!2e0 | P163: Gmaps | Q163: Lempäälä | R163: 103 | S163: 13 | T163: 2437 | U163: 325 | V163: 0 | W163: -- | X163: 0 | Y163: -- | Z163: 77 | AA163: 0.77 | AC163: 0 | AD163: 100.216763 | AE163: 1.00216763 | AG163: Keskivilkas 1 | AH163: Keskivilkas 1 | AJ163: musta | AK163: musta | AL163: musta | AN163: musta | AO163: musta | AP163: musta | AQ163: 1 | AR163: 0 | AS163: 0 | AT163: 1 | AU163: 0 | AW163: musta | AX163: musta | AY163: musta | AZ163: 2 | BA163: 1 | BB163: 0 | BC163: 1 | BD163: 0 | BF163: 130_20 | BG163: 130 | BH163: 20 | BI163: 498 | BK163: 130_27 | BL163: 130 | BM163: 27 | BN163: 238 | BP163: 130_27 | BQ163: 130 | BR163: 27 | BS163: 0 | BU163: 130_27 | BV163: 130 | BW163: 27 | BX163: 0 | BZ163: 2761_1 | CA163: 1119 | CB163: 100 | CH163: 337_1 | CI163: 1788 | CJ163: 34.96284709 | CL163: 3071_2 | CM163: Vähä | CN163: 3071 | CO163: 2 | CP163: 3 | CQ163: Vähä 3 | CS163: 130_28 | CT163: 61.3931774299 | CU163: 23.7763529351 | CV163: https://www.google.com/maps/@61.3931774299,23.7763529351,3a,75y,90t/data=!3m3!1e1!3m1!2e0
A164: 152 | B164: 130_29 | C164: 130 | D164: 29 | E164: 2212 | F164: 3471.336528 | G164: 223 | H164: 14 | I164: 0.14 | J164: 31.22 | K164: -0.9941546527 | L164: 5341 | M164: 390 | N164: 6103 | O164: https://www.google.com/maps/@61.4160997816,23.75866989,3a,75y,90t/data=!3m3!1e1!3m1!2e0 | P164: Gmaps | Q164: Lempäälä, Tampere | R164: 223 | S164: 14 | T164: 11852 | U164: 497 | V164: 0 | W164: -- | X164: 0 | Y164: -- | Z164: 86 | AA164: 0.86 | AC164: 0 | AD164: 99.90958409 | AE164: 0.9990958409 | AG164: Keskivilkas 1 | AH164: Keskivilkas 1 | AJ164: musta | AK164: musta | AL164: musta | AN164: musta | AO164: musta | AP164: musta | AQ164: 1 | AR164: 0 | AS164: 0 | AT164: 1 | AU164: 0 | AW164: musta | AX164: musta | AY164: musta | AZ164: 2 | BA164: 1 | BB164: 0 | BC164: 1 | BD164: 0 | BF164: 130_21 | BG164: 130 | BH164: 21 | BI164: 692 | BK164: 130_28 | BL164: 130 | BM164: 28 | BN164: 325 | BP164: 130_28 | BQ164: 130 | BR164: 28 | BS164: 0 | BU164: 130_28 | BV164: 130 | BW164: 28 | BX164: 0 | BZ164: 2773_1 | CA164: 225 | CB164: 6 | CH164: 337_3 | CI164: 460 | CJ164: 5.977130977 | CL164: 14377_1 | CM164: Vähä | CN164: 14377 | CO164: 1 | CP164: 3 | CQ164: Vähä 3 | CS164: 130_29 | CT164: 61.4160997816 | CU164: 23.75866989 | CV164: https://www.google.com/maps/@61.4160997816,23.75866989,3a,75y,90t/data=!3m3!1e1!3m1!2e0
A165: 153 | B165: 190_1 | C165: 190 | D165: 1 | E165: 4778 | F165: 4752.714705 | G165: 3980 | H165: 90 | I165: 0.9 | J165: 3582 | K165: 0.4119038234 | L165: 2537 | M165: 164 | N165: 2623 | O165: https://www.google.com/maps/@61.183736641,23.7157130514,3a,75y,90t/data=!3m3!1e1!3m1!2e0 | P165: Gmaps | Q165: Akaa | R165: 3980 | S165: 90 | T165: 519 | U165: 313 | V165: 11 | W165: Osa seud. yht. | X165: 5 | Y165: Osa seud. yht. | Z165: 0 | AA165: 0 | AC165: 0 | AD165: 40.05860193 | AE165: 0.4005860193 | AG165: Keskivilkas 1 | AH165: Keskivilkas 1 | AJ165: punainen | AK165: punainen | AL165: punainen | AN165: punainen | AO165: punainen | AP165: punainen | AQ165: 31 | AR165: 10 | AS165: 10 | AT165: 1 | AU165: 10 | AW165: punainen | AX165: punainen | AY165: punainen | AZ165: 31 | BA165: 10 | BB165: 10 | BC165: 1 | BD165: 10 | BF165: 130_22 | BG165: 130 | BH165: 22 | BI165: 1239 | BK165: 130_29 | BL165: 130 | BM165: 29 | BN165: 497 | BP165: 130_29 | BQ165: 130 | BR165: 29 | BS165: 0 | BU165: 130_29 | BV165: 130 | BW165: 29 | BX165: 0 | BZ165: 2773_5 | CA165: 921 | CB165: 21 | CH165: 338_1 | CI165: 3401 | CJ165: 72.37710151 | CL165: 14380_1 | CM165: Vähä | CN165: 14380 | CO165: 1 | CP165: 3 | CQ165: Vähä 3 | CS165: 190_1 | CT165: 61.183736641 | CU165: 23.7157130514 | CV165: https://www.google.com/maps/@61.183736641,23.7157130514,3a,75y,90t/data=!3m3!1e1!3m1!2e0
A166: 154 | B166: 190_2 | C166: 190 | D166: 2 | E166: 4888 | F166: 4875.827423 | G166: 4388 | H166: 80 | I166: 0.8 | J166: 3510.4 | K166: -0.05659768879 | L166: 3721 | M166: 157 | N166: 4024 | O166: https://www.google.com/maps/@61.2236883761,23.7393223711,3a,75y,90t/data=!3m3!1e1!3m1!2e0 | P166: Gmaps | Q166: Akaa, Lempäälä | R166: 4388 | S166: 80 | T166: 996 | U166: 737 | V166: 11 | W166: Osa seud. yht. | X166: 6 | Y166: Osa seud. yht. | Z166: 0 | AA166: 0 | AC166: 0 | AD166: 19.49672668 | AE166: 0.1949672668 | AG166: Keskivilkas 1 | AH166: Keskivilkas 1 | AJ166: punainen | AK166: punainen | AL166: punainen | AN166: punainen | AO166: punainen | AP166: punainen | AQ166: 40 | AR166: 10 | AS166: 10 | AT166: 10 | AU166: 10 | AW166: punainen | AX166: punainen | AY166: punainen | AZ166: 40 | BA166: 10 | BB166: 10 | BC166: 10 | BD166: 10 | BF166: 130_23 | BG166: 130 | BH166: 23 | BI166: 2961 | BK166: 130_30 | BL166: 130 | BM166: 30 | BN166: 3719 | BP166: 130_30 | BQ166: 130 | BR166: 30 | BS166: 0 | BU166: 130_30 | BV166: 130 | BW166: 30 | BX166: 1 | BZ166: 2774_2 | CA166: 617 | CB166: 12 | CH166: 338_2 | CI166: 359 | CJ166: 3.899630676 | CL166: 13709_1 | CM166: Vähä | CN166: 13709 | CO166: 1 | CP166: 3 | CQ166: Vähä 3 | CS166: 190_2 | CT166: 61.2236883761 | CU166: 23.7393223711 | CV166: https://www.google.com/maps/@61.2236883761,23.7393223711,3a,75y,90t/data=!3m3!1e1!3m1!2e0
A167: 155 | B167: 190_3 | C167: 190 | D167: 3 | E167: 5697 | F167: 5569.676086 | G167: 4745 | H167: 78 | I167: 0.78 | J167: 3701.1 | K167: -0.3127019499 | L167: 5385 | M167: 217 | N167: 5820 | O167: https://www.google.com/maps/@61.2668060491,23.7455080617,3a,75y,90t/data=!3m3!1e1!3m1!2e0 | P167: Gmaps | Q167: Lempäälä | R167: 4745 | S167: 78 | T167: 2880 | U167: 2343 | V167: 55 | W167: Osa seud. yht. | X167: 43 | Y167: Osa seud. yht. | Z167: 27 | AA167: 0.27 | AC167: 0 | AD167: 52.94014394 | AE167: 0.5294014394 | AG167: Keskivilkas 1 | AH167: Keskivilkas 1 | AJ167: punainen | AK167: punainen | AL167: punainen | AN167: punainen | AO167: punainen | AP167: punainen | AQ167: 40 | AR167: 10 | AS167: 10 | AT167: 10 | AU167: 10 | AW167: punainen | AX167: punainen | AY167: punainen | AZ167: 40 | BA167: 10 | BB167: 10 | BC167: 10 | BD167: 10 | BF167: 130_24 | BG167: 130 | BH167: 24 | BI167: 2740 | BK167: 190_1 | BL167: 190 | BM167: 1 | BN167: 313 | BP167: 190_1 | BQ167: 190 | BR167: 1 | BS167: 11 | BU167: 190_1 | BV167: 190 | BW167: 1 | BX167: 5 | BZ167: 2790_4 | CA167: 2267 | CB167: 57 | CH167: 338_3 | CI167: 401 | CJ167: 6.709051364 | CL167: 13603_1 | CM167: Vähä | CN167: 13603 | CO167: 1 | CP167: 3 | CQ167: Vähä 3 | CS167: 190_3 | CT167: 61.2668060491 | CU167: 23.7455080617 | CV167: https://www.google.com/maps/@61.2668060491,23.7455080617,3a,75y,90t/data=!3m3!1e1!3m1!2e0
A168: 156 | B168: 190_4 | C168: 190 | D168: 4 | E168: 6132 | F168: 6072.947639 | G168: 3889 | H168: 71 | I168: 0.71 | J168: 2761.19 | K168: -0.4836967091 | L168: 5348 | M168: 170 | N168: 5773 | O168: https://www.google.com/maps/@61.3150712431,23.7615387372,3a,75y,90t/data=!3m3!1e1!3m1!2e0 | P168: Gmaps | Q168: Lempäälä | R168: 3889 | S168: 71 | T168: 4978 | U168: 3677 | V168: 36 | W168: Osa seud. yht. | X168: 33 | Y168: Osa seud. yht. | Z168: 1 | AA168: 0.01 | AC168: 0.01924331376 | AD168: 48.1245923 | AE168: 0.481245923 | AG168: Keskivilkas 1 | AH168: Keskivilkas 1 | AJ168: punainen | AK168: punainen | AL168: punainen/musta | AN168: punainen | AO168: punainen | AP168: punainen | AQ168: 40 | AR168: 10 | AS168: 10 | AT168: 10 | AU168: 10 | AW168: punainen | AX168: punainen | AY168: punainen | AZ168: 40 | BA168: 10 | BB168: 10 | BC168: 10 | BD168: 10 | BF168: 130_25 | BG168: 130 | BH168: 25 | BI168: 4626 | BK168: 190_2 | BL168: 190 | BM168: 2 | BN168: 737 | BP168: 190_2 | BQ168: 190 | BR168: 2 | BS168: 11 | BU168: 190_2 | BV168: 190 | BW168: 2 | BX168: 6 | BZ168: 2847_1 | CA168: 1974 | CB168: 40 | CH168: 339_1 | CI168: 2750 | CJ168: 99.27797834 | CL168: 3201_3 | CM168: Vähä | CN168: 3201 | CO168: 3 | CP168: 3 | CQ168: Vähä 3 | CS168: 190_4 | CT168: 61.3150712431 | CU168: 23.7615387372 | CV168: https://www.google.com/maps/@61.3150712431,23.7615387372,3a,75y,90t/data=!3m3!1e1!3m1!2e0
A169: 157 | B169: 230_5 | C169: 230 | D169: 5 | E169: 6291 | F169: 4735.348676 | G169: 355 | H169: 79 | I169: 0.79 | J169: 280.45 | K169: -0.651181592 | L169: 804 | M169: 52 | N169: 853 | O169: https://www.google.com/maps/@61.1422616296,22.924104434,3a,75y,90t/data=!3m3!1e1!3m1!2e0 | P169: Gmaps | Q169: Punkalaidun | R169: 355 | S169: 79 | T169: 59 | U169: 32 | V169: 0 | W169: -- | X169: 0 | Y169: -- | Z169: 0 | AA169: 0 | AC169: 0 | AD169: 0 | AE169: 0 | AG169: Keskivilkas 1 | AH169: Keskivilkas 1 | AJ169: musta | AK169: punainen | AL169: punainen | AN169: musta | AO169: musta | AP169: musta | AQ169: 10 | AR169: 10 | AS169: 0 | AT169: 0 | AU169: 0 | AW169: musta | AX169: musta | AY169: musta | AZ169: 10 | BA169: 10 | BB169: 0 | BC169: 0 | BD169: 0 | BF169: 130_26 | BG169: 130 | BH169: 26 | BI169: 557 | BK169: 190_3 | BL169: 190 | BM169: 3 | BN169: 2343 | BP169: 190_3 | BQ169: 190 | BR169: 3 | BS169: 55 | BU169: 190_3 | BV169: 190 | BW169: 3 | BX169: 43 | BZ169: 2847_4 | CA169: 327 | CB169: 10 | CH169: 339_2 | CI169: 422 | CJ169: 100.7159905 | CL169: 13603_2 | CM169: Vähä | CN169: 13603 | CO169: 2 | CP169: 3 | CQ169: Vähä 3 | CS169: 230_5 | CT169: 61.1422616296 | CU169: 22.924104434 | CV169: https://www.google.com/maps/@61.1422616296,22.924104434,3a,75y,90t/data=!3m3!1e1!3m1!2e0
A170: 158 | B170: 230_6 | C170: 230 | D170: 6 | E170: 4487 | F170: 4397.261583 | G170: 487 | H170: 69 | I170: 0.69 | J170: 336.03 | K170: -0.7980588942 | L170: 1664 | M170: 103 | N170: 1755 | O170: https://www.google.com/maps/@61.1234093857,23.0290593553,3a,75y,90t/data=!3m3!1e1!3m1!2e0 | P170: Gmaps | Q170: Punkalaidun | R170: 487 | S170: 69 | T170: 381 | U170: 175 | V170: 13 | W170: Osa seud. yht. | X170: 0 | Y170: -- | Z170: 49 | AA170: 0.49 | AC170: 0 | AD170: 48.42879429 | AE170: 0.4842879429 | AG170: Keskivilkas 1 | AH170: Keskivilkas 1 | AJ170: rajatapaus | AK170: punainen | AL170: punainen | AN170: punainen | AO170: musta | AP170: musta | AQ170: 12 | AR170: 10 | AS170: 0 | AT170: 1 | AU170: 1 | AW170: punainen | AX170: musta | AY170: musta | AZ170: 12 | BA170: 10 | BB170: 0 | BC170: 1 | BD170: 1 | BF170: 130_27 | BG170: 130 | BH170: 27 | BI170: 1261 | BK170: 190_4 | BL170: 190 | BM170: 4 | BN170: 3677 | BP170: 190_4 | BQ170: 190 | BR170: 4 | BS170: 36 | BU170: 190_4 | BV170: 190 | BW170: 4 | BX170: 33 | BZ170: 2851_1 | CA170: 199 | CB170: 3 | CH170: 339_3 | CI170: 495 | CJ170: 100.6097561 | CL170: 13753_1 | CM170: Vähä | CN170: 13753 | CO170: 1 | CP170: 3 | CQ170: Vähä 3 | CS170: 230_6 | CT170: 61.1234093857 | CU170: 23.0290593553 | CV170: https://www.google.com/maps/@61.1234093857,23.0290593553,3a,75y,90t/data=!3m3!1e1!3m1!2e0
A171: 159 | B171: 230_7 | C171: 230 | D171: 7 | E171: 12749 | F171: 11923.02293 | G171: 421 | H171: 71 | I171: 0.71 | J171: 298.91 | K171: -0.7521475954 | L171: 1206 | M171: 63 | N171: 1256 | O171: https://www.google.com/maps/@61.1116949378,23.1068121982,3a,75y,90t/data=!3m3!1e1!3m1!2e0 | P171: Gmaps | Q171: Punkalaidun, Urjala | R171: 421 | S171: 71 | T171: 447 | U171: 174 | V171: 38 | W171: Osa seud. yht. | X171: 0 | Y171: -- | Z171: 13 | AA171: 0.13 | AC171: 0 | AD171: 14.0873794 | AE171: 0.140873794 | AG171: Keskivilkas 1 | AH171: Keskivilkas 1 | AJ171: rajatapaus | AK171: punainen | AL171: punainen | AN171: punainen | AO171: musta | AP171: musta | AQ171: 12 | AR171: 10 | AS171: 0 | AT171: 1 | AU171: 1 | AW171: punainen | AX171: musta | AY171: musta | AZ171: 12 | BA171: 10 | BB171: 0 | BC171: 1 | BD171: 1 | BF171: 130_28 | BG171: 130 | BH171: 28 | BI171: 2437 | BK171: 230_5 | BL171: 230 | BM171: 5 | BN171: 32 | BP171: 230_5 | BQ171: 230 | BR171: 5 | BS171: 0 | BU171: 230_5 | BV171: 230 | BW171: 5 | BX171: 0 | BZ171: 2985_1 | CA171: 166 | CB171: 3 | CH171: 339_4 | CI171: 704 | CJ171: 100.5714286 | CL171: 3200_4 | CM171: Vähä | CN171: 3200 | CO171: 4 | CP171: 3 | CQ171: Vähä 3 | CS171: 230_7 | CT171: 61.1116949378 | CU171: 23.1068121982 | CV171: https://www.google.com/maps/@61.1116949378,23.1068121982,3a,75y,90t/data=!3m3!1e1!3m1!2e0
A172: 160 | B172: 230_9 | C172: 230 | D172: 9 | E172: 7615 | G172: 500 | H172: 70 | I172: 0.7 | J172: 350 | K172: -0.5466321244 | L172: 772 | M172: 56 | N172: 782 | O172: https://www.google.com/maps/@61.0980582974,23.3261436026,3a,75y,90t/data=!3m3!1e1!3m1!2e0 | P172: Gmaps | Q172: Urjala | R172: 500 | S172: 70 | T172: 145 | U172: 105 | V172: 16 | W172: Osa seud. yht. | X172: 0 | Y172: -- | Z172: 0 | AA172: 0 | AC172: 0 | AD172: 0 | AE172: 0 | AG172: Keskivilkas 1 | AH172: Keskivilkas 1 | AJ172: rajatapaus | AK172: punainen | AL172: punainen | AN172: punainen | AO172: musta | AP172: musta | AQ172: 12 | AR172: 10 | AS172: 0 | AT172: 1 | AU172: 1 | AW172: punainen | AX172: musta | AY172: musta | AZ172: 12 | BA172: 10 | BB172: 0 | BC172: 1 | BD172: 1 | BF172: 130_29 | BG172: 130 | BH172: 29 | BI172: 11852 | BK172: 230_6 | BL172: 230 | BM172: 6 | BN172: 175 | BP172: 230_6 | BQ172: 230 | BR172: 6 | BS172: 13 | BU172: 230_6 | BV172: 230 | BW172: 6 | BX172: 0 | BZ172: 2986_1 | CA172: 695 | CB172: 12 | CH172: 339_5 | CI172: 1442 | CJ172: 100.4878049 | CL172: 14281_1 | CM172: Vähä | CN172: 14281 | CO172: 1 | CP172: 3 | CQ172: Vähä 3 | CS172: 230_9 | CT172: 61.0980582974 | CU172: 23.3261436026 | CV172: https://www.google.com/maps/@61.0980582974,23.3261436026,3a,75y,90t/data=!3m3!1e1!3m1!2e0
A173: 161 | B173: 230_10 | C173: 230 | D173: 10 | E173: 4794 | F173: 4721.109243 | G173: 548 | H173: 60 | I173: 0.6 | J173: 328.8 | K173: -0.8138165345 | L173: 1766 | M173: 104 | N173: 1804 | O173: https://www.google.com/maps/@61.0857753857,23.4564166982,3a,75y,90t/data=!3m3!1e1!3m1!2e0 | P173: Gmaps | Q173: Urjala | R173: 548 | S173: 60 | T173: 337 | U173: 194 | V173: 17 | W173: Osa seud. yht. | X173: 0 | Y173: -- | Z173: 13 | AA173: 0.13 | AC173: 0 | AD173: 11.32665832 | AE173: 0.1132665832 | AG173: Keskivilkas 1 | AH173: Keskivilkas 1 | AJ173: rajatapaus | AK173: punainen | AL173: punainen | AN173: punainen | AO173: musta | AP173: musta | AQ173: 12 | AR173: 10 | AS173: 0 | AT173: 1 | AU173: 1 | AW173: punainen | AX173: musta | AY173: musta | AZ173: 12 | BA173: 10 | BB173: 0 | BC173: 1 | BD173: 1 | BF173: 190_1 | BG173: 190 | BH173: 1 | BI173: 519 | BK173: 230_7 | BL173: 230 | BM173: 7 | BN173: 174 | BP173: 230_7 | BQ173: 230 | BR173: 7 | BS173: 38 | BU173: 230_7 | BV173: 230 | BW173: 7 | BX173: 0 | BZ173: 3001_1 | CA173: 729 | CB173: 27 | CH173: 339_6 | CI173: 1739 | CJ173: 100.404157 | CL173: 12739_1 | CM173: Vähä | CN173: 12739 | CO173: 1 | CP173: 3 | CQ173: Vähä 3 | CS173: 230_10 | CT173: 61.0857753857 | CU173: 23.4564166982 | CV173: https://www.google.com/maps/@61.0857753857,23.4564166982,3a,75y,90t/data=!3m3!1e1!3m1!2e0
A174: 162 | B174: 231_1 | C174: 231 | D174: 1 | E174: 801 | F174: 1043.088823 | G174: 352 | H174: 81 | I174: 0.81 | J174: 285.12 | K174: -0.442035225 | L174: 511 | M174: 48 | N174: 530 | O174: https://www.google.com/maps/@61.0405782029,22.995181448,3a,75y,90t/data=!3m3!1e1!3m1!2e0 | P174: Gmaps | Q174: Punkalaidun | R174: 352 | S174: 81 | T174: 21 | U174: 11 | V174: 0 | W174: -- | X174: 0 | Y174: -- | Z174: 0 | AA174: 0 | AC174: 0 | AD174: 0 | AE174: 0 | AG174: Keskivilkas 1 | AH174: Keskivilkas 1 | AJ174: musta | AK174: musta | AL174: musta | AN174: musta | AO174: musta | AP174: musta | AQ174: 10 | AR174: 10 | AS174: 0 | AT174: 0 | AU174: 0 | AW174: musta | AX174: musta | AY174: musta | AZ174: 10 | BA174: 10 | BB174: 0 | BC174: 0 | BD174: 0 | BF174: 190_2 | BG174: 190 | BH174: 2 | BI174: 996 | BK174: 230_9 | BL174: 230 | BM174: 9 | BN174: 105 | BP174: 230_9 | BQ174: 230 | BR174: 9 | BS174: 16 | BU174: 230_9 | BV174: 230 | BW174: 9 | BX174: 0 | BZ174: 3002_1 | CA174: 999 | CB174: 102 | CH174: 339_7 | CI174: 2258 | CJ174: 100 | CL174: 3350_2 | CM174: Vähä | CN174: 3350 | CO174: 2 | CP174: 3 | CQ174: Vähä 3 | CS174: 231_1 | CT174: 61.0405782029 | CU174: 22.995181448 | CV174: https://www.google.com/maps/@61.0405782029,22.995181448,3a,75y,90t/data=!3m3!1e1!3m1!2e0
A175: 163 | B175: 232_2 | C175: 232 | D175: 2 | E175: 6580 | F175: 2999.588715 | G175: 836 | H175: 89 | I175: 0.89 | J175: 744.04 | K175: 0.5631092437 | L175: 476 | M175: 32 | N175: 455 | O175: https://www.google.com/maps/@61.0066487369,23.2546692458,3a,75y,90t/data=!3m3!1e1!3m1!2e0 | P175: Gmaps | Q175: Punkalaidun | R175: 836 | S175: 89 | T175: 65 | U175: 48 | V175: 5 | W175: Osa seud. yht. | X175: 0 | Y175: -- | Z175: 0 | AA175: 0 | AC175: 0 | AD175: 0 | AE175: 0 | AG175: Vähä 1 | AH175: Vähä 1 | AJ175: rajatapaus | AK175: punainen | AL175: punainen | AN175: punainen | AO175: musta | AP175: musta | AQ175: 11 | AR175: 10 | AS175: 0 | AT175: 0 | AU175: 1 | AW175: punainen | AX175: musta | AY175: musta | AZ175: 11 | BA175: 10 | BB175: 0 | BC175: 0 | BD175: 1 | BF175: 190_3 | BG175: 190 | BH175: 3 | BI175: 2880 | BK175: 230_10 | BL175: 230 | BM175: 10 | BN175: 194 | BP175: 230_10 | BQ175: 230 | BR175: 10 | BS175: 17 | BU175: 230_10 | BV175: 230 | BW175: 10 | BX175: 0 | BZ175: 3002_2 | CA175: 349 | CB175: 104 | CH175: 346_1 | CI175: 480 | CJ175: 12.70513499 | CL175: 2521_5 | CM175: Vähä | CN175: 2521 | CO175: 5 | CP175: 3 | CQ175: Vähä 3 | CS175: 232_2 | CT175: 61.0066487369 | CU175: 23.2546692458 | CV175: https://www.google.com/maps/@61.0066487369,23.2546692458,3a,75y,90t/data=!3m3!1e1!3m1!2e0
A176: 164 | B176: 232_3 | C176: 232 | D176: 3 | E176: 2035 | F176: 1954.544068 | G176: 867 | H176: 88 | I176: 0.88 | J176: 762.96 | K176: -0.02807643312 | L176: 785 | M176: 44 | N176: 779 | O176: https://www.google.com/maps/@61.052223582,23.1901232222,3a,75y,90t/data=!3m3!1e1!3m1!2e0 | P176: Gmaps | Q176: Punkalaidun | R176: 867 | S176: 88 | T176: 55 | U176: 39 | V176: 0 | W176: -- | X176: 0 | Y176: -- | Z176: 0 | AA176: 0 | AC176: 0 | AD176: 0 | AE176: 0 | AG176: Keskivilkas 1 | AH176: Keskivilkas 1 | AJ176: musta | AK176: punainen | AL176: punainen | AN176: musta | AO176: musta | AP176: musta | AQ176: 10 | AR176: 10 | AS176: 0 | AT176: 0 | AU176: 0 | AW176: musta | AX176: musta | AY176: musta | AZ176: 10 | BA176: 10 | BB176: 0 | BC176: 0 | BD176: 0 | BF176: 190_4 | BG176: 190 | BH176: 4 | BI176: 4978 | BK176: 231_1 | BL176: 231 | BM176: 1 | BN176: 11 | BP176: 231_1 | BQ176: 231 | BR176: 1 | BS176: 0 | BU176: 231_1 | BV176: 231 | BW176: 1 | BX176: 0 | BZ176: 3002_3 | CA176: 257 | CB176: 101 | CH176: 347_1 | CI176: 1163 | CJ176: 100.5185825 | CL176: 14273_1 | CM176: Vähä | CN176: 14273 | CO176: 1 | CP176: 3 | CQ176: Vähä 3 | CS176: 232_3 | CT176: 61.052223582 | CU176: 23.1901232222 | CV176: https://www.google.com/maps/@61.052223582,23.1901232222,3a,75y,90t/data=!3m3!1e1!3m1!2e0
A177: 165 | B177: 232_4 | C177: 232 | D177: 4 | E177: 6660 | F177: 6537.656176 | G177: 801 | H177: 82 | I177: 0.82 | J177: 656.82 | K177: -0.2162052506 | L177: 838 | M177: 45 | N177: 834 | O177: https://www.google.com/maps/@61.0688153696,23.1799223936,3a,75y,90t/data=!3m3!1e1!3m1!2e0 | P177: Gmaps | Q177: Punkalaidun | R177: 801 | S177: 82 | T177: 185 | U177: 60 | V177: 0 | W177: -- | X177: 0 | Y177: -- | Z177: 2 | AA177: 0.02 | AC177: 0 | AD177: 13.24324324 | AE177: 0.1324324324 | AG177: Keskivilkas 1 | AH177: Keskivilkas 1 | AJ177: musta | AK177: punainen | AL177: punainen | AN177: musta | AO177: musta | AP177: musta | AQ177: 10 | AR177: 10 | AS177: 0 | AT177: 0 | AU177: 0 | AW177: musta | AX177: musta | AY177: musta | AZ177: 10 | BA177: 10 | BB177: 0 | BC177: 0 | BD177: 0 | BF177: 230_5 | BG177: 230 | BH177: 5 | BI177: 59 | BK177: 232_2 | BL177: 232 | BM177: 2 | BN177: 48 | BP177: 232_2 | BQ177: 232 | BR177: 2 | BS177: 5 | BU177: 232_2 | BV177: 232 | BW177: 2 | BX177: 0 | BZ177: 3002_4 | CA177: 284 | CB177: 101 | CH177: 347_2 | CI177: 166 | CJ177: 107.7922078 | CL177: 2521_4 | CM177: Vähä | CN177: 2521 | CO177: 4 | CP177: 3 | CQ177: Vähä 3 | CS177: 232_4 | CT177: 61.0688153696 | CU177: 23.1799223936 | CV177: https://www.google.com/maps/@61.0688153696,23.1799223936,3a,75y,90t/data=!3m3!1e1!3m1!2e0
A178: 166 | B178: 249_1 | C178: 249 | D178: 1 | E178: 5455 | F178: 5406.424383 | G178: 863 | H178: 51 | I178: 0.51 | J178: 440.13 | K178: -0.8066212654 | L178: 2276 | M178: 144 | N178: 2450 | O178: https://www.google.com/maps/@61.2625105795,22.7287749784,3a,75y,90t/data=!3m3!1e1!3m1!2e0 | P178: Gmaps | Q178: Sastamala | R178: 863 | S178: 51 | T178: 574 | U178: 166 | V178: 0 | W178: -- | X178: 0 | Y178: -- | Z178: 54 | AA178: 0.54 | AC178: 0 | AD178: 90.17415215 | AE178: 0.9017415215 | AG178: Keskivilkas 1 | AH178: Keskivilkas 1 | AJ178: musta | AK178: musta | AL178: pinkki | AN178: musta | AO178: musta | AP178: musta | AQ178: 2 | AR178: 1 | AS178: 0 | AT178: 1 | AU178: 0 | AW178: punainen | AX178: musta | AY178: musta | AZ178: 11 | BA178: 10 | BB178: 0 | BC178: 1 | BD178: 0 | BF178: 230_6 | BG178: 230 | BH178: 6 | BI178: 381 | BK178: 232_3 | BL178: 232 | BM178: 3 | BN178: 39 | BP178: 232_3 | BQ178: 232 | BR178: 3 | BS178: 0 | BU178: 232_3 | BV178: 232 | BW178: 3 | BX178: 0 | BZ178: 3002_5 | CA178: 2156 | CB178: 77 | CH178: 347_3 | CI178: 5689 | CJ178: 99.77200982 | CL178: 12835_1 | CM178: Vähä | CN178: 12835 | CO178: 1 | CP178: 3 | CQ178: Vähä 3 | CS178: 249_1 | CT178: 61.2625105795 | CU178: 22.7287749784 | CV178: https://www.google.com/maps/@61.2625105795,22.7287749784,3a,75y,90t/data=!3m3!1e1!3m1!2e0
A179: 167 | B179: 249_2 | C179: 249 | D179: 2 | E179: 4976 | F179: 8315.385492 | G179: 505 | H179: 33 | I179: 0.33 | J179: 166.65 | K179: -0.9339476813 | L179: 2523 | M179: 137 | N179: 2747 | O179: https://www.google.com/maps/@61.2934310718,22.7052859531,3a,75y,90t/data=!3m3!1e1!3m1!2e0 | P179: Gmaps | Q179: Sastamala | R179: 505 | S179: 33 | T179: 545 | U179: 117 | V179: 0 | W179: -- | X179: 0 | Y179: -- | Z179: 49 | AA179: 0.49 | AC179: 0 | AD179: 29.20016077 | AE179: 0.2920016077 | AG179: Keskivilkas 1 | AH179: Keskivilkas 1 | AJ179: musta | AK179: musta | AL179: pinkki | AN179: musta | AO179: musta | AP179: musta | AQ179: 1 | AR179: 0 | AS179: 0 | AT179: 1 | AU179: 0 | AW179: musta | AX179: musta | AY179: musta | AZ179: 2 | BA179: 1 | BB179: 0 | BC179: 1 | BD179: 0 | BF179: 230_7 | BG179: 230 | BH179: 7 | BI179: 447 | BK179: 232_4 | BL179: 232 | BM179: 4 | BN179: 60 | BP179: 232_4 | BQ179: 232 | BR179: 4 | BS179: 0 | BU179: 232_4 | BV179: 232 | BW179: 4 | BX179: 0 | BZ179: 3002_5 | CA179: 686 | CB179: 24 | CH179: 347_4 | CI179: 1793 | CJ179: 99.88857939 | CL179: 13275_3 | CM179: Vähä | CN179: 13275 | CO179: 3 | CP179: 3 | CQ179: Vähä 3 | CS179: 249_2 | CT179: 61.2934310718 | CU179: 22.7052859531 | CV179: https://www.google.com/maps/@61.2934310718,22.7052859531,3a,75y,90t/data=!3m3!1e1!3m1!2e0
A180: 168 | B180: 249_3 | C180: 249 | D180: 3 | E180: 6744 | F180: 3358.721699 | G180: 1305 | H180: 62 | I180: 0.62 | J180: 809.1 | K180: -0.7750625521 | L180: 3597 | M180: 271 | N180: 3856 | O180: https://www.google.com/maps/@61.3189940596,22.7761091299,3a,75y,90t/data=!3m3!1e1!3m1!2e0 | P180: Gmaps | Q180: Sastamala | R180: 1305 | S180: 62 | T180: 1058 | U180: 368 | V180: 8 | W180: Osa seud. yht. | X180: 13 | Y180: Osa seud. yht. | Z180: 21 | AA180: 0.21 | AC180: 0 | AD180: 11.50652432 | AE180: 0.1150652432 | AG180: Keskivilkas 1 | AH180: Keskivilkas 1 | AJ180: punainen | AK180: punainen | AL180: punainen | AN180: punainen | AO180: punainen | AP180: punainen | AQ180: 22 | AR180: 10 | AS180: 1 | AT180: 1 | AU180: 10 | AW180: punainen | AX180: punainen | AY180: punainen | AZ180: 22 | BA180: 10 | BB180: 1 | BC180: 1 | BD180: 10 | BF180: 230_9 | BG180: 230 | BH180: 9 | BI180: 145 | BK180: 249_1 | BL180: 249 | BM180: 1 | BN180: 166 | BP180: 249_1 | BQ180: 249 | BR180: 1 | BS180: 0 | BU180: 249_1 | BV180: 249 | BW180: 1 | BX180: 0 | BZ180: 3003_1 | CA180: 159 | CB180: 4 | CH180: 347_5 | CI180: 2296 | CJ180: 97.41196436 | CL180: 12845_1 | CM180: Vähä | CN180: 12845 | CO180: 1 | CP180: 3 | CQ180: Vähä 3 | CS180: 249_3 | CT180: 61.3189940596 | CU180: 22.7761091299 | CV180: https://www.google.com/maps/@61.3189940596,22.7761091299,3a,75y,90t/data=!3m3!1e1!3m1!2e0
A181: 169 | B181: 249_4 | C181: 249 | D181: 4 | E181: 2515 | F181: 2491.494668 | G181: 1433 | H181: 63 | I181: 0.63 | J181: 902.79 | K181: -0.662129491 | L181: 2672 | M181: 239 | N181: 2787 | O181: https://www.google.com/maps/@61.3527922708,22.8694931713,3a,75y,90t/data=!3m3!1e1!3m1!2e0 | P181: Gmaps | Q181: Sastamala | R181: 1433 | S181: 63 | T181: 1028 | U181: 390 | V181: 8 | W181: Osa seud. yht. | X181: 13 | Y181: Osa seud. yht. | Z181: 87 | AA181: 0.87 | AC181: 0 | AD181: 100.1192843 | AE181: 1.001192843 | AF181: Vammalan rautatieasema | AG181: Keskivilkas 1 | AH181: Keskivilkas 1 | AJ181: punainen | AK181: punainen | AL181: punainen | AN181: punainen | AO181: punainen | AP181: punainen | AQ181: 22 | AR181: 10 | AS181: 1 | AT181: 1 | AU181: 10 | AW181: punainen | AX181: punainen | AY181: punainen | AZ181: 22 | BA181: 10 | BB181: 1 | BC181: 1 | BD181: 10 | BF181: 230_10 | BG181: 230 | BH181: 10 | BI181: 337 | BK181: 249_2 | BL181: 249 | BM181: 2 | BN181: 117 | BP181: 249_2 | BQ181: 249 | BR181: 2 | BS181: 0 | BU181: 249_2 | BV181: 249 | BW181: 2 | BX181: 0 | BZ181: 3003_3 | CA181: 1468 | CB181: 30 | CH181: 348_3 | CI181: 3942 | CJ181: 96.85503685 | CL181: 14358_1 | CM181: Vähä | CN181: 14358 | CO181: 1 | CP181: 3 | CQ181: Vähä 3 | CS181: 249_4 | CT181: 61.3527922708 | CU181: 22.8694931713 | CV181: https://www.google.com/maps/@61.3527922708,22.8694931713,3a,75y,90t/data=!3m3!1e1!3m1!2e0
A182: 170 | B182: 249_5 | C182: 249 | D182: 5 | E182: 7800 | F182: 7751.518683 | G182: 2161 | H182: 79 | I182: 0.79 | J182: 1707.19 | K182: -0.5685645691 | L182: 3957 | M182: 347 | N182: 4198 | O182: https://www.google.com/maps/@61.3529959794,22.9143231012,3a,75y,90t/data=!3m3!1e1!3m1!2e0 | P182: Gmaps | Q182: Sastamala | R182: 2161 | S182: 79 | T182: 946 | U182: 682 | V182: 10 | W182: Osa seud. yht. | X182: 17 | Y182: Osa seud. yht. | Z182: 16 | AA182: 0.16 | AC182: 0 | AD182: 17.62820513 | AE182: 0.1762820513 | AG182: Keskivilkas 1 | AH182: Keskivilkas 1 | AJ182: punainen | AK182: punainen | AL182: punainen | AN182: punainen | AO182: punainen | AP182: punainen | AQ182: 40 | AR182: 10 | AS182: 10 | AT182: 10 | AU182: 10 | AW182: punainen | AX182: punainen | AY182: punainen | AZ182: 40 | BA182: 10 | BB182: 10 | BC182: 10 | BD182: 10 | BF182: 231_1 | BG182: 231 | BH182: 1 | BI182: 21 | BK182: 249_3 | BL182: 249 | BM182: 3 | BN182: 368 | BP182: 249_3 | BQ182: 249 | BR182: 3 | BS182: 8 | BU182: 249_3 | BV182: 249 | BW182: 3 | BX182: 13 | BZ182: 3003_4 | CA182: 3207 | CB182: 90 | CH182: 348_4 | CI182: 113 | CJ182: 2.428540726 | CL182: 3231_3 | CM182: Vähä | CN182: 3231 | CO182: 3 | CP182: 3 | CQ182: Vähä 3 | CS182: 249_5 | CT182: 61.3529959794 | CU182: 22.9143231012 | CV182: https://www.google.com/maps/@61.3529959794,22.9143231012,3a,75y,90t/data=!3m3!1e1!3m1!2e0
A183: 171 | B183: 249_6 | C183: 249 | D183: 6 | E183: 6095 | F183: 6074.739955 | G183: 2250 | H183: 91 | I183: 0.91 | J183: 2047.5 | K183: -0.4702457956 | L183: 3865 | M183: 349 | N183: 4106 | O183: https://www.google.com/maps/@61.4059582525,22.9880172414,3a,75y,90t/data=!3m3!1e1!3m1!2e0 | P183: Gmaps | Q183: Sastamala | R183: 2250 | S183: 91 | T183: 958 | U183: 794 | V183: 10 | W183: Osa seud. yht. | X183: 17 | Y183: Osa seud. yht. | Z183: 12 | AA183: 0.12 | AC183: 0 | AD183: 10.02461034 | AE183: 0.1002461034 | AG183: Keskivilkas 1 | AH183: Keskivilkas 1 | AJ183: punainen | AK183: punainen | AL183: punainen | AN183: punainen | AO183: =IF(S183="ei mallia","ei mallia",IF(S183>39,IF(R183>1999,"punainen",IF(U183>499,"punainen",IF(Y183="Osa seud. yht.","punainen","musta"))),"musta")) -> punainen | AP183: punainen | AQ183: 40 | AR183: 10 | AS183: 10 | AT183: 10 | AU183: 10 | AW183: punainen | AX183: punainen | AY183: punainen | AZ183: 40 | BA183: 10 | BB183: 10 | BC183: 10 | BD183: 10 | BF183: 232_2 | BG183: 232 | BH183: 2 | BI183: 65 | BK183: 249_4 | BL183: 249 | BM183: 4 | BN183: 390 | BP183: 249_4 | BQ183: 249 | BR183: 4 | BS183: 8 | BU183: 249_4 | BV183: 249 | BW183: 4 | BX183: 13 | BZ183: 3005_1 | CA183: 367 | CB183: 75 | CH183: 348_5 | CI183: 1279 | CJ183: 23.11585035 | CL183: 13780_1 | CM183: Vähä | CN183: 13780 | CO183: 1 | CP183: 3 | CQ183: Vähä 3 | CS183: 249_6 | CT183: 61.4059582525 | CU183: 22.9880172414 | CV183: https://www.google.com/maps/@61.4059582525,22.9880172414,3a,75y,90t/data=!3m3!1e1!3m1!2e0
A184: 172 | B184: 249_8 | C184: 249 | D184: 8 | E184: 6236 | F184: 6250.990945 | G184: 2362 | H184: 93 | I184: 0.93 | J184: 2196.66 | K184: -0.3711251074 | L184: 3493 | M184: 282 | N184: 3535 | O184: https://www.google.com/maps/@61.4537286558,23.0358071249,3a,75y,90t/data=!3m3!1e1!3m1!2e0 | P184: Gmaps | Q184: Sastamala | R184: 2362 | S184: 93 | T184: 955 | U184: 869 | V184: 10 | W184: Osa seud. yht. | X184: 17 | Y184: Osa seud. yht. | Z184: 10 | AA184: 0.1 | AC184: 0 | AD184: 12.25144323 | AE184: 0.1225144323 | AG184: Keskivilkas 1 | AH184: Keskivilkas 1 | AJ184: punainen | AK184: punainen | AL184: punainen | AN184: punainen | AO184: =IF(S184="ei mallia","ei mallia",IF(S184>39,IF(R184>1999,"punainen",IF(U184>499,"punainen",IF(Y184="Osa seud. yht.","punainen","musta"))),"musta")) -> punainen | AP184: punainen | AQ184: 40 | AR184: 10 | AS184: 10 | AT184: 10 | AU184: 10 | AW184: punainen | AX184: punainen | AY184: punainen | AZ184: 40 | BA184: 10 | BB184: 10 | BC184: 10 | BD184: 10 | BF184: 232_3 | BG184: 232 | BH184: 3 | BI184: 55 | BK184: 249_5 | BL184: 249 | BM184: 5 | BN184: 682 | BP184: 249_5 | BQ184: 249 | BR184: 5 | BS184: 10 | BU184: 249_5 | BV184: 249 | BW184: 5 | BX184: 17 | BZ184: 3006_1 | CA184: 478 | CB184: 21 | CH184: 348_6 | CI184: 3161 | CJ184: 46.8921525 | CL184: 14194_1 | CM184: Vähä | CN184: 14194 | CO184: 1 | CP184: 3 | CQ184: Vähä 3 | CS184: 249_8 | CT184: 61.4537286558 | CU184: 23.0358071249 | CV184: https://www.google.com/maps/@61.4537286558,23.0358071249,3a,75y,90t/data=!3m3!1e1!3m1!2e0
A185: 173 | B185: 249_9 | C185: 249 | D185: 9 | E185: 6716 | F185: 6700.593231 | G185: 1884 | H185: 93 | I185: 0.93 | J185: 1752.12 | K185: -0.1274302789 | L185: 2008 | M185: 234 | N185: 1961 | O185: https://www.google.com/maps/@61.5027137342,23.0906696749,3a,75y,90t/data=!3m3!1e1!3m1!2e0 | P185: Gmaps | Q185: Hämeenkyrö, Sastamala | R185: 1884 | S185: 93 | T185: 392 | U185: 360 | V185: 14 | W185: Osa seud. yht. | X185: 21 | Y185: Osa seud. yht. | Z185: 0 | AA185: 0 | AC185: 0 | AD185: 3.796902918 | AE185: 0.03796902918 | AG185: Keskivilkas 1 | AH185: Keskivilkas 1 | AJ185: punainen | AK185: punainen | AL185: punainen | AN185: punainen | AO185: punainen | AP185: punainen | AQ185: 22 | AR185: 10 | AS185: 1 | AT185: 1 | AU185: 10 | AW185: punainen | AX185: punainen | AY185: punainen | AZ185: 22 | BA185: 10 | BB185: 1 | BC185: 1 | BD185: 10 | BF185: 232_4 | BG185: 232 | BH185: 4 | BI185: 185 | BK185: 249_6 | BL185: 249 | BM185: 6 | BN185: 794 | BP185: 249_6 | BQ185: 249 | BR185: 6 | BS185: 10 | BU185: 249_6 | BV185: 249 | BW185: 6 | BX185: 17 | BZ185: 3007_1 | CA185: 1368 | CB185: 77 | CH185: 2310_1 | CI185: 1211 | CJ185: 21.30167106 | CL185: 13267_1 | CM185: Vähä | CN185: 13267 | CO185: 1 | CP185: 3 | CQ185: Vähä 3 | CS185: 249_9 | CT185: 61.5027137342 | CU185: 23.0906696749 | CV185: https://www.google.com/maps/@61.5027137342,23.0906696749,3a,75y,90t/data=!3m3!1e1!3m1!2e0
A186: 174 | B186: 249_10 | C186: 249 | D186: 10 | E186: 3267 | F186: 3266.908018 | G186: 1884 | H186: 89 | I186: 0.89 | J186: 1676.76 | K186: -0.1649601594 | L186: 2008 | M186: 234 | N186: 1961 | O186: https://www.google.com/maps/@61.5622110275,23.0978517269,3a,75y,90t/data=!3m3!1e1!3m1!2e0 | P186: Gmaps | Q186: Hämeenkyrö | R186: 1884 | S186: 89 | T186: 383 | U186: 343 | V186: 14 | W186: Osa seud. yht. | X186: 21 | Y186: Osa seud. yht. | Z186: 0 | AA186: 0 | AC186: 0 | AD186: 0 | AE186: 0 | AG186: Keskivilkas 1 | AH186: Keskivilkas 1 | AJ186: punainen | AK186: punainen | AL186: punainen | AN186: punainen | AO186: =IF(S186="ei mallia","ei mallia",IF(S186>39,IF(R186>1999,"punainen",IF(U186>499,"punainen",IF(Y186="Osa seud. yht.","punainen","musta"))),"musta")) -> punainen | AP186: punainen | AQ186: 22 | AR186: 10 | AS186: 1 | AT186: 1 | AU186: 10 | AW186: punainen | AX186: punainen | AY186: punainen | AZ186: 22 | BA186: 10 | BB186: 1 | BC186: 1 | BD186: 10 | BF186: 249_1 | BG186: 249 | BH186: 1 | BI186: 574 | BK186: 249_8 | BL186: 249 | BM186: 8 | BN186: 869 | BP186: 249_8 | BQ186: 249 | BR186: 8 | BS186: 10 | BU186: 249_8 | BV186: 249 | BW186: 8 | BX186: 17 | BZ186: 3008_1 | CA186: 208 | CB186: 56 | CH186: 2470_6 | CI186: 1759 | CJ186: 49.56325726 | CL186: 14301_1 | CM186: Vähä | CN186: 14301 | CO186: 1 | CP186: 3 | CQ186: Vähä 3 | CS186: 249_10 | CT186: 61.5622110275 | CU186: 23.0978517269 | CV186: https://www.google.com/maps/@61.5622110275,23.0978517269,3a,75y,90t/data=!3m3!1e1!3m1!2e0
A187: 175 | B187: 249_11 | C187: 249 | D187: 11 | E187: 7920 | F187: 7921.477452 | G187: 1948 | H187: 82 | I187: 0.82 | J187: 1597.36 | K187: -0.3279932688 | L187: 2377 | M187: 268 | N187: 2338 | O187: https://www.google.com/maps/@61.5907827463,23.1107874268,3a,75y,90t/data=!3m3!1e1!3m1!2e0 | P187: Gmaps | Q187: Hämeenkyrö | R187: 1948 | S187: 82 | T187: 607 | U187: 443 | V187: 14 | W187: Osa seud. yht. | X187: 21 | Y187: Osa seud. yht. | Z187: 0 | AA187: 0 | AC187: 0 | AD187: 0 | AE187: 0 | AG187: Keskivilkas 1 | AH187: Keskivilkas 1 | AJ187: punainen | AK187: punainen | AL187: punainen | AN187: punainen | AO187: =IF(S187="ei mallia","ei mallia",IF(S187>39,IF(R187>1999,"punainen",IF(U187>499,"punainen",IF(Y187="Osa seud. yht.","punainen","musta"))),"musta")) -> punainen | AP187: punainen | AQ187: 22 | AR187: 10 | AS187: 1 | AT187: 1 | AU187: 10 | AW187: punainen | AX187: punainen | AY187: punainen | AZ187: 22 | BA187: 10 | BB187: 1 | BC187: 1 | BD187: 10 | BF187: 249_2 | BG187: 249 | BH187: 2 | BI187: 545 | BK187: 249_9 | BL187: 249 | BM187: 9 | BN187: 360 | BP187: 249_9 | BQ187: 249 | BR187: 9 | BS187: 14 | BU187: 249_9 | BV187: 249 | BW187: 9 | BX187: 21 | BZ187: 3022_1 | CA187: 516 | CB187: 84 | CH187: 2481_1 | CI187: 2368 | CJ187: 69.95568685 | CL187: 2991_1 | CM187: Vähä | CN187: 2991 | CO187: 1 | CP187: 3 | CQ187: Vähä 3 | CS187: 249_11 | CT187: 61.5907827463 | CU187: 23.1107874268 | CV187: https://www.google.com/maps/@61.5907827463,23.1107874268,3a,75y,90t/data=!3m3!1e1!3m1!2e0
A188: 176 | B188: 252_2 | C188: 252 | D188: 2 | E188: 6295 | F188: 6024.110473 | G188: 854 | H188: 50 | I188: 0.5 | J188: 427 | K188: -0.8217863105 | L188: 2396 | M188: 106 | N188: 2529 | O188: https://www.google.com/maps/@61.3195215187,22.9208912425,3a,75y,90t/data=!3m3!1e1!3m1!2e0 | P188: Gmaps | Q188: Sastamala | R188: 854 | S188: 50 | T188: 834 | U188: 324 | V188: 11 | W188: Osa seud. yht. | X188: 0 | Y188: -- | Z188: 31 | AA188: 0.31 | AC188: 0 | AD188: 41.31850675 | AE188: 0.4131850675 | AG188: Keskivilkas 1 | AH188: Keskivilkas 1 | AJ188: musta | AK188: punainen | AL188: punainen | AN188: musta | AO188: musta | AP188: musta | AQ188: 3 | AR188: 1 | AS188: 0 | AT188: 1 | AU188: 1 | AW188: punainen | AX188: musta | AY188: musta | AZ188: 12 | BA188: 10 | BB188: 0 | BC188: 1 | BD188: 1 | BF188: 249_3 | BG188: 249 | BH188: 3 | BI188: 1058 | BK188: 249_10 | BL188: 249 | BM188: 10 | BN188: 343 | BP188: 249_10 | BQ188: 249 | BR188: 10 | BS188: 14 | BU188: 249_10 | BV188: 249 | BW188: 10 | BX188: 21 | BZ188: 3022_1 | CA188: 119 | CB188: 19 | CH188: 2492_5 | CI188: 1671 | CJ188: 29.11149826 | CL188: 13344_2 | CM188: Vähä | CN188: 13344 | CO188: 2 | CP188: 3 | CQ188: Vähä 3 | CS188: 252_2 | CT188: 61.3195215187 | CU188: 22.9208912425 | CV188: https://www.google.com/maps/@61.3195215187,22.9208912425,3a,75y,90t/data=!3m3!1e1!3m1!2e0
A189: 177 | B189: 252_3 | C189: 252 | D189: 3 | E189: 5845 | F189: 5657.621221 | G189: 690 | H189: 72 | I189: 0.72 | J189: 496.8 | K189: -0.4986881937 | L189: 991 | M189: 47 | N189: 1058 | O189: https://www.google.com/maps/@61.271631574,22.9532052602,3a,75y,90t/data=!3m3!1e1!3m1!2e0 | P189: Gmaps | Q189: Sastamala | R189: 690 | S189: 72 | T189: 200 | U189: 145 | V189: 10 | W189: Osa seud. yht. | X189: 0 | Y189: -- | Z189: 0 | AA189: 0 | AC189: 0 | AD189: 0 | AE189: 0 | AG189: Keskivilkas 1 | AH189: Keskivilkas 1 | AJ189: rajatapaus | AK189: punainen | AL189: punainen | AN189: punainen | AO189: musta | AP189: musta | AQ189: 12 | AR189: 10 | AS189: 0 | AT189: 1 | AU189: 1 | AW189: punainen | AX189: musta | AY189: musta | AZ189: 12 | BA189: 10 | BB189: 0 | BC189: 1 | BD189: 1 | BF189: 249_4 | BG189: 249 | BH189: 4 | BI189: 1028 | BK189: 249_11 | BL189: 249 | BM189: 11 | BN189: 443 | BP189: 249_11 | BQ189: 249 | BR189: 11 | BS189: 14 | BU189: 249_11 | BV189: 249 | BW189: 11 | BX189: 21 | BZ189: 3022_2 | CA189: 3756 | CB189: 55 | CH189: 2501_4 | CI189: 2667 | CJ189: 18.48617176 | CL189: 14359_1 | CM189: Vähä | CN189: 14359 | CO189: 1 | CP189: 3 | CQ189: Vähä 3 | CS189: 252_3 | CT189: 61.271631574 | CU189: 22.9532052602 | CV189: https://www.google.com/maps/@61.271631574,22.9532052602,3a,75y,90t/data=!3m3!1e1!3m1!2e0
A190: 178 | B190: 252_4 | C190: 252 | D190: 4 | E190: 10169 | F190: 9812.317629 | G190: 656 | H190: 88 | I190: 0.88 | J190: 577.28 | K190: -0.2374108322 | L190: 757 | M190: 56 | N190: 782 | O190: https://www.google.com/maps/@61.2266936924,22.9917788023,3a,75y,90t/data=!3m3!1e1!3m1!2e0 | P190: Gmaps | Q190: Punkalaidun, Sastamala | R190: 656 | S190: 88 | T190: 170 | U190: 131 | V190: 10 | W190: Osa seud. yht. | X190: 0 | Y190: -- | Z190: 0 | AA190: 0 | AC190: 0 | AD190: 0 | AE190: 0 | AG190: Keskivilkas 1 | AH190: Keskivilkas 1 | AJ190: rajatapaus | AK190: punainen | AL190: punainen | AN190: punainen | AO190: musta | AP190: musta | AQ190: 12 | AR190: 10 | AS190: 0 | AT190: 1 | AU190: 1 | AW190: punainen | AX190: musta | AY190: musta | AZ190: 12 | BA190: 10 | BB190: 0 | BC190: 1 | BD190: 1 | BF190: 249_5 | BG190: 249 | BH190: 5 | BI190: 946 | BK190: 252_1 | BL190: 252 | BM190: 1 | BN190: 1441 | BP190: 252_1 | BQ190: 252 | BR190: 1 | BS190: 10 | BU190: 252_1 | BV190: 252 | BW190: 1 | BX190: 17 | BZ190: 3024_1 | CA190: 1487 | CB190: 98 | CH190: 2501_6 | CI190: 143 | CJ190: 12.00671704 | CL190: 12993_1 | CM190: Vähä | CN190: 12993 | CO190: 1 | CP190: 3 | CQ190: Vähä 3 | CS190: 252_4 | CT190: 61.2266936924 | CU190: 22.9917788023 | CV190: https://www.google.com/maps/@61.2266936924,22.9917788023,3a,75y,90t/data=!3m3!1e1!3m1!2e0
A191: 179 | B191: 252_6 | C191: 252 | D191: 6 | E191: 5224 | F191: 4980.584193 | G191: 691 | H191: 81 | I191: 0.81 | J191: 559.71 | K191: -0.3808517699 | L191: 904 | M191: 69 | N191: 909 | O191: https://www.google.com/maps/@61.1573321452,23.051069475,3a,75y,90t/data=!3m3!1e1!3m1!2e0 | P191: Gmaps | Q191: Punkalaidun | R191: 691 | S191: 81 | T191: 198 | U191: 135 | V191: 10 | W191: Osa seud. yht. | X191: 0 | Y191: -- | Z191: 19 | AA191: 0.19 | AC191: 0 | AD191: 23.67917305 | AE191: 0.2367917305 | AG191: Keskivilkas 1 | AH191: Keskivilkas 1 | AJ191: rajatapaus | AK191: punainen | AL191: punainen | AN191: punainen | AO191: musta | AP191: musta | AQ191: 12 | AR191: 10 | AS191: 0 | AT191: 1 | AU191: 1 | AW191: punainen | AX191: musta | AY191: musta | AZ191: 12 | BA191: 10 | BB191: 0 | BC191: 1 | BD191: 1 | BF191: 249_6 | BG191: 249 | BH191: 6 | BI191: 958 | BK191: 252_2 | BL191: 252 | BM191: 2 | BN191: 324 | BP191: 252_2 | BQ191: 252 | BR191: 2 | BS191: 11 | BU191: 252_2 | BV191: 252 | BW191: 2 | BX191: 0 | BZ191: 3041_1 | CA191: 268 | CB191: 102 | CH191: 2505_1 | CI191: 1967 | CJ191: 30.85006274 | CL191: 3313_4 | CM191: Vähä | CN191: 3313 | CO191: 4 | CP191: 3 | CQ191: Vähä 3 | CS191: 252_6 | CT191: 61.1573321452 | CU191: 23.051069475 | CV191: https://www.google.com/maps/@61.1573321452,23.051069475,3a,75y,90t/data=!3m3!1e1!3m1!2e0
A192: 180 | B192: 259_1 | C192: 259 | D192: 1 | E192: 6321 | F192: 6211.083313 | G192: 1086 | H192: 78 | I192: 0.78 | J192: 847.08 | K192: -0.6662411348 | L192: 2538 | M192: 133 | N192: 2568 | O192: https://www.google.com/maps/@61.504163721,23.0405012959,3a,75y,90t/data=!3m3!1e1!3m1!2e0 | P192: Gmaps | Q192: Sastamala | R192: 1086 | S192: 78 | T192: 731 | U192: 548 | V192: 0 | W192: -- | X192: 0 | Y192: -- | Z192: 47 | AA192: 0.47 | AC192: 0.02436323367 | AD192: 64.5783895 | AE192: 0.645783895 | AG192: Keskivilkas 1 | AH192: Keskivilkas 1 | AJ192: punainen | AK192: punainen | AL192: pinkki | AN192: punainen | AO192: punainen | AP192: punainen | AQ192: 21 | AR192: 10 | AS192: 1 | AT192: 10 | AU192: 0 | AW192: punainen | AX192: punainen | AY192: punainen | AZ192: 21 | BA192: 10 | BB192: 1 | BC192: 10 | BD192: 0 | BF192: 249_8 | BG192: 249 | BH192: 8 | BI192: 955 | BK192: 252_3 | BL192: 252 | BM192: 3 | BN192: 145 | BP192: 252_3 | BQ192: 252 | BR192: 3 | BS192: 10 | BU192: 252_3 | BV192: 252 | BW192: 3 | BX192: 0 | BZ192: 3041_2 | CA192: 72 | CB192: 1 | CH192: 2505_7 | CI192: 2619 | CJ192: 56.26208378 | CL192: 12735_1 | CM192: Vähä | CN192: 12735 | CO192: 1 | CP192: 3 | CQ192: Vähä 3 | CS192: 259_1 | CT192: 61.504163721 | CU192: 23.0405012959 | CV192: https://www.google.com/maps/@61.504163721,23.0405012959,3a,75y,90t/data=!3m3!1e1!3m1!2e0
A193: 181 | B193: 259_2 | C193: 259 | D193: 2 | E193: 6350 | F193: 8816.707998 | G193: 850 | H193: 84 | I193: 0.84 | J193: 714 | K193: -0.4623493976 | L193: 1328 | M193: 93 | N193: 1292 | O193: https://www.google.com/maps/@61.53524331,22.9511249327,3a,75y,90t/data=!3m3!1e1!3m1!2e0 | P193: Gmaps | Q193: Sastamala | R193: 850 | S193: 84 | T193: 159 | U193: 125 | V193: 0 | W193: -- | X193: 0 | Y193: -- | Z193: 0 | AA193: 0 | AC193: 0 | AD193: 0 | AE193: 0 | AG193: Keskivilkas 1 | AH193: Keskivilkas 1 | AJ193: rajatapaus | AK193: rajatapaus | AL193: pinkki | AN193: punainen | AO193: musta | AP193: musta | AQ193: 11 | AR193: 10 | AS193: 0 | AT193: 1 | AU193: 0 | AW193: punainen | AX193: musta | AY193: musta | AZ193: 11 | BA193: 10 | BB193: 0 | BC193: 1 | BD193: 0 | BF193: 249_9 | BG193: 249 | BH193: 9 | BI193: 392 | BK193: 252_4 | BL193: 252 | BM193: 4 | BN193: 131 | BP193: 252_4 | BQ193: 252 | BR193: 4 | BS193: 10 | BU193: 252_4 | BV193: 252 | BW193: 4 | BX193: 0 | BZ193: 3043_1 | CA193: 423 | CB193: 28 | CH193: 2505_7 | CI193: 614 | CJ193: 13.19011815 | CL193: 12952_1 | CM193: Vähä | CN193: 12952 | CO193: 1 | CP193: 3 | CQ193: Vähä 3 | CS193: 259_2 | CT193: 61.53524331 | CU193: 22.9511249327 | CV193: https://www.google.com/maps/@61.53524331,22.9511249327,3a,75y,90t/data=!3m3!1e1!3m1!2e0
A194: 182 | B194: 259_3 | C194: 259 | D194: 3 | E194: 4781 | F194: 2104.116404 | G194: 331 | H194: 64 | I194: 0.64 | J194: 211.84 | K194: -0.8519636618 | L194: 1431 | M194: 93 | N194: 1398 | O194: https://www.google.com/maps/@61.5512799753,22.8357090648,3a,75y,90t/data=!3m3!1e1!3m1!2e0 | P194: Gmaps | Q194: Sastamala | R194: 331 | S194: 64 | T194: 216 | U194: 138 | V194: 0 | W194: -- | X194: 0 | Y194: -- | Z194: 41 | AA194: 0.41 | AC194: 0 | AD194: 54.61200586 | AE194: 0.5461200586 | AG194: Keskivilkas 1 | AH194: Keskivilkas 1 | AJ194: rajatapaus | AK194: rajatapaus | AL194: pinkki | AN194: punainen | AO194: musta | AP194: musta | AQ194: 11 | AR194: 10 | AS194: 0 | AT194: 1 | AU194: 0 | AW194: punainen | AX194: musta | AY194: musta | AZ194: 11 | BA194: 10 | BB194: 0 | BC194: 1 | BD194: 0 | BF194: 249_10 | BG194: 249 | BH194: 10 | BI194: 383 | BK194: 252_6 | BL194: 252 | BM194: 6 | BN194: 135 | BP194: 252_6 | BQ194: 252 | BR194: 6 | BS194: 10 | BU194: 252_6 | BV194: 252 | BW194: 6 | BX194: 0 | BZ194: 3110_1 | CA194: 17 | CB194: 0 | CH194: 2521_1 | CI194: 546 | CJ194: 8.92594409 | CL194: 13717_1 | CM194: Vähä | CN194: 13717 | CO194: 1 | CP194: 3 | CQ194: Vähä 3 | CS194: 259_3 | CT194: 61.5512799753 | CU194: 22.8357090648 | CV194: https://www.google.com/maps/@61.5512799753,22.8357090648,3a,75y,90t/data=!3m3!1e1!3m1!2e0
A195: 183 | B195: 259_4 | C195: 259 | D195: 4 | E195: 7197 | F195: 7834.69234 | G195: 269 | H195: 80 | I195: 0.8 | J195: 215.2 | K195: -0.761154273 | L195: 901 | M195: 49 | N195: 853 | O195: https://www.google.com/maps/@61.5526568707,22.757675575,3a,75y,90t/data=!3m3!1e1!3m1!2e0 | P195: Gmaps | Q195: Sastamala | R195: 269 | S195: 80 | T195: 52 | U195: 27 | V195: 0 | W195: -- | X195: 0 | Y195: -- | Z195: 0 | AA195: 0 | AC195: 0 | AD195: 10.61553425 | AE195: 0.1061553425 | AG195: Keskivilkas 1 | AH195: Keskivilkas 1 | AJ195: musta | AK195: musta | AL195: pinkki | AN195: musta | AO195: musta | AP195: musta | AQ195: 10 | AR195: 10 | AS195: 0 | AT195: 0 | AU195: 0 | AW195: musta | AX195: musta | AY195: musta | AZ195: 10 | BA195: 10 | BB195: 0 | BC195: 0 | BD195: 0 | BF195: 249_11 | BG195: 249 | BH195: 11 | BI195: 607 | BK195: 259_1 | BL195: 259 | BM195: 1 | BN195: 548 | BP195: 259_1 | BQ195: 259 | BR195: 1 | BS195: 0 | BU195: 259_1 | BV195: 259 | BW195: 1 | BX195: 0 | BZ195: 3221_1 | CA195: 1657 | CB195: 12 | CH195: 2522_1 | CI195: 663 | CJ195: 19.05172414 | CL195: 14225_1 | CM195: Vähä | CN195: 14225 | CO195: 1 | CP195: 3 | CQ195: Vähä 3 | CS195: 259_4 | CT195: 61.5526568707 | CU195: 22.757675575 | CV195: https://www.google.com/maps/@61.5526568707,22.757675575,3a,75y,90t/data=!3m3!1e1!3m1!2e0
A196: 184 | B196: 261_6 | C196: 261 | D196: 6 | E196: 3266 | G196: 500 | H196: 88 | I196: 0.88 | J196: 440 | K196: -0.7321972002 | L196: 1643 | M196: 154 | N196: 1571 | O196: https://www.google.com/maps/@61.7974966907,22.8154033497,3a,75y,90t/data=!3m3!1e1!3m1!2e0 | P196: Gmaps | Q196: Ikaalinen | R196: 500 | S196: 88 | T196: 147 | U196: 145 | V196: 0 | W196: -- | X196: 3 | Y196: Osa seud. yht. | Z196: 0 | AA196: 0 | AC196: 0 | AD196: 0 | AE196: 0 | AG196: Keskivilkas 2 | AH196: Keskivilkas 2 | AJ196: punainen | AK196: punainen | AL196: punainen | AN196: punainen | AO196: punainen | AP196: punainen | AQ196: 21 | AR196: 10 | AS196: 0 | AT196: 1 | AU196: 10 | AW196: punainen | AX196: punainen | AY196: punainen | AZ196: 21 | BA196: 10 | BB196: 0 | BC196: 1 | BD196: 10 | BF196: 252_1 | BG196: 252 | BH196: 1 | BI196: 3679 | BK196: 259_2 | BL196: 259 | BM196: 2 | BN196: 125 | BP196: 259_2 | BQ196: 259 | BR196: 2 | BS196: 0 | BU196: 259_2 | BV196: 259 | BW196: 2 | BX196: 0 | BZ196: 3230_4 | CA196: 483 | CB196: 9 | CH196: 2583_1 | CI196: 31 | CJ196: 0.8373851972 | CL196: 13074_1 | CM196: Vähä | CN196: 13074 | CO196: 1 | CP196: 3 | CQ196: Vähä 3 | CS196: 261_6 | CT196: 61.7974966907 | CU196: 22.8154033497 | CV196: https://www.google.com/maps/@61.7974966907,22.8154033497,3a,75y,90t/data=!3m3!1e1!3m1!2e0
A197: 185 | B197: 261_7 | C197: 261 | D197: 7 | E197: 4382 | F197: 7724.052053 | G197: 478 | H197: 85 | I197: 0.85 | J197: 406.3 | K197: -0.7527084601 | L197: 1643 | M197: 154 | N197: 1571 | O197: https://www.google.com/maps/@61.7785257965,22.8618478514,3a,75y,90t/data=!3m3!1e1!3m1!2e0 | P197: Gmaps | Q197: Ikaalinen | R197: 478 | S197: 85 | T197: 166 | U197: 158 | V197: 0 | W197: -- | X197: 3 | Y197: Osa seud. yht. | Z197: 0 | AA197: 0 | AC197: 0 | AD197: 0 | AE197: 0 | AG197: Keskivilkas 1 | AH197: Keskivilkas 1 | AJ197: punainen | AK197: punainen | AL197: punainen | AN197: punainen | AO197: punainen | AP197: punainen | AQ197: 21 | AR197: 10 | AS197: 0 | AT197: 1 | AU197: 10 | AW197: punainen | AX197: punainen | AY197: punainen | AZ197: 21 | BA197: 10 | BB197: 0 | BC197: 1 | BD197: 10 | BF197: 252_2 | BG197: 252 | BH197: 2 | BI197: 834 | BK197: 259_3 | BL197: 259 | BM197: 3 | BN197: 138 | BP197: 259_3 | BQ197: 259 | BR197: 3 | BS197: 0 | BU197: 259_3 | BV197: 259 | BW197: 3 | BX197: 0 | BZ197: 3260_1 | CA197: 916 | CB197: 14 | CH197: 2591_2 | CI197: 245 | CJ197: 9.53307393 | CL197: 13111_1 | CM197: Vähä | CN197: 13111 | CO197: 1 | CP197: 3 | CQ197: Vähä 3 | CS197: 261_7 | CT197: 61.7785257965 | CU197: 22.8618478514 | CV197: https://www.google.com/maps/@61.7785257965,22.8618478514,3a,75y,90t/data=!3m3!1e1!3m1!2e0
A198: 186 | B198: 261_8 | C198: 261 | D198: 8 | E198: 5025 | F198: 1530.003779 | G198: 537 | H198: 67 | I198: 0.67 | J198: 359.79 | K198: -0.8250048638 | L198: 2056 | M198: 158 | N198: 1997 | O198: https://www.google.com/maps/@61.7633058654,22.9370966143,3a,75y,90t/data=!3m3!1e1!3m1!2e0 | P198: Gmaps | Q198: Ikaalinen | R198: 537 | S198: 67 | T198: 391 | U198: 217 | V198: 0 | W198: -- | X198: 3 | Y198: Osa seud. yht. | Z198: 0 | AA198: 0 | AC198: 0 | AD198: 33.23383085 | AE198: 0.3323383085 | AG198: Keskivilkas 1 | AH198: Keskivilkas 1 | AJ198: punainen | AK198: punainen | AL198: punainen | AN198: punainen | AO198: punainen | AP198: punainen | AQ198: 21 | AR198: 10 | AS198: 0 | AT198: 1 | AU198: 10 | AW198: punainen | AX198: punainen | AY198: punainen | AZ198: 21 | BA198: 10 | BB198: 0 | BC198: 1 | BD198: 10 | BF198: 252_3 | BG198: 252 | BH198: 3 | BI198: 200 | BK198: 259_4 | BL198: 259 | BM198: 4 | BN198: 27 | BP198: 259_4 | BQ198: 259 | BR198: 4 | BS198: 0 | BU198: 259_4 | BV198: 259 | BW198: 4 | BX198: 0 | BZ198: 3261_1 | CA198: 1056 | CB198: 100 | CH198: 2592_1 | CI198: 118 | CJ198: 2.149362477 | CL198: 13277_1 | CM198: Vähä | CN198: 13277 | CO198: 1 | CP198: 3 | CQ198: Vähä 3 | CS198: 261_8 | CT198: 61.7633058654 | CU198: 22.9370966143 | CV198: https://www.google.com/maps/@61.7633058654,22.9370966143,3a,75y,90t/data=!3m3!1e1!3m1!2e0
A199: 187 | B199: 274_1 | C199: 274 | D199: 1 | E199: 6521 | F199: 6455.378551 | G199: 205 | H199: 46 | I199: 0.46 | J199: 94.3 | K199: -0.9205560236 | L199: 1187 | M199: 74 | N199: 1225 | O199: https://www.google.com/maps/@62.0232428397,23.0141074951,3a,75y,90t/data=!3m3!1e1!3m1!2e0 | P199: Gmaps | Q199: Parkano | R199: 205 | S199: 46 | T199: 381 | U199: 176 | V199: 10 | W199: Osa seud. yht. | X199: 11 | Y199: Osa seud. yht. | Z199: 12 | AA199: 0.12 | AC199: 0 | AD199: 30.16408526 | AE199: 0.3016408526 | AG199: Keskivilkas 1 | AH199: Keskivilkas 1 | AJ199: rajatapaus | AK199: rajatapaus | AL199: punainen | AN199: musta | AO199: punainen | AP199: musta | AQ199: 12 | AR199: 1 | AS199: 0 | AT199: 1 | AU199: 10 | AW199: musta | AX199: punainen | AY199: musta | AZ199: 12 | BA199: 1 | BB199: 0 | BC199: 1 | BD199: 10 | BF199: 252_4 | BG199: 252 | BH199: 4 | BI199: 170 | BK199: 261_6 | BL199: 261 | BM199: 6 | BN199: 145 | BP199: 261_6 | BQ199: 261 | BR199: 6 | BS199: 0 | BU199: 261_6 | BV199: 261 | BW199: 6 | BX199: 3 | BZ199: 3381_5 | CA199: 647 | CB199: 7 | CH199: 2594_1 | CI199: 487 | CJ199: 11.62291169 | CL199: 12757_1 | CM199: Vähä | CN199: 12757 | CO199: 1 | CP199: 3 | CQ199: Vähä 3 | CS199: 274_1 | CT199: 62.0232428397 | CU199: 23.0141074951 | CV199: https://www.google.com/maps/@62.0232428397,23.0141074951,3a,75y,90t/data=!3m3!1e1!3m1!2e0
A200: 188 | B200: 274_2 | C200: 274 | D200: 2 | E200: 5395 | F200: 9847.209126 | G200: 173 | H200: 95 | I200: 0.95 | J200: 164.35 | K200: -0.7688466948 | L200: 711 | M200: 50 | N200: 670 | O200: https://www.google.com/maps/@62.0573118985,22.9272565027,3a,75y,90t/data=!3m3!1e1!3m1!2e0 | P200: Gmaps | Q200: Parkano | R200: 173 | S200: 95 | T200: 48 | U200: 32 | V200: 0 | W200: -- | X200: 0 | Y200: -- | Z200: 0 | AA200: 0 | AC200: 0 | AD200: 0 | AE200: 0 | AG200: Keskivilkas 1 | AH200: Keskivilkas 1 | AJ200: musta | AK200: musta | AL200: punainen | AN200: musta | AO200: musta | AP200: musta | AQ200: 10 | AR200: 10 | AS200: 0 | AT200: 0 | AU200: 0 | AW200: musta | AX200: musta | AY200: musta | AZ200: 10 | BA200: 10 | BB200: 0 | BC200: 0 | BD200: 0 | BF200: 252_6 | BG200: 252 | BH200: 6 | BI200: 198 | BK200: 261_7 | BL200: 261 | BM200: 7 | BN200: 158 | BP200: 261_7 | BQ200: 261 | BR200: 7 | BS200: 0 | BU200: 261_7 | BV200: 261 | BW200: 7 | BX200: 3 | BZ200: 3400_1 | CA200: 1393 | CB200: 98 | CH200: 2594_6 | CI200: 553 | CJ200: 9.624086321 | CL200: 13739_1 | CM200: Vähä | CN200: 13739 | CO200: 1 | CP200: 3 | CQ200: Vähä 3 | CS200: 274_2 | CT200: 62.0573118985 | CU200: 22.9272565027 | CV200: https://www.google.com/maps/@62.0573118985,22.9272565027,3a,75y,90t/data=!3m3!1e1!3m1!2e0
A201: 189 | B201: 274_3 | C201: 274 | D201: 3 | E201: 4599 | G201: 200 | H201: 99 | I201: 0.99 | J201: 198 | K201: -0.7215189873 | L201: 711 | M201: 50 | N201: 670 | O201: https://www.google.com/maps/@62.0726956075,22.8378835038,3a,75y,90t/data=!3m3!1e1!3m1!2e0 | P201: Gmaps | Q201: Parkano | R201: 200 | S201: 99 | T201: 33 | U201: 30 | V201: 0 | W201: -- | X201: 0 | Y201: -- | Z201: 0 | AA201: 0 | AC201: 0 | AD201: 0 | AE201: 0 | AG201: Ei määritetty | AH201: Keskivilkas 1 | AJ201: musta | AK201: musta | AL201: punainen | AN201: musta | AO201: musta | AP201: musta | AQ201: 10 | AR201: 10 | AS201: 0 | AT201: 0 | AU201: 0 | AW201: musta | AX201: musta | AY201: musta | AZ201: 10 | BA201: 10 | BB201: 0 | BC201: 0 | BD201: 0 | BF201: 259_1 | BG201: 259 | BH201: 1 | BI201: 731 | BK201: 261_8 | BL201: 261 | BM201: 8 | BN201: 217 | BP201: 261_8 | BQ201: 261 | BR201: 8 | BS201: 0 | BU201: 261_8 | BV201: 261 | BW201: 8 | BX201: 3 | BZ201: 3400_2 | CA201: 615 | CB201: 10 | CH201: 2595_1 | CI201: 421 | CJ201: 100.7177033 | CL201: 13361_1 | CM201: Vähä | CN201: 13361 | CO201: 1 | CP201: 3 | CQ201: Vähä 3 | CS201: 274_3 | CT201: 62.0726956075 | CU201: 22.8378835038 | CV201: https://www.google.com/maps/@62.0726956075,22.8378835038,3a,75y,90t/data=!3m3!1e1!3m1!2e0
A202: 190 | B202: 276_1 | C202: 276 | D202: 1 | E202: 4170 | F202: 4063.533201 | G202: 172 | H202: 20 | I202: 0.2 | J202: 34.4 | K202: -0.9806197183 | L202: 1775 | M202: 68 | N202: 1827 | O202: https://www.google.com/maps/@61.6315266956,23.2049607125,3a,75y,90t/data=!3m3!1e1!3m1!2e0 | P202: Gmaps | Q202: Hämeenkyrö, Ylöjärvi | R202: 172 | S202: 20 | T202: 435 | U202: 298 | V202: 0 | W202: -- | X202: 0 | Y202: -- | Z202: 22 | AA202: 0.22 | AC202: 0 | AD202: 67.8177458 | AE202: 0.678177458 | AG202: Keskivilkas 1 | AH202: Keskivilkas 1 | AJ202: musta | AK202: musta | AL202: pinkki | AN202: musta | AO202: musta | AP202: musta | AQ202: 1 | AR202: 0 | AS202: 0 | AT202: 1 | AU202: 0 | AW202: musta | AX202: musta | AY202: musta | AZ202: 2 | BA202: 1 | BB202: 0 | BC202: 1 | BD202: 0 | BF202: 259_2 | BG202: 259 | BH202: 2 | BI202: 159 | BK202: 274_1 | BL202: 274 | BM202: 1 | BN202: 176 | BP202: 274_1 | BQ202: 274 | BR202: 1 | BS202: 10 | BU202: 274_1 | BV202: 274 | BW202: 1 | BX202: 11 | BZ202: 3400_3 | CA202: 1246 | CB202: 33 | CH202: 2595_2 | CI202: 715 | CJ202: 102.5824964 | CL202: 14337_1 | CM202: Vähä | CN202: 14337 | CO202: 1 | CP202: 3 | CQ202: Vähä 3 | CS202: 276_1 | CT202: 61.6315266956 | CU202: 23.2049607125 | CV202: https://www.google.com/maps/@61.6315266956,23.2049607125,3a,75y,90t/data=!3m3!1e1!3m1!2e0
... 360 more rows

Sheet Jak KVL abs. > 20 km
A1: > 20 km abs.
A2: 0
A3: 0
A4: 0
A5: 1
A6: 1
A7: 2
A8: 2
A9: 2
A10: 3
A11: 3
A12: 3
A13: 3
A14: 3
A15: 3
A16: 4
A17: 4
A18: 4
A19: 4
A20: 5
A21: 5
A22: 5
A23: 5
A24: 6
A25: 6
A26: 6
A27: 6
A28: 6
A29: 7
A30: 7
A31: 7
A32: 7
A33: 7
A34: 8
A35: 8
A36: 8
A37: 8
A38: 8
A39: 8
A40: 8
A41: 8
A42: 8
A43: 9
A44: 9
A45: 9
A46: 9
A47: 9
A48: 9
A49: 9
A50: 10
A51: 10
A52: 10
A53: 10
A54: 10
A55: 10
A56: 10
A57: 11
A58: 11
A59: 11
A60: 12
A61: 12
A62: 12
A63: 12
A64: 12
A65: 12
A66: 12
A67: 12
A68: 13
A69: 13
A70: 13
A71: 13
A72: 13
A73: 13
A74: 13
A75: 13
A76: 13
A77: 14
A78: 14
A79: 14
A80: 14
A81: 15
A82: 15
A83: 15
A84: 15
A85: 15
A86: 15
A87: 15
A88: 15
A89: 15
A90: 16
A91: 16
A92: 16
A93: 16
A94: 16
A95: 16
A96: 17
A97: 17
A98: 18
A99: 18
A100: 18
A101: 18
A102: 18
A103: 18
A104: 18
A105: 18
A106: 18
A107: 18
A108: 19
A109: 19
A110: 19
A111: 19
A112: 21
A113: 21
A114: 21
A115: 21
A116: 22
A117: 22
A118: 22
A119: 22
A120: 23
A121: 23
A122: 23
A123: 23
A124: 24
A125: 24
A126: 24
A127: 24
A128: 25
A129: 25
A130: 25
A131: 25
A132: 25
A133: 26
A134: 26
A135: 27
A136: 27
A137: 27
A138: 27
A139: 27
A140: 28
A141: 28
A142: 28
A143: 28
A144: 28
A145: 28
A146: 29
A147: 29
A148: 29
A149: 29
A150: 30
A151: 30
A152: 32
A153: 32
A154: 32
A155: 32
A156: 34
A157: 34
A158: 34
A159: 35
A160: 35
A161: 35
A162: 36
A163: 36
A164: 36
A165: 36
A166: 37
A167: 37
A168: 37
A169: 37
A170: 37
A171: 37
A172: 38
A173: 38
A174: 39
A175: 39
A176: 39
A177: 39
A178: 39
A179: 39
A180: 39
A181: 39
A182: 39
A183: 40
A184: 40
A185: 40
A186: 40
A187: 41
A188: 41
A189: 41
A190: 41
A191: 41
A192: 41
A193: 41
A194: 42
A195: 42
A196: 42
A197: 42
A198: 42
A199: 42
A200: 43
... 750 more rows

Sheet Jak työmatkat > 20 km
A1: > 20 km abs.
A2: 0
A3: 0
A4: 0
A5: 0
A6: 0
A7: 0
A8: 0
A9: 0
A10: 0
A11: 0
A12: 1
A13: 1
A14: 1
A15: 1
A16: 1
A17: 1
A18: 1
A19: 1
A20: 1
A21: 1
A22: 1
A23: 2
A24: 2
A25: 2
A26: 2
A27: 2
A28: 2
A29: 2
A30: 2
A31: 2
A32: 2
A33: 2
A34: 2
A35: 2
A36: 2
A37: 2
A38: 2
A39: 3
A40: 3
A41: 3
A42: 3
A43: 3
A44: 3
A45: 3
A46: 3
A47: 3
A48: 3
A49: 3
A50: 3
A51: 3
A52: 3
A53: 3
A54: 3
A55: 3
A56: 3
A57: 4
A58: 4
A59: 4
A60: 4
A61: 4
A62: 4
A63: 4
A64: 4
A65: 4
A66: 4
A67: 4
A68: 4
A69: 5
A70: 5
A71: 5
A72: 5
A73: 5
A74: 5
A75: 5
A76: 5
A77: 5
A78: 5
A79: 5
A80: 5
A81: 5
A82: 5
A83: 5
A84: 5
A85: 5
A86: 5
A87: 5
A88: 5
A89: 5
A90: 6
A91: 6
A92: 6
A93: 6
A94: 6
A95: 6
A96: 6
A97: 6
A98: 6
A99: 6
A100: 6
A101: 6
A102: 6
A103: 6
A104: 6
A105: 6
A106: 6
A107: 6
A108: 6
A109: 6
A110: 6
A111: 6
A112: 6
A113: 6
A114: 7
A115: 7
A116: 7
A117: 7
A118: 7
A119: 7
A120: 7
A121: 7
A122: 7
A123: 7
A124: 7
A125: 7
A126: 7
A127: 7
A128: 7
A129: 7
A130: 7
A131: 7
A132: 8
A133: 8
A134: 8
A135: 8
A136: 8
A137: 8
A138: 8
A139: 8
A140: 8
A141: 8
A142: 8
A143: 8
A144: 8
A145: 8
A146: 8
A147: 8
A148: 9
A149: 9
A150: 9
A151: 9
A152: 9
A153: 9
A154: 9
A155: 9
A156: 9
A157: 9
A158: 9
A159: 9
A160: 9
A161: 9
A162: 9
A163: 9
A164: 10
A165: 10
A166: 10
A167: 10
A168: 10
A169: 10
A170: 10
A171: 10
A172: 10
A173: 10
A174: 10
A175: 10
A176: 10
A177: 10
A178: 10
A179: 10
A180: 10
A181: 10
A182: 10
A183: 10
A184: 11
A185: 11
A186: 11
A187: 11
A188: 11
A189: 11
A190: 11
A191: 11
A192: 11
A193: 11
A194: 11
A195: 11
A196: 11
A197: 11
A198: 11
A199: 11
A200: 11
... 762 more rows
